Workbook

Sheet Client Report
D1: Client Report Submitted by petelobo on 8/17/2015
AW5: 6 | AX5: 8 | AY5: 6 | AZ5: 11 | BA5: 14
C6: Trainee Name: | H6: Example adult | U6: Age: | V6: 46 | AX6: 18 | AY6: 16 | AZ6: 18 | BA6: 19
AS7: - | AT7: - | AW7: 6 | AX7: 22 | AY7: 22 | AZ7: 22 | BA7: 22
B8: Family/Vocational Information | AS8: 1-12 x/year | AT8: 1 | AX8: 23 | AY8: 23 | AZ8: 23 | BA8: 23
AS9: 1-4 x/month | AT9: 2 | AW9: 12 | AX9: 16 | AY9: 15 | AZ9: 19 | BA9: 19
C10: Trainee grew up in (check all that apply): | AS10: 1-2 x/week | AT10: 3 | AX10: 17 | AY10: 16 | AZ10: 20 | BA10: 20
AS11: 3-4 x/week | AT11: 4 | AW11: 12 | AX11: 31 | AY11: 35 | AZ11: 33 | BA11: 33
C12: Number of siblings (client included): | P12: 3 | U12: Client's place in birth order: | AE12: 2 | AS12: >3-4 x/week | AT12: 5 | AX12: 32 | AY12: 36 | AZ12: 34 | BA12: 34
AT13: >5 | AW13: 16 | AX13: 16 | AY13: 20 | AZ13: 18 | BA13: 9
C14: Is there a history of (check all that apply): | AX14: 17 | AY14: 21 | AZ14: 19 | BA14: 10
AW15: 16 | AX15: 27 | AY15: 26 | AZ15: 26 | BA15: 27
C16: Number of years of school completed: | P16: 12 | V16: Occupation: | AA16: homemaker | AX16: 37 | AY16: 36 | AZ16: 36 | BA16: 36
AX17: 21 | AY17: 21 | AZ17: 22 | BA17: 22
B18: Physical Information | AX18: 11 | AY18: 10 | AZ18: 8 | BA18: 8
AX19: 228 | AY19: 120 | AZ19: 303 | BA19: 303
C20: Is the trainee: | AX20: 312 | AY20: 204 | AZ20: 388 | BA20: 388
AX21: 400 | AY21: 291 | AZ21: 475 | BA21: 475
C22: How many of these medications are you taking? | T22: Check appropriate boxes below: | AX22: 25 | AY22: 24 | AZ22: 25 | BA22: 25
G23: Antidepressants | AD23: Frequency | AX23: 11 | AY23: 10 | AZ23: 10 | BA23: 10
G24: Anti-anxiety | AD24: Frequency
G25: Anticonvulsants
G26: Antipsychotics
G27: Stimulants
G28: Mood stabilizers
C30: List of medications being taken: | N30: Sertraline
B34: Problem Areas
C35: STRESS | U35: ANXIETY
C42: DEPRESSION | U42: ANGER
C48: SLEEP DISTURBANCE | U48: PHYSICAL DISTURBANCE
C58: ATTENTION | U58: LEARNING
C65: CONTROL | U65: MEMORY

Sheet Analyze
D1: Name: | E1: Example adult | H1: Age: | I1: 46
D2: Trainer: | E2: sample | H2: Date: | I2: 8/17/2015
A3: Histogram
B4: Overall EEG Shape | D4: F7 | E4: F3 | F4: Fp1 | G4: Fz | H4: Fp2 | I4: F4 | J4: F8 | K4: T3 | L4: C3 | M4: Cz | N4: C4 | O4: T4 | P4: T5 | Q4: P3 | R4: Pz | S4: P4 | T4: T6 | U4: O1 | V4: Oz | W4: O2
C5: Slow Percent EC | D5: 0.23 | E5: 0.35 | F5: 0.31 | G5: 0.33 | H5: 0.35 | I5: 0.37 | J5: 0.41 | K5: 0.26 | L5: 0.34 | M5: 0.3 | N5: 0.33 | O5: 0.31 | P5: 0.28 | Q5: 0.3 | R5: 0.28 | S5: 0.3 | T5: 0.28 | U5: 0.22 | V5: 0.22 | W5: 0.23
C6: Slow Percent EO | D6: 0.22 | E6: 0.35 | F6: - | G6: 0.38 | H6: - | I6: 0.37 | J6: 0.44 | K6: 0.25 | L6: 0.33 | M6: 0.33 | N6: 0.32 | O6: 0.29 | P6: 0.32 | Q6: 0.33 | R6: 0.31 | S6: 0.33 | T6: 0.28 | U6: 0.34 | V6: 0.28 | W6: 0.33
C7: Mid Percent EC | D7: 0.29 | E7: 0.39 | F7: 0.35 | G7: 0.43 | H7: 0.35 | I7: 0.39 | J7: 0.37 | K7: 0.33 | L7: 0.42 | M7: 0.44 | N7: 0.43 | O7: 0.37 | P7: 0.48 | Q7: 0.47 | R7: 0.47 | S7: 0.46 | T7: 0.41 | U7: 0.58 | V7: 0.53 | W7: 0.57
C8: Mid Percent EO | D8: 0.2 | E8: 0.36 | F8: - | G8: 0.35 | H8: - | I8: 0.37 | J8: 0.31 | K8: 0.3 | L8: 0.4 | M8: 0.38 | N8: 0.42 | O8: 0.38 | P8: 0.38 | Q8: 0.4 | R8: 0.4 | S8: 0.39 | T8: 0.34 | U8: 0.4 | V8: 0.39 | W8: 0.4
C9: Fast Percent EC | D9: 0.48 | E9: 0.26 | F9: 0.34 | G9: 0.24 | H9: 0.3 | I9: 0.24 | J9: 0.23 | K9: 0.41 | L9: 0.25 | M9: 0.25 | N9: 0.24 | O9: 0.32 | P9: 0.24 | Q9: 0.23 | R9: 0.25 | S9: 0.24 | T9: 0.31 | U9: 0.19 | V9: 0.25 | W9: 0.2
C10: Fast Percent EO | D10: 0.59 | E10: 0.29 | F10: - | G10: 0.27 | H10: - | I10: 0.27 | J10: 0.24 | K10: 0.44 | L10: 0.27 | M10: 0.29 | N10: 0.26 | O10: 0.33 | P10: 0.3 | Q10: 0.26 | R10: 0.29 | S10: 0.28 | T10: 0.38 | U10: 0.27 | V10: 0.33 | W10: 0.28
B11: EEG Speed
C12: Alpha Peak Freq | D12: 9.8 | E12: 9.5 | F12: 9.5 | G12: 9.6 | H12: 9.5 | I12: 9.4 | J12: 9.2 | K12: 10 | L12: 9.8 | M12: 9.5 | N12: 9.8 | O12: 9.5 | P12: 9.5 | Q12: 9.4 | R12: 9.6 | S12: 9.4 | T12: 9.5 | U12: 9.8 | V12: 10 | W12: 9.9
C13: Beta Peak Freq | D13: 23.6 | E13: 18.9 | F13: 20 | G13: 17.4 | H13: 21.1 | I13: 17.9 | J13: 17.9 | K13: 23.7 | L13: 17 | M13: 17 | N13: 16.7 | O13: 19.8 | P13: 17.3 | Q13: 16.9 | R13: 16.6 | S13: 16.9 | T13: 22.7 | U13: 17.4 | V13: 18.9 | W13: 17.2
C14: Overall Peak Freq | D14: 8.6 | E14: 6.7 | F14: 7.7 | G14: 8.3 | H14: 6.7 | I14: 6.2 | J14: 5.3 | K14: 8 | L14: 7.8 | M14: 9.1 | N14: 8.1 | O14: 7.1 | P14: 9.1 | Q14: 8.9 | R14: 9.5 | S14: 8.6 | T14: 9 | U14: 9.9 | V14: 10.1 | W14: 10
B15: Alpha Pattern
C16: A/T Ratio EC | D16: 1.6 | E16: 1.5 | F16: 1.5 | G16: 1.9 | H16: 1.4 | I16: 1.4 | J16: 1.4 | K16: 1.7 | L16: 1.7 | M16: 2 | N16: 1.7 | O16: 1.5 | P16: 2.5 | Q16: 2.1 | R16: 2.2 | S16: 2 | T16: 2 | U16: 3.8 | V16: 3.5 | W16: 3.5
C17: A/T Ratio EO | D17: 1.1 | E17: 1.2 | F17: - | G17: 1.1 | H17: - | I17: 1.3 | J17: 1 | K17: 1.5 | L17: 1.6 | M17: 1.4 | N17: 1.6 | O17: 1.7 | P17: 1.4 | Q17: 1.5 | R17: 1.5 | S17: 1.5 | T17: 1.5 | U17: 1.3 | V17: 1.6 | W17: 1.3
C18: Alpha EC/EO | D18: 1.7 | E18: 1.4 | F18: - | G18: 1.6 | H18: - | I18: 1.4 | J18: 1.6 | K18: 1.2 | L18: 1.2 | M18: 1.5 | N18: 1.1 | O18: 1 | P18: 2.1 | Q18: 1.7 | R18: 1.7 | S18: 1.7 | T18: 1.7 | U18: 3.4 | V18: 2.4 | W18: 3
C19: Alpha EO/TSK | D19: 0.6 | E19: 1.8 | F19: - | G19: 1.2 | H19: - | I19: 1.8 | J19: 0.7 | K19: 1.7 | L19: 1.7 | M19: 1.2 | N19: 1.6 | O19: 1.3 | P19: 0.6 | Q19: 1.7 | R19: 1.2 | S19: 1.6 | T19: 0.7 | U19: 1.3 | V19: 1.2 | W19: 1.3
A21: Heads
B22: Temporal Lobe
C23: Disconnect
D24: Disconnect | H24: No
D25: Absolute R/L ratio | H25: 1.05
D26: Relative R/L ratio | H26: 0.8
C27: Hot Temporals | H27: T3 | I27: T4 | K27: T3%L | L27: T4%R
D28: Beta Percent | H28: 0.183 | I28: 0.147 | K28: 1.344 | L28: 1.093
D29: High Beta Percent | H29: 0.147 | I29: 0.118 | K29: 1.95 | L29: 1.6
B31: Reversal | D31: EC | E31: EO | F31: EC | G31: EO | H31: EC | I31: EO | J31: EC | K31: EO | L31: EC | M31: EO | N31: EC | O31: EO | P31: EC | Q31: EO
C32: Left/Right Beta | D32: F7/F8 | E32: F7/F8 | F32: F3/F4 | G32: F3/F4 | H32: C3/C4 | I32: C3/C4 | J32: T3/T4 | K32: T3/T4 | L32: T5/T6 | M32: T5/T6 | N32: P3/P4 | O32: P3/P4 | P32: O1/O2 | Q32: O1/O2
C33: irritable anxious angry | D33: 2.06 | E33: 2.27 | F33: 1.08 | G33: 1.1 | H33: 1.01 | I33: 1.03 | J33: 1.25 | K33: 1.32 | L33: 0.82 | M33: 0.85 | N33: 0.97 | O33: 0.97 | P33: 0.97 | Q33: 0.98
C34: Right/Left Alpha | D34: F8/F7 | E34: F8/F7 | F34: F4/F3 | G34: F4/F3 | H34: C4/C3 | I34: C4/C3 | J34: T4/T3 | K34: T4/T3 | L34: T6/T5 | M34: T6/T5 | N34: P4/P3 | O34: P4/P3 | P34: O1/O2 | Q34: O1/O2
C35: depressed negative | D35: 1.25 | E35: 1.59 | F35: 0.98 | G35: 1.01 | H35: 1 | I35: 1.04 | J35: 0.91 | K35: 1.1 | L35: 0.87 | M35: 0.84 | N35: 0.96 | O35: 1 | P35: 0.91 | Q35: 0.99
D36: EC | E36: EO | F36: EC | G36: EO | H36: EC | I36: EO | J36: EC | K36: EO | L36: EC | M36: EO | N36: EC | O36: EO
C37: Front/Back Beta | D37: F3/P3 | E37: F3/P3 | F37: F4/P4 | G37: F4/P4 | H37: F3/O1 | I37: F3/O1 | J37: F4/O2 | K37: F4/O2 | L37: Fz/Pz | M37: Fz/Pz | N37: Cz/Oz | O37: Cz/Oz
C38: perfectionism insomnia | D38: 1.08 | E38: 1.08 | F38: 0.97 | G38: 0.95 | H38: 1.27 | I38: 1.09 | J38: 1.14 | K38: 0.97 | L38: 0.94 | M38: 0.91 | N38: 1.04 | O38: 0.9
C39: Back/Front Alpha | D39: P3/F3 | E39: P3/F3 | F39: P4/F4 | G39: P4/F4 | H39: O1/F3 | I39: O1/F3 | J39: O2/F4 | K39: O2/F4 | L39: Pz/Fz | M39: Pz/Fz | N39: Oz/Cz | O39: Oz/Cz
C40: unmotivated foggy | D40: 1.03 | E40: 0.97 | F40: 1.01 | G40: 0.96 | H40: 1.39 | I40: 1 | J40: 1.56 | K40: 1 | L40: 0.93 | M40: 1.12 | N40: 1.26 | O40: 1.04
B42: Blocking | D42: Left & Right vs Midline | K42: Eyes Closed | P42: Eyes Open
C43: Fz vs F3 or F4 | D43: EC | E43: EO | G43: Swingle Ratio | I43: 0.35 | J43: 0.33 | K43: 0.37 | N43: 0.35 | O43: 0.38 | P43: 0.37
C44: Slow Pct | D44: -0.085 | E44: 0.068 | G44: 0.66 | I44: 0.39 | J44: 0.43 | K44: 0.39 | N44: 0.36 | O44: 0.35 | P44: 0.37
C45: Mid Pct | D45: 0.154 | E45: -0.076 | I45: 0.26 | J45: 0.24 | K45: 0.24 | N45: 0.29 | O45: 0.27 | P45: 0.27
C46: Fast Pct | D46: -0.034 | E46: 0.01 | I46: F3 | J46: Fz | K46: F4 | N46: F3 | O46: Fz | P46: F4
C47: Cz vs C3 or C4 | D47: EC | E47: EO | G47: Swingle Ratio | I47: 0.34 | J47: 0.3 | K47: 0.33 | N47: 0.33 | O47: 0.33 | P47: 0.32
C48: Slow Pct | D48: -0.089 | E48: 0.015 | G48: 0.59 | I48: 0.42 | J48: 0.44 | K48: 0.43 | N48: 0.4 | O48: 0.38 | P48: 0.42
C49: Mid Pct | D49: 0.075 | E49: -0.092 | I49: 0.25 | J49: 0.25 | K49: 0.24 | N49: 0.27 | O49: 0.29 | P49: 0.26
C50: Fast Pct | D50: 0.026 | E50: 0.073 | I50: C3 | J50: Cz | K50: C4 | N50: C3 | O50: Cz | P50: C4
A53: Report
B54: Coherence/Phase % | D54: COH | E54: PH% | F54: COH | G54: PH% | H54: COH | I54: PH% | J54: COH | K54: PH% | L54: COH | M54: PH% | N54: COH | O54: PH% | P54: COH | Q54: PH% | R54: COH | S54: PH% | T54: COH | U54: PH% | V54: COH | W54: PH%
C55: High Synchrony | D55: Fp1Fp2 | E55: Fp1Fp2 | F55: F7-F8 | G55: F7-F8 | H55: F3-F4 | I55: F3-F4 | J55: C3-C4 | K55: C3-C4 | L55: T3-T4 | M55: T3-T4 | N55: T5-T6 | O55: T5-T6 | P55: P3-P4 | Q55: P3-P4 | R55: O1-O2 | S55: O1-O2 | T55: Fz-Pz | U55: Fz-Pz | V55: Cz-Oz | W55: Cz-Oz
C56: SMR | J56: 78.1 | K56: 70.9
C57: Alpha | D57: 92.1 | E57: 87.4 | F57: 37 | G57: 37.2 | H57: 90.1 | I57: 87.9 | J57: 88.5 | K57: 81.2 | L57: 24.9 | M57: 31.4 | N57: 50.4 | O57: 40.3 | P57: 82.1 | Q57: 74.9 | R57: 86.2 | S57: 72.2 | T57: 49 | U57: 35 | V57: 22.7 | W57: 25.5
C58: Theta | D58: 82 | E58: 77.8 | F58: 23.1 | G58: 41.9 | H58: 88.4 | I58: 81.2 | J58: 83.5 | K58: 76.9 | L58: 19.3 | M58: 28.8 | N58: 48.7 | O58: 41.6 | P58: 83.6 | Q58: 74.4 | R58: 89.6 | S58: 82.3 | T58: 64.7 | U58: 56.1 | V58: 50.7 | W58: 48.3
C59: Gamma | D59: 24.1 | E59: 30.2 | F59: 6.2 | G59: 23 | H59: 29.4 | I59: 34.1 | J59: 36.2 | K59: 39.5 | L59: 9 | M59: 18.9 | N59: 17.1 | O59: 26.8 | P59: 54 | Q59: 54.7 | R59: 46.6 | S59: 44.2 | T59: 74.3 | U59: 63.5 | V59: 50.1 | W59: 48.5
C61: Low Synchrony | D61: Fp1Fp2 | E61: Fp1Fp2 | F61: F7-F8 | G61: F7-F8 | H61: F3-F4 | I61: F3-F4 | J61: C3-C4 | K61: C3-C4 | L61: T3-T4 | M61: T3-T4 | N61: T5-T6 | O61: T5-T6 | P61: P3-P4 | Q61: P3-P4 | R61: O1-O2 | S61: O1-O2 | T61: Fz-Pz | U61: Fz-Pz | V61: Cz-Oz | W61: Cz-Oz
C62: Low Beta | D62: 64.4 | E62: 58.9 | F62: 18 | G62: 31.6 | H62: 74.3 | I62: 67.9 | L62: 11 | M62: 25 | N62: 29.5 | O62: 28.4 | P62: 74.7 | Q62: 68 | R62: 83.8 | S62: 72.9 | T62: 54.6 | U62: 49.6 | V62: 24.9 | W62: 33.1
C63: Beta | D63: 40.1 | E63: 40.9 | F63: 11.8 | G63: 26.8 | H63: 45 | I63: 43.1 | J63: 65.3 | K63: 57.6 | L63: 10.2 | M63: 21.3 | N63: 26.9 | O63: 31 | P63: 68.1 | Q63: 60.7 | R63: 80.3 | S63: 72.5 | T63: 62 | U63: 53.5 | V63: 45.8 | W63: 45.6
C64: High Beta | D64: 31.1 | E64: 36.9 | F64: 12.3 | G64: 24.1 | H64: 28.9 | I64: 33.7 | J64: 42.8 | K64: 40.8 | L64: 12.7 | M64: 21.4 | N64: 18.9 | O64: 27.9 | P64: 61.3 | Q64: 55 | R64: 63 | S64: 54.7 | T64: 72.6 | U64: 61.2 | V64: 52 | W64: 43.9
B65: Filtering/Processing
C66: Theta/Beta | D66: F7 | E66: F3 | F66: Fp1 | G66: Fz | H66: Fp2 | I66: F4 | J66: F8 | K66: T3 | L66: C3 | M66: Cz | N66: C4 | O66: T4 | P66: T5 | Q66: P3 | R66: Pz | S66: P4 | T66: T6 | U66: O1 | V66: Oz | W66: O2
C67: T/B ratio EC | D67: 0.47 | E67: 1.88 | F67: 1.12 | G67: 1.38 | H67: 1.66 | I67: 1.84 | J67: 2.87 | K67: 0.63 | L67: 1.33 | M67: 0.95 | N67: 1.19 | O67: 1.11 | P67: 1.13 | Q67: 1.06 | R67: 0.66 | S67: 1.04 | T67: 1.15 | U67: 0.93 | V67: 0.67 | W67: 0.9
C68: T/B ratio EO | D68: 0.3 | E68: 1.69 | F68: - | G68: 1.77 | H68: - | I68: 1.89 | J68: 2.9 | K68: 0.65 | L68: 1.32 | M68: 1.1 | N68: 1.23 | O68: 0.98 | P68: 1.11 | Q68: 1.08 | R68: 0.86 | S68: 1.12 | T68: 0.85 | U68: 1.36 | V68: 0.9 | W68: 1.38
C69: T/B ratio TSK | D69: 0.2 | E69: 2.04 | F69: - | G69: 1.57 | H69: - | I69: 2.01 | J69: 2.62 | K69: 0.55 | L69: 1.32 | M69: 1.05 | N69: 1.13 | O69: 0.73 | P69: 1.22 | Q69: 1.24 | R69: 0.87 | S69: 1.15 | T69: 1.46 | U69: 1.43 | V69: 0.76 | W69: 1.61
C70: T/B ratio Activation | D70: 0.35 | E70: -0.21 | F70: - | G70: 0.11 | H70: - | I70: -0.07 | J70: 0.1 | K70: 0.15 | L70: 0 | M70: 0.05 | N70: 0.09 | O70: 0.25 | P70: -0.1 | Q70: -0.15 | R70: -0.01 | S70: -0.03 | T70: -0.72 | U70: -0.05 | V70: 0.15 | W70: -0.16
C71: SMR% EO | L71: 0.099 | M71: 0.107 | N71: 0.106
C72: Alpha PF (EC 10 Hz) | D72: 9.79 | E72: 9.46 | F72: 9.54 | G72: 9.61 | H72: 9.49 | I72: 9.38 | J72: 9.2 | K72: 10.03 | L72: 9.81 | M72: 9.47 | N72: 9.75 | O72: 9.54 | P72: 9.47 | Q72: 9.38 | R72: 9.6 | S72: 9.4 | T72: 9.47 | U72: 9.85 | V72: 10.05 | W72: 9.92

Sheet Synchrony
C1: Name: | D1: Example adult | H1: Age: | I1: 46
C2: Trainer: | D2: sample | H2: Date: | I2: 8/17/2015
E4: Delta | G4: Theta | I4: Alpha | K4: Low Beta | M4: Beta | O4: High Beta | Q4: Gamma
B5: Position | C5: Site | D5: CND | E5: COH | F5: Phase % | G5: COH | H5: Phase % | I5: COH | J5: Phase % | K5: COH | L5: Phase % | M5: COH | N5: Phase % | O5: COH | P5: Phase % | Q5: COH | R5: Phase %
B6: Frontal | C6: Fp1-Fp2 | D6: EC | E6: 86 | F6: 78.8 | G6: 82 | H6: 77.8 | I6: 92 | J6: 87.4 | K6: 64 | L6: 58.9 | M6: 40 | N6: 40.9 | O6: 31 | P6: 36.9 | Q6: 24 | R6: 30.2
D7: EO | E7: - | F7: - | G7: - | H7: - | I7: - | J7: - | K7: - | L7: - | M7: - | N7: - | O7: - | P7: - | Q7: - | R7: -
D8: TSK | E8: - | F8: - | G8: - | H8: - | I8: - | J8: - | K8: - | L8: - | M8: - | N8: - | O8: - | P8: - | Q8: - | R8: -
B9: Frontal | C9: F3-F4 | D9: EC | E9: 92 | F9: 80.6 | G9: 88 | H9: 81.2 | I9: 90 | J9: 87.9 | K9: 74 | L9: 67.9 | M9: 45 | N9: 43.1 | O9: 29 | P9: 33.7 | Q9: 29 | R9: 34.1
D10: EO | E10: 73 | F10: 76.8 | G10: 84 | H10: 77.5 | I10: 88 | J10: 84.6 | K10: 76 | L10: 66.4 | M10: 49 | N10: 43.5 | O10: 28 | P10: 33.6 | Q10: 24 | R10: 33.5
D11: TSK | E11: 90 | F11: 74.6 | G11: 87 | H11: 76.7 | I11: 80 | J11: 81.4 | K11: 66 | L11: 65.8 | M11: 39 | N11: 44.1 | O11: 36 | P11: 33.2 | Q11: 29 | R11: 32.5
B12: Frontal | C12: F7-F8 | D12: EC | E12: 33 | F12: 49.7 | G12: 23 | H12: 41.9 | I12: 37 | J12: 37.2 | K12: 18 | L12: 31.6 | M12: 12 | N12: 26.8 | O12: 12 | P12: 24.1 | Q12: 6 | R12: 23
D13: EO | E13: 63 | F13: 45.9 | G13: 46 | H13: 39.3 | I13: 28 | J13: 36.5 | K13: 23 | L13: 31.2 | M13: 14 | N13: 25.7 | O13: 12 | P13: 23 | Q13: 11 | R13: 22.3
D14: TSK | E14: 19 | F14: 42 | G14: 17 | H14: 35.7 | I14: 34 | J14: 36.1 | K14: 12 | L14: 29.5 | M14: 12 | N14: 24.5 | O14: 9 | P14: 22 | Q14: 9 | R14: 20.8
B15: Central | C15: C3-C4 | D15: EC | E15: 89 | F15: 88.9 | G15: 84 | H15: 76.9 | I15: 89 | J15: 81.2 | K15: 78 | L15: 70.9 | M15: 65 | N15: 57.6 | O15: 43 | P15: 40.8 | Q15: 36 | R15: 39.5
D16: EO | E16: 86 | F16: 82.5 | G16: 83 | H16: 75.2 | I16: 88 | J16: 82.8 | K16: 80 | L16: 71.3 | M16: 64 | N16: 56.6 | O16: 45 | P16: 41.8 | Q16: 37 | R16: 38
D17: TSK | E17: 83 | F17: 80.4 | G17: 77 | H17: 73.1 | I17: 80 | J17: 80 | K17: 78 | L17: 70.5 | M17: 60 | N17: 56.1 | O17: 42 | P17: 41.8 | Q17: 41 | R17: 39.2
B18: Midline | C18: Fz-Pz | D18: EC | E18: 64 | F18: 61.8 | G18: 65 | H18: 56.1 | I18: 49 | J18: 35 | K18: 55 | L18: 49.6 | M18: 62 | N18: 53.5 | O18: 73 | P18: 61.2 | Q18: 74 | R18: 63.5
D19: EO | E19: 59 | F19: 62 | G19: 63 | H19: 60.6 | I19: 78 | J19: 48.8 | K19: 67 | L19: 54.2 | M19: 65 | N19: 55.1 | O19: 68 | P19: 62.3 | Q19: 74 | R19: 64
D20: TSK | E20: 52 | F20: 59.6 | G20: 58 | H20: 59.3 | I20: 78 | J20: 56.8 | K20: 70 | L20: 58.1 | M20: 65 | N20: 56.8 | O20: 70 | P20: 61.8 | Q20: 71 | R20: 64.8
B21: Midline | C21: Cz-Oz | D21: EC | E21: 68 | F21: 57.9 | G21: 51 | H21: 48.3 | I21: 23 | J21: 25.5 | K21: 25 | L21: 33.1 | M21: 46 | N21: 45.6 | O21: 52 | P21: 43.9 | Q21: 50 | R21: 48.5
D22: EO | E22: 61 | F22: 57.6 | G22: 56 | H22: 50.6 | I22: 63 | J22: 32.8 | K22: 44 | L22: 33.6 | M22: 48 | N22: 44.5 | O22: 50 | P22: 45.9 | Q22: 45 | R22: 46.4
D23: TSK | E23: 48 | F23: 53.6 | G23: 52 | H23: 50.7 | I23: 66 | J23: 42.7 | K23: 43 | L23: 37.8 | M23: 47 | N23: 44.9 | O23: 50 | P23: 46.3 | Q23: 43 | R23: 45.9
B24: Temporal | C24: T3-T4 | D24: EC | E24: 33 | F24: 41.9 | G24: 19 | H24: 28.8 | I24: 25 | J24: 31.4 | K24: 11 | L24: 25 | M24: 10 | N24: 21.3 | O24: 13 | P24: 21.4 | Q24: 9 | R24: 18.9
D25: EO | E25: 26 | F25: 34.5 | G25: 22 | H25: 28.9 | I25: 23 | J25: 31.6 | K25: 12 | L25: 25.1 | M25: 13 | N25: 21.3 | O25: 13 | P25: 20.3 | Q25: 10 | R25: 17.6
D26: TSK | E26: 40 | F26: 35.6 | G26: 26 | H26: 29.7 | I26: 17 | J26: 29.4 | K26: 11 | L26: 24 | M26: 14 | N26: 21.4 | O26: 14 | P26: 20.9 | Q26: 10 | R26: 18.4
B27: Temporal | C27: T5-T6 | D27: EC | E27: 50 | F27: 43.9 | G27: 49 | H27: 41.6 | I27: 50 | J27: 40.3 | K27: 29 | L27: 28.4 | M27: 27 | N27: 31 | O27: 19 | P27: 27.9 | Q27: 17 | R27: 26.8
D28: EO | E28: 47 | F28: 47.8 | G28: 47 | H28: 42.6 | I28: 53 | J28: 43.9 | K28: 29 | L28: 30.1 | M28: 29 | N28: 31.5 | O28: 20 | P28: 27.3 | Q28: 17 | R28: 26.9
D29: TSK | E29: 62 | F29: 48.7 | G29: 56 | H29: 44.1 | I29: 52 | J29: 45.2 | K29: 31 | L29: 32.1 | M29: 30 | N29: 32.4 | O29: 17 | P29: 26.9 | Q29: 14 | R29: 26.5
B30: Parietal | C30: P3-P4 | D30: EC | E30: 87 | F30: 78.1 | G30: 84 | H30: 74.4 | I30: 82 | J30: 74.9 | K30: 75 | L30: 68 | M30: 68 | N30: 60.7 | O30: 61 | P30: 55 | Q30: 54 | R30: 54.7
D31: EO | E31: 72 | F31: 72.7 | G31: 85 | H31: 75.2 | I31: 86 | J31: 75.2 | K31: 75 | L31: 67 | M31: 68 | N31: 59.9 | O31: 57 | P31: 53 | Q31: 55 | R31: 51.1
D32: TSK | E32: 84 | F32: 71.7 | G32: 80 | H32: 75 | I32: 84 | J32: 76.1 | K32: 71 | L32: 66.1 | M32: 64 | N32: 58.8 | O32: 67 | P32: 53.8 | Q32: 63 | R32: 50.8
B33: Occipital | C33: O1-O2 | D33: EC | E33: 92 | F33: 79.9 | G33: 90 | H33: 82.3 | I33: 86 | J33: 72.2 | K33: 84 | L33: 72.9 | M33: 80 | N33: 72.5 | O33: 63 | P33: 54.7 | Q33: 47 | R33: 44.2
D34: EO | E34: 84 | F34: 80.1 | G34: 90 | H34: 82.2 | I34: 90 | J34: 78.2 | K34: 84 | L34: 75.4 | M34: 78 | N34: 72 | O34: 67 | P34: 55.6 | Q34: 57 | R34: 46
D35: TSK | E35: 88 | F35: 77.9 | G35: 89 | H35: 82.1 | I35: 89 | J35: 79.7 | K35: 83 | L35: 75.3 | M35: 80 | N35: 71.8 | O35: 76 | P35: 57.9 | Q35: 70 | R35: 50.6

Sheet Maps
B1: Name: | C1: Example adult | F1: Age: | G1: 46
B2: Trainer: | C2: sample | F2: Date: | G2: 8/17/2015

Sheet Histograms
B1: Name: | C1: Example adult | F1: Age: | G1: 46
B2: Trainer: | C2: sample | F2: Date: | G2: 8/17/2015

Sheet Symmetry
B1: Name: | C1: Example adult | F1: Age: | G1: 46
B2: Trainer: | C2: sample | F2: Date: | G2: 8/17/2015

Sheet Variance
B1: Name: | C1: Example adult | F1: Age: | G1: 46
B2: Trainer: | C2: sample | F2: Date: | G2: 8/17/2015
F8: Head Amplitudes - Eyes Closed | X8: Head Percentages - Eyes Closed

Sheet Heads
E1: Name: | F1: Example adult | K1: Age: | L1: 46
E2: Trainer: | F2: sample | K2: Date: | L2: 8/17/2015
Q4: Frequencies
P5: Delta (δ) | S5: 2-4 Hz
P6: Theta (θ) | S6: 4-8 Hz
P7: Alpha (α) | S7: 8-12 Hz
F8: Head Amplitudes - Eyes Closed | P8: Low Beta (Loβ) | S8: 12-15 Hz | X8: Head Percentages - Eyes Closed
P9: Beta (β) | S9: 15-23 Hz
G10: Fp1 | K10: Fp2 | P10: High Beta (Hiβ) | S10: 23-38 Hz | Y10: Fp1% | AC10: Fp2%
G11: 10.44797941 | K11: 10.44797941 | P11: Gamma (γ) | S11: 38-42 Hz | Y11: 12.79217018 | AC11: 15.2912756
G12: 10.46035 | K12: 10.46035 | Y12: 17.90210905 | AC12: 19.68346823
D13: F7 | F13: F3 | G13: 15.64051765 | I13: Fz | K13: 15.64051765 | L13: F4 | N13: F8 | V13: F7 % | X13: F3 % | Y13: 27.54917349 | AA13: Fz % | AC13: 28.15892722 | AD13: F4 % | AF13: F8 %
D14: 8.744651282 | F14: 11.21224359 | G14: 6.170023529 | I14: 10.07982545 | K14: 6.170023529 | L14: 13.62759231 | N14: 15.71457949 | V14: 9.895655293 | X14: 15.39981552 | Y14: 7.554378498 | AA14: 13.48703237 | AC14: 6.895595866 | AD14: 16.54524742 | AF14: 18.57410202
D15: 8.639720513 | F15: 10.72597179 | G15: 9.900264706 | I15: 9.659365455 | K15: 9.900264706 | L15: 12.43130769 | N15: 13.60452821 | V15: 13.43317505 | X15: 19.55086221 | Y15: 16.47011721 | AA15: 19.28003203 | AC15: 14.19443574 | AD15: 20.14789346 | AF15: 22.02144893
D16: 13.86584359 | F16: 15.59241538 | G16: 9.673205882 | I16: 17.93126 | K16: 9.673205882 | L16: 17.69181026 | N16: 18.42966923 | V16: 21.26057608 | X16: 29.90976962 | Y16: 11.84356237 | AA16: 34.5415619 | AC16: 10.34363298 | AD16: 29.92997388 | AF16: 29.28808932
D17: 6.545058974 | F17: 6.682738462 | G17: 4.809411765 | I17: 6.385450909 | K17: 4.809411765 | L17: 7.798805128 | N17: 6.434202564 | V17: 7.406544343 | X17: 9.178621449 | Y17: 5.888489185 | AA17: 8.543876431 | AC17: 5.432664359 | AD17: 9.468522209 | AF17: 7.605010046
D18: 12.57657436 | F18: 7.825661538 | I18: 8.232461818 | L18: 9.168428205 | N18: 8.031941026 | V18: 21.10782428 | X18: 13.35232706 | AA18: 13.72066812 | AD18: 12.50710715 | AF18: 11.70540541
D19: 15.81879231 | F19: 6.323605128 | I19: 5.428832727 | L19: 6.554533333 | N19: 6.126982051 | V19: 17.90092146 | X19: 8.685358255 | AA19: 7.263899863 | AD19: 7.957852955 | AF19: 7.241885779
D20: 7.949023077 | F20: 2.856423077 | I20: 2.363883636 | L20: 2.836179487 | N20: 3.015364103 | V20: 8.9953035 | X20: 3.923245878 | AA20: 3.162929286 | AD20: 3.443402934 | AF20: 3.564058493
B22: T3 | F22: C3 | I22: Cz | L22: C4 | P22: T4 | T22: T3 % | X22: C3 % | AA22: Cz % | AD22: C4 % | AH22: T4 %
B23: 6.748823729 | F23: 9.918617544 | I23: 9.457848148 | L23: 10.22125965 | P23: 10.2825339 | T23: 11.19233838 | X23: 14.59244849 | AA23: 12.22777734 | AD23: 14.22278162 | AH23: 13.07689447
B24: 6.197866102 | F24: 9.172517544 | I24: 9.523542593 | L24: 9.793129825 | P24: 10.21083051 | T24: 14.74098003 | X24: 18.97349301 | AA24: 18.19072811 | AD24: 18.99763351 | AH24: 17.67148659
B25: 10.51581695 | F25: 15.53500351 | I25: 18.67008148 | L25: 16.6305386 | P25: 15.09336949 | T25: 24.16493555 | X25: 31.83532198 | AA25: 34.46641024 | AD25: 32.26977351 | AH25: 27.13237438
B26: 5.273098305 | F26: 6.692568421 | I26: 7.61292037 | L26: 7.504212281 | P26: 7.84449661 | T26: 8.744975851 | X26: 9.846227006 | AA26: 9.842523766 | AD26: 10.4420371 | AH26: 9.976301113
B27: 7.821230508 | F27: 7.953335088 | I27: 9.770338889 | L27: 8.959722807 | P27: 9.696572881 | T27: 18.34093973 | X27: 13.51638159 | AA27: 14.68055708 | AD27: 13.92095033 | AH27: 14.68063948
B28: 8.870716949 | F28: 5.16165614 | I28: 5.736688889 | L28: 4.967321053 | P28: 9.289983051 | T28: 14.71131411 | X28: 7.59392133 | AA28: 7.416798545 | AD28: 6.911978071 | AH28: 11.81461002
B29: 4.886910169 | F29: 2.475640351 | I29: 2.455933333 | L29: 2.324735088 | P29: 4.440855932 | T29: 8.104516348 | X29: 3.642206601 | AA29: 3.175204918 | AD29: 3.234845861 | AH29: 5.647693942
C31: T5 | F31: P3 | I31: Pz | L31: P4 | O31: T6 | U31: T5 % | X31: P3 % | AA31: Pz % | AD31: P4 % | AG31: T6 %
C32: 6.767154237 | F32: 9.212386207 | I32: 9.265756364 | L32: 9.506456897 | O32: 9.5569 | U32: 10.71011762 | X32: 11.89078645 | AA32: 10.92420923 | AD32: 11.47037494 | AG32: 11.17189427
C33: 7.768598305 | F33: 10.04491207 | I33: 9.623721818 | L33: 10.72137241 | O33: 10.15858814 | U33: 17.12346628 | X33: 18.20191503 | AA33: 16.82010829 | AD33: 18.31027988 | AG33: 16.74526092
C34: 19.05063898 | F34: 20.96328276 | I34: 21.52267273 | L34: 21.90762931 | O34: 20.65465593 | U34: 40.07025141 | X34: 36.47246177 | AA34: 36.08862812 | AD34: 35.16081735 | AG34: 32.47797876
C35: 5.290622034 | F35: 7.93147931 | I35: 9.194249091 | L35: 8.772732759 | O35: 7.292869492 | U35: 8.373266264 | X35: 10.23746992 | AA35: 10.83990306 | AD35: 10.58507235 | AG35: 8.525271464
C36: 7.297483051 | F36: 9.774836207 | I36: 11.81235818 | L36: 10.51574483 | O36: 9.465623729 | U36: 14.13607379 | X36: 14.08008458 | AA36: 15.18009621 | AD36: 13.86370842 | AG36: 13.53791852
C37: 4.074942373 | F37: 4.948098276 | I37: 5.991976364 | L37: 6.077043103 | O37: 9.783740678 | U37: 6.449256303 | X37: 6.386703576 | AA37: 7.064464133 | AD37: 7.332486087 | AG37: 11.43706813
C38: 1.982462712 | F38: 2.11551569 | I38: 2.614609091 | L38: 2.716139655 | O38: 5.222133898 | U38: 3.137568331 | X38: 2.730578672 | AA38: 3.082590955 | AD38: 3.277260979 | AG38: 6.104607954
G40: O1 | I40: Oz | K40: O2 | Y40: O1 % | AA40: Oz % | AC40: O2 %
G41: 8.238186207 | I41: 9.288148148 | K41: 8.658922414 | Y41: 8.084148062 | AA41: 9.200845246 | AC41: 8.428472146
G42: 10.19960345 | I42: 8.900244444 | K42: 10.30227759 | Y42: 14.27683665 | AA42: 13.04219447 | AC42: 14.33846293
G43: 38.3892931 | I43: 30.92525926 | K43: 36.41912069 | Y43: 50.86404989 | AA43: 44.58865429 | AC43: 48.83737038
G44: 7.579281034 | I44: 8.0318 | K44: 8.234398276 | Y44: 7.437563142 | AA44: 7.956306001 | AC44: 8.015246377
G45: 10.60093276 | I45: 10.90584074 | K45: 10.85571034 | R45: 0 | Y45: 12.73220649 | AA45: 13.42767752 | AC45: 12.75411306
G46: 4.726932759 | I46: 7.9871 | K46: 5.385232759 | Y46: 4.638548261 | AA46: 7.912026154 | AC46: 5.241909112
G47: 2.00412069 | I47: 3.909038889 | K47: 2.44962069 | Y47: 1.96664751 | AA47: 3.872296318 | AC47: 2.384426002

Sheet Report
C1: Name: | D1: Example adult | G1: Age: | H1: 46
C2: Trainer: | D2: sample | G2: Date: | H2: 8/17/2015
G4: RATIOS | K4: Peak Frequency
B5: Position | C5: Site | D5: CND
B6: Frontal | C6: Fp1 | D6: EC | E6: 0.9 | F6: - | G6: 1.5 | H6: 0.69 | I6: 0.62 | J6: 1.57 | K6: 9.54 | L6: 19.97 | M6: 7.74
D7: EO | E7: - | F7: - | G7: - | H7: - | I7: - | J7: - | K7: - | L7: - | M7: -
D8: TSK | E8: - | F8: - | G8: - | H8: - | I8: - | J8: - | K8: - | L8: - | M8: -
C9: Fp2 | D9: EC | E9: 0.6 | F9: - | G9: 1.41 | H9: 0.65 | I9: 0.53 | J9: 1.5 | K9: 9.49 | L9: 21.14 | M9: 6.65
D10: EO | E10: - | F10: - | G10: - | H10: - | I10: - | J10: - | K10: - | L10: - | M10: -
D11: TSK | E11: - | F11: - | G11: - | H11: - | I11: - | J11: - | K11: - | L11: - | M11: -
B12: Frontal | C12: F3 | D12: EC | E12: 0.53 | F12: - | G12: 1.45 | H12: 0.68 | I12: 0.41 | J12: 0.95 | K12: 9.46 | L12: 18.86 | M12: 6.66
D13: EO | E13: 0.59 | F13: - | G13: 1.24 | H13: 0.77 | I13: 0.56 | J13: 1.12 | K13: 9.5 | L13: 19.85 | M13: 6.86
D14: TSK | E14: 0.49 | F14: - | G14: 0.69 | H14: 0.99 | I14: 1.06 | J14: 1.44 | K14: 9.93 | L14: 22.1 | M14: 3.52
C15: F4 | D15: EC | E15: 0.54 | F15: - | G15: 1.42 | H15: 0.66 | I15: 0.37 | J15: 0.84 | K15: 9.38 | L15: 17.87 | M15: 6.2
D16: EO | E16: 0.53 | F16: - | G16: 1.27 | H16: 0.75 | I16: 0.46 | J16: 0.96 | K16: 9.59 | L16: 18.07 | M16: 6.67
D17: TSK | E17: 0.5 | F17: - | G17: 0.79 | H17: 0.87 | I17: 0.92 | J17: 1.43 | K17: 9.53 | L17: 21.32 | M17: 3.68
B18: Frontal | C18: F7 | D18: EC | E18: 2.12 | F18: - | G18: 1.6 | H18: 0.69 | I18: 1.14 | J18: 2.42 | K18: 9.79 | L18: 23.62 | M18: 8.62
D19: EO | E19: 3.35 | F19: - | G19: 1.08 | H19: 0.89 | I19: 2.64 | J19: 3.18 | K19: 9.95 | L19: 26.45 | M19: 23.53
D20: TSK | E20: 5.13 | F20: - | G20: 1.59 | H20: 0.81 | I20: 1.75 | J20: 2.98 | K20: 9.94 | L20: 24.28 | M20: 18.6
C21: F8 | D21: EC | E21: 0.35 | F21: - | G21: 1.35 | H21: 0.59 | I21: 0.33 | J21: 0.95 | K21: 9.2 | L21: 17.91 | M21: 5.28
D22: EO | E22: 0.34 | F22: - | G22: 0.96 | H22: 0.68 | I22: 0.5 | J22: 1.02 | K22: 9.13 | L22: 19.21 | M22: 4.6
D23: TSK | E23: 0.38 | F23: - | G23: 1.36 | H23: 0.57 | I23: 0.34 | J23: 0.91 | K23: 9.18 | L23: 17.74 | M23: 6.34
B24: Central | C24: C3 | D24: EC | E24: 0.75 | F24: - | G24: 1.69 | H24: 0.7 | I24: 0.33 | J24: 0.77 | K24: 9.81 | L24: 17.04 | M24: 7.78
D25: EO | E25: 0.76 | F25: 0.09886773817 | G25: 1.6 | H25: 0.79 | I25: 0.4 | J25: 0.88 | K25: 9.63 | L25: 17.58 | M25: 7.71
D26: TSK | E26: 0.76 | F26: - | G26: 1.04 | H26: 1.02 | I26: 0.7 | J26: 1.03 | K26: 10.13 | L26: 17.89 | M26: 5.37
C27: C4 | D27: EC | E27: 0.84 | F27: - | G27: 1.7 | H27: 0.68 | I27: 0.3 | J27: 0.66 | K27: 9.75 | L27: 16.71 | M27: 8.14
D28: EO | E28: 0.81 | F28: 0.1061816594 | G28: 1.62 | H28: 0.8 | I28: 0.36 | J28: 0.74 | K28: 9.69 | L28: 17.19 | M28: 8.33
D29: TSK | E29: 0.89 | F29: - | G29: 1.14 | H29: 1.01 | I29: 0.56 | J29: 0.8 | K29: 10.18 | L29: 16.58 | M29: 6.47
B30: Midline | C30: Fz | D30: EC | E30: 0.73 | F30: - | G30: 1.86 | H30: 0.78 | I30: 0.3 | J30: 0.85 | K30: 9.61 | L30: 17.45 | M30: 8.3
D31: EO | E31: 0.56 | F31: - | G31: 1.14 | H31: 0.63 | I31: 0.46 | J31: 0.86 | K31: 9.36 | L31: 17.55 | M31: 5.86
D32: TSK | E32: 0.64 | F32: - | G32: 1.07 | H32: 0.69 | I32: 0.57 | J32: 0.92 | K32: 9.38 | L32: 18.38 | M32: 5.94
C33: Pz | D33: EC | E33: 1.51 | F33: - | G33: 2.24 | H33: 0.64 | I33: 0.28 | J33: 0.65 | K33: 9.6 | L33: 16.64 | M33: 9.52
D34: EO | E34: 1.17 | F34: - | G34: 1.54 | H34: 0.64 | I34: 0.45 | J34: 0.78 | K34: 9.45 | L34: 16.84 | M34: 8.12
D35: TSK | E35: 1.15 | F35: - | G35: 1.42 | H35: 0.69 | I35: 0.55 | J35: 0.88 | K35: 9.45 | L35: 17.91 | M35: 7.96
B36: Midline | C36: Cz | D36: EC | E36: 1.05 | F36: - | G36: 1.96 | H36: 0.73 | I36: 0.31 | J36: 0.75 | K36: 9.47 | L36: 17.02 | M36: 9.06
D37: EO | E37: 0.91 | F37: 0.1073571509 | G37: 1.42 | H37: 0.66 | I37: 0.44 | J37: 0.83 | K37: 9.38 | L37: 17.28 | M37: 7.28
D38: TSK | E38: 0.96 | F38: - | G38: 1.32 | H38: 0.66 | I38: 0.54 | J38: 0.87 | K38: 9.35 | L38: 17.89 | M38: 7.13
C39: Oz | D39: EC | E39: 1.5 | F39: - | G39: 3.47 | H39: 0.7 | I39: 0.26 | J39: 0.99 | K39: 10.05 | L39: 18.87 | M39: 10.05
D40: EO | E40: 1.12 | F40: - | G40: 1.58 | H40: 0.71 | I40: 0.64 | J40: 1.1 | K40: 9.55 | L40: 20.93 | M40: 8.94
D41: TSK | E41: 1.31 | F41: - | G41: 1.46 | H41: 0.74 | I41: 0.81 | J41: 1.2 | K41: 9.9 | L41: 22.45 | M41: 9.2
B42: Temporal | C42: T3 | D42: EC | E42: 1.59 | F42: - | G42: 1.7 | H42: 0.93 | I42: 0.84 | J42: 1.68 | K42: 10.03 | L42: 23.68 | M42: 7.95
D43: EO | E43: 1.53 | F43: - | G43: 1.45 | H43: 1.03 | I43: 1.12 | J43: 2.15 | K43: 9.84 | L43: 23.99 | M43: 10.08
D44: TSK | E44: 1.8 | F44: - | G44: 0.94 | H44: 1.08 | I44: 1.99 | J44: 2.36 | K44: 10.57 | L44: 25.58 | M44: 12.5
C45: T4 | D45: EC | E45: 0.9 | F45: - | G45: 1.48 | H45: 0.64 | I45: 0.62 | J45: 1.18 | K45: 9.54 | L45: 19.77 | M45: 7.13
D46: EO | E46: 1.02 | F46: - | G46: 1.69 | H46: 0.78 | I46: 0.58 | J46: 1.25 | K46: 9.66 | L46: 20.09 | M46: 8.68
D47: TSK | E47: 1.37 | F47: - | G47: 1.37 | H47: 0.85 | I47: 0.94 | J47: 1.54 | K47: 10.06 | L47: 22.38 | M47: 8.86
B48: Temporal | C48: T5 | D48: EC | E48: 0.88 | F48: - | G48: 2.45 | H48: 0.51 | I48: 0.21 | J48: 0.77 | K48: 9.47 | L48: 17.32 | M48: 9.15
D49: EO | E49: 0.9 | F49: - | G49: 1.37 | H49: 0.77 | I49: 0.48 | J49: 0.88 | K49: 9.62 | L49: 17.05 | M49: 7.49
D50: TSK | E50: 0.82 | F50: - | G50: 1.87 | H50: 0.6 | I50: 0.28 | J50: 0.79 | K50: 9.66 | L50: 17.59 | M50: 8.2
C51: T6 | D51: EC | E51: 0.87 | F51: - | G51: 2.03 | H51: 0.57 | I51: 0.47 | J51: 1.34 | K51: 9.47 | L51: 22.74 | M51: 8.97
D52: EO | E52: 1.18 | F52: - | G52: 1.55 | H52: 0.71 | I52: 0.83 | J52: 1.51 | K52: 9.39 | L52: 26.71 | M52: 8.27
D53: TSK | E53: 0.69 | F53: - | G53: 1.64 | H53: 0.6 | I53: 0.53 | J53: 1.38 | K53: 9.34 | L53: 23.46 | M53: 8.28
B54: Parietal | C54: P3 | D54: EC | E54: 0.95 | F54: - | G54: 2.09 | H54: 0.52 | I54: 0.24 | J54: 0.62 | K54: 9.38 | L54: 16.88 | M54: 8.91
D55: EO | E55: 0.92 | F55: - | G55: 1.47 | H55: 0.65 | I55: 0.37 | J55: 0.66 | K55: 9.37 | L55: 16.25 | M55: 7.91
D56: TSK | E56: 0.8 | F56: - | G56: 1.14 | H56: 0.76 | I56: 0.7 | J56: 1.15 | K56: 9.77 | L56: 20.33 | M56: 5.64
C57: P4 | D57: EC | E57: 0.96 | F57: - | G57: 2.04 | H57: 0.51 | I57: 0.28 | J57: 0.69 | K57: 9.4 | L57: 16.88 | M57: 8.57
D58: EO | E58: 0.9 | F58: - | G58: 1.49 | H58: 0.67 | I58: 0.43 | J58: 0.8 | K58: 9.59 | L58: 17.23 | M58: 7.93
D59: TSK | E59: 0.87 | F59: - | G59: 1.21 | H59: 0.81 | I59: 0.76 | J59: 1.24 | K59: 9.7 | L59: 21.57 | M59: 6.3
B60: Occipital | C60: O1 | D60: EC | E60: 1.08 | F60: - | G60: 3.76 | H60: 0.5 | I60: 0.12 | J60: 0.62 | K60: 9.85 | L60: 17.39 | M60: 9.88
D61: EO | E61: 0.74 | F61: - | G61: 1.26 | H61: 0.7 | I61: 0.47 | J61: 0.75 | K61: 9.54 | L61: 17.29 | M61: 7.67
D62: TSK | E62: 0.7 | F62: - | G62: 1.03 | H62: 0.78 | I62: 0.72 | J62: 1.06 | K62: 9.86 | L62: 19.14 | M62: 7.63
C63: O2 | D63: EC | E63: 1.11 | F63: - | G63: 3.54 | H63: 0.61 | I63: 0.15 | J63: 0.65 | K63: 9.92 | L63: 17.22 | M63: 9.96
D64: EO | E64: 0.72 | F64: - | G64: 1.31 | H64: 0.72 | I64: 0.51 | J64: 0.84 | K64: 9.65 | L64: 18.08 | M64: 7.86
D65: TSK | E65: 0.62 | F65: - | G65: 0.99 | H65: 0.8 | I65: 0.77 | J65: 1.15 | K65: 9.86 | L65: 20.54 | M65: 7.44

Sheet Training Plan
J1: Name: | K1: Example adult | AB1: Age: | AC1: 46
J2: Trainer: | K2: sample | AB2: Date: | AC2: 8/17/2015
C3: 51
C7: Whole-Brain Training Plan
D9: Block 1 Training
E11: Active | J11: Reference | O11: Protocol | Z11: State & Duration | AH11: Notes
E12: F7 Fpz F8 | O12: nIR HEG (LIFE) | Z12: EO | AH12: EEG Sites: A1, A2, F7, F8, T3,
E13: F7 F8 | J13: L(A1 A2) | O13: BAL2C SUM (2-38) DIFF (15-38) | Z13: EC/EO
E14: F7 F8 | J14: L(A1 A2) | O14: BAL2C SUM (19-38) DIFF (2-11) | Z14: EO
E15: F7 T3 | J15: C(A1) | O15: FRE2C IN (19-38) REW (9-13) | Z15: EC/EO
D18: Block 2 Training
E20: Active | J20: Reference | O20: Protocol | Z20: State & Duration | AH20: Notes
E21: F7 Fpz F8 | O21: nIR HEG (LIFE) | Z21: EO | AH21: EEG Sites: A1, A2, P3, P4, O1, O2, F3, F4,
E22: P3 P4 O1 O2 | J22: L(A1 A2) | O22: CON4C MBC Down | Z22: EC/EO
E23: F3 F4 | J23: L(A1 A2) | O23: CON2C Gamma Up | Z23: EO
D26: Block 3 Training
E28: Active | J28: Reference | O28: Protocol | Z28: State & Duration | AH28: Notes
E29: F7 Fpz F8 | O29: nIR HEG (LIFE) | Z29: EO | AH29: EEG Sites: A1, A2, C3, C4,
E30: C3 C4 | J30: L(A1 A2) | O30: CON2C Gamma Up | Z30: EO
E31: C3 | J31: C4 | O31: SMR%1C Up | Z31: EO
E32: C3 C4 | J32: L(A1 A2) | O32: BAL2C Alpha Beta (Alpha) | Z32: EC/EO
D35: Block 4 Training
E37: Active | J37: Reference | O37: Protocol | Z37: State & Duration | AH37: Notes
E38: F7 Fpz F8 | O38: nIR HEG (LIFE) | Z38: EO | AH38: EEG Sites: A1, A2, Fz, Pz, Cz, Oz,
E39: Fz Pz Cz Oz | J39: L(A1 A2) | O39: CON4C MBC Down | Z39: EC/EO
E40: Fz Pz | J40: L(A1 A2) | O40: CON2C MBC Down | Z40: EC/EO
E41: Fz Cz | J41: L(A1 A2) | O41: FRE2C IN (2-6) REW (13-21) | Z41: EC/EO
D44: Block 5 Training
E46: Active | J46: Reference | O46: Protocol | Z46: State & Duration | AH46: Notes
E47: O1 O2 | J47: L(A1 A2) | O47: FRE2C Squash | Z47: EC 10:00m | AH47: EEG Sites: A1, A2, O1, O2, P4,
E48: P4 or O1 | J48: A2 or A1 | O48: ALP1C Alpha Theta | Z48: EC 23:50m

Sheet Summary Report
J1: Name: | K1: Example adult | AB1: Age: | AC1: 46
J2: Trainer: | K2: sample | AB2: Date: | AC2: 8/17/2015
E4: Create Executive Summary Report

Sheet Formulae (hidden)
A1: 1
B3: Fast % | C3: 9 of 72 | D3: 0.125 | E3: Slow % | F3: 2 of 36 | G3: 0.05555555556 | H3: Mid % | I3: 7 of 36 | J3: 0.1944444444 | K3: Lateral D | L3: No | N3: OPF LF | O3: 1 | Q3: h FAPF | R3: No | T3: h Sync | U3: F3/F4, C3/C4, P3/P4, O1/O2 | W3: Rev L/R F | X3: No | Z3: l APF | AA3: F3, F4, F7, F8, C3, C4, Fz, Pz, Cz, Oz, T4, T5, T6, P3, P4, O1, O2
B4: BPF | C4: 11 of 36 | D4: 0.3055555556 | E4: APF | F4: 34 of 36 | G4: 0.9444444444 | H4: APF | I4: 34 of 36 | J4: 0.9444444444 | K4: ACC | L4: No | N4: OPF RF | O4: 4 | Q4: h BPF | R4: F3, F7, F8, Oz, T3, T4, T6 | T4: l Sync | U4: No | W4: Rev L/R S | X4: C3/C4, T5/T6, P3/P4, O1/O2 | Z4: l OPF | AA4: F3, F4, F7, F8, C3, C4, Fz, Pz, Cz, Oz, T3, T4, T5, T6, P3, P4, O1, O2
B5: OPF | C5: 3 of 36 | D5: 0.08333333333 | E5: BPF | F5: 0 of 36 | G5: 0 | H5: A/T | I5: 8 of 36 | J5: 0.2222222222 | K5: DN | L5: No | N5: OPF LR | O5: 3 | Q5: l T/B | R5: F7, C4, Pz, Cz, Oz, T3, T4, T5, T6, P3, P4, O1, O2 | T5: l APF | U5: F3, F4, F8, C3, C4, Fz, Pz, Cz, Oz, T4, T5, T6, P3, P4, O1, O2 | W5: Rev L/R A | X5: F3/F4, C3/C4, T3/T4, T5/T6, P3/P4, O2/O1 | Z5: h T/B | AA5: F3, F4, F8
B6: T/B | C6: 23 of 36 | D6: 0.6388888889 | E6: OPF | F6: 33 of 36 | G6: 0.9166666667 | H6: OPF | I6: 33 of 36 | J6: 0.9166666667 | K6: SMR | L6: C3 | N6: OPF RR | O6: 2 | Q6: Hot Temp | R6: No | T6: h APF | U6: No | W6: Rev F/B F | X6: No | Z6: A Spike | AA6: No
B7: Fast Brain | C7: No | E7: T/B | F7: 4 of 36 | G7: 0.1111111111 | H7: T/B | I7: 4 of 36 | J7: 0.1111111111 | Q7: Disconnect | R7: No | T7: F h A/T | U7: F3, F4, F7, F8, C3, C4, Fz, Cz | W7: Rev F/B S | X7: F8/T6, F3/P3, F4/P4, Fz/Pz | Z7: D Spike | AA7: No
B8: Scoop | C8: No | E8: Slow Brain | F8: No | H8: Mid Brain | I8: No | Q8: HRR | R8: No | T8: h A/T | U8: F3, F4, F7, F8, C3, C4, Fz, Cz | W8: Rev F/B A | X8: F8/T6x, F3/P3x, F4/P4x, Fz/Pzx | Z8: B Spike | AA8: F7
E9: SLL | F9: No

Sheet Options (hidden)
C1: Name: | D1: Example adult | F1: Age: | G1: 46
C2: Trainer: | D2: sample | F2: Date: | G2: 8/17/2015
A3: ul
A5: Block 1 | D5: Weight | E5: Active | F5: Reference | G5: 4CH Protocol | H5: State | J5: Weight | K5: Active | L5: Reference | M5: 2CH/1CH Protocol | N5: State
B6: Selectable | D6: 16.8 | E6: P3 P4 O1 O2 | F6: L(A1 A2) | G6: BAL4C Alpha Beta | H6: EC | I6: 2 | J6: 179.6 | K6: F7 F8 | L6: L(A1 A2) | M6: BAL2C SUM (2-38) DIFF (15-38) | N6: EC/EO
B7: Protocols | I7: 3 | J7: 105.5 | K7: F7 F8 | L7: L(A1 A2) | M7: BAL2C SUM (19-38) DIFF (2-11) | N7: EO
B8: 0 | I8: 1 | J8: 75.5 | K8: F7 T3 | L8: C(A1) | M8: FRE2C IN (19-38) REW (9-13) | N8: EC/EO
J9: 64.4 | K9: F7 F8 | L9: L(A1 A2) | M9: BAL2C SUM (2-38) DIFF (2-11) | N9: EC
J10: 44.5 | K10: T3 T4 | L10: L(A1 A2) | M10: BAL2C SUM (2-38) DIFF (15-38) | N10: EC/EO
J11: 28.8 | K11: P3 P4 | L11: L(A1 A2) | M11: FRE2C IN (6-10) REW (13-21) | N11: EO
A12: Block 2 | D12: Weight | E12: Active | F12: Reference | G12: 4CH Protocol | H12: State | J12: Weight | K12: Active | L12: Reference | M12: 2CH/1CH Protocol | N12: State
B13: Selectable | C13: 1 | D13: 199.5 | E13: P3 P4 O1 O2 | F13: L(A1 A2) | G13: CON4C MBC Down | H13: EC/EO | J13: 124 | K13: O1 O2 | L13: L(A1 A2) | M13: CON2C MBC Down | N13: EC/EO
B14: Protocols | D14: 167.7 | E14: F3 F4 O1 O2 | F14: L(A1 A2) | G14: CON4C MBC Down | H14: EC/EO | J14: 76.4 | K14: P3 P4 | L14: L(A1 A2) | M14: CON2C MBC Down | N14: EC/EO
B15: 1 | D15: 118.4 | E15: F3 F4 P3 P4 | F15: L(A1 A2) | G15: CON4C MBC Down | H15: EC/EO | I15: 2 | J15: 50.5 | K15: F3 F4 | L15: L(A1 A2) | M15: CON2C Gamma Up | N15: EO
J16: 43.7 | K16: F3 F4 | L16: L(A1 A2) | M16: CON2C MBC Down | N16: EC/EO
A19: Block 3 | D19: Weight | E19: Active | F19: Reference | G19: 4CH Protocol | H19: State | J19: Weight | K19: Active | L19: Reference | M19: 2CH/1CH Protocol | N19: State
B20: Selectable | D20: 67.9 | E20: F3 F4 C3 C4 | F20: L(A1 A2) | G20: CON4C Gamma Sync | H20: EO | I20: 1 | J20: 17.4 | K20: C3 C4 | L20: L(A1 A2) | M20: CON2C Gamma Up | N20: EO
B21: Protocols | I21: 2 | J21: 8.6 | K21: C3 | L21: C4 | M21: SMR%1C Up | N21: EO
B22: 0 | I22: 3 | J22: 5.6 | K22: C3 C4 | L22: L(A1 A2) | M22: BAL2C Alpha Beta (Alpha) | N22: EC/EO
J23: 3.9 | K23: Cz | L23: A2 | M23: SMR%1C Up | N23: EO
A26: Block 4 | D26: Weight | E26: Active | F26: Reference | G26: 4CH Protocol | H26: State | J26: Weight | K26: Active | L26: Reference | M26: 2CH/1CH Protocol | N26: State
B27: Selectable | C27: 2 | D27: 76.9 | E27: Fz Pz Cz Oz | F27: L(A1 A2) | G27: CON4C MBC Down | H27: EC/EO | I27: 3 | J27: 64.3 | K27: Fz Pz | L27: L(A1 A2) | M27: CON2C MBC Down | N27: EC/EO
B28: Protocols | J28: 30.7 | K28: Cz Oz | L28: L(A1 A2) | M28: CON2C MBC Combined | N28: EC
B29: 0 | I29: 1 | J29: 13.4 | K29: Fz Cz | L29: L(A1 A2) | M29: FRE2C IN (2-6) REW (13-21) | N29: EC/EO
J30: 4.3 | K30: Cz Oz | L30: L(A1 A2) | M30: CON2C MBC Up | N30: EC
J31: 2.4 | K31: Oz | L31: A1 | M31: FRE1C IN (19-38) REW (9-13) | N31: EO
A33: Block 5 | D33: Weight | E33: Active | F33: Reference | G33: 4CH Protocol | H33: State | J33: Weight | K33: Active | L33: Reference | M33: 2CH/1CH Protocol | N33: State
B34: Selectable | I34: 1 | J34: 95 | K34: O1 O2 | L34: L(A1 A2) | M34: FRE2C Squash | N34: EC 10:00m
B35: Protocols | J35: 90 | K35: P3 P4 | L35: L(A1 A2) | M35: FRE2C IN (19-38) REW (6-10) | N35: EC 10:00m
B36: 0 | J36: 85 | K36: P4 or O1 | L36: A2 or A1 | M36: ALP1C Alpha Up | N36: EC 10:00m
I37: 2 | J37: 80 | K37: P4 or O1 | L37: A2 or A1 | M37: ALP1C Alpha Theta | N37: EC 23:50m

Sheet Text (hidden)
A1: Page | B1: Object | C1: English | D1: Português | E1: Español | F1: Italiano
A2: Summary Report | C2: The following TLC Training Plan was created for | D2: O Plano de Treinamento TLC que se segue foi criado para | E2: El siguiente Plan de Entrenamiento TLC fue creado por | F2: Il seguente Piano di Trattamento TLC è stato creato per
A3: Summary Report | C3: , age | D3: , idade | E3: , edad | F3: , età
A4: Summary Report | C4: , by | D4: , por | E4: , por | F4: , da
A5: Summary Report | C5: on | D5: em | E5: en | F5: su
A6: Summary Report | C6: No information about the client available. | D6: Não há informação disponível sobre o cliente. | E6: No hay información disponible acerca del cliente. | F6: Non sono disponibili informazioni sul cliente.
A7: Summary Report | C7: Data Quality | D7: Qualidade dos Dados | E7: Calidad de los Datos | F7: Qualità dei dati
A8: Summary Report | C8: In summary, required data are present and appear to be relatively free of artifacts. | D8: No resumo, os dados necessários estão presentes e parecem estar relativamente livre de artefatos. | E8: En Resumen, los datos requeridos están presentes y parecen estar libres de distorsiones o artefactos. | F8: Nel riepilogo, sono presenti i dati richiesti e si presentano relativamente liberi da artefatti.
A9: Summary Report | C9: In summary, several quality issues were found. | D9: No resumo, vários ítens de qualidade foram encontrados. | E9: En Resumen, se encontraron varios errores de calidad. | F9: Nel riepilogo, sono stati trovati molti problemi legati alla qualità.
A10: Summary Report | C10: In summary, two quality issues were found. | D10: No resumo, dois itens de qualidade foram encontrados. | E10: En Resumen, se encontraron dos errores de calidad. | F10: Nel riepilogo, sono stati trovati due problemi legati alla qualità.
A11: Summary Report | C11: In summary, one potential quality issue was found. Check the data and see if there is an impact on the TLC training plan. | D11: No resumo, um ítem de qualidade foi encontrado. Cheque os dados e veja se há impacto no plano de treinamento TLC. | E11: En Resumen, se encontró un error de calidad en los datos. Revise y vea si hubo algún impacto en el Plan de Entrenamiento TLC. | F11: Nel riepilogo, è staoi trovat un problema legato alla qualità. Controllare i dati per verificare che questi non influiscano sul piano di trattamento TLC.
A12: Summary Report | C12: found. | D12: encontrado. | E12: hallado. | F12: trovato.
A13: Summary Report | C13: found, in particular regarding asymmetric recordings. | D13: encontrado, no que diz respeito, em particular, à gravações assimétricas. | E13: hallado, en particular con respecto a las grabaciones asimétricas. | F13: trovato, in particolare per quanto riguarda le rilevazioni asimmetriche.
A14: Summary Report | C14: found, in particular regarding muscle artifacts. | D14: encontrado, no que diz respeito, em particular, a artefatos musculares. | E14: hallado, en particular con respecto a las distorsiones musculares. | F14: trovato, in particolare per quanto riguarda gli artefatti muscolari.
A15: Summary Report | C15: found, in particular regarding missing sites. | D15: encontrado, no que diz respeito, em particular a pontos perdidos. | E15: hallado, en particular con respecto a los sitios faltantes. | F15: trovato, in particolare per quanto riguarda siti mancanti.
A16: Summary Report | C16: found, mostly pertaining to asymmetric recordings. | D16: encontrado, em sua maioria relacionados à gravações assimétricas. | E16: hallado, en su mayoría pertinentes a las grabaciones asimétricas. | F16: trovato, per la maggior parte riferito alle rilevazioni asimmetriche.
A17: Summary Report | C17: found, mostly pertaining to muscle artifacts. | D17: encontrado, em sua maioria relacionados à artefatos musculares. | E17: hallado, en su mayoría pertinentes a las distorsiones musculares. | F17: trovato, per la maggior parte riferito ad artefatti muscolari.
A18: Summary Report | C18: found, mostly pertaining to missing sites. | D18: encontrados, em sua maioria relacionados a pontos perdidos. | E18: hallado, en su mayoría pertinentes a los sitios faltantes. | F18: trovato, per la maggior parte riferito a siti mancanti.
A19: Summary Report | C19: Re-recording is recommended, as bad or missing data strongly compromises the validity of the TLC training plan. | D19: Regravação é recomendada, por dados ruins ou perdidos que comprometem fortemente a validade do plano de treinamento TLC. | E19: Se recomienda volver a grabar, tanto datos erróneos como faltantes comprometen mucho la validez del Plan de Entrenamiento TLC. | F19: Si raccomanda di ripetere la registrazione, poiché la qualità o la mancanza di dati compromettono gravemente la validità del piano di trattamento.
A20: Summary Report | C20: Check for disruption of the data and re-record the assessment, if necessary. Bad or missing data can compromise the validity of the TLC training plan. | D20: Cheque se houve rompimento dos dados e grave de novo a avaliação, se necessário. Dados ruins ou perdidos podem comprometer a validade do plano de treinamento TLC. | E20: Revise interrupción en los datos, y de ser necesario, vuelva a grabar la evaluación. Recuerde que tanto la falta de datos como malos pueden comprometer la validez del plan de formación del TLC. | F20: Controllare se i dati sono stati danneggiati e ripetere la registrazione, se necessario. Dati di cattiva qualità o mancanti possono compromettere la validità del piano di trattamento TLC.
A21: Summary Report | C21: Client Information | D21: Informações do cliente | E21: Información del Cliente | F21: Informazioni sul cliente
A22: Summary Report | C22: The following report regards | D22: A seguinte relação do relatório | E22: El siguiente informe considera | F22: Il seguente report riguarda
A23: Summary Report | C23: , an | D23: , uma | E23: , de | F23: , un/una
A24: Summary Report | C24: , a | D24: , a | E24: , de | F24: , un/una
A25: Summary Report | C25: year old | D25: idade | E25: años de edad | F25: anni di età
A26: Summary Report | C26: female | D26: feminino | E26: mujer | F26: femmina
A27: Summary Report | C27: male | D27: masculino | E27: hombre | F27: maschio
A28: Summary Report | C28: she | D28: ela | E28: ella | F28: lei
A29: Summary Report | C29: he | D29: ele | E29: el | F29: lui
A30: Summary Report | C30: who presented for an assessment of brain activation patterns | D30: que apresentou uma avaliação dos padrões de ativação do cérebro | E30: quien se presentó para la evaluación de patrones de activación cerebral | F30: che si è presentato per un assessment dei pattern di attivazione cerebrale
A31: Summary Report | C31: recorded by | D31: gravado por | E31: grabado por | F31: registrato da
A32: Summary Report | C32: grew up | D32: cresceu | E32: creció | F32: cresciuto
A33: Summary Report | C33: with his birth family | D33: com sua família biológica | E33: con su familia de nacimiento | F33: con la sua famiglia di nascita
A34: Summary Report | C34: in an adoptive family | D34: em uma família adotiva | E34: en una familia adoptiva | F34: in una famiglia adottiva
A35: Summary Report | C35: in a foster family | D35: em uma família de acolhimento | E35: en una familia adoptiva | F35: in una famiglia affidataria
A36: Summary Report | C36: with his birth family | D36: com sua família biológica | E36: con su familia de nacimiento | F36: con la sua famiglia di nascita
A37: Summary Report | C37: as well as an adoptive family | D37: bem como em uma família adotiva | E37: así también como una familia adoptiva | F37: così come una famiglia adottiva
A38: Summary Report | C38: as well as a foster family | D38: bem como em uma família de acolhimento | E38: así también como una familia adoptiva | F38: così come una famiglia affidataria
A39: Summary Report | C39: in an adoptive as well as a foster family | D39: em uma família adotivabem como em uma de acolhimento | E39: en adopción, así como en una familia adoptiva | F39: in una famiglia adottiva così come una famiglia affidataria
A40: Summary Report | C40: with his birth family as well as adoptive and foster families | D40: em sua família biológica, bem como de acolhimento e adotiva | E40: con su familia de nacimiento así como familias de crianza y adoptivas | F40: con la sua famiglia di nascita così come famiglie adottive e affidatarie
A41: Summary Report | C41: with no siblings. | D41: sem irmãos. | E41: sin hermanos. | F41: senza fratelli o sorelle.
A42: Summary Report | C42: and was | D42: e foi | E42: y fue | F42: ed è stato
A43: Summary Report | C43: the first | D43: o primeira | E43: el primero(a) | F43: il primo
A44: Summary Report | C44: the second | D44: o segundo | E44: el segundo(a) | F44: il secondo
A45: Summary Report | C45: the third | D45: o terceiro | E45: el tercero(a) | F45: il terzo
A46: Summary Report | C46: the fourth | D46: o quarto | E46: el cuarto(a) | F46: il quarto
A47: Summary Report | C47: the fifth | D47: o quinto | E47: el quinto(a) | F47: il quinto
A48: Summary Report | C48: the sixth | D48: o sexto | E48: el sexto(a) | F48: il sesto
A49: Summary Report | C49: the seventh | D49: o sétimo | E49: el séptimo(a) | F49: il settimo
A50: Summary Report | C50: the eighth | D50: o oitavo | E50: el octavo(a) | F50: l'ottavo
A51: Summary Report | C51: the ninth | D51: o nono | E51: el noveno(a) | F51: il nono
A52: Summary Report | C52: later than ninth | D52: depois do nono | E52: después del noveno | F52: oltre il nono
A53: Summary Report | C53: of two siblings. | D53: de dois irmãos. | E53: de dos hermanos. | F53: di due fratelli/sorelle.
A54: Summary Report | C54: of a total number of | D54: de um número total de | E54: de un numero total de | F54: di un numero totale di
A55: Summary Report | C55: siblings. | D55: irmãos. | E55: hermanos. | F55: fratelli/sorelle.
A56: Summary Report | C56: with one sibling. | D56: com um irmão. | E56: con un hermano. | F56: con un fratello/sorella
A57: Summary Report | C57: with a total number of | D57: com um número total de | E57: con un numero total de | F57: con un numero totale di
A58: Summary Report | C58: There is a known history of | D58: Há uma história conhecida de | E58: Hay una historia sabida de | F58: Vi è una storia conosciuta di
A59: Summary Report | C59: neglect. | D59: negligência. | E59: abandono. | F59: rifiuto.
A60: Summary Report | C60: abuse. | D60: abuso. | E60: abuso. | F60: abuso.
A61: Summary Report | C61: traumatic events. | D61: eventos traumáticos. | E61: eventos traumáticos. | F61: evento traumatico.
A62: Summary Report | C62: and abuse. | D62: e abuso. | E62: y abuso. | F62: e abuso.
A63: Summary Report | C63: and other traumatic events. | D63: e outro evento traumático. | E63: y otros eventos traumáticos. | F63: e altri eventi traumatici.
A64: Summary Report | C64: abuse and other traumatic events. | D64: abuso e outro evento traumático. | E64: abuso y otros eventos traumáticos. | F64: abuso e altri eventi traumatici.
A65: Summary Report | C65: neglect and abuse as well as other traumatic events. | D65: negligência e abuso, bem como outros eventos traumáticos. | E65: abandono y abuso y así como también otros eventos traumáticos. | F65: rifiuto e abuso così come altri eventi traumatici.
A66: Summary Report | C66: has received | D66: recebeu | E66: ha recibido | F66: ha ricevuto
A67: Summary Report | C67: years of school education | D67: anos de educação escolar | E67: años de educación escolar | F67: anni di scolarità
A68: Summary Report | C68: has received one year of school education | D68: recebeu um ano de eduação escolar | E68: ha recibido un año de educación escolar | F68: con un anno di scolarità
A69: Summary Report | C69: and | D69: e | E69: y | F69: e
A70: Summary Report | C70: In addition, | D70: Em acréscimo, | E70: Adicionalmente, | F70: Inoltre,
A71: Summary Report | C71: " as current occupation. | D71: "como ocupação atual. | E71: " como ocupación actual. | F71: " come occupazione attuale.
A72: Summary Report | C72: reported " | D72: relatado" | E72: reportado " | F72: riporta "
A73: Summary Report | C73: The client | D73: O cliente | E73: El cliente | F73: Il cliente
A74: Summary Report | C74: is left handed. | D74: é canhoto. | E74: es zurdo. | F74: è mancino.
A75: Summary Report | C75: is mixed-dominant handed. | D75: é ambidestro. | E75: es ambidiestro. | F75: è ambidestro.
A76: Summary Report | C76: is right handed. | D76: é destro. | E76: es derecho. | F76: è destrimane.
A77: Summary Report | C77: Both alcohol as well as recreational drugs are used by the client. | D77: Ambos álcool e drogas recreativas foram usadas pelo cliente. | E77: Tanto alcohol como drogas recreativas son utilizadas por el cliente. | F77: Il cliente fa uso sia di alcolici che di droghe ricreazionali.
A78: Summary Report | C78: Use of alcohol is being reported by the client. | D78: Uso de álcool foi relatado pelo cliente. | E78: Consumo de alcohol ha sido reportado por el cliente. | F78: Il cliente riferisce di fare uso di alcolici.
A79: Summary Report | C79: Use of recreational drugs is being reported by the client. | D79: Uso de drogas recreativas está sendo relatado pelo cliente. | E79: Uso de drogas recreativas ha sido reportado por el cliente. | F79: Il cliente riferisce di fare uso di droghe ricreazionali.
A80: Summary Report | C80: alcohol | D80: álcool | E80: alcohol | F80: alcol
A81: Summary Report | C81: drugs | D81: drogas | E81: drogas | F81: droghe
A82: Summary Report | C82: alcohol (1-12 times per year) | D82: álcool (1-12 vezes por ano) | E82: alcohol (1-12 veces por año) | F82: alcol (1-12 volte all'anno)
A83: Summary Report | C83: alcohol (1-4 times per month) | D83: álcool (1-4 vezes por mês) | E83: alcohol (1-4 veces por mes) | F83: alcol (1-4 volte al mese)
A84: Summary Report | C84: alcohol (1-2 times per week) | D84: álcool (1-2 vezes por semana) | E84: alcohol (1-2 veces por semana) | F84: alcol (1-2 volte alla settimana)
A85: Summary Report | C85: alcohol (3-4 times per week) | D85: álcool (3-4 vezes por semana) | E85: alcohol (3-4 veces por semana) | F85: alcol (3-4 volte alla settimana)
A86: Summary Report | C86: alcohol (more than 4 times per week) | D86: álcool (mais do que 4 vezes por semana) | E86: alcohol (mas de 4 veces por semana) | F86: alcol (più di 4 volte alla settimana)
A87: Summary Report | C87: drugs (1-12 times per year) | D87: drogas (1-12 vezes por ano) | E87: drogas (1-12 veces por año) | F87: droghe (1-12 volte all'anno)
A88: Summary Report | C88: drugs (1-4 times per month) | D88: drogas (1-4 vezes por mês) | E88: drogas (1-4 veces por mes) | F88: droghe (1-4 volte al mese)
A89: Summary Report | C89: drugs (1-2 times per week) | D89: drogas (1-2 vezes por semana) | E89: drogas (1-2 veces por semana) | F89: droghe (1-2 volte alla settimana)
A90: Summary Report | C90: drugs (3-4 times per week) | D90: drogas (3-4 vezes por semana) | E90: drogas (3-4 veces por semana) | F90: droghe (3-4 volte alla settimana)
A91: Summary Report | C91: drugs (more than 4 times per week) | D91: drogas (mais do que 4 vezes por semana) | E91: drogas (mas de 4 veces por semana) | F91: droghe (più di 4 volte alla settimana)
A92: Summary Report | C92: There is | D92: Há | E92: Existe | F92: C'è
A93: Summary Report | C93: a reported history of significant head injuries | D93: um relato de história de ferimentos sérios na cabeça | E93: antecedentes reportados de importantes lesiones en la cabeza | F93: una storia riferita di significativi traumi cranici
A94: Summary Report | C94: and seizure activity. | D94: e atividade convulsiva. | E94: y actividad de convulsiones. | F94: e attività epilettica.
A95: Summary Report | C95: Both have been identified as high priority training objectives. | D95: Ambos foram identificados como objetivos de treinamento prioritário. | E95: Ambos han sido identificados como los objetivos de entrenamiento de mayor prioridad. | F95: Entrambi sono stati identificati come obiettivi di trattamento ad alta priorità.
A96: Summary Report | C96: (identified as high priority training objective) | D96: (identificado como alta prioridade de objetivo de treinamento) | E96: (identificado como objetivo de entrenamiento de mayor prioridad) | F96: (identificato come obiettivo di trattamento ad alta priorità)
A97: Summary Report | C97: , with the former being identified as high priority training objective. | D97: , com o anterior sendo identificado como objetivo de treinamento de alta prioridade. | E97: , con el anterior fue identificado como objetivo de entrenamiento de mayor prioridad. | F97: , con il precedente identificato come obiettivo di trattamento ad alta priorità.
A98: Summary Report | C98: , with the latter being identified as high priority training objective. | D98: , com o último sendo identificado como objetivo de treinamento de alta prioridade. | E98: , con el último fue identificado como objetivo de entrenamiento de mayor prioridad. | F98: , con l'ultimo identificato come obiettivo di trattamento ad alta priorità.
A99: Summary Report | C99: , which was identified as high priority training objective. | D99: , que foi identificado como sendo um objetvo de treinamento de alta prioridade. | E99: , que fue identificado como objetivo de entrenamiento de mayor prioridad. | F99: , che è stato identificato come obiettivo di trattamento ad alta priorità.
A100: Summary Report | C100: but no reported history of seizure activity. | D100: mas sem histórico de atividade convulsiva. | E100: pero no se reportaron antecedentes de convulsiones. | F100: ma non viene riportata storia di attività epilettica.
A101: Summary Report | C101: no reported history of significant head injuries | D101: sem relato de histórico de ferimentos significativos na cabeça | E101: no se reportaron antecedentes de lesiones en la cabeza significativos | F101: non viene riportata una storia di traumi cranici significativi
A102: Summary Report | C102: but a reported history of seizure activity. | D102: mas um relato de histórico de atividade convulsiva. | E102: pero se reportó antecedente de convulsiones. | F102: ma viene riportata una storia di attviità epilettica.
A103: Summary Report | C103: or seizure activity. | D103: ou atividade convulsiva. | E103: o convulsiones. | F103: o attività epilettica.
A104: Summary Report | C104: Medications reported as being taken at the time of the recording are listed below: | D104: Foi relatado que os seguintes remédios estão sendo tomados no momento da gravação da avaliação: | E104: Los medicamentos reportados que están siendo tomados en el momento de la grabación son los siguientes: | F104: I farmaci assunti al momento della registrazione sono elencati qui sotto:
A105: Summary Report | C105: more than 5 | D105: mais de 5 | E105: mas de 5 | F105: più di 5
A106: Summary Report | C106: No medications were reported as being taken at the time of the recording. | D106: Foi relatado que nenhum medicamento está sendo tomado no momento da gravação da avaliação. | E106: No se reportaron medicamentos para el momento de la grabación. | F106: Non sono state riportate terapie farmacologiche in atto al momento della registrazione.
A107: Summary Report | C107: reported the following areas of significant difficulty: | D107: relatou as seguintes áreas de dificuldade significativa: | E107: informó de las siguientes áreas de dificultad significativa: | F107: ha riportato le seguenti aree di difficoltà significativa:
A108: Summary Report | C108: reported no areas of significant difficulty. | D108: relatado que não há áreas de dificuldade significativa. | E108: no informó de áreas de dificultad significativa. | F108: non ha riportato aree di difficoltà significativa.
A109: Summary Report | C109: Block | D109: Bloco | E109: Bloqueo | F109: Blocco
A110: Summary Report | C110: Training | D110: Treinamento | E110: Entrenamiento | F110: Training
A111: Summary Report | C111: Active | D111: Ativo | E111: Activo | F111: Attivo
A112: Summary Report | C112: Reference | D112: Referência | E112: Referencia | F112: Riferimento
A113: Summary Report | C113: Protocol | D113: Protocolo | E113: Protocolo | F113: Protocollo
A114: Summary Report | C114: State & Duration | D114: Estado e duração | E114: Estado y Duración | F114: Stato & Durata
A115: Summary Report | C115: Notes | D115: Notas | E115: Notas | F115: Note
A116: Summary Report | C116: EEG Sites in brackets require Quick Insert Electrodes | D116: Pontos de EEG entre parênteses requerem eletrodos Quick Inserts | E116: Los sitios del EEG en los soportes requieren electrodos de inserción rápida | F116: I siti EEG in parentesi richiedono Elettrodi a Rapido Inserimento
A117: Summary Report | C117: TLC Training Plan | D117: Plano de Treinamento TLC | E117: Plan de Entrenamiento TLC | F117: Piano di Training TLC
A118: Summary Report | C118: is known to suffer from | D118: é conhecido que sofre de | E118: se sabe que sufre de | F118: soffre di
A119: Summary Report | C119: One site was found to be asymmetric: | D119: Foi encontrada assimetria em um ponto: | E119: Se halló un sitio asimétrico: | F119: Un sito è risultato essere asimmetrico:
A120: Summary Report | C120: The following sites were found to be asymmetric: | D120: Foi encontrada assimetria nos seguintes pontos: | E120: Se hallaron los siguientes sitios asimétricos: | F120: I seguenti siti sono risultati essere asimmetrici:
A121: Summary Report | C121: No asymmetries were found | D121: Não foi encontrada assimetria | E121: No se encontraron asimetrías | F121: Non sono state trovate asimmetrie
A122: Summary Report | C122: There are unusually high levels of coherence at | D122: Existem níveis incomuns de coerência alta em | E122: Hay altos niveles de coherencia inusuales en | F122: Ci sono livelli di coerenza insolitamente alti in
A123: Summary Report | C123: There are unusually high levels of coherence at the following sites: | D123: Existem níveis incomuns de coerência alta nos seguintes pontos: | E123: Hay altos niveles de coherencia inusuales en los siguientes sitios: | F123: Ci sono livelli di coerenza insolitamente alti nei seguenti siti:
A124: Summary Report | C124: Potential for muscle movement or tension resulting in high-frequency artifact should be ruled out, or the data should be re-gathered. | D124: Tensões ou movimentos musculares podem ter gerado artefatos de frequência alta e precisam ser descartados ou regravados | E124: Se debe descartar movimientos o tensión muscular, lo que puede resultar en distorsiones en las frecuencias altas, o se deben retomar los datos. | F124: E' consigliabile escludere potenziali movimenti muscolari o la tensione che possono sfociare in artefatti, oppure ripetere la rilevazione.
A125: Summary Report | C125: and there are no excessive coherence values that would suggest muscle artifact. | D125: e não há valores excessivos de coerência que possam sugerir artefato muscular. | E125: y no hay valores de coherencia excesiva que puedan sugerir distorsiones por músculos. | F125: e non ci sono valori di coerenza eccessiva che possano suggerire artefatto muscolare.
A126: Summary Report | C126: There are no excessive coherence values that would suggest muscle artifact. | D126: Não há valores excessivos de coerência que possam sugerir artefato muscular. | E126: No hay valores de coherencia excesiva que puedan sugerir distorsiones por músculos. | F126: Non ci sono valori di coerenza eccessivi che possano suggerire artefatto muscolare.
A127: Summary Report | C127: Required minimum data is present. Some task data missing. However, assessment validity should not be affected. | D127: Os dados mínimos necessários estão presentes. Alguns dados de tarefa foram perdidos. No entanto, a validade da avaliação não deve ter sido afetada. | E127: Los datos mínimos están presentes. Hay algunos datos de las Tareas que no se hallaron. De todas formas, la validez de la evaluación no debería verse afectada. | F127: Sono presenti i dati minimi richiesti. Alcuni dati del compito sono mancanti. Comunque la validità dell'assessment non dovrebbe essere influenzata.
A128: Summary Report | C128: Data is complete for all minimally required sites. | D128: Os dados estão completos para todos os pontos minimamente necessários. | E128: Los Datos están completos para todos los sitios requeridos. | F128: I dati sono completi per tutti i siti minimi necessari
A129: Summary Report | C129: Data is missing for the following required site: | D129: Faltam dados para os seguintes pontos: | E129: Faltan datos para los siguientes sitios requeridos: | F129: Mancano i dati per il seguente sito necessario:
A130: Summary Report | C130: Data is missing for the following required sites: | D130: Faltam dados para os seguintes pontos: | E130: Faltan datos para los siguientes sitios requeridos: | F130: Mancano i dati per i seguenti siti necessari:
A131: Summary Report | C131: out of | D131: de | E131: de | F131: di
A132: .
A133: .
A134: .
A135: .
A136: .
A137: .
A138: .
A139: .
A140: .
A141: .
A142: .
A143: .
A144: .
A145: .
A146: .
A147: .
A148: .
A149: Needs to be empty
A150: Client Report | C150: Stress | D150: Estresse | E150: Estrés | F150: Stress
A151: Client Report | C151: Anxiety | D151: Ansiedade | E151: Ansiedad | F151: Ansia
A152: Client Report | C152: Depression | D152: Depressão | E152: Depresión | F152: Depressione
A153: Client Report | C153: Anger | D153: Raiva | E153: Rabia | F153: Rabbia
A154: Client Report | C154: Sleep Disturbance | D154: Perturbação do sono | E154: Alteración del sueño | F154: Disturbi del sonno
A155: Client Report | C155: Physical Disturbance | D155: Perturbação física | E155: Molestias físicas | F155: Disturbi somatici
A156: Client Report | C156: Attention | D156: Atenção | E156: Atención | F156: Attenzione
A157: Client Report | C157: Learning | D157: Aprendizagem | E157: Aprendizaje | F157: Apprendimento
A158: Client Report | C158: Control | D158: Controle | E158: Control | F158: Controllo
A159: Client Report | C159: Memory | D159: Memôria | E159: Memoria | F159: Memoria
A160: Client Report | C160: Autism | D160: Austimo | E160: Autismo | F160: Autismo
A161: Client Report | C161: Nonverbal Disorder | D161: Distúrbio não verbal | E161: Desordenes no verbales | F161: Disturbo Non Verbale
A162: Client Report
A163: Client Report
A164: Client Report
A165: Client Report
A166: Client Report | C166: Nonverbal | D166: Não verbal | E166: No verbales | F166: Non verbale
A167: Client Report | C167: Antidepressants | D167: Antidepressivos | E167: Antidepresivos | F167: Antidepressivi
A168: Client Report | C168: Anti-anxiety | D168: Ansiolíticos | E168: Ansiolíticos | F168: Ansiolitici
A169: Client Report | C169: Anticonvulsants | D169: Anticonvulcionantes | E169: Anticonvulsionantes | F169: Anticonvulsivanti
A170: Client Report | C170: Antipsychotics | D170: Antipsicótico | E170: Antipsicóticos | F170: Antipsicotici
A171: Client Report | C171: Stimulants | D171: Estimulantes | E171: Estimulantes | F171: Stimolanti
A172: Client Report | C172: Mood stabilizers | D172: Estabilizador de Humor | E172: Estabilizadores del humor | F172: Stabilizzatori dell'umore
A173: Client Report | C173: Alcohol | D173: Álcool | E173: Alcohol | F173: Alcol
A174: Client Report | C174: Frequency | D174: Frequência | E174: Frecuencia | F174: Frequenza
A175: Client Report | C175: Drugs | D175: Drogras | E175: Drogas | F175: Droghe
A176: Client Report | C176: Head Injury with unconsciousness | D176: Traumatismo craniano com perda de consiência | E176: Lesiones en la cabeza | F176: Trauma cranico con perdita di coscienza
A177: Client Report | C177: Training Priority | D177: Prioridades de Treinamento | E177: Prioridades del Entrenamiento | F177: Priorità di Trattamento
A178: Client Report | C178: Seizures | D178: Convulsões | E178: Convulsiones | F178: Crisi epilettiche
A179: Client Report | C179: Use Alcohol | D179: Álcool | E179: Usa Alcohol | F179: Uso di Alcol
A180: Client Report | C180: Use Recreational Drugs | D180: Drogras Recreativas | E180: Usa Drogas Recreacionales | F180: Uso di Droghe Ricreazionali
A181: Client Report | C181: Check appropriate boxes below: | D181: Checar as caixas correspondentes abaixo: | E181: Marque la casilla apropiada a continuación: | F181: Spuntare le caselle appropriate sotto:
A182: Client Report | C182: (appetite, etc.) | D182: (apetite, etc) | E182: (apetito, etc.) | F182: (appetito, ecc.)
A183: Client Report | C183: Is the trainee: | D183: O cliente é: | E183: Es el Entrenado: | F183: La persona in trattamento è:
A184: Client Report | C184: Right-handed | D184: Destro | E184: Derecho | F184: Destrimane
A185: Client Report | C185: Left-handed | D185: Canhoto | E185: Zurdo | F185: Mancino
A186: Client Report | C186: Some of each | D186: Ambidestro | E186: Algunos de cada uno | F186: Ambidestro
A187: Client Report | C187: How many of these medications are you taking? | D187: Quantos medicamentos você está utilizando? | E187: Cuantas de estas medicinas usted está tomando? | F187: Quanti di questi farmaci sta assumendo?
A188: Client Report | C188: Trainee Name: | D188: Nome: | E188: Nombre del Entrenado: | F188: Nome della persona che effettua il training:
A189: Client Report | C189: Age: | D189: Idade: | E189: Edad: | F189: Età:
A190: Client Report | C190: Family/Vocational Information | D190: Informações familiares e profissionais | E190: Información de la Familia/Vocación | F190: Famiglia/Informazioni professionali
A191: Client Report | C191: Trainee grew up in (check all that apply): | D191: Foi criado em (assinalar todos que se aplicam): | E191: El Entrenado creció en (marque todas las que apliquen): | F191: Il cliente è cresciuto in (spuntare tutti i campi corrispondenti):
A192: Client Report | C192: Birth Family | D192: Família Biológica | E192: Familia de Nacimiento | F192: Famiglia di nascita
A193: Client Report | C193: Adoptive Family | D193: Família Adotiva | E193: Familia Adoptiva | F193: Famiglia adottiva
A194: Client Report | C194: Foster Family | D194: Família de Acolhimento | E194: Familia Adoptiva Asignada | F194: Famiglia affidataria
A195: Client Report | C195: Number of siblings (client included): | D195: Número de irmãos (cliente inclui): | E195: Cantidad de hermanos (incluyendo al cliente): | F195: Numero di fratelli/sorelle (incluso il cliente):
A196: Client Report | C196: Client's place in birth order: | D196: Lugar do cliente na ordem de nascimento: | E196: Lugar de nacimiento del cliente: | F196: Indicare se primogenito, secondogenito ecc.:
A197: Client Report | C197: Is there a history of (check all that apply): | D197: Existe história de: | E197: Existen antecedentes de (marque todos los que apliquen): | F197: C'è una storia di (indicare tutti i campi necessari):
A198: Client Report | C198: Other Trauma | D198: Outros Traumas | E198: Otros Traumas | F198: Altri traumi
A199: Client Report | C199: Number of years of school completed: | D199: Escolaridade (anotar o número de anos de estudo): | E199: Cantidad de años completados de escuela: | F199: Anni di scolarità:
A200: Client Report | C200: Occupation: | D200: Ocupação: | E200: Ocupación: | F200: Occupazione:
... 644 more rows

Sheet Raw (hidden)
A1: RUN | B1: 2-4 D L AVG | C1: 4-6 T1 L AVG | D1: 6-8 T2 L AVG | E1: 8-10 A1 L AVG | F1: 10-12 A2 L AV | G1: 12-15 B1 L AV | H1: 15-19 B2 L AV | I1: 19-23 B3 L AV | J1: 23-38 HiB L AV | K1: 38-42 G L AVG | L1: 2-4 D R AVG | M1: 4-6 T1 R AVG | N1: 6-8 T2 R AVG | O1: 8-10 A1 R AVG | P1: 10-12 A2 R AV | Q1: 12-15 B1 R AV | R1: 15-19 B2 R AV | S1: 19-23 B3 R AV | T1: 23-38 HiB R AV | U1: 38-42 G R AVG | V1: D CoV L | W1: T1 CoV L | X1: T2 CoV L | Y1: A1 CoV L | Z1: A2 CoV L | AA1: B1 CoV L | AB1: B2 CoV L | AC1: B3 CoV L | AD1: HiB CoV L | AE1: G CoV L | AF1: D CoV R | AG1: T1 CoV R | AH1: T2 CoV R | AI1: A1 CoV R | AJ1: A2 CoV R | AK1: B1 CoV R | AL1: B2 CoV R | AM1: B3 CoV R | AN1: HiB CoV R | AO1: G CoV R | AP1: T/B Pwr L | AQ1: A/T Amp L | AR1: T/B Pwr R | AS1: A/T Amp R | AT1: Alpha PF L | AU1: Alpha PF R | AV1: Beta PF L | AW1: Beta PF R | AX1: Tot PF L | AY1: Tot PF R | AZ1: D Coh | BA1: Th Coh | BB1: Al Coh | BC1: LoB Coh | BD1: Be Coh | BE1: HiB Coh | BF1: G Coh | BG1: Beta L | BH1: Beta R | BI1: Alpha L | BJ1: Theta L | BK1: Alpha R | BL1: Theta R | BM1: D Phase | BN1: T Phase | BO1: Al Phase | BP1: LoB Phase | BQ1: Be Phase | BR1: HiB Phase | BS1: G Phase
B2: 10.44797941 | C2: 8.123397059 | D2: 6.498114706 | E2: 13.32637647 | F2: 9.174355882 | G2: 6.170023529 | H2: 7.249458824 | I2: 6.202476471 | J2: 9.673205882 | K2: 4.809411765 | L2: 12.69248824 | M2: 9.814794118 | N2: 6.523423529 | O2: 14.20716176 | P2: 9.166091176 | Q2: 5.723673529 | R2: 6.517188235 | S2: 5.264870588 | T2: 8.585708824 | U2: 4.509370588 | V2: 1.832469706 | W2: 1.288947647 | X2: 1.034647647 | Y2: 1.915502353 | Z2: 1.311104412 | AA2: 1.142451471 | AB2: 1.608502059 | AC2: 1.187931765 | AD2: 2.543411765 | AE2: 1.04157 | AF2: 2.416620588 | AG2: 1.700507353 | AH2: 1.031134118 | AI2: 1.954380882 | AJ2: 1.453863824 | AK2: 0.9846261765 | AL2: 1.349734412 | AM2: 1.241198235 | AN2: 2.178238235 | AO2: 0.9899791176 | AP2: 9.537975 | AQ2: 2.312432059 | AR2: 28.11551765 | AS2: 2.279377353 | AT2: 9.536179412 | AU2: 9.486267647 | AV2: 19.97055882 | AW2: 21.14126471 | AX2: 7.736161765 | AY2: 6.653320588 | AZ2: 85.83358824 | BA2: 81.96723529 | BB2: 92.056 | BC2: 64.40814706 | BD2: 40.13616471 | BE2: 31.07632353 | BF2: 24.11355294 | BG2: 9.900264706 | BH2: 8.902461765 | BI2: 15.64051765 | BJ2: 10.46035 | BK2: 16.22102353 | BL2: 11.48443235 | BM2: 78.81697059 | BN2: 77.81311765 | BO2: 87.38179412 | BP2: 58.90558824 | BQ2: 40.85052941 | BR2: 36.85652941 | BS2: 30.20379412
B5: 11.21224359 | C5: 7.865128205 | D5: 6.369394872 | E5: 12.93305641 | F5: 8.84354359 | G5: 6.682738462 | H5: 5.182882051 | I5: 4.538633333 | J5: 6.323605128 | K5: 2.856423077 | L5: 13.62759231 | M5: 9.392076923 | N5: 7.20285641 | O5: 14.88915385 | P5: 9.762848718 | Q5: 7.798805128 | R5: 5.998648718 | S5: 4.302905128 | T5: 6.554533333 | U5: 2.836179487 | V5: 1.845472821 | W5: 1.411907949 | X5: 0.9635204872 | Y5: 1.954024359 | Z5: 1.541907436 | AA5: 1.306981795 | AB5: 1.059070513 | AC5: 0.9768561538 | AD5: 1.663276923 | AE5: 0.581284359 | AF5: 2.215138718 | AG5: 1.534955897 | AH5: 1.10702 | AI5: 2.291055641 | AJ5: 1.576318205 | AK5: 1.643398205 | AL5: 1.114707179 | AM5: 1.021941026 | AN5: 1.697284103 | AO5: 0.6000164103 | AP5: 18.44426923 | AQ5: 2.033222051 | AR5: 29.33143744 | AS5: 2.29951359 | AT5: 9.457435897 | AU5: 9.377723077 | AV5: 18.86482051 | AW5: 17.87120513 | AX5: 6.663771795 | AY5: 6.196661538 | AZ5: 91.59053846 | BA5: 88.35661538 | BB5: 90.12205128 | BC5: 74.26820513 | BD5: 44.98889744 | BE5: 28.9145641 | BF5: 29.3546641 | BG5: 7.825661538 | BH5: 9.168428205 | BI5: 15.59241538 | BJ5: 10.72597179 | BK5: 17.69181026 | BL5: 12.43130769 | BM5: 80.59102564 | BN5: 81.16138462 | BO5: 87.88017949 | BP5: 67.85833333 | BQ5: 43.13535897 | BR5: 33.71120513 | BS5: 34.07064103
B6: 8.439825 | C6: 6.531210417 | D6: 5.452995833 | E6: 8.95048125 | F6: 6.8814625 | G6: 5.4312625 | H6: 4.743439583 | I6: 3.784785417 | J6: 6.082166667 | K6: 2.685191667 | L6: 10.78853333 | M6: 8.040314583 | N6: 6.26589375 | O6: 10.7571125 | P6: 8.064689583 | Q6: 6.2198875 | R6: 5.130645833 | S6: 4.27249375 | T6: 5.992879167 | U6: 2.797316667 | V6: 1.630636667 | W6: 1.009689792 | X6: 1.081968333 | Y6: 1.110411729 | Z6: 1.163938333 | AA6: 0.9472908333 | AB6: 0.930203125 | AC6: 0.8677975 | AD6: 1.5865925 | AE6: 0.5665933333 | AF6: 1.945641042 | AG6: 1.03148125 | AH6: 1.096624167 | AI6: 1.345894583 | AJ6: 1.345817708 | AK6: 1.045012083 | AL6: 1.25074375 | AM6: 0.7892147917 | AN6: 1.521602083 | AO6: 0.5950597917 | AP6: 12.45367208 | AQ6: 2.266575417 | AR6: 16.89457083 | AS6: 2.137369375 | AT6: 9.502675 | AU6: 9.58918125 | AV6: 19.84645833 | AW6: 18.06670833 | AX6: 6.856402083 | AY6: 6.66545 | AZ6: 73.43795833 | BA6: 83.53754167 | BB6: 88.02241667 | BC6: 76.315625 | BD6: 49.2483125 | BE6: 27.8194375 | BF6: 24.34237917 | BG6: 6.726247917 | BH6: 7.466910417 | BI6: 10.87635833 | BJ6: 8.742820833 | BK6: 13.06938542 | BL6: 10.25879792 | BM6: 76.8159375 | BN6: 77.5111875 | BO6: 84.60945833 | BP6: 66.37033333 | BQ6: 43.5386875 | BR6: 33.56597917 | BS6: 33.53445833
B7: 9.775671698 | C7: 7.127916981 | D7: 5.201369811 | E7: 4.415792453 | F7: 4.356854717 | G7: 4.37224717 | H7: 4.014641509 | I7: 3.760403774 | J7: 6.2956 | K7: 2.962713208 | L7: 10.57380189 | M7: 7.844632075 | N7: 5.756898113 | O7: 5.766633962 | P7: 5.02919434 | Q7: 4.785169811 | R7: 4.777228302 | S7: 3.896088679 | T7: 6.827192453 | U7: 3.206101887 | V7: 1.884289057 | W7: 1.422939245 | X7: 0.8898713208 | Y7: 0.8453062264 | Z7: 0.668752566 | AA7: 0.8924986792 | AB7: 0.9125516981 | AC7: 0.8413266038 | AD7: 1.677786604 | AE7: 0.6739092453 | AF7: 2.132360943 | AG7: 1.413108302 | AH7: 1.028815283 | AI7: 1.031513774 | AJ7: 0.7798292453 | AK7: 0.9444128302 | AL7: 1.065901887 | AM7: 0.9587532075 | AN7: 1.714391509 | AO7: 0.6291384906 | AP7: 222.2692679 | AQ7: 1.055447925 | AR7: 43.95066189 | AS7: 1.203324151 | AT7: 9.927601887 | AU7: 9.526596226 | AV7: 22.09796226 | AW7: 21.32132075 | AX7: 3.516067925 | AY7: 3.676739623 | AZ7: 90.1824717 | BA7: 87.42596226 | BB7: 79.74192453 | BC7: 65.86841509 | BD7: 38.51871321 | BE7: 35.88931321 | BF7: 28.76629792 | BG7: 5.992030189 | BH7: 6.693583019 | BI7: 5.931867925 | BJ7: 8.555783019 | BK7: 7.452349057 | BL7: 9.49199434 | BM7: 74.55881132 | BN7: 76.69407547 | BO7: 81.36086792 | BP7: 65.83307547 | BQ7: 44.07160377 | BR7: 33.15171698 | BS7: 32.50367925
B8: 8.744651282 | C8: 6.400941026 | D8: 5.469766667 | E8: 11.09692051 | F8: 7.690751282 | G8: 6.545058974 | H8: 8.989223077 | I8: 9.663464103 | J8: 15.81879231 | K8: 7.949023077 | L8: 15.71457949 | M8: 10.47635641 | N8: 8.15484359 | O8: 15.56021026 | P8: 9.218915385 | Q8: 6.434202564 | R8: 5.672484615 | S8: 4.230848718 | T8: 6.126982051 | U8: 3.015364103 | V8: 1.299583077 | W8: 0.9801923077 | X8: 0.8675805128 | Y8: 1.685655641 | Z8: 1.211593846 | AA8: 1.075978205 | AB8: 1.826294615 | AC8: 2.290230256 | AD8: 4.268271795 | AE8: 1.778012564 | AF8: 2.732323077 | AG8: 1.833524103 | AH8: 1.265791026 | AI8: 2.216894359 | AJ8: 1.370653077 | AK8: 1.222679231 | AL8: 1.139890769 | AM8: 0.837745641 | AN8: 1.681205128 | AO8: 0.5645712821 | AP8: 12.15317 | AQ8: 2.367290769 | AR8: 21.04351538 | AS8: 2.313116923 | AT8: 9.793253846 | AU8: 9.197071795 | AV8: 23.61676923 | AW8: 17.9125641 | AX8: 8.617110256 | AY8: 5.276694872 | AZ8: 33.24929231 | BA8: 23.10105128 | BB8: 37.04833333 | BC8: 17.96973846 | BD8: 11.84292154 | BE8: 12.28063846 | BF8: 6.216800256 | BG8: 12.57657436 | BH8: 8.031941026 | BI8: 13.86584359 | BJ8: 8.639720513 | BK8: 18.42966923 | BL8: 13.60452821 | BM8: 49.74292308 | BN8: 41.9164359 | BO8: 37.233 | BP8: 31.55412821 | BQ8: 26.79753846 | BR8: 24.08930769 | BS8: 23.03984615
B9: 8.717096 | C9: 6.186842 | D9: 5.058898 | E9: 6.09043 | F9: 5.39084 | G9: 6.810396 | H9: 9.616332 | I9: 11.742728 | J9: 21.64122 | K9: 11.09773 | L9: 13.47908 | M9: 10.446232 | N9: 7.31179 | O9: 9.622512 | P9: 6.524336 | Q9: 5.843178 | R9: 4.568854 | S9: 3.962452 | T9: 5.947272 | U9: 2.781266 | V9: 1.6511 | W9: 1.0578716 | X9: 0.970488 | Y9: 1.0343372 | Z9: 0.8951216 | AA9: 1.2484908 | AB9: 2.1402168 | AC9: 2.748934 | AD9: 5.739852 | AE9: 2.006145 | AF9: 2.6665252 | AG9: 1.7351628 | AH9: 1.4503996 | AI9: 1.466546 | AJ9: 1.0637598 | AK9: 1.1680578 | AL9: 1.0342234 | AM9: 0.7840268 | AN9: 1.7008098 | AO9: 0.7319038 | AP9: 2.3792716 | AQ9: 1.8974818 | AR9: 29.917896 | AS9: 1.5554188 | AT9: 9.953486 | AU9: 9.132146 | AV9: 26.44962 | AW9: 19.20936 | AX9: 23.526068 | AY9: 4.604618 | AZ9: 63.28334 | BA9: 45.83857 | BB9: 27.920996 | BC9: 22.601084 | BD9: 13.9819194 | BE9: 11.74688 | BF9: 10.850888 | BG9: 13.875154 | BH9: 7.239656 | BI9: 8.187052 | BJ9: 7.57994 | BK9: 11.856354 | BL9: 12.331676 | BM9: 45.90474 | BN9: 39.28054 | BO9: 36.47326 | BP9: 31.24624 | BQ9: 25.74174 | BR9: 22.96152 | BS9: 22.3413
B10: 9.75495 | C10: 6.144231579 | D10: 5.1901 | E10: 10.04395263 | F10: 8.151886842 | G10: 7.561007895 | H10: 12.53527105 | I10: 15.35172895 | J10: 22.56034211 | K10: 11.44642368 | L10: 14.29146842 | M10: 10.10971053 | N10: 7.721476316 | O10: 15.78397368 | P10: 9.067339474 | Q10: 6.759555263 | R10: 5.687981579 | S10: 4.191723684 | T10: 6.142939474 | U10: 2.762965789 | V10: 1.728321316 | W10: 1.258479737 | X10: 1.041524474 | Y10: 1.568155526 | Z10: 1.227449474 | AA10: 1.409443158 | AB10: 2.465096316 | AC10: 2.951978947 | AD10: 5.856705263 | AE10: 2.552579474 | AF10: 2.409847368 | AG10: 1.987550526 | AH10: 1.125554474 | AI10: 1.968898421 | AJ10: 1.177993684 | AK10: 1.183173158 | AL10: 1.025700526 | AM10: 0.9595718421 | AN10: 1.600186842 | AO10: 0.5302844737 | AP10: 1.262285 | AQ10: 2.56865 | AR10: 41.55053421 | AS10: 2.125020526 | AT10: 9.94005 | AU10: 9.177218421 | AV10: 24.28447368 | AW10: 17.73618421 | AX10: 18.59857895 | AY10: 6.341494737 | AZ10: 18.94591737 | BA10: 17.00442342 | BB10: 33.74473421 | BC10: 11.78508947 | BD10: 12.37697632 | BE10: 8.787313158 | BF10: 8.755779474 | BG10: 18.34244737 | BH10: 8.215047368 | BI10: 12.85915 | BJ10: 8.101428947 | BK10: 18.09289737 | BL10: 13.28886842 | BM10: 42.02984211 | BN10: 35.6945 | BO10: 36.06442105 | BP10: 29.48421053 | BQ10: 24.53063158 | BR10: 22.01152632 | BS10: 20.84507895
B11: 9.918617544 | C11: 6.91925614 | D11: 5.977196491 | E11: 12.71467193 | F11: 8.924080702 | G11: 6.692568421 | H11: 5.164494737 | I11: 4.022710526 | J11: 5.16165614 | K11: 2.475640351 | L11: 10.22125965 | M11: 7.174563158 | N11: 6.478163158 | O11: 13.77698947 | P11: 9.413814035 | Q11: 7.504212281 | R11: 5.85964386 | S11: 4.144703509 | T11: 4.967321053 | U11: 2.324735088 | V11: 1.451990351 | W11: 1.117904211 | X11: 1.259964035 | Y11: 1.926371404 | Z11: 1.591627193 | AA11: 1.367743684 | AB11: 1.00864 | AC11: 0.8231496491 | AD11: 1.302343333 | AE11: 0.4943294737 | AF11: 1.696975614 | AG11: 1.119615263 | AH11: 1.330738596 | AI11: 2.207964912 | AJ11: 1.492650351 | AK11: 1.508505088 | AL11: 1.220306491 | AM11: 0.9258101754 | AN11: 1.360660702 | AO11: 0.4595696491 | AP11: 17.40463614 | AQ11: 2.523064912 | AR11: 24.36444474 | AS11: 2.595235439 | AT11: 9.814631579 | AU11: 9.752905263 | AV11: 17.04347368 | AW11: 16.71149123 | AX11: 7.783968421 | AY11: 8.140157895 | AZ11: 88.62952632 | BA11: 83.52708772 | BB11: 88.51436842 | BC11: 78.05175439 | BD11: 65.29796491 | BE11: 42.80142105 | BF11: 36.16637193 | BG11: 7.953335088 | BH11: 8.959722807 | BI11: 15.53500351 | BJ11: 9.172517544 | BK11: 16.6305386 | BL11: 9.793129825 | BM11: 88.89712281 | BN11: 76.90038596 | BO11: 81.21712281 | BP11: 70.89589474 | BQ11: 57.61689474 | BR11: 40.82663158 | BS11: 39.49868421
B12: 8.46479661 | C12: 6.230471186 | D12: 5.683118644 | E12: 10.4625678 | F12: 8.221023729 | G12: 6.146991525 | H12: 5.082715254 | I12: 3.985583051 | J12: 5.404398305 | K12: 2.492220339 | L12: 8.577640678 | M12: 7.105915254 | N12: 6.109305085 | O12: 11.69196441 | P12: 9.342955932 | Q12: 7.184977966 | R12: 5.76999322 | S12: 4.131981356 | T12: 5.33510339 | U12: 2.417008475 | V12: 1.320272085 | W12: 1.079878475 | X12: 0.8950700847 | Y12: 1.486175254 | Z12: 1.288492203 | AA12: 1.305598644 | AB12: 1.018982542 | AC12: 0.7969783051 | AD12: 1.436383729 | AE12: 0.5338071186 | AF12: 1.457149153 | AG12: 1.03683878 | AH12: 1.000512712 | AI12: 1.526740847 | AJ12: 1.653557797 | AK12: 1.395031186 | AL12: 1.229895085 | AM12: 0.9357657627 | AN12: 1.395951356 | AO12: 0.5098310169 | AP12: 24.19416525 | AQ12: 2.563055763 | AR12: 16.07685966 | AS12: 2.71693678 | AT12: 9.628259322 | AU12: 9.6883 | AV12: 17.57584746 | AW12: 17.1859322 | AX12: 7.711674576 | AY12: 8.334425424 | AZ12: 86.06001695 | BA12: 83.19142373 | BB12: 88.10838983 | BC12: 79.93259322 | BD12: 63.53133898 | BE12: 45.21257627 | BF12: 36.86580678 | BG12: 7.310572881 | BH12: 8.319927119 | BI12: 13.4183661 | BJ12: 8.396298305 | BK12: 14.92498305 | BL12: 9.232266102 | BM12: 82.49079661 | BN12: 75.24028814 | BO12: 82.78883051 | BP12: 71.31061017 | BQ12: 56.59371186 | BR12: 41.83777966 | BS12: 37.99967797
B13: 7.759798333 | C13: 5.796196667 | D13: 5.072401667 | E13: 5.797888333 | F13: 5.942161667 | G13: 5.465743333 | H13: 4.665278333 | I13: 3.16155 | J13: 5.62036 | K13: 2.645305 | L13: 7.76198 | M13: 6.27163 | N13: 5.477461667 | O13: 6.733821667 | P13: 6.814441667 | Q13: 6.545685 | R13: 5.439085 | S13: 3.350335 | T13: 5.248966667 | U13: 2.323936667 | V13: 1.291329667 | W13: 1.090528333 | X13: 0.8692065 | Y13: 1.01510735 | Z13: 1.039757 | AA13: 1.247679833 | AB13: 1.139956 | AC13: 0.6327001667 | AD13: 1.507035 | AE13: 0.5442716667 | AF13: 1.276361833 | AG13: 0.9663825 | AH13: 0.882862 | AI13: 1.262039333 | AJ13: 1.081738833 | AK13: 1.3836745 | AL13: 1.280755667 | AM13: 0.7904933333 | AN13: 1.376938833 | AO13: 0.4326106 | AP13: 10.14008333 | AQ13: 1.6662165 | AR13: 9.877245333 | AS13: 1.688216333 | AT13: 10.13348 | AU13: 10.18393167 | AV13: 17.88511667 | AW13: 16.57538333 | AX13: 5.365218333 | AY13: 6.469455 | AZ13: 83.0799 | BA13: 77.3044 | BB13: 79.86371667 | BC13: 78.06035 | BD13: 59.59193333 | BE13: 41.5503 | BF13: 41.302895 | BG13: 6.726521667 | BH13: 7.714328333 | BI13: 8.061146667 | BJ13: 7.71467 | BK13: 9.305943333 | BL13: 8.183273333 | BM13: 80.44603333 | BN13: 73.1441 | BO13: 80.02191667 | BP13: 70.49055 | BQ13: 56.12788333 | BR13: 41.8439 | BS13: 39.21536667
B14: 10.07982545 | C14: 7.621385455 | D14: 6.787963636 | E14: 14.49190727 | F14: 11.32347636 | G14: 6.385450909 | H14: 5.77238 | I14: 4.482058182 | J14: 5.428832727 | K14: 2.363883636 | L14: 9.265756364 | M14: 7.179307273 | N14: 7.087265455 | O14: 18.69443818 | P14: 11.91541455 | Q14: 9.194249091 | R14: 8.063050909 | S14: 4.812487273 | T14: 5.991976364 | U14: 2.614609091 | V14: 1.927607636 | W14: 1.438784909 | X14: 1.160472909 | Y14: 2.454174364 | Z14: 1.620407273 | AA14: 1.264062182 | AB14: 1.235699455 | AC14: 0.85487 | AD14: 1.416046 | AE14: 0.5429329091 | AF14: 1.811645636 | AG14: 1.45745 | AH14: 1.316545455 | AI14: 2.75248 | AJ14: 1.858514182 | AK14: 1.912872909 | AL14: 1.802953273 | AM14: 0.9965103636 | AN14: 1.529997818 | AO14: 0.5769992727 | AP14: 15.00757073 | AQ14: 3.148697091 | AR14: 7.785942 | AS14: 3.703118182 | AT14: 9.612447273 | AU14: 9.59968 | AV14: 17.44887273 | AW14: 16.63798182 | AX14: 8.301316364 | AY14: 9.523049091 | AZ14: 63.71816364 | BA14: 64.74829091 | BB14: 48.97239273 | BC14: 54.61341818 | BD14: 61.95016364 | BE14: 72.6266 | BF14: 74.29347273 | BG14: 8.232461818 | BH14: 11.81235818 | BI14: 17.93126 | BJ14: 9.659365455 | BK14: 21.52267273 | BL14: 9.623721818 | BM14: 61.75205455 | BN14: 56.11809091 | BO14: 35.02087273 | BP14: 49.60589091 | BQ14: 53.48270909 | BR14: 61.21716364 | BS14: 63.49554545
B15: 9.372996429 | C15: 7.019982143 | D15: 6.783683929 | E15: 9.369246429 | F15: 5.920628571 | G15: 6.028339286 | H15: 5.097275 | I15: 3.8554375 | J15: 5.176603571 | K15: 2.212171429 | L15: 7.777642857 | M15: 5.7303 | N15: 5.65165 | O15: 10.69037679 | P15: 6.801830357 | Q15: 7.31875 | R15: 6.127066071 | S15: 4.000355357 | T15: 5.684314286 | U15: 2.448801786 | V15: 1.78858375 | W15: 1.292427857 | X15: 1.249516786 | Y15: 1.296186964 | Z15: 0.89216625 | AA15: 1.173254821 | AB15: 1.149636071 | AC15: 0.7966432143 | AD15: 1.3643075 | AE15: 0.4852669643 | AF15: 1.305385357 | AG15: 1.066435179 | AH15: 0.95449 | AI15: 1.47473625 | AJ15: 0.9295461071 | AK15: 1.46224875 | AL15: 1.478689643 | AM15: 0.7871355357 | AN15: 1.52468125 | AO15: 0.5172732143 | AP15: 17.97627857 | AQ15: 1.720085714 | AR15: 22.83599839 | AS15: 2.449411071 | AT15: 9.364726786 | AU15: 9.452733929 | AV15: 17.54601786 | AW15: 16.83501786 | AX15: 5.862926786 | AY15: 8.115757143 | AZ15: 59.35107143 | BA15: 63.02805357 | BB15: 78.23094643 | BC15: 66.790375 | BD15: 64.80760714 | BE15: 68.41117857 | BF15: 73.83930357 | BG15: 7.371271429 | BH15: 8.849108929 | BI15: 11.16455893 | BJ15: 9.807767857 | BK15: 12.59266607 | BL15: 8.191564286 | BM15: 61.96451786 | BN15: 60.64164286 | BO15: 48.77832143 | BP15: 54.21457143 | BQ15: 55.14385714 | BR15: 62.28326786 | BS15: 64.03814286
B16: 9.235491667 | C16: 6.727335 | D16: 5.481786667 | E16: 7.842631667 | F16: 5.42257 | G16: 5.916538333 | H16: 4.574363333 | I16: 3.788355 | J16: 5.421025 | K16: 2.215741667 | L16: 7.094498333 | M16: 5.453901667 | N16: 5.120841667 | O16: 8.541208333 | P16: 5.85201 | Q16: 6.625315 | R16: 5.39446 | S16: 4.05371 | T16: 5.803506667 | U16: 2.423958333 | V16: 1.522886833 | W16: 1.517679833 | X16: 0.8843719333 | Y16: 1.142635 | Z16: 1.006525167 | AA16: 1.15949 | AB16: 0.9063521667 | AC16: 0.7919925 | AD16: 1.349565167 | AE16: 0.4498951667 | AF16: 1.161525167 | AG16: 0.9655543333 | AH16: 0.7685408167 | AI16: 1.420542833 | AJ16: 1.0439375 | AK16: 1.252088333 | AL16: 1.197143 | AM16: 0.8875765 | AN16: 1.421883667 | AO16: 0.520424 | AP16: 15.67043667 | AQ16: 1.593013667 | AR16: 9.0175075 | AS16: 2.334691333 | AT16: 9.380665 | AU16: 9.446181667 | AV16: 18.38315 | AW16: 17.90728333 | AX16: 5.943268333 | AY16: 7.958563333 | AZ16: 52.05905 | BA16: 57.63858333 | BB16: 78.07578333 | BC16: 69.6862 | BD16: 65.38393333 | BE16: 69.97298333 | BF16: 71.4308 | BG16: 7.013503333 | BH16: 7.939165 | BI16: 9.453553333 | BJ16: 8.801066667 | BK16: 10.51067333 | BL16: 7.398495 | BM16: 59.57761667 | BN16: 59.26755 | BO16: 56.7731 | BP16: 58.06928333 | BQ16: 56.78488333 | BR16: 61.81413333 | BS16: 64.80081667
B17: 9.457848148 | C17: 7.153157407 | D17: 6.916868519 | E17: 15.4358537 | F17: 11.22296296 | G17: 7.61292037 | H17: 6.726877778 | I17: 4.628127778 | J17: 5.736688889 | K17: 2.455933333 | L17: 9.288148148 | M17: 6.836055556 | N17: 6.329890741 | O17: 26.48980926 | P17: 18.52192778 | Q17: 8.0318 | R17: 7.351390741 | S17: 6.203696296 | T17: 7.9871 | U17: 3.909038889 | V17: 1.726850556 | W17: 1.539067407 | X17: 1.243507222 | Y17: 2.531310556 | Z17: 1.472486667 | AA17: 1.493820185 | AB17: 1.551811852 | AC17: 0.8726918519 | AD17: 1.50150537 | AE17: 0.533542963 | AF17: 1.791870926 | AG17: 1.22255463 | AH17: 1.039479815 | AI17: 2.752658889 | AJ17: 2.364101667 | AK17: 1.717077593 | AL17: 1.545697407 | AM17: 1.14175037 | AN17: 2.011962963 | AO17: 0.844155 | AP17: 7.136664815 | AQ17: 3.15617963 | AR17: 5.09148463 | AS17: 5.379842593 | AT17: 9.470159259 | AU17: 10.04893148 | AV17: 17.0192037 | AW17: 18.8695 | AX17: 9.060903704 | AY17: 10.05314074 | AZ17: 67.90557407 | BA17: 50.672 | BB17: 22.72429815 | BC17: 24.89341852 | BD17: 45.75845741 | BE17: 51.97366667 | BF17: 50.06159259 | BG17: 9.770338889 | BH17: 10.90584074 | BI17: 18.67008148 | BJ17: 9.523542593 | BK17: 30.92525926 | BL17: 8.900244444 | BM17: 57.89251852 | BN17: 48.28240741 | BO17: 25.47688889 | BP17: 33.12981481 | BQ17: 45.56972222 | BR17: 43.88585185 | BS17: 48.51544444
B18: 7.999628571 | C18: 6.045751786 | D18: 6.045533929 | E18: 10.1716625 | F18: 6.747003571 | G18: 6.542342857 | H18: 5.704439286 | I18: 4.012130357 | J18: 5.422525 | K18: 2.248964286 | L18: 7.209539286 | M18: 5.933175 | N18: 5.583419643 | O18: 10.94306071 | P18: 7.720317857 | Q18: 7.455180357 | R18: 5.678805357 | S18: 4.724567857 | T18: 8.218203571 | U18: 3.747239286 | V18: 1.242753393 | W18: 1.064202143 | X18: 1.061377018 | Y18: 1.372712857 | Z18: 0.8737808036 | AA18: 1.350314286 | AB18: 1.36688 | AC18: 0.8690208929 | AD18: 1.4391775 | AE18: 0.49465 | AF18: 1.180939821 | AG18: 0.9503017857 | AH18: 0.9349346429 | AI18: 1.595107143 | AJ18: 1.097605536 | AK18: 1.212133571 | AL18: 1.23444875 | AM18: 1.005182143 | AN18: 2.064260714 | AO18: 0.7574401786 | AP18: 40.26906071 | AQ18: 2.196677857 | AR18: 16.26187946 | AS18: 2.417301964 | AT18: 9.375264286 | AU18: 9.551660714 | AV18: 17.27821429 | AW18: 20.93158929 | AX18: 7.275639286 | AY18: 8.944767857 | AZ18: 60.70991071 | BA18: 56.02428571 | BB18: 62.7714125 | BC18: 43.675375 | BD18: 48.24946429 | BE18: 50.49315357 | BF18: 45.44223214 | BG18: 8.203103571 | BH18: 8.657192857 | BI18: 12.19900714 | BJ18: 8.602567857 | BK18: 12.93539107 | BL18: 8.198326786 | BM18: 57.58428571 | BN18: 50.56916071 | BO18: 32.776875 | BP18: 33.64132143 | BQ18: 44.51771429 | BR18: 45.87516071 | BS18: 46.43183929
B19: 7.66407 | C19: 5.697375 | D19: 5.247985 | E19: 8.445358333 | F19: 5.567096667 | G19: 6.283621667 | H19: 5.066658333 | I19: 3.838831667 | J19: 5.478748333 | K19: 2.198301667 | L19: 6.729031667 | M19: 5.594696667 | N19: 4.760988333 | O19: 8.317158333 | P19: 6.121325 | Q19: 7.165355 | R19: 5.204541667 | S19: 4.916835 | T19: 8.573643333 | U19: 3.980965 | V19: 1.255580233 | W19: 1.0030465 | X19: 0.8481395167 | Y19: 1.331557 | Z19: 0.929628 | AA19: 1.1678655 | AB19: 0.9822355 | AC19: 0.8284451667 | AD19: 1.384781333 | AE19: 0.46564315 | AF19: 0.9756838333 | AG19: 0.8946865667 | AH19: 0.6618078333 | AI19: 1.587833667 | AJ19: 1.101960667 | AK19: 1.394069333 | AL19: 1.168930167 | AM19: 0.9838171667 | AN19: 2.078866667 | AO19: 0.7995703333 | AP19: 8.901508333 | AQ19: 2.1718385 | AR19: 20.610273 | AS19: 2.160068333 | AT19: 9.346396667 | AU19: 9.903636667 | AV19: 17.89395 | AW19: 22.45245 | AX19: 7.13385 | AY19: 9.202291667 | AZ19: 48.4671 | BA19: 51.66548333 | BB19: 66.12853333 | BC19: 43.30559833 | BD19: 46.73951667 | BE19: 49.74663333 | BF19: 43.38586667 | BG19: 7.558853333 | BH19: 8.220483333 | BI19: 10.240575 | BJ19: 7.732365 | BK19: 10.52060167 | BL19: 7.182206667 | BM19: 53.61301667 | BN19: 50.69511667 | BO19: 42.66631667 | BP19: 37.76481667 | BQ19: 44.89998333 | BR19: 46.34541667 | BS19: 45.91321667
B20: 6.748823729 | C20: 4.714242373 | D20: 4.174362712 | E20: 7.565540678 | F20: 7.005577966 | G20: 5.273098305 | H20: 5.087989831 | I20: 5.971340678 | J20: 8.870716949 | K20: 4.886910169 | L20: 10.2825339 | M20: 7.325333898 | N20: 6.569988136 | O20: 13.01520847 | P20: 8.319333898 | Q20: 7.84449661 | R20: 6.512691525 | S20: 5.030888136 | T20: 9.289983051 | U20: 4.440855932 | V20: 1.195083898 | W20: 0.8345716949 | X20: 0.6439498475 | Y20: 1.224054746 | Z20: 1.103321017 | AA20: 1.007147966 | AB20: 1.208178983 | AC20: 1.138371864 | AD20: 2.301974576 | AE20: 1.000672373 | AF20: 1.667402712 | AG20: 1.375438983 | AH20: 1.272977627 | AI20: 1.956775763 | AJ20: 1.329018814 | AK20: 1.618910508 | AL20: 1.451204576 | AM20: 0.9916620339 | AN20: 2.371266102 | AO20: 0.841659661 | AP20: 8.434734576 | AQ20: 2.883605932 | AR20: 11.89533729 | AS20: 2.234284407 | AT20: 10.02778475 | AU20: 9.535450847 | AV20: 23.68110169 | AW20: 19.76713559 | AX20: 7.953769492 | AY20: 7.127749153 | AZ20: 33.3585839 | BA20: 19.26693085 | BB20: 24.88736441 | BC20: 11.01615966 | BD20: 10.17805085 | BE20: 12.65975085 | BF20: 9.016788136 | BG20: 7.821230508 | BH20: 9.696572881 | BI20: 10.51581695 | BJ20: 6.197866102 | BK20: 15.09336949 | BL20: 10.21083051 | BM20: 41.9 | BN20: 28.80516949 | BO20: 31.39477966 | BP20: 24.97925424 | BQ20: 21.31110169 | BR20: 21.35154237 | BS20: 18.94305085
B21: 5.771535 | C21: 4.496968333 | D21: 4.01077 | E21: 6.262863333 | F21: 6.4625 | G21: 4.562065 | H21: 5.150091667 | I21: 5.68584 | J21: 9.810896667 | K21: 4.468263333 | L21: 8.257163333 | M21: 6.876021667 | N21: 5.89306 | O21: 11.811735 | P21: 9.182798333 | Q21: 6.914398333 | R21: 6.456118333 | S21: 5.046291667 | T21: 8.676456667 | U21: 4.07767 | V21: 0.9002163333 | W21: 0.7724818333 | X21: 0.6752511 | Y21: 0.866581 | Z21: 0.9898647833 | AA21: 0.9507456667 | AB21: 1.065241167 | AC21: 1.225099167 | AD21: 2.526087833 | AE21: 0.9559585 | AF21: 1.308258833 | AG21: 0.9160045 | AH21: 0.971196 | AI21: 1.83255 | AJ21: 1.480377833 | AK21: 1.180311833 | AL21: 1.195852 | AM21: 1.095481 | AN21: 2.219098833 | AO21: 0.8887083333 | AP21: 4.94352 | AQ21: 2.265381167 | AR21: 26.753632 | AS21: 2.745841667 | AT21: 9.837388333 | AU21: 9.664763333 | AV21: 23.99235 | AW21: 20.09093333 | AX21: 10.08283167 | AY21: 8.678501667 | AZ21: 26.45643 | BA21: 21.60328167 | BB21: 23.443615 | BC21: 12.38949867 | BD21: 13.28651167 | BE21: 12.783865 | BF21: 9.566120833 | BG21: 7.44829 | BH21: 8.908953333 | BI21: 8.741006667 | BJ21: 6.015706667 | BK21: 14.83860167 | BL21: 8.80334 | BM21: 34.548 | BN21: 28.85396667 | BO21: 31.64816667 | BP21: 25.10826667 | BQ21: 21.33646667 | BR21: 20.26386667 | BS21: 17.57925
B22: 5.82559 | C22: 4.29329 | D22: 3.50563 | E22: 3.563293333 | F22: 3.865186667 | G22: 4.358915 | H22: 5.475085 | I22: 5.031836667 | J22: 10.30236667 | K22: 4.585196667 | L22: 7.99257 | M22: 6.327988333 | N22: 5.841221667 | O22: 8.931738333 | P22: 7.57887 | Q22: 7.040121667 | R22: 7.040473333 | S22: 5.466835 | T22: 10.86170167 | U22: 5.254488333 | V22: 0.9261588333 | W22: 0.6945743333 | X22: 0.618063 | Y22: 0.5767023333 | Z22: 0.7431558333 | AA22: 0.8349683333 | AB22: 1.045219667 | AC22: 1.035206167 | AD22: 2.612401667 | AE22: 0.8832203333 | AF22: 1.344869167 | AG22: 0.9771998333 | AH22: 0.993431 | AI22: 1.910754 | AJ22: 1.249212833 | AK22: 1.413659667 | AL22: 1.5115015 | AM22: 1.2522985 | AN22: 2.75176 | AO22: 1.099333667 | AP22: 4.695837 | AQ22: 1.417859167 | AR22: 5.808690833 | AS22: 2.173575 | AT22: 10.57316333 | AU22: 10.06132167 | AV22: 25.57946667 | AW22: 22.37836667 | AX22: 12.49925333 | AY22: 8.860675 | AZ22: 40.122195 | BA22: 25.65079833 | BB22: 17.24136993 | BC22: 11.11812833 | BD22: 13.688045 | BE22: 13.55532 | BF22: 9.549728333 | BG22: 7.380476667 | BH22: 9.88767 | BI22: 5.168525 | BJ22: 5.494003333 | BK22: 11.58037333 | BL22: 8.45556 | BM22: 35.63905 | BN22: 29.71848333 | BO22: 29.39146667 | BP22: 23.99998333 | BQ22: 21.4004 | BR22: 20.88178333 | BS22: 18.38018333
B23: 6.767154237 | C23: 5.47700339 | D23: 5.342405085 | E23: 16.7898339 | F23: 8.528428814 | G23: 5.290622034 | H23: 4.941722034 | I23: 3.990111864 | J23: 4.074942373 | K23: 1.982462712 | L23: 9.5569 | M23: 7.365520339 | N23: 6.959067797 | O23: 17.73649661 | P23: 10.04650847 | Q23: 7.292869492 | R23: 6.249728814 | S23: 5.331166102 | T23: 9.783740678 | U23: 5.222133898 | V23: 1.083410068 | W23: 0.9367873051 | X23: 0.9620476271 | Y23: 2.083982373 | Z23: 1.150844746 | AA23: 1.008872034 | AB23: 1.15808678 | AC23: 0.7379466102 | AD23: 1.093418983 | AE23: 0.4012105593 | AF23: 1.656878644 | AG23: 1.142279831 | AH23: 1.245436271 | AI23: 2.921064746 | AJ23: 1.306931525 | AK23: 1.384647458 | AL23: 1.537627288 | AM23: 1.174310847 | AN23: 2.585267797 | AO23: 1.145344915 | AP23: 14.01684424 | AQ23: 3.995072881 | AR23: 202.1747507 | AS23: 3.21055661 | AT23: 9.470933898 | AU23: 9.473081356 | AV23: 17.32232203 | AW23: 22.73764407 | AX23: 9.146025424 | AY23: 8.968711864 | AZ23: 50.17672881 | BA23: 48.73076271 | BB23: 50.37935593 | BC23: 29.46448305 | BD23: 26.85115085 | BE23: 18.94807627 | BF23: 17.14311017 | BG23: 7.297483051 | BH23: 9.465623729 | BI23: 19.05063898 | BJ23: 7.768598305 | BK23: 20.65465593 | BL23: 10.15858814 | BM23: 43.869 | BN23: 41.58277966 | BO23: 40.34520339 | BP23: 28.38108475 | BQ23: 30.97916949 | BR23: 27.85838983 | BS23: 26.80138983
B24: 5.555538333 | C24: 4.6179 | D24: 4.458323333 | E24: 7.260288333 | F24: 5.568196667 | G24: 4.894563333 | H24: 4.210936667 | I24: 3.232526667 | J24: 4.290865 | K24: 1.968003333 | L24: 8.256038333 | M24: 5.64036 | N24: 5.709645 | O24: 10.05532 | P24: 7.185866667 | Q24: 6.744378333 | R24: 5.588226667 | S24: 5.340235 | T24: 10.15339 | U24: 5.679421667 | V24: 1.032397 | W24: 0.8499908333 | X24: 0.8309685833 | Y24: 0.9786986667 | Z24: 0.8703221667 | AA24: 0.9600753333 | AB24: 0.873956 | AC24: 0.647341 | AD24: 1.184912 | AE24: 0.4198413333 | AF24: 1.253049833 | AG24: 0.9957335 | AH24: 0.9051503333 | AI24: 1.359546917 | AJ24: 1.217351833 | AK24: 1.174407333 | AL24: 1.212324667 | AM24: 0.9648843333 | AN24: 2.508465 | AO24: 1.087617167 | AP24: 8.001677 | AQ24: 2.111371333 | AR24: 6.888797333 | AS24: 2.446077 | AT24: 9.617196667 | AU24: 9.390995 | AV24: 17.05426667 | AW24: 26.70863333 | AX24: 7.494325 | AY24: 8.272376667 | AZ24: 47.35068667 | BA24: 46.79798333 | BB24: 52.53300333 | BC24: 28.52185333 | BD24: 28.69167833 | BE24: 19.66597833 | BF24: 17.49503217 | BG24: 6.167145 | BH24: 8.62427 | BI24: 8.868933333 | BJ24: 6.486843333 | BK24: 12.29560333 | BL24: 7.944441667 | BM24: 47.84243333 | BN24: 42.62238333 | BO24: 43.86698333 | BP24: 30.12395 | BQ24: 31.5052 | BR24: 27.27773333 | BS24: 26.93095
B25: 6.175977586 | C25: 6.192463793 | D25: 4.790927586 | E25: 12.18306724 | F25: 7.297222414 | G25: 5.340301724 | H25: 4.714236207 | I25: 3.755674138 | J25: 4.210503448 | K25: 1.871704138 | L25: 9.127532759 | M25: 8.549436207 | N25: 6.091227586 | O25: 15.17502586 | P25: 9.071163793 | Q25: 6.974798276 | R25: 6.053805172 | S25: 5.210087931 | T25: 9.615687931 | U25: 5.179887931 | V25: 1.148570172 | W25: 0.9599434483 | X25: 0.8165492931 | Y25: 1.92916931 | Z25: 0.9740318966 | AA25: 1.093496207 | AB25: 1.016931552 | AC25: 0.7234703448 | AD25: 1.093862931 | AE25: 0.3985586207 | AF25: 1.678007414 | AG25: 1.372458448 | AH25: 1.194031379 | AI25: 2.226463966 | AJ25: 1.327709138 | AK25: 1.392839483 | AL25: 1.164667759 | AM25: 1.019914483 | AN25: 2.478612069 | AO25: 1.121633966 | AP25: 16.78383121 | AQ25: 2.61272931 | AR25: 11.78257224 | AS25: 2.503491034 | AT25: 9.662775862 | AU25: 9.338582759 | AV25: 17.5917931 | AW25: 23.46153448 | AX25: 8.198677586 | AY25: 8.281656897 | AZ25: 62.1182931 | BA25: 55.89281034 | BB25: 52.08456034 | BC25: 30.66433276 | BD25: 29.60003793 | BE25: 17.15720069 | BF25: 14.29533621 | BG25: 7.230237931 | BH25: 9.102365517 | BI25: 14.94433966 | BJ25: 7.975396552 | BK25: 18.03908103 | BL25: 10.98551897 | BM25: 48.68415517 | BN25: 44.14582759 | BO25: 45.2297069 | BP25: 32.06865517 | BQ25: 32.38972414 | BR25: 26.86991379 | BS25: 26.52281034
B26: 9.212386207 | C26: 8.106982759 | D26: 5.99495 | E26: 18.59213621 | F26: 9.664901724 | G26: 7.93147931 | H26: 6.597543103 | I26: 4.311001724 | J26: 4.948098276 | K26: 2.11551569 | L26: 9.506456897 | M26: 8.821677586 | N26: 6.35357931 | O26: 19.24139655 | P26: 9.899306897 | Q26: 8.772732759 | R26: 6.937106897 | S26: 4.552905172 | T26: 6.077043103 | U26: 2.716139655 | V26: 1.325167931 | W26: 1.219737759 | X26: 0.9588218966 | Y26: 2.585952241 | Z26: 1.428125517 | AA26: 1.76524069 | AB26: 1.32312431 | AC26: 0.8116203448 | AD26: 1.238996379 | AE26: 0.426787931 | AF26: 1.520835862 | AG26: 1.262637414 | AH26: 1.06480069 | AI26: 2.652565 | AJ26: 1.646666207 | AK26: 1.700532241 | AL26: 1.414844655 | AM26: 0.930262069 | AN26: 1.640244138 | AO26: 0.5830798276 | AP26: 7.556712069 | AQ26: 3.256723966 | AR26: 11.45899103 | AS26: 3.221801552 | AT26: 9.375744828 | AU26: 9.395506897 | AV26: 16.88425862 | AW26: 16.88203448 | AX26: 8.914977586 | AY26: 8.570318966 | AZ26: 87.2267069 | BA26: 83.55558621 | BB26: 82.14884483 | BC26: 74.65210345 | BD26: 68.1122931 | BE26: 61.27637931 | BF26: 54.03244828 | BG26: 9.774836207 | BH26: 10.51574483 | BI26: 20.96328276 | BJ26: 10.04491207 | BK26: 21.90762931 | BL26: 10.72137241 | BM26: 78.14563793 | BN26: 74.44318966 | BO26: 74.89451724 | BP26: 68.04287931 | BQ26: 60.70441379 | BR26: 54.95917241 | BS26: 54.71274138
B27: 7.947947368 | C27: 6.099177193 | D27: 5.425219298 | E27: 10.24844211 | F27: 6.637166667 | G27: 6.754150877 | H27: 5.603631579 | I27: 3.345591228 | J27: 4.475838596 | K27: 2.075114386 | L27: 8.927452632 | M27: 6.701010526 | N27: 5.521854386 | O27: 10.83768772 | P27: 7.285478947 | Q27: 7.117403509 | R27: 5.748847368 | S27: 3.779103509 | T27: 5.709326316 | U27: 2.704285965 | V27: 1.323376316 | W27: 1.046004737 | X27: 0.9808087719 | Y27: 1.153205614 | Z27: 1.204600175 | AA27: 1.296549825 | AB27: 1.027498947 | AC27: 0.6868740351 | AD27: 1.161864737 | AE27: 0.4994257895 | AF27: 1.462069649 | AG27: 1.128799544 | AH27: 1.029804912 | AI27: 1.357765088 | AJ27: 1.323221754 | AK27: 1.347495965 | AL27: 1.056981579 | AM27: 0.7790438596 | AN27: 1.355758772 | AO27: 0.5847968421 | AP27: 20.73980877 | AQ27: 2.276854386 | AR27: 18.10749088 | AS27: 2.317445965 | AT27: 9.366489474 | AU27: 9.589936842 | AV27: 16.24633333 | AW27: 17.22887719 | AX27: 7.913057895 | AY27: 7.928633333 | AZ27: 71.64431579 | BA27: 85.1142807 | BB27: 86.45385965 | BC27: 75.20373684 | BD27: 68.45019298 | BE27: 57.46473684 | BF27: 55.21494737 | BG27: 7.995864912 | BH27: 8.358473684 | BI27: 12.2492386 | BJ27: 8.323850877 | BK27: 13.14213684 | BL27: 8.832259649 | BM27: 72.65712281 | BN27: 75.18129825 | BO27: 75.16259649 | BP27: 67.03470175 | BQ27: 59.93922807 | BR27: 53.02991228 | BS27: 51.13449123
B28: 6.899375 | C28: 5.177811667 | D28: 4.038905 | E28: 5.996140167 | F28: 4.584116667 | G28: 4.465125 | H28: 3.85391 | I28: 3.117428333 | J28: 5.132243333 | K28: 2.329493667 | L28: 7.010493333 | M28: 5.334466667 | N28: 4.288813333 | O28: 6.72903 | P28: 5.427505 | Q28: 5.138643333 | R28: 4.255195 | S28: 3.633325 | T28: 6.376363333 | U28: 3.036728333 | V28: 1.278439667 | W28: 0.8373941667 | X28: 0.6401758333 | Y28: 0.9276711667 | Z28: 0.8037313333 | AA28: 0.8989296667 | AB28: 0.8892731667 | AC28: 0.6977201667 | AD28: 1.30304 | AE28: 0.4461011667 | AF28: 1.299400667 | AG28: 0.8141986667 | AH28: 0.7330118333 | AI28: 1.0574355 | AJ28: 0.8467355 | AK28: 1.042296 | AL28: 0.9431976667 | AM28: 0.7670988333 | AN28: 1.587326667 | AO28: 0.5758223333 | AP28: 108.1887817 | AQ28: 1.865050667 | AR28: 13.17524033 | AS28: 1.912983833 | AT28: 9.773915 | AU28: 9.704988333 | AV28: 20.32705 | AW28: 21.56803333 | AX28: 5.64475 | AY28: 6.295216667 | AZ28: 83.6355 | BA28: 79.52675 | BB28: 84.31241667 | BC28: 71.27513333 | BD28: 64.3173 | BE28: 67.48431667 | BF28: 62.98758333 | BG28: 5.818896667 | BH28: 6.494555 | BI28: 7.372386667 | BJ28: 6.492578333 | BK28: 8.445006667 | BL28: 6.951743333 | BM28: 71.72521667 | BN28: 75.01781667 | BO28: 76.12766667 | BP28: 66.06721667 | BQ28: 58.84086667 | BR28: 53.81528333 | BS28: 50.83236667
B29: 8.238186207 | C29: 7.147494828 | D29: 7.401377586 | E29: 34.66217241 | F29: 17.17105862 | G29: 7.579281034 | H29: 6.992456897 | I29: 5.982353448 | J29: 4.726932759 | K29: 2.00412069 | L29: 8.658922414 | M29: 7.366403448 | N29: 7.3641 | O29: 31.19052759 | P29: 18.98214828 | Q29: 8.234398276 | R29: 7.069544828 | S29: 6.033289655 | T29: 5.385232759 | U29: 2.44962069 | V29: 1.332426897 | W29: 1.246132241 | X29: 1.269172586 | Y29: 3.764132414 | Z29: 2.577232586 | AA29: 1.572907586 | AB29: 1.625423103 | AC29: 1.027391207 | AD29: 1.290517931 | AE29: 0.3660089655 | AF29: 1.39445931 | AG29: 1.339682931 | AH29: 1.252860862 | AI29: 4.034838103 | AJ29: 2.682533966 | AK29: 1.719154828 | AL29: 1.669884483 | AM29: 1.131189138 | AN29: 1.399374828 | AO29: 0.5178877586 | AP29: 10.24343845 | AQ29: 6.341496552 | AR29: 56.55255086 | AS29: 5.517805172 | AT29: 9.848687931 | AU29: 9.917710345 | AV29: 17.39110345 | AW29: 17.22010345 | AX29: 9.87707069 | AY29: 9.958360345 | AZ29: 91.51886207 | BA29: 89.59037931 | BB29: 86.15913793 | BC29: 83.7687069 | BD29: 80.33844828 | BE29: 62.98582759 | BF29: 46.56655172 | BG29: 10.60093276 | BH29: 10.85571034 | BI29: 38.3892931 | BJ29: 10.19960345 | BK29: 36.41912069 | BL29: 10.30227759 | BM29: 79.92877586 | BN29: 82.2752069 | BO29: 72.18060345 | BP29: 72.93287931 | BQ29: 72.47853448 | BR29: 54.71155172 | BS29: 44.21777586
B30: 7.789752632 | C30: 6.757017544 | D30: 5.755940351 | E30: 9.994589474 | F30: 7.02454386 | G30: 7.112205263 | H30: 4.99924386 | I30: 3.467998246 | J30: 5.317340351 | K30: 2.280450702 | L30: 7.983094737 | M30: 6.987880702 | N30: 6.073494737 | O30: 10.57170526 | P30: 7.574447368 | Q30: 7.334963158 | R30: 5.161714035 | S30: 3.701387719 | T30: 6.136459649 | U30: 2.885880702 | V30: 1.298047544 | W30: 1.076772281 | X30: 0.8184714035 | Y30: 1.711069158 | Z30: 1.200808421 | AA30: 1.149487544 | AB30: 0.9668715789 | AC30: 0.7769496491 | AD30: 1.341335439 | AE30: 0.528984386 | AF30: 1.425997368 | AG30: 1.156296316 | AH30: 0.8901024561 | AI30: 1.887424386 | AJ30: 1.304834035 | AK30: 1.195425088 | AL30: 0.942617193 | AM30: 0.8516207018 | AN30: 1.587985263 | AO30: 0.6065405263 | AP30: 9.875363158 | AQ30: 1.775005439 | AR30: 18.62771789 | AS30: 2.146687193 | AT30: 9.541570175 | AU30: 9.646122807 | AV30: 17.28575439 | AW30: 18.07692982 | AX30: 7.672621053 | AY30: 7.860147368 | AZ30: 84.46619298 | BA30: 89.74577193 | BB30: 90.35833333 | BC30: 84.10345614 | BD30: 78.43638596 | BE30: 67.37150877 | BF30: 57.15029825 | BG30: 7.656715789 | BH30: 7.8664 | BI30: 11.26848596 | BJ30: 8.922038596 | BK30: 12.09865088 | BL30: 9.248357895 | BM30: 80.13121053 | BN30: 82.24882456 | BO30: 78.1544386 | BP30: 75.39501754 | BQ30: 72.02419298 | BR30: 55.58196491 | BS30: 45.99626316
B31: 6.591475926 | C31: 6.164011111 | D31: 6.20732963 | E31: 7.166448148 | F31: 5.578388889 | G31: 6.119235185 | H31: 4.73432037 | I31: 4.129238889 | J31: 6.491175926 | K31: 3.224055556 | L31: 6.542455556 | M31: 6.608711111 | N31: 6.752687037 | O31: 7.386544444 | P31: 5.887181481 | Q31: 6.29855 | R31: 4.931588889 | S31: 4.25335 | T31: 7.231155556 | U31: 3.487722222 | V31: 1.289039444 | W31: 1.063829444 | X31: 0.9021924074 | Y31: 1.155031667 | Z31: 0.9420118519 | AA31: 1.035569444 | AB31: 1.065755926 | AC31: 0.9946572222 | AD31: 1.565918519 | AE31: 0.7112772222 | AF31: 1.23746963 | AG31: 1.027491852 | AH31: 0.9481822222 | AI31: 1.280497778 | AJ31: 1.054316111 | AK31: 1.175797778 | AL31: 0.9324857407 | AM31: 0.9255875926 | AN31: 1.758253704 | AO31: 0.7563383333 | AP31: 28.39117611 | AQ31: 1.483867037 | AR31: 15.56547037 | AS31: 1.443633704 | AT31: 9.858740741 | AU31: 9.857112963 | AV31: 19.14340741 | AW31: 20.53611111 | AX31: 7.626255556 | AY31: 7.438074074 | AZ31: 87.59046296 | BA31: 89.231 | BB31: 88.70896296 | BC31: 82.59466667 | BD31: 79.99711111 | BE31: 75.8187037 | BF31: 70.33138889 | BG31: 7.331637037 | BH31: 7.457655556 | BI31: 8.9927 | BJ31: 8.761461111 | BK31: 9.407190741 | BL31: 9.458201852 | BM31: 77.91357407 | BN31: 82.14718519 | BO31: 79.66174074 | BP31: 75.33709259 | BQ31: 71.7777963 | BR31: 57.90275926 | BS31: 50.55312963
A35: Fp1/Fp2: | C35: C:\Users\petelobo\Documents\BE sessions\FOFA1508\F3 FOFA1508.epochs.txt | F35: Alcohol: | G35: 1 | L35: Stress1: | M35: 1
A36: F3/F4: | C36: C:\Users\petelobo\Documents\BE sessions\FOFA1508\T3 FOFA1508.epochs.txt | F36: Freq: | G36: 5 | L36: Stress2: | M36: 1
A37: F7/F8: | C37: C:\Users\petelobo\Documents\BE sessions\FOFA1508\Fz FOFA1508.epochs.txt | F37: Drugs: | G37: 1 | L37: Stress3: | M37: 1
A38: C3/C4 | C38: C:\Users\petelobo\Documents\BE sessions\FOFA1508\F7 FOFA1508.epochs.txt | F38: Freq: | G38: 5 | L38: Stress4: | M38: 0
A39: Fz/Pz: | C39: C:\Users\petelobo\Documents\BE sessions\FOFA1508\Fp1 FOFA1508.epochs.txt | F39: Head: | G39: 0 | L39: Stress5: | M39: 0
A40: Cz/Oz: | F40: Priority: | G40: 0 | L40: Anxiety1: | M40: 0
A41: T3/T4: | F41: Seizures: | G41: 0 | L41: Anxiety2: | M41: 0
A42: T5/T6: | F42: Priority: | G42: 0 | L42: Anxiety3: | M42: 1
A43: P3/P4: | F43: Autism: | G43: 0 | L43: Anxiety4: | M43: 1
A44: O1/O2: | F44: Nonverb: | G44: 0 | L44: Anxiety5: | M44: 0
A45: Name: | B45: Example adult | L45: Depr1: | M45: 0
A46: Age: | B46: 46 | L46: Depr2: | M46: 0
A47: Trainer: | B47: sample | L47: Depr3: | M47: 0
A48: Date: | B48: 8/17/2015 | L48: Depr4: | M48: 0
A49: FileNo: | B49: 10 | F49: Antidep: | G49: 0 | L49: Anger1: | M49: 1
A50: Hand: | B50: 2 | F50: Antianx: | G50: 1 | L50: Anger2: | M50: 1
F51: Anticon: | G51: 0 | L51: Anger3: | M51: 0
F52: Antipsy: | G52: 0 | L52: Anger4: | M52: 0
F53: Stim: | G53: 0 | L53: Sleep1: | M53: 1
F54: Mood: | G54: 0 | L54: Sleep2: | M54: 0
L55: Sleep3: | M55: 0
L56: Sleep4: | M56: 0
L57: Sleep5: | M57: 0
L58: Sleep6: | M58: 1
L59: Sleep7: | M59: 0
B60: 12 | F60: Sex: | G60: 0 | L60: Physical1: | M60: 0
B61: homemaker | F61: Bfamily: | G61: 1 | L61: Physical2: | M61: 0
A62: Submitted | B62: 1 | F62: Afamily: | G62: 0 | L62: Physical3: | M62: 1
F63: Ffamily: | G63: 0 | L63: Physical4: | M63: 0
F64: Siblings: | G64: 3 | L64: Physical5: | M64: 1
F65: Order: | G65: 2 | L65: Physical6: | M65: 0
F66: Neglect: | G66: 1 | L66: Physical7: | M66: 0
F67: Abuse: | G67: 0 | L67: Physical8: | M67: 1
F68: Trauma: | G68: 0 | L68: Attent1: | M68: 0
L69: Attent2: | M69: 1
L70: Attent3: | M70: 1
L71: Attent4: | M71: 1
L72: Learn1: | M72: 0
L73: Learn2: | M73: 0
L74: Learn3: | M74: 0
L75: Learn4: | M75: 0
L76: Learn5: | M76: 0
L77: Control1: | M77: 1
L78: Control2: | M78: 1
L79: Control3: | M79: 0
L80: Control4: | M80: 0
L81: Control5: | M81: 1
L82: Control6: | M82: 1
L83: Control7: | M83: 0
L84: Memory1: | M84: 0
L85: Memory2: | M85: 0
L86: Memory3: | M86: 0
L87: Memory4: | M87: 1
L88: Memory5: | M88: 1
L89: end

Sheet Autoplan (hidden)
A1: Line | B1: Site | C1: Tab | D1: Rule | E1: Protocol | F1: Active | G1: Reference | H1: State | I1: Block | J1: RawData | K1: Result | L1: Weight | P1: Protocol | Q1: Active | R1: Reference | S1: State | T1: Block | U1: Weight | X1: Routine | Y1: Site | Z1: L/R | AA1: F/B
B2: F4 | C2: Analyze | D2: Slow%>40 | E2: FRE1C IN (2-11) REW (13-21) | F2: F4 | G2: A2 | H2: EC | I2: 1 | J2: 5;78;Right;Front | K2: 0.37 | L2: 4.456511921 | P2: BAL2C SUM (2-38) DIFF (15-38) | Q2: F7 F8 | R2: L(A1 A2) | S2: EC/EO | T2: 1p | U2: 179.6161537 | X2: 1 | Y2: F3 | Z2: Left | AA2: Front
B3: F4 | C3: Analyze | D3: Slow%>40 | E3: FRE1C IN (2-11) REW (13-21) | F3: F4 | G3: A2 | H3: EO | I3: 1 | J3: 6;79;Right;Front | K3: 0.37 | L3: 4.105710284 | P3: BAL2C SUM (19-38) DIFF (2-11) | Q3: F7 F8 | R3: L(A1 A2) | S3: EO | T3: 1p | U3: 105.4811325 | X3: 1 | Y3: F4 | Z3: Right | AA3: Front
B4: F3 | C4: Analyze | D4: Slow%>40 | E4: FRE1C IN (2-11) REW (13-21) | F4: F3 | G4: A1 | H4: EC | I4: 1 | J4: 5;75;Left;Front | K4: 0.35 | L4: 3.007394851 | P4: FRE2C IN (19-38) REW (9-13) | Q4: F7 T3 | R4: C(A1) | S4: EC/EO | T4: 1p | U4: 75.49499026 | X4: 1 | Y4: F7 | Z4: Left | AA4: Front
B5: F3 | C5: Analyze | D5: Slow%>40 | E5: FRE1C IN (2-11) REW (13-21) | F5: F3 | G5: A1 | H5: EO | I5: 1 | J5: 6;76;Left;Front | K5: 0.35 | L5: 2.712490083 | P5: BAL2C SUM (2-38) DIFF (2-11) | Q5: F7 F8 | R5: L(A1 A2) | S5: EC | T5: 1p | U5: 64.37213898 | X5: 1 | Y5: F8 | Z5: Right | AA5: Front
B6: F8 | C6: Analyze | D6: Slow%>40 | E6: FRE1C IN (2-11) REW (13-21) | F6: F8 | G6: A2 | H6: EC | I6: 1 | J6: 8;84;Right;Front | K6: 0.41 | L6: 6.808484632 | P6: FRE1C IN (19-38) REW (9-13) | Q6: F7 | R6: A1 | S6: EC/EO | T6: 1 | U6: 53.20980337 | X6: 1 | Y6: C3 | Z6: Left | AA6: Mid
B7: F8 | C7: Analyze | D7: Slow%>40 | E7: FRE1C IN (2-11) REW (13-21) | F7: F8 | G7: A2 | H7: EO | I7: 1 | J7: 9;85;Right;Front | K7: 0.44 | L7: 8.450347334 | P7: FRE2C IN (19-38) REW (9-13) | Q7: F7 T6 | R7: L(A1 A2) | S7: EC/EO | T7: 1 | U7: 49.86865903 | X7: 1 | Y7: C4 | Z7: Right | AA7: Mid
B8: F7 | C8: Analyze | D8: Slow%>40 | E8: FRE1C IN (2-11) REW (13-21) | F8: F7 | G8: A1 | H8: EC | I8: 1 | J8: 8;81;Left;Front | K8: 0.23 | L8: 1.016887112 | P8: FRE1C IN (19-38) REW (9-13) | Q8: T6 | R8: A2 | S8: EC/EO | T8: 1x | U8: 46.52751468 | X8: 1 | Y8: T3 | Z8: Left | AA8: Mid
B9: F7 | C9: Analyze | D9: Slow%>40 | E9: FRE1C IN (2-11) REW (13-21) | F9: F7 | G9: A1 | H9: EO | I9: 1 | J9: 9;82;Left;Front | K9: 0.22 | L9: 0.9993797579 | P9: BAL2C SUM (2-38) DIFF (15-38) | Q9: T3 T4 | R9: L(A1 A2) | S9: EC/EO | T9: 1p | U9: 44.49585342 | X9: 1 | Y9: T4 | Z9: Right | AA9: Mid
B10: C4 | C10: Analyze | D10: Slow%>40 | E10: FRE1C IN (2-11) REW (13-21) | F10: C4 | G10: A2 | H10: EC | I10: 1 | J10: 11;90;Right;Mid | K10: 0.33 | L10: 2.797099417 | P10: FRE2C IN (19-38) REW (9-13) | Q10: T3 T6 | R10: L(A1 A2) | S10: EC/EO | T10: 1 | U10: 34.40635078 | X10: 1 | Y10: T5 | Z10: Left | AA10: Back
B11: C4 | C11: Analyze | D11: Slow%>40 | E11: FRE1C IN (2-11) REW (13-21) | F11: C4 | G11: A2 | H11: EO | I11: 1 | J11: 12;91;Right;Mid | K11: 0.32 | L11: 2.301859958 | P11: FRE2C IN (6-10) REW (13-21) | Q11: P3 P4 | R11: L(A1 A2) | S11: EO | T11: 1p | U11: 28.77011606 | X11: 1 | Y11: T6 | Z11: Right | AA11: Back
B12: C3 | C12: Analyze | D12: Slow%>40 | E12: FRE1C IN (2-11) REW (13-21) | F12: C3 | G12: A1 | H12: EC | I12: 1 | J12: 11;87;Left;Mid | K12: 0.34 | L12: 3.227152232 | P12: FRE2C IN (19-38) REW (9-13) | Q12: T4 T6 | R12: C(A2) | S12: EC/EO | T12: 1p | U12: 24.86961775 | X12: 1 | Y12: P3 | Z12: Left | AA12: Back
B13: C3 | C13: Analyze | D13: Slow%>40 | E13: FRE1C IN (2-11) REW (13-21) | F13: C3 | G13: A1 | H13: EO | I13: 1 | J13: 12;88;Left;Mid | K13: 0.33 | L13: 2.687993603 | P13: BAL2C SUM (19-38) DIFF (2-11) | Q13: T3 T4 | R13: L(A1 A2) | S13: EO | T13: 1p | U13: 23.79767418 | X13: 1 | Y13: P4 | Z13: Right | AA13: Back
B14: T4 | C14: Analyze | D14: Slow%>40 | E14: FRE1C IN (2-11) REW (13-21) | F14: T4 | G14: A2 | H14: EC | I14: 1 | J14: 20;108;Right;Mid | K14: 0.31 | L14: 2.270186555 | P14: BAL2C SUM (2-38) DIFF (2-11) | Q14: T3 T4 | R14: L(A1 A2) | S14: EC | T14: 1p | U14: 22.92214012 | X14: 1 | Y14: O1 | Z14: Left | AA14: Back
B15: T4 | C15: Analyze | D15: Slow%>40 | E15: FRE1C IN (2-11) REW (13-21) | F15: T4 | G15: A2 | H15: EO | I15: 1 | J15: 21;109;Right;Mid | K15: 0.29 | L15: 1.863180113 | P15: FRE1C IN (19-38) REW (9-13) | Q15: T3 | R15: A1 | S15: EC/EO | T15: 1x | U15: 22.28518688 | X15: 1 | Y15: O2 | Z15: Right | AA15: Back
B16: T3 | C16: Analyze | D16: Slow%>40 | E16: FRE1C IN (2-11) REW (13-21) | F16: T3 | G16: A1 | H16: EC | I16: 1 | J16: 20;105;Left;Mid | K16: 0.26 | L16: 1.23529604 | P16: FRE2C IN (6-10) REW (13-21) | Q16: C4 P4 | R16: C(A2) | S16: EO | T16: 1 | U16: 22.09249978 | X16: 1 | Y16: Fz | Z16: Mid | AA16: Front
B17: T3 | C17: Analyze | D17: Slow%>40 | E17: FRE1C IN (2-11) REW (13-21) | F17: T3 | G17: A1 | H17: EO | I17: 1 | J17: 21;106;Left;Mid | K17: 0.25 | L17: 1.196646724 | P17: BAL2C SUM (2-38) DIFF (15-38) | Q17: T5 T6 | R17: L(A1 A2) | S17: EC | T17: 1p | U17: 21.32419777 | X17: 1 | Y17: Cz | Z17: Mid | AA17: Mid
B18: T6 | C18: Analyze | D18: Slow%>40 | E18: FRE1C IN (2-11) REW (13-21) | F18: T6 | G18: A2 | H18: EC | I18: 1 | J18: 23;114;Right;Back | K18: 0.28 | L18: 1.729609988 | P18: FRE2C IN (19-38) REW (9-13) | Q18: T6 Oz | R18: L(A1 A2) | S18: EO | T18: 1 | U18: 20.20034837 | X18: 1 | Y18: Pz | Z18: Mid | AA18: Back
B19: T6 | C19: Analyze | D19: Slow%>40 | E19: FRE1C IN (2-11) REW (13-21) | F19: T6 | G19: A2 | H19: EO | I19: 1 | J19: 24;115;Right;Back | K19: 0.28 | L19: 1.729609988 | P19: FRE2C IN (19-38) REW (9-13) | Q19: T3 T4 | R19: L(A1 A2) | S19: EC/EO | T19: 1 | U19: 19.12268078 | X19: 1 | Y19: Oz | Z19: Mid | AA19: Back
B20: T5 | C20: Analyze | D20: Slow%>40 | E20: FRE1C IN (2-11) REW (13-21) | F20: T5 | G20: A1 | H20: EC | I20: 1 | J20: 23;111;Left;Back | K20: 0.28 | L20: 1.721476318 | P20: BAL2C SUM (8-12) DIFF (15-38) | Q20: T5 T6 | R20: L(A1 A2) | S20: EO | T20: 1p | U20: 17.61578369 | X20: 1
B21: T5 | C21: Analyze | D21: Slow%>40 | E21: FRE1C IN (2-11) REW (13-21) | F21: T5 | G21: A1 | H21: EO | I21: 1 | J21: 24;112;Left;Back | K21: 0.32 | L21: 3.565310029 | P21: BAL4C Alpha Beta | Q21: P3 P4 O1 O2 | R21: L(A1 A2) | S21: EC | T21: 1p | U21: 16.79924648 | X21: 1
B22: P4 | C22: Analyze | D22: Slow%>40 | E22: FRE1C IN (2-11) REW (13-21) | F22: P4 | G22: A2 | H22: EC | I22: 1 | J22: 26;120;Right;Back | K22: 0.3 | L22: 2.045624697 | P22: FRE2C IN (19-38) REW (9-13) | Q22: F7 T4 | R22: L(A1 A2) | S22: EC/EO | T22: 1 | U22: 14.10538105 | X22: 1
B23: P4 | C23: Analyze | D23: Slow%>40 | E23: FRE1C IN (2-11) REW (13-21) | F23: P4 | G23: A2 | H23: EO | I23: 1 | J23: 27;121;Right;Back | K23: 0.33 | L23: 2.648450812 | P23: FRE1C IN (6-10) REW (13-21) | Q23: C4 | R23: A2 | S23: EO | T23: 1x | U23: 12.86293262 | X23: 1
B24: P3 | C24: Analyze | D24: Slow%>40 | E24: FRE1C IN (2-11) REW (13-21) | F24: P3 | G24: A1 | H24: EC | I24: 1 | J24: 26;117;Left;Back | K24: 0.3 | L24: 2.096424847 | P24: FRE2C IN (6-10) REW (13-21) | Q24: C4 P3 | R24: L(A1 A2) | S24: EO | T24: 1 | U24: 12.09172419 | X24: 1
B25: P3 | C25: Analyze | D25: Slow%>40 | E25: FRE1C IN (2-11) REW (13-21) | F25: P3 | G25: A1 | H25: EO | I25: 1 | J25: 27;118;Left;Back | K25: 0.33 | L25: 2.736725632 | P25: FRE1C IN (2-11) REW (12-16) | Q25: F8 | R25: A2 | S25: EC/EO | T25: 1x | U25: 11.85458965 | X25: 1
B26: O2 | C26: Analyze | D26: Slow%>40 | E26: FRE1C IN (2-11) REW (13-21) | F26: O2 | G26: A2 | H26: EC | I26: 1 | J26: 29;126;Right;Back | K26: 0.23 | L26: 1.091541383 | P26: FRE2C IN (19-38) REW (9-13) | Q26: F7 Oz | R26: C(A1) | S26: EO | T26: 1 | U26: 11.45421476 | X26: 1
B27: O2 | C27: Analyze | D27: Slow%>40 | E27: FRE1C IN (2-11) REW (13-21) | F27: O2 | G27: A2 | H27: EO | I27: 1 | J27: 30;127;Right;Back | K27: 0.33 | L27: 2.532461541 | P27: FRE1C IN (6-10) REW (13-21) | Q27: P3 | R27: A1 | S27: EO | T27: 1x | U27: 11.32051575 | X27: 1
B28: O1 | C28: Analyze | D28: Slow%>40 | E28: FRE1C IN (2-11) REW (13-21) | F28: O1 | G28: A1 | H28: EC | I28: 1 | J28: 29;123;Left;Back | K28: 0.22 | L28: 0.9949473341 | P28: BAL2C Alpha Beta | Q28: P3 P4 | R28: L(A1 A2) | S28: EC/EO | T28: 1p | U28: 10.25788546 | X28: 1
B29: O1 | C29: Analyze | D29: Slow%>40 | E29: FRE1C IN (2-11) REW (13-21) | F29: O1 | G29: A1 | H29: EO | I29: 1 | J29: 30;124;Left;Back | K29: 0.34 | L29: 3.110721585 | P29: FRE1C IN (6-10) REW (13-21) | Q29: P4 | R29: A2 | S29: EO | T29: 1x | U29: 9.229567152 | X29: 1
B30: Fz | C30: Analyze | D30: Slow%>40 | E30: FRE1C IN (2-11) REW (13-21) | F30: Fz | G30: A1 | H30: EC | I30: 4 | J30: 14;93;Mid;Front | K30: 0.33 | L30: 5.552832251 | P30: BAL2C Alpha Beta | Q30: O1 O2 | R30: L(A1 A2) | S30: EC | T30: 1p | U30: 9.13708095 | X30: 1
B31: Fz | C31: Analyze | D31: Slow%>40 | E31: FRE1C IN (2-11) REW (13-21) | F31: Fz | G31: A1 | H31: EO | I31: 4 | J31: 15;94;Mid;Front | K31: 0.38 | L31: 17.10485084 | P31: FRE2C IN (19-38) REW (9-13) | Q31: T3 Oz | R31: C(A1) | S31: EO | T31: 1 | U31: 4.498503994 | X31: 1
B32: Pz | C32: Analyze | D32: Slow%>40 | E32: FRE1C IN (2-11) REW (13-21) | F32: Pz | G32: A1 | H32: EC | I32: 4 | J32: 14;96;Mid;Back | K32: 0.28 | L32: 1.709935261 | P32: FRE1C IN (19-38) REW (9-13) | Q32: T4 | R32: A2 | S32: EC/EO | T32: 1x | U32: 3.358824697 | X32: 1
B33: Pz | C33: Analyze | D33: Slow%>40 | E33: FRE1C IN (2-11) REW (13-21) | F33: Pz | G33: A1 | H33: EO | I33: 4 | J33: 15;97;Mid;Back | K33: 0.31 | L33: 2.163508674 | P33: BAL2C Alpha Beta (Beta) | Q33: O1 O2 | R33: L(A1 A2) | S33: EO | T33: 1p | U33: 2.793081266 | X33: 1
B34: Cz | C34: Analyze | D34: Slow%>40 | E34: FRE1C IN (2-11) REW (13-21) | F34: Cz | G34: A1 | H34: EC | I34: 4 | J34: 17;99;Mid;Mid | K34: 0.3 | L34: 2.032204483 | P34: FRE2C IN (19-38) REW (9-13) | Q34: T4 Oz | R34: L(A1 A2) | S34: EO | T34: 1 | U34: 2.239823866 | X34: 1
B35: Cz | C35: Analyze | D35: Slow%>40 | E35: FRE1C IN (2-11) REW (13-21) | F35: Cz | G35: A1 | H35: EO | I35: 4 | J35: 18;100;Mid;Mid | K35: 0.33 | L35: 2.631630113 | P35: CON4C MBC Down | Q35: P3 P4 O1 O2 | R35: L(A1 A2) | S35: EC/EO | T35: 2p | U35: 199.5354665 | X35: 1
B36: Oz | C36: Analyze | D36: Slow%>40 | E36: FRE1C IN (2-11) REW (13-21) | F36: Oz | G36: A1 | H36: EC | I36: 4 | J36: 17;102;Mid;Back | K36: 0.22 | L36: 0.994667872 | P36: CON4C MBC Down | Q36: F3 F4 O1 O2 | R36: L(A1 A2) | S36: EC/EO | T36: 2p | U36: 167.6935693 | X36: 1
B37: Oz | C37: Analyze | D37: Slow%>40 | E37: FRE1C IN (2-11) REW (13-21) | F37: Oz | G37: A1 | H37: EO | I37: 4 | J37: 18;103;Mid;Back | K37: 0.28 | L37: 1.641468944 | P37: CON2C MBC Down | Q37: O1 O2 | R37: L(A1 A2) | S37: EC/EO | T37: 2p | U37: 124.014856 | X37: 1
B38: F4 | C38: Analyze | D38: Fast%>30 | E38: FRE1C IN (19-38) REW (6-10) | F38: F4 | G38: A2 | H38: EC | I38: 1 | J38: 5;78;Right;Front | K38: 0.24PF | L38: 1.595200933 | P38: CON4C MBC Down | Q38: F3 F4 P3 P4 | R38: L(A1 A2) | S38: EC/EO | T38: 2p | U38: 118.4347364 | X38: 1
B39: F4 | C39: Analyze | D39: Fast%>30 | E39: FRE1C IN (19-38) REW (6-10) | F39: F4 | G39: A2 | H39: EO | I39: 1 | J39: 6;79;Right;Front | K39: 0.27PF | L39: 1.815910293 | P39: CON2C MBC Down | Q39: P3 P4 | R39: L(A1 A2) | S39: EC/EO | T39: 2p | U39: 76.38254303 | X39: 1
B40: F3 | C40: Analyze | D40: Fast%>30 | E40: FRE1C IN (19-38) REW (6-10) | F40: F3 | G40: A1 | H40: EC | I40: 1 | J40: 5;75;Left;Front | K40: 0.26PF | L40: 2.208301056 | P40: CON2C Gamma Up | Q40: F3 F4 | R40: L(A1 A2) | S40: EO | T40: 2p | U40: 50.52488419 | X40: 1
B41: F3 | C41: Analyze | D41: Fast%>30 | E41: FRE1C IN (19-38) REW (6-10) | F41: F3 | G41: A1 | H41: EO | I41: 1 | J41: 6;76;Left;Front | K41: 0.29PF | L41: 2.785728429 | P41: CON2C MBC Down | Q41: F3 F4 | R41: L(A1 A2) | S41: EC/EO | T41: 2p | U41: 43.6787133 | X41: 1
B42: F8 | C42: Analyze | D42: Fast%>30 | E42: FRE1C IN (19-38) REW (6-10) | F42: F8 | G42: A2 | H42: EC | I42: 1 | J42: 8;84;Right;Front | K42: 0.23PF | L42: 1.030663119 | P42: CON4C MBC Down | Q42: C3 C4 O1 O2 | R42: L(A1 A2) | S42: EC/EO | T42: 3 | U42: 193.7948474 | X42: 1
B43: F8 | C43: Analyze | D43: Fast%>30 | E43: FRE1C IN (19-38) REW (6-10) | F43: F8 | G43: A2 | H43: EO | I43: 1 | J43: 9;85;Right;Front | K43: 0.24PF | L43: 1.024070775 | P43: CON4C MBC Down | Q43: C3 C4 P3 P4 | R43: L(A1 A2) | S43: EC/EO | T43: 3 | U43: 145.272565 | X43: 1
B44: F7 | C44: Analyze | D44: Fast%>30 | E44: FRE1C IN (19-38) REW (6-10) | F44: F7 | G44: A1 | H44: EC | I44: 1 | J44: 8;81;Left;Front | K44: 0.48PF | L44: 19.65902824 | P44: CON4C MBC Down | Q44: F3 F4 C3 C4 | R44: L(A1 A2) | S44: EC/EO | T44: 3 | U44: 113.4587047 | X44: 1
B45: F7 | C45: Analyze | D45: Fast%>30 | E45: FRE1C IN (19-38) REW (6-10) | F45: F7 | G45: A1 | H45: EO | I45: 1 | J45: 9;82;Left;Front | K45: 0.59 | L45: 43.38028925 | P45: CON2C MBC Down | Q45: C3 C4 | R45: L(A1 A2) | S45: EC/EO | T45: 3 | U45: 69.77999143 | X45: 1
B46: C4 | C46: Analyze | D46: Fast%>30 | E46: FRE1C IN (19-38) REW (6-10) | F46: C4 | G46: A2 | H46: EC | I46: 1 | J46: 11;90;Right;Mid | K46: 0.24PF | L46: 1.814133126 | P46: CON4C Gamma Sync | Q46: F3 F4 C3 C4 | R46: L(A1 A2) | S46: EO | T46: 3p | U46: 67.91722475 | X46: 1
B47: C4 | C47: Analyze | D47: Fast%>30 | E47: FRE1C IN (19-38) REW (6-10) | F47: C4 | G47: A2 | H47: EO | I47: 1 | J47: 12;91;Right;Mid | K47: 0.26PF | L47: 2.001148351 | P47: CON2C Gamma Up | Q47: C3 C4 | R47: L(A1 A2) | S47: EO | T47: 3p | U47: 17.39234055 | X47: 1
B48: C3 | C48: Analyze | D48: Fast%>30 | E48: FRE1C IN (19-38) REW (6-10) | F48: C3 | G48: A1 | H48: EC | I48: 1 | J48: 11;87;Left;Mid | K48: 0.25 | L48: 2.036265625 | P48: SMR%1C Up | Q48: C3 | R48: C4 | S48: EO | T48: 3p | U48: 8.594952756 | X48: 1
B49: C3 | C49: Analyze | D49: Fast%>30 | E49: FRE1C IN (19-38) REW (6-10) | F49: C3 | G49: A1 | H49: EO | I49: 1 | J49: 12;88;Left;Mid | K49: 0.27PF | L49: 2.390290587 | P49: BAL2C Alpha Beta (Alpha) | Q49: C3 C4 | R49: L(A1 A2) | S49: EC/EO | T49: 3p | U49: 5.559265866 | X49: 1
B50: T4 | C50: Analyze | D50: Fast%>30 | E50: FRE1C IN (19-38) REW (6-10) | F50: T4 | G50: A2 | H50: EC | I50: 1 | J50: 20;108;Right;Mid | K50: 0.32PF | L50: 2.337285715 | P50: SMR%1C Up | Q50: Cz | R50: A2 | S50: EO | T50: 3p | U50: 3.904366332 | X50: 1
B51: T4 | C51: Analyze | D51: Fast%>30 | E51: FRE1C IN (19-38) REW (6-10) | F51: T4 | G51: A2 | H51: EO | I51: 1 | J51: 21;109;Right;Mid | K51: 0.33PF | L51: 2.043077964 | P51: CON4C MBC Down | Q51: Fz Pz Cz Oz | R51: L(A1 A2) | S51: EC/EO | T51: 4p | U51: 76.89808695 | X51: 1
B52: T3 | C52: Analyze | D52: Fast%>30 | E52: FRE1C IN (19-38) REW (6-10) | F52: T3 | G52: A1 | H52: EC | I52: 1 | J52: 20;105;Left;Mid | K52: 0.41 | L52: 13.45548135 | P52: CON2C MBC Down | Q52: Fz Pz | R52: L(A1 A2) | S52: EC/EO | T52: 4p | U52: 64.28619396 | X52: 1
B53: T3 | C53: Analyze | D53: Fast%>30 | E53: FRE1C IN (19-38) REW (6-10) | F53: T3 | G53: A1 | H53: EO | I53: 1 | J53: 21;106;Left;Mid | K53: 0.44 | L53: 15.55744621 | P53: CON2C MBC Combined | Q53: Cz Oz | R53: L(A1 A2) | S53: EC | T53: 4p | U53: 30.68026508 | X53: 1
B54: T6 | C54: Analyze | D54: Fast%>30 | E54: FRE1C IN (19-38) REW (6-10) | F54: T6 | G54: A2 | H54: EC | I54: 1 | J54: 23;114;Right;Back | K54: 0.31PF | L54: 17.12677541 | P54: FRE2C IN (2-6) REW (13-21) | Q54: Fz Cz | R54: L(A1 A2) | S54: EC/EO | T54: 4p | U54: 13.43447577 | X54: 1
B55: T6 | C55: Analyze | D55: Fast%>30 | E55: FRE1C IN (19-38) REW (6-10) | F55: T6 | G55: A2 | H55: EO | I55: 1 | J55: 24;115;Right;Back | K55: 0.38PF | L55: 37.96412698 | P55: CON2C MBC Down | Q55: Cz Oz | R55: L(A1 A2) | S55: EC/EO | T55: 4 | U55: 12.61189298 | X55: 1
B56: T5 | C56: Analyze | D56: Fast%>30 | E56: FRE1C IN (19-38) REW (6-10) | F56: T5 | G56: A1 | H56: EC | I56: 1 | J56: 23;111;Left;Back | K56: 0.24PF | L56: 1.873797504 | P56: CON2C MBC Up | Q56: Cz Oz | R56: L(A1 A2) | S56: EC | T56: 4p | U56: 4.322547561 | X56: 1
B57: T5 | C57: Analyze | D57: Fast%>30 | E57: FRE1C IN (19-38) REW (6-10) | F57: T5 | G57: A1 | H57: EO | I57: 1 | J57: 24;112;Left;Back | K57: 0.3PF | L57: 3 | P57: FRE1C IN (19-38) REW (9-13) | Q57: Oz | R57: A1 | S57: EO | T57: 4p | U57: 2.436569768 | X57: 1
B58: P4 | C58: Analyze | D58: Fast%>30 | E58: FRE1C IN (19-38) REW (6-10) | F58: P4 | G58: A2 | H58: EC | I58: 1 | J58: 26;120;Right;Back | K58: 0.24PF | L58: 2.059342286 | P58: FRE2C Squash | Q58: O1 O2 | R58: L(A1 A2) | S58: EC 10:00m | T58: 5p | U58: 95 | X58: 1
B59: P4 | C59: Analyze | D59: Fast%>30 | E59: FRE1C IN (19-38) REW (6-10) | F59: P4 | G59: A2 | H59: EO | I59: 1 | J59: 27;121;Right;Back | K59: 0.28PF | L59: 2.95905002 | P59: FRE2C IN (19-38) REW (6-10) | Q59: P3 P4 | R59: L(A1 A2) | S59: EC 10:00m | T59: 5p | U59: 90 | X59: 1
B60: P3 | C60: Analyze | D60: Fast%>30 | E60: FRE1C IN (19-38) REW (6-10) | F60: P3 | G60: A1 | H60: EC | I60: 1 | J60: 26;117;Left;Back | K60: 0.23PF | L60: 1.720519623 | P60: ALP1C Alpha Up | Q60: P4 or O1 | R60: A2 or A1 | S60: EC 10:00m | T60: 5p | U60: 85 | X60: 1
B61: P3 | C61: Analyze | D61: Fast%>30 | E61: FRE1C IN (19-38) REW (6-10) | F61: P3 | G61: A1 | H61: EO | I61: 1 | J61: 27;118;Left;Back | K61: 0.26PF | L61: 2.208301056 | P61: ALP1C Alpha Theta | Q61: P4 or O1 | R61: A2 or A1 | S61: EC 23:50m | T61: 5p | U61: 80 | X61: 1
B62: O2 | C62: Analyze | D62: Fast%>30 | E62: FRE1C IN (19-38) REW (6-10) | F62: O2 | G62: A2 | H62: EC | I62: 1 | J62: 29;126;Right;Back | K62: 0.2 | L62: 1.367506555 | X62: 1
B63: O2 | C63: Analyze | D63: Fast%>30 | E63: FRE1C IN (19-38) REW (6-10) | F63: O2 | G63: A2 | H63: EO | I63: 1 | J63: 30;127;Right;Back | K63: 0.28PF | L63: 2.815993821 | X63: 1
B64: O1 | C64: Analyze | D64: Fast%>30 | E64: FRE1C IN (19-38) REW (6-10) | F64: O1 | G64: A1 | H64: EC | I64: 1 | J64: 29;123;Left;Back | K64: 0.19 | L64: 1.192102579 | X64: 1
B65: O1 | C65: Analyze | D65: Fast%>30 | E65: FRE1C IN (19-38) REW (6-10) | F65: O1 | G65: A1 | H65: EO | I65: 1 | J65: 30;124;Left;Back | K65: 0.27PF | L65: 2.390290587 | X65: 1
B66: Fz | C66: Analyze | D66: Fast%>30 | E66: FRE1C IN (19-38) REW (6-10) | F66: Fz | G66: A1 | H66: EC | I66: 4 | J66: 14;93;Mid;Front | K66: 0.24PF | L66: 1.873797504 | X66: 1
B67: Fz | C67: Analyze | D67: Fast%>30 | E67: FRE1C IN (19-38) REW (6-10) | F67: Fz | G67: A1 | H67: EO | I67: 4 | J67: 15;94;Mid;Front | K67: 0.27PF | L67: 2.390290587 | X67: 1
B68: Pz | C68: Analyze | D68: Fast%>30 | E68: FRE1C IN (19-38) REW (6-10) | F68: Pz | G68: A1 | H68: EC | I68: 4 | J68: 14;96;Mid;Back | K68: 0.25PF | L68: 1.756246224 | X68: 1
B69: Pz | C69: Analyze | D69: Fast%>30 | E69: FRE1C IN (19-38) REW (6-10) | F69: Pz | G69: A1 | H69: EO | I69: 4 | J69: 15;97;Mid;Back | K69: 0.29PF | L69: 2.044701186 | X69: 1
B70: Cz | C70: Analyze | D70: Fast%>30 | E70: FRE1C IN (19-38) REW (6-10) | F70: Cz | G70: A1 | H70: EC | I70: 4 | J70: 17;99;Mid;Mid | K70: 0.25PF | L70: 2.036265625 | X70: 1
B71: Cz | C71: Analyze | D71: Fast%>30 | E71: FRE1C IN (19-38) REW (6-10) | F71: Cz | G71: A1 | H71: EO | I71: 4 | J71: 18;100;Mid;Mid | K71: 0.29PF | L71: 2.785728429 | X71: 1
B72: Oz | C72: Analyze | D72: Fast%>30 | E72: FRE1C IN (19-38) REW (6-10) | F72: Oz | G72: A1 | H72: EC | I72: 4 | J72: 17;102;Mid;Back | K72: 0.25 | L72: 2.265092135 | X72: 1
B73: Oz | C73: Analyze | D73: Fast%>30 | E73: FRE1C IN (19-38) REW (6-10) | F73: Oz | G73: A1 | H73: EO | I73: 4 | J73: 18;103;Mid;Back | K73: 0.33PF | L73: 2.436569768 | X73: 1
B74: F4 | C74: Analyze | D74: Mid%>40 | E74: FRE1C IN (6-10) REW (13-21) | F74: F4 | G74: A2 | H74: EO | I74: 1 | J74: 6;79;Right;Front | K74: 0.37 | L74: 6.640814937 | X74: 1
B75: F3 | C75: Analyze | D75: Mid%>40 | E75: FRE1C IN (6-10) REW (13-21) | F75: F3 | G75: A1 | H75: EO | I75: 1 | J75: 6;76;Left;Front | K75: 0.36 | L75: 5.545638159 | X75: 1
B76: F8 | C76: Analyze | D76: Mid%>40 | E76: FRE1C IN (6-10) REW (13-21) | F76: F8 | G76: A2 | H76: EO | I76: 1 | J76: 9;85;Right;Front | K76: 0.31 | L76: 3.013498148 | X76: 1
B77: F7 | C77: Analyze | D77: Mid%>40 | E77: FRE1C IN (6-10) REW (13-21) | F77: F7 | G77: A1 | H77: EO | I77: 1 | J77: 9;82;Left;Front | K77: 0.2 | L77: 1.412732881 | X77: 1
B78: C4 | C78: Analyze | D78: Mid%>40 | E78: FRE1C IN (6-10) REW (13-21) | F78: C4 | G78: A2 | H78: EO | I78: 1 | J78: 12;91;Right;Mid | K78: 0.42 | L78: 12.86293262 | X78: 1
B79: C3 | C79: Analyze | D79: Mid%>40 | E79: FRE1C IN (6-10) REW (13-21) | F79: C3 | G79: A1 | H79: EO | I79: 1 | J79: 12;88;Left;Mid | K79: 0.4 | L79: 8.845438127 | X79: 1
B80: T4 | C80: Analyze | D80: Mid%>40 | E80: FRE1C IN (6-10) REW (13-21) | F80: T4 | G80: A2 | H80: EO | I80: 1 | J80: 21;109;Right;Mid | K80: 0.38 | L80: 9.040085668 | X80: 1
B81: T3 | C81: Analyze | D81: Mid%>40 | E81: FRE1C IN (6-10) REW (13-21) | F81: T3 | G81: A1 | H81: EO | I81: 1 | J81: 21;106;Left;Mid | K81: 0.3 | L81: 2.956386806 | X81: 1
B82: T6 | C82: Analyze | D82: Mid%>40 | E82: FRE1C IN (6-10) REW (13-21) | F82: T6 | G82: A2 | H82: EO | I82: 1 | J82: 24;115;Right;Back | K82: 0.34 | L82: 6.032348359 | X82: 1
B83: T5 | C83: Analyze | D83: Mid%>40 | E83: FRE1C IN (6-10) REW (13-21) | F83: T5 | G83: A1 | H83: EO | I83: 1 | J83: 24;112;Left;Back | K83: 0.38 | L83: 14.79361551 | X83: 1
B84: P4 | C84: Analyze | D84: Mid%>40 | E84: FRE1C IN (6-10) REW (13-21) | F84: P4 | G84: A2 | H84: EO | I84: 1 | J84: 27;121;Right;Back | K84: 0.39 | L84: 9.229567152 | X84: 1
B85: P3 | C85: Analyze | D85: Mid%>40 | E85: FRE1C IN (6-10) REW (13-21) | F85: P3 | G85: A1 | H85: EO | I85: 1 | J85: 27;118;Left;Back | K85: 0.4 | L85: 11.32051575 | X85: 1
B86: O2 | C86: Analyze | D86: Mid%>40 | E86: FRE1C IN (6-10) REW (13-21) | F86: O2 | G86: A2 | H86: EO | I86: 1 | J86: 30;127;Right;Back | K86: 0.4 | L86: 8.951895337 | X86: 1
B87: O1 | C87: Analyze | D87: Mid%>40 | E87: FRE1C IN (6-10) REW (13-21) | F87: O1 | G87: A1 | H87: EO | I87: 1 | J87: 30;124;Left;Back | K87: 0.4 | L87: 8.786597743 | X87: 1
B88: Fz | C88: Analyze | D88: Mid%>40 | E88: FRE1C IN (6-10) REW (13-21) | F88: Fz | G88: A1 | H88: EO | I88: 4 | J88: 15;94;Mid;Front | K88: 0.35 | L88: 3.346092729 | X88: 1
B89: Pz | C89: Analyze | D89: Mid%>40 | E89: FRE1C IN (6-10) REW (13-21) | F89: Pz | G89: A1 | H89: EO | I89: 4 | J89: 15;97;Mid;Back | K89: 0.4 | L89: 10.05950989 | X89: 1
B90: Cz | C90: Analyze | D90: Mid%>40 | E90: FRE1C IN (6-10) REW (13-21) | F90: Cz | G90: A1 | H90: EO | I90: 4 | J90: 18;100;Mid;Mid | K90: 0.38 | L90: 7.422632057 | X90: 1
B91: Oz | C91: Analyze | D91: Mid%>40 | E91: FRE1C IN (6-10) REW (13-21) | F91: Oz | G91: A1 | H91: EO | I91: 4 | J91: 18;103;Mid;Back | K91: 0.39 | L91: 9.556238218 | X91: 1
B92: Fz&Cz | C92: Analyze | D92: AntC>Avg | E92: FRE2C IN (2-6) REW (13-21) | F92: Fz Cz | G92: L(A1 A2) | H92: EC | I92: 4 | J92: 14;17;5;11;93;99;75;78;87;90 | K92: 0.63 | L92: 5.897889206 | X92: 1
B93: Fz&Cz | C93: Analyze | D93: AntC>Avg | E93: FRE2C IN (2-6) REW (13-21) | F93: Fz Cz | G93: L(A1 A2) | H93: EO | I93: 4 | J93: 15;18;6;12;94;100;76;79;88;91 | K93: 0.71 | L93: 10.48553117 | X93: 1
B94: F3&F4 | C94: Synchrony | D94: Slow Coh/Phase <40 (3+/6) | E94: CON2C MBC Up | F94: F3 F4 | G94: L(A1 A2) | H94: EC | I94: 2 | J94: 5 | K94: ;6 | X94: 2
B95: F3&F4 | C95: Synchrony | D95: Slow Coh/Phase <40 (3+/6) | E95: CON2C MBC Up | F95: F3 F4 | G95: L(A1 A2) | H95: EO | I95: 2 | J95: 6 | K95: ;6 | X95: 2
B96: O1&O2 | C96: Synchrony | D96: Slow Coh/Phase <40 (3+/6) | E96: CON2C MBC Up | F96: O1 O2 | G96: L(A1 A2) | H96: EC | I96: 2 | J96: 29 | K96: ;6 | X96: 2
B97: O1&O2 | C97: Synchrony | D97: Slow Coh/Phase <40 (3+/6) | E97: CON2C MBC Up | F97: O1 O2 | G97: L(A1 A2) | H97: EO | I97: 2 | J97: 30 | K97: ;6 | X97: 2
B98: P3&P4 | C98: Synchrony | D98: Slow Coh/Phase <40 (3+/6) | E98: CON2C MBC Up | F98: P3 P4 | G98: L(A1 A2) | H98: EC | I98: 2 | J98: 26 | K98: ;6 | X98: 2
B99: P3&P4 | C99: Synchrony | D99: Slow Coh/Phase <40 (3+/6) | E99: CON2C MBC Up | F99: P3 P4 | G99: L(A1 A2) | H99: EO | I99: 2 | J99: 27 | K99: ;6 | X99: 2
B100: C3&C4 | C100: Synchrony | D100: Slow Coh/Phase <40 (3+/6) | E100: CON2C MBC Up | F100: C3 C4 | G100: L(A1 A2) | H100: EC | I100: 3 | J100: 11 | K100: ;6 | X100: 2
B101: C3&C4 | C101: Synchrony | D101: Slow Coh/Phase <40 (3+/6) | E101: CON2C MBC Up | F101: C3 C4 | G101: L(A1 A2) | H101: EO | I101: 3 | J101: 12 | K101: ;6 | X101: 2
B102: Fz&Pz | C102: Synchrony | D102: Slow Coh/Phase <40 (3+/6) | E102: CON2C MBC Up | F102: Fz Pz | G102: L(A1 A2) | H102: EC | I102: 4 | J102: 14 | K102: 1;6 | L102: 4.155010819 | X102: 2
B103: Fz&Pz | C103: Synchrony | D103: Slow Coh/Phase <40 (3+/6) | E103: CON2C MBC Up | F103: Fz Pz | G103: L(A1 A2) | H103: EO | I103: 4 | J103: 15 | K103: 1;6 | L103: 1.104008997 | X103: 2
B104: Cz&Oz | C104: Synchrony | D104: Slow Coh/Phase <40 (3+/6) | E104: CON2C MBC Up | F104: Cz Oz | G104: L(A1 A2) | H104: EC | I104: 4 | J104: 17 | K104: 3;6 | L104: 21.61273781 | X104: 2
B105: Cz&Oz | C105: Synchrony | D105: Slow Coh/Phase <40 (3+/6) | E105: CON2C MBC Up | F105: Cz Oz | G105: L(A1 A2) | H105: EO | I105: 4 | J105: 18 | K105: 1;6 | L105: 5.415141855 | X105: 2
B106: F3&F4 | C106: Synchrony | D106: Fast Coh/Phase >40 (3+/6) | E106: CON2C MBC Down | F106: F3 F4 | G106: L(A1 A2) | H106: EC | I106: 2 | J106: 5 | K106: 4;6 | L106: 26.95044902 | X106: 2
B107: F3&F4 | C107: Synchrony | D107: Fast Coh/Phase >40 (3+/6) | E107: CON2C MBC Down | F107: F3 F4 | G107: L(A1 A2) | H107: EO | I107: 2 | J107: 6 | K107: 4;6 | L107: 30.20348879 | X107: 2
B108: O1&O2 | C108: Synchrony | D108: Fast Coh/Phase >40 (3+/6) | E108: CON2C MBC Down | F108: O1 O2 | G108: L(A1 A2) | H108: EC | I108: 2 | J108: 29 | K108: 6;6 | L108: 81.43791288 | X108: 2
B109: O1&O2 | C109: Synchrony | D109: Fast Coh/Phase >40 (3+/6) | E109: CON2C MBC Down | F109: O1 O2 | G109: L(A1 A2) | H109: EO | I109: 2 | J109: 30 | K109: 6;6 | L109: 83.29589954 | X109: 2
B110: P3&P4 | C110: Synchrony | D110: Fast Coh/Phase >40 (3+/6) | E110: CON2C MBC Down | F110: P3 P4 | G110: L(A1 A2) | H110: EC | I110: 2 | J110: 26 | K110: 6;6 | L110: 51.49631706 | X110: 2
B111: P3&P4 | C111: Synchrony | D111: Fast Coh/Phase >40 (3+/6) | E111: CON2C MBC Down | F111: P3 P4 | G111: L(A1 A2) | H111: EO | I111: 2 | J111: 27 | K111: 6;6 | L111: 49.77245195 | X111: 2
B112: C3&C4 | C112: Synchrony | D112: Fast Coh/Phase >40 (3+/6) | E112: CON2C MBC Down | F112: C3 C4 | G112: L(A1 A2) | H112: EC | I112: 3 | J112: 11 | K112: 6;6 | L112: 45.33336835 | X112: 2
B113: C3&C4 | C113: Synchrony | D113: Fast Coh/Phase >40 (3+/6) | E113: CON2C MBC Down | F113: C3 C4 | G113: L(A1 A2) | H113: EO | I113: 3 | J113: 12 | K113: 6;6 | L113: 47.11330725 | X113: 2
B114: Fz&Pz | C114: Synchrony | D114: Fast Coh/Phase >40 (3+/6) | E114: CON2C MBC Down | F114: Fz Pz | G114: L(A1 A2) | H114: EC | I114: 4 | J114: 14 | K114: 6;6 | L114: 38.80843409 | X114: 2
B115: Fz&Pz | C115: Synchrony | D115: Fast Coh/Phase >40 (3+/6) | E115: CON2C MBC Down | F115: Fz Pz | G115: L(A1 A2) | H115: EO | I115: 4 | J115: 15 | K115: 6;6 | L115: 44.88197692 | X115: 2
B116: Cz&Oz | C116: Synchrony | D116: Fast Coh/Phase >40 (3+/6) | E116: CON2C MBC Down | F116: Cz Oz | G116: L(A1 A2) | H116: EC | I116: 4 | J116: 17 | K116: 4;6 | L116: 9.067527277 | X116: 2
B117: Cz&Oz | C117: Synchrony | D117: Fast Coh/Phase >40 (3+/6) | E117: CON2C MBC Down | F117: Cz Oz | G117: L(A1 A2) | H117: EO | I117: 4 | J117: 18 | K117: 5;6 | L117: 11.70514026 | X117: 2
B118: F3&F4 | C118: Synchrony | D118: Gamma Coh/Phase<40 (3+/6) | E118: CON2C Gamma Up | F118: F3 F4 | G118: L(A1 A2) | H118: EO | I118: 2 | J118: 5 | K118: 6;6 | L118: 50.52488419 | X118: 2
B119: O1&O2 | C119: Synchrony | D119: Gamma Coh/Phase<40 (3+/6) | E119: CON2C Gamma Up | F119: O1 O2 | G119: L(A1 A2) | H119: EO | I119: 2 | J119: 29 | K119: ;6 | X119: 2
B120: P3&P4 | C120: Synchrony | D120: Gamma Coh/Phase<40 (3+/6) | E120: CON2C Gamma Up | F120: P3 P4 | G120: L(A1 A2) | H120: EO | I120: 2 | J120: 26 | K120: ;6 | X120: 2
B121: C3&C4 | C121: Synchrony | D121: Gamma Coh/Phase<40 (3+/6) | E121: CON2C Gamma Up | F121: C3 C4 | G121: L(A1 A2) | H121: EO | I121: 3 | J121: 11 | K121: 6;6 | L121: 17.39234055 | X121: 2
B122: Fz&Pz | C122: Synchrony | D122: Gamma Coh/Phase<40 (3+/6) | E122: CON2C Gamma Up | F122: Fz Pz | G122: L(A1 A2) | H122: EO | I122: 4 | J122: 14 | K122: ;6 | X122: 2
B123: Cz&Oz | C123: Synchrony | D123: Gamma Coh/Phase<40 (3+/6) | E123: CON2C Gamma Up | F123: Cz Oz | G123: L(A1 A2) | H123: EO | I123: 4 | J123: 17 | K123: ;6 | X123: 2
B124: C3&C4 | C124: Synchrony | D124: LowBeta Coh/Phase<40 (>0.5) | E124: CON2C SMR Coherence | F124: C3 C4 | G124: L(A1 A2) | H124: EO | I124: 3 | J124: 11 | K124: ;6 | X124: 2
B125: F3&F4 | C125: Head | D125: Asm(Beta+HiBeta) L/R<1.0 | E125: BAL2C Alpha Beta (Beta) | F125: F3 F4 | G125: L(A1 A2) | H125: EC | I125: 1 | J125: 5;75;78;10;11;12 | K125: 0.2 | L125: 0.204649601 | X125: 3
B126: F3&F4 | C126: Head | D126: Asm(Beta+HiBeta) L/R<1.0 | E126: BAL2C Alpha Beta (Beta) | F126: F3 F4 | G126: L(A1 A2) | H126: EO | I126: 1 | J126: 6;76;79;10;11;12 | K126: 0.23 | L126: 0.225319352 | X126: 3
B127: C3&C4 | C127: Head | D127: Asm(Beta+HiBeta) L/R<1.0 | E127: BAL2C Alpha Beta (Beta) | F127: C3 C4 | G127: L(A1 A2) | H127: EC | I127: 3 | J127: 11;87;90;10;11;12 | K127: 0.21 | L127: 0.208329284 | X127: 3
B128: C3&C4 | C128: Head | D128: Asm(Beta+HiBeta) L/R<1.0 | E128: BAL2C Alpha Beta (Beta) | F128: C3 C4 | G128: L(A1 A2) | H128: EO | I128: 3 | J128: 12;88;91;10;11;12 | K128: 0.23 | L128: 0.2251778961 | X128: 3
B129: P3&P4 | C129: Head | D129: Asm(Beta+HiBeta) L/R<1.0 | E129: BAL2C Alpha Beta (Beta) | F129: P3 P4 | G129: L(A1 A2) | H129: EC | I129: 1 | J129: 26;117;120;10;11;12 | K129: 0.2/0.97 | L129: 2.788124563 | X129: 3
B130: P3&P4 | C130: Head | D130: Asm(Beta+HiBeta) L/R<1.0 | E130: BAL2C Alpha Beta (Beta) | F130: P3 P4 | G130: L(A1 A2) | H130: EO | I130: 1 | J130: 27;118;121;10;11;12 | K130: 0.23/0.97 | L130: 3.115527202 | X130: 3
B131: O1&O2 | C131: Head | D131: Asm(Beta+HiBeta) L/R<1.0 | E131: BAL2C Alpha Beta (Beta) | F131: O1 O2 | G131: L(A1 A2) | H131: EC | I131: 1 | J131: 29;123;126;10;11;12 | K131: 0.17/0.97 | L131: 2.367177346 | X131: 3
B132: O1&O2 | C132: Head | D132: Asm(Beta+HiBeta) L/R<1.0 | E132: BAL2C Alpha Beta (Beta) | F132: O1 O2 | G132: L(A1 A2) | H132: EO | I132: 1 | J132: 30;124;127;10;11;12 | K132: 0.23/0.98 | L132: 2.793081266 | X132: 3
B133: F3&F4 | C133: Head | D133: Asm(Alpha) R/L<1.0 | E133: BAL2C Alpha Beta (Alpha) | F133: F3 F4 | G133: L(A1 A2) | H133: EC | I133: 1 | J133: 5;78;75;7;8 | K133: 0.3 | L133: 0.2990976962 | X133: 3
B134: F3&F4 | C134: Head | D134: Asm(Alpha) R/L<1.0 | E134: BAL2C Alpha Beta (Alpha) | F134: F3 F4 | G134: L(A1 A2) | H134: EO | I134: 1 | J134: 6;79;76;7;8 | K134: 0.27 | L134: 0.268416185 | X134: 3
B135: C3&C4 | C135: Head | D135: Asm(Alpha) R/L<1.0 | E135: BAL2C Alpha Beta (Alpha) | F135: C3 C4 | G135: L(A1 A2) | H135: EC | I135: 3 | J135: 11;87;90;7;8 | K135: 0.32/0.99 | L135: 3.450068011 | X135: 3
B136: C3&C4 | C136: Head | D136: Asm(Alpha) R/L<1.0 | E136: BAL2C Alpha Beta (Alpha) | F136: C3 C4 | G136: L(A1 A2) | H136: EO | I136: 3 | J136: 12;88;91;7;8 | K136: 0.3/0.97 | L136: 3.83423186 | X136: 3
B137: P3&P4 | C137: Head | D137: Asm(Alpha) R/L<1.0 | E137: BAL2C Alpha Beta (Alpha) | F137: P3 P4 | G137: L(A1 A2) | H137: EC | I137: 1 | J137: 26;120;117;7;8 | K137: 0.35/0.96 | L137: 4.874040971 | X137: 3
B138: P3&P4 | C138: Head | D138: Asm(Alpha) R/L<1.0 | E138: BAL2C Alpha Beta (Alpha) | F138: P3 P4 | G138: L(A1 A2) | H138: EO | I138: 1 | J138: 27;121;118;7;8 | K138: 0.28/0.98 | L138: 3.311275488 | X138: 3
B139: O1&O2 | C139: Head | D139: Asm(Alpha) R/L<1.0 | E139: BAL2C Alpha Beta (Alpha) | F139: O1 O2 | G139: L(A1 A2) | H139: EC | I139: 1 | J139: 29;126;123;7;8 | K139: 0.49/0.96 | L139: 6.769903604 | X139: 3
B140: O1&O2 | C140: Head | D140: Asm(Alpha) R/L<1.0 | E140: BAL2C Alpha Beta (Alpha) | F140: O1 O2 | G140: L(A1 A2) | H140: EO | I140: 1 | J140: 30;127;124;7;8 | K140: 0.28 | L140: 0.2813122562 | X140: 3
B141: F3&F4 | C141: Head | D141: DIF (2-4, 4-6, 6-8, 8-10)>15% | E141: BAL2C SUM () DIFF (2-11) | F141: F3 F4 | G141: L(A1 A2) | H141: EC | I141: 1 | J141: 5;75;78;4;5;6;7;Front | K141: 0.53/0.55 | L141: 3.900387526 | X141: 3
B142: F3&F4 | C142: Head | D142: DIF (2-4, 4-6, 6-8, 8-10)>15% | E142: BAL2C SUM () DIFF (2-11) | F142: F3 F4 | G142: L(A1 A2) | H142: EO | I142: 1 | J142: 6;76;79;4;5;6;7;Front | K142: 0.5/0.52 | L142: 5.355340481 | X142: 3
B143: F7&F8 | C143: Head | D143: DIF (2-4, 4-6, 6-8, 8-10)>15% | E143: BAL2C SUM () DIFF (2-11) | F143: F7 F8 | G143: L(A1 A2) | H143: EC | I143: 1 | J143: 8;81;84;4;5;6;7;Front | K143: 0.36/0.59 | L143: 64.37213898 | X143: 3
B144: F7&F8 | C144: Head | D144: DIF (2-4, 4-6, 6-8, 8-10)>15% | E144: BAL2C SUM () DIFF (2-11) | F144: F7 F8 | G144: L(A1 A2) | H144: EO | I144: 1 | J144: 9;82;85;4;5;6;7;Front | K144: 0.28/0.58 | L144: 105.4811325 | X144: 3
B145: C3&C4 | C145: Head | D145: DIF (2-4, 4-6, 6-8, 8-10)>15% | E145: BAL2C SUM () DIFF (2-11) | F145: C3 C4 | G145: L(A1 A2) | H145: EC | I145: 3 | J145: 11;87;90;4;5;6;7;Mid | K145: 0.52/0.52 | L145: 0.2275867313 | X145: 3
B146: C3&C4 | C146: Head | D146: DIF (2-4, 4-6, 6-8, 8-10)>15% | E146: BAL2C SUM () DIFF (2-11) | F146: C3 C4 | G146: L(A1 A2) | H146: EO | I146: 3 | J146: 12;88;91;4;5;6;7;Mid | K146: 0.5/0.49 | L146: 0.2415295839 | X146: 3
B147: P3&P4 | C147: Head | D147: DIF (2-4, 4-6, 6-8, 8-10)>15% | E147: BAL2C SUM () DIFF (2-11) | F147: P3 P4 | G147: L(A1 A2) | H147: EC | I147: 1 | J147: 26;117;120;4;5;6;7;Back | K147: 0.54/0.53 | L147: 2.062770128 | X147: 3
B148: P3&P4 | C148: Head | D148: DIF (2-4, 4-6, 6-8, 8-10)>15% | E148: BAL2C SUM () DIFF (2-11) | F148: P3 P4 | G148: L(A1 A2) | H148: EO | I148: 1 | J148: 27;118;121;4;5;6;7;Back | K148: 0.51/0.5 | L148: 1.979908466 | X148: 3
B149: O1&O2 | C149: Head | D149: DIF (2-4, 4-6, 6-8, 8-10)>15% | E149: BAL2C SUM () DIFF (2-11) | F149: O1 O2 | G149: L(A1 A2) | H149: EC | I149: 1 | J149: 29;123;126;4;5;6;7;Back | K149: 0.56/0.53 | L149: 6.113027573 | X149: 3
B150: O1&O2 | C150: Head | D150: DIF (2-4, 4-6, 6-8, 8-10)>15% | E150: BAL2C SUM () DIFF (2-11) | F150: O1 O2 | G150: L(A1 A2) | H150: EO | I150: 1 | J150: 30;124;127;4;5;6;7;Back | K150: 0.5/0.49 | L150: 2.024867296 | X150: 3
B151: T3&T4 | C151: Head | D151: DIF (2-4, 4-6, 6-8, 8-10)>15% | E151: BAL2C SUM () DIFF (2-11) | F151: T3 T4 | G151: L(A1 A2) | H151: EC | I151: 1 | J151: 20;105;108;4;5;6;7;Mid | K151: 0.38/0.47 | L151: 22.92214012 | X151: 3
B152: T3&T4 | C152: Head | D152: DIF (2-4, 4-6, 6-8, 8-10)>15% | E152: BAL2C SUM () DIFF (2-11) | F152: T3 T4 | G152: L(A1 A2) | H152: EO | I152: 1 | J152: 21;106;109;4;5;6;7;Mid | K152: 0.36/0.45 | L152: 23.79767418 | X152: 3
B153: T5&T6 | C153: Head | D153: DIF (2-4, 4-6, 6-8, 8-10)>15% | E153: BAL2C SUM () DIFF (2-11) | F153: T5 T6 | G153: L(A1 A2) | H153: EC | I153: 1 | J153: 23;111;114;4;5;6;7;Mid | K153: 0.54/0.49 | L153: 11.8298378 | X153: 3
B154: T5&T6 | C154: Head | D154: DIF (2-4, 4-6, 6-8, 8-10)>15% | E154: BAL2C SUM () DIFF (2-11) | F154: T5 T6 | G154: L(A1 A2) | H154: EO | I154: 1 | J154: 24;112;115;4;5;6;7;Mid | K154: 0.48/0.42 | L154: 12.74057102 | X154: 3
B155: F3&F4 | C155: Head | D155: DIF (15-19, 19-22, 23-38)>15% | E155: BAL2C SUM () DIFF (15-38) | F155: F3 F4 | G155: L(A1 A2) | H155: EC | I155: 1 | J155: 5;75;78;10;11;12;Front | K155: 0.22/0.2 | L155: 7.684966087 | X155: 3
B156: F3&F4 | C156: Head | D156: DIF (15-19, 19-22, 23-38)>15% | E156: BAL2C SUM () DIFF (15-38) | F156: F3 F4 | G156: L(A1 A2) | H156: EO | I156: 1 | J156: 6;76;79;10;11;12;Front | K156: 0.25/0.23 | L156: 9.935466766 | X156: 3
B157: F7&F8 | C157: Head | D157: DIF (15-19, 19-22, 23-38)>15% | E157: BAL2C SUM () DIFF (15-38) | F157: F7 F8 | G157: L(A1 A2) | H157: EC | I157: 1 | J157: 8;81;84;10;11;12;Front | K157: 0.39/0.19 | L157: 105.8803329 | X157: 3
B158: F7&F8 | C158: Head | D158: DIF (15-19, 19-22, 23-38)>15% | E158: BAL2C SUM () DIFF (15-38) | F158: F7 F8 | G158: L(A1 A2) | H158: EO | I158: 1 | J158: 9;82;85;10;11;12;Front | K158: 0.47/0.21 | L158: 126.6759872 | X158: 3
B159: C3&C4 | C159: Head | D159: DIF (15-19, 19-22, 23-38)>15% | E159: BAL2C SUM () DIFF (15-38) | F159: C3 C4 | G159: L(A1 A2) | H159: EC | I159: 3 | J159: 11;87;90;10;11;12;Mid | K159: 0.21/0.21 | L159: 1.331423521 | X159: 3
B160: C3&C4 | C160: Head | D160: DIF (15-19, 19-22, 23-38)>15% | E160: BAL2C SUM () DIFF (15-38) | F160: C3 C4 | G160: L(A1 A2) | H160: EO | I160: 3 | J160: 12;88;91;10;11;12;Mid | K160: 0.23/0.23 | L160: 3.375038862 | X160: 3
B161: P3&P4 | C161: Head | D161: DIF (15-19, 19-22, 23-38)>15% | E161: BAL2C SUM () DIFF (15-38) | F161: P3 P4 | G161: L(A1 A2) | H161: EC | I161: 1 | J161: 26;117;120;10;11;12;Back | K161: 0.2/0.21 | L161: 3.563853502 | X161: 3
B162: P3&P4 | C162: Head | D162: DIF (15-19, 19-22, 23-38)>15% | E162: BAL2C SUM () DIFF (15-38) | F162: P3 P4 | G162: L(A1 A2) | H162: EO | I162: 1 | J162: 27;118;121;10;11;12;Back | K162: 0.23/0.24 | L162: 3.406919479 | X162: 3
B163: Fz&Pz | C163: Head | D163: DIF (15-19, 19-22, 23-38)>15% | E163: BAL2C SUM () DIFF (15-38) | F163: Fz Pz | G163: L(A1 A2) | H163: EC | I163: 4 | J163: 14;93;96;10;11;12;Front | K163: 0.21/0.22 | L163: 6.004375935 | X163: 3
B164: Fz&Pz | C164: Head | D164: DIF (15-19, 19-22, 23-38)>15% | E164: BAL2C SUM () DIFF (15-38) | F164: Fz Pz | G164: L(A1 A2) | H164: EO | I164: 4 | J164: 15;94;97;10;11;12;Front | K164: 0.23/0.25 | L164: 9.399230957 | X164: 3
B165: T3&T4 | C165: Head | D165: DIF (15-19, 19-22, 23-38)>15% | E165: BAL2C SUM () DIFF (15-38) | F165: T3 T4 | G165: L(A1 A2) | H165: EC | I165: 1 | J165: 20;105;108;10;11;12;Mid | K165: 0.33/0.26 | L165: 24.74784851 | X165: 3
B166: T3&T4 | C166: Head | D166: DIF (15-19, 19-22, 23-38)>15% | E166: BAL2C SUM () DIFF (15-38) | F166: T3 T4 | G166: L(A1 A2) | H166: EO | I166: 1 | J166: 21;106;109;10;11;12;Mid | K166: 0.36/0.28 | L166: 32.12192917 | X166: 3
B167: T5&T6 | C167: Head | D167: DIF (15-19, 19-22, 23-38)>15% | E167: BAL2C SUM () DIFF (15-38) | F167: T5 T6 | G167: L(A1 A2) | H167: EC | I167: 1 | J167: 23;111;114;10;11;12;Mid | K167: 0.21/0.25 | L167: 21.32419777 | X167: 3
B168: T5&T6 | C168: Head | D168: DIF (15-19, 19-22, 23-38)>15% | E168: BAL2C SUM () DIFF (15-38) | F168: T5 T6 | G168: L(A1 A2) | H168: EO | I168: 1 | J168: 24;112;115;10;11;12;Mid | K168: 0.25/0.3 | L168: 17.61578369 | X168: 3
B169: F7/F8&C3/C4 | C169: Analyze | D169: Alpha&Beta Rev <1 | E169: BAL2C Dual Bipolar | F169: F7 C3 | G169: I(F8 C4) | H169: EC | I169: 3 | J169: 8;11;81;84;87;90 | K169: 2.06/1.01/1.25/1 | X169: 4
B170: F7/F8&C3/C4 | C170: Analyze | D170: Alpha&Beta Rev <1 | E170: BAL2C Dual Bipolar | F170: F7 C3 | G170: I(F8 C4) | H170: EO | I170: 3 | J170: 9;12;82;85;88;91 | K170: 2.27/1.03/1.59/1.04 | X170: 4
B171: T3/T4&C3/C4 | C171: Analyze | D171: Alpha&Beta Rev <1 | E171: BAL2C Dual Bipolar | F171: T3 C3 | G171: I(T4 C4) | H171: EC | I171: 3 | J171: 20;11;105;108;87;90 | K171: 1.25/1.01/0.91/1 | X171: 4
B172: T3/T4&C3/C4 | C172: Analyze | D172: Alpha&Beta Rev <1 | E172: BAL2C Dual Bipolar | F172: T3 C3 | G172: I(T4 C4) | H172: EO | I172: 3 | J172: 21;12;106;109;88;91 | K172: 1.32/1.03/1.1/1.04 | X172: 4
B173: C4 | C173: Analyze | D173: T/B ratio EO>2 | E173: BAL1C Difference (Theta/Beta) | F173: C4 | G173: A2 | H173: EO | I173: 3 | J173: 12;64;60 | K173: 1.23 | L173: 1.231338854 | X173: 4
B174: C3 | C174: Analyze | D174: T/B ratio EO>2 | E174: BAL1C Difference (Theta/Beta) | F174: C3 | G174: A1 | H174: EO | I174: 3 | J174: 12;62;59 | K174: 1.32 | L174: 1.319085352 | X174: 4
B175: F3 | C175: Analyze | D175: T/B ratio EO>2 | E175: BAL1C Difference (Theta/Beta) | F175: F3 | G175: A1 | H175: EO | I175: 1 | J175: 6;62;59 | K175: 1.69 | L175: 1.689496965 | X175: 4
B176: F7 | C176: Analyze | D176: T/B ratio EO>2 | E176: BAL1C Difference (Theta/Beta) | F176: F7 | G176: A1 | H176: EO | I176: 1 | J176: 9;62;59 | K176: 0.3 | L176: 0.2984392307 | X176: 4
B177: T3 | C177: Analyze | D177: T/B ratio EO>2 | E177: BAL1C Difference (Theta/Beta) | F177: T3 | G177: A1 | H177: EO | I177: 1 | J177: 21;62;59 | K177: 0.65 | L177: 0.652319179 | X177: 4
B178: C4 | C178: Analyze | D178: SMR% EO<12 | E178: SMR%1C Up | F178: C4 | G178: A2 | H178: EO | I178: 3 | J178: 12;91 | K178: 1.41 | L178: 3.991291965 | X178: 4
B179: Cz | C179: Analyze | D179: SMR% EO<12 | E179: SMR%1C Up | F179: Cz | G179: A2 | H179: EO | I179: 3 | J179: 17;100 | K179: 1.4 | L179: 3.904366332 | X179: 4
B180: C3 | C180: Analyze | D180: SMR% EO<12 | E180: SMR%1C Up | F180: C3 | G180: A1 | H180: EO | I180: 3 | J180: 12;88 | K180: 1.52 | L180: 4.603660791 | X180: 4

Sheet Amplitude (hidden)
A1: Name: | C1: =Raw!B45 -> Example adult | I1: Age: | J1: =Raw!B46 -> 46 | S1: L | T1: R | U1: H | V1: D | W1: V | X1: S | Y1: H | Z1: M | AA1: A | AB1: RevFP | AC1: RevF3 | AD1: RevF7 | AE1: RevC3 | AF1: RevFz | AG1: RevCz | AH1: RevT3 | AI1: RevT5 | AJ1: RevP3 | AK1: RevO1 | AL1: DR | AM1: Red | AN1: Green | AO1: Blue | AP1: Bold | AQ1: Italic
A2: Trainer: | C2: =Raw!B47 -> sample | I2: Date: | J2: =Raw!B48 -> 8/17/2015 | S2: 3 | T2: 1 | U2: 1 | V2: 1 | W2: 1 | X2: 1 | Y2: 1 | Z2: 1 | AA2: 1 | AB2: 0 | AC2: 0 | AD2: 0 | AE2: 0 | AF2: 0 | AG2: 0 | AH2: 0 | AI2: 0 | AJ2: 0 | AK2: 0 | AL2: 0 | AM2: 150 | AN2: 50 | AO2: 50 | AP2: 0 | AQ2: 1
B3: Amplitude | P3: Power | AM3: 150 | AN3: 50 | AO3: 50 | AP3: 1 | AQ3: 1
A5: SITE | B5: CHNL | C5: CND | D5: 2-4 Hz | E5: 4-6 Hz | F5: 6-8 Hz | G5: 8-10 Hz | H5: 10-12Hz | I5: 12-15 Hz | J5: 15-19 Hz | K5: 19-23 Hz | L5: 23-38 Hz | M5: 38-42 Hz | N5: TOT | P5: 2-4 D | Q5: 4-6 T1 | R5: 6-8 T2 | S5: 8-10 A1 | T5: 10-12 A2 | U5: 12-15 B1 | V5: 15-19 B2 | W5: 19-23 B3 | X5: 23-38 HB | Y5: 38-42 G | Z5: TOT
A6: Frontal Fp1 & Fp2 | B6: Fp1 | C6: ECL | D6: =Raw!B2 -> 10.44797941 | E6: =Raw!C2 -> 8.123397059 | F6: =Raw!D2 -> 6.498114706 | G6: =Raw!E2 -> 13.32637647 | H6: =Raw!F2 -> 9.174355882 | I6: =Raw!G2 -> 6.170023529 | J6: =Raw!H2 -> 7.249458824 | K6: =Raw!I2 -> 6.202476471 | L6: =Raw!J2 -> 9.673205882 | M6: =Raw!K2 -> 4.809411765 | N6: =SUM(D6:M6) -> 81.6748 | P6: =D6^2 -> 109.1602738 | Q6: =E6^2 -> 65.98957978 | R6: =F6^2 -> 42.22549473 | S6: =G6^2 -> 177.5923098 | T6: =H6^2 -> 84.16880586 | U6: =I6^2 -> 38.06919035 | V6: =J6^2 -> 52.55465323 | W6: =K6^2 -> 38.47071437 | X6: =L6^2 -> 93.57091204 | Y6: =M6^2 -> 23.13044152 | Z6: =SUM(P6:Y6) -> 724.9323755
C7: EOL | D7: =Raw!B3 -> 0 | E7: =Raw!C3 -> 0 | F7: =Raw!D3 -> 0 | G7: =Raw!E3 -> 0 | H7: =Raw!F3 -> 0 | I7: =Raw!G3 -> 0 | J7: =Raw!H3 -> 0 | K7: =Raw!I3 -> 0 | L7: =Raw!J3 -> 0 | M7: =Raw!K3 -> 0 | N7: =SUM(D7:M7) -> 0 | P7: =D7^2 -> 0 | Q7: 0 | R7: 0 | S7: 0 | T7: 0 | U7: 0 | V7: 0 | W7: 0 | X7: 0 | Y7: 0 | Z7: 0
C8: TSKL | D8: =Raw!B4 -> 0 | E8: =Raw!C4 -> 0 | F8: =Raw!D4 -> 0 | G8: =Raw!E4 -> 0 | H8: =Raw!F4 -> 0 | I8: =Raw!G4 -> 0 | J8: =Raw!H4 -> 0 | K8: =Raw!I4 -> 0 | L8: =Raw!J4 -> 0 | M8: =Raw!K4 -> 0 | N8: 0 | P8: 0 | Q8: 0 | R8: 0 | S8: 0 | T8: 0 | U8: 0 | V8: 0 | W8: 0 | X8: 0 | Y8: 0 | Z8: 0
B9: Fp2 | C9: ECR | D9: =Raw!L2 -> 12.69248824 | E9: =Raw!M2 -> 9.814794118 | F9: =Raw!N2 -> 6.523423529 | G9: =Raw!O2 -> 14.20716176 | H9: =Raw!P2 -> 9.166091176 | I9: =Raw!Q2 -> 5.723673529 | J9: =Raw!R2 -> 6.517188235 | K9: =Raw!S2 -> 5.264870588 | L9: =Raw!T2 -> 8.585708824 | M9: =Raw!U2 -> 4.509370588 | N9: 83.00477059 | P9: 161.0992576 | Q9: 96.33018357 | R9: 42.55505454 | S9: 201.8434454 | T9: 84.01722746 | U9: 32.76043867 | V9: 42.47374249 | W9: 27.71886231 | X9: 73.714396 | Y9: 20.3344231 | Z9: 782.8470312
C10: EOR | D10: =Raw!L3 -> 0 | E10: =Raw!M3 -> 0 | F10: =Raw!N3 -> 0 | G10: =Raw!O3 -> 0 | H10: =Raw!P3 -> 0 | I10: =Raw!Q3 -> 0 | J10: =Raw!R3 -> 0 | K10: =Raw!S3 -> 0 | L10: =Raw!T3 -> 0 | M10: =Raw!U3 -> 0 | N10: 0 | P10: 0 | Q10: 0 | R10: 0 | S10: 0 | T10: 0 | U10: 0 | V10: 0 | W10: 0 | X10: 0 | Y10: 0 | Z10: 0
C11: TSKR | D11: =Raw!L4 -> 0 | E11: =Raw!M4 -> 0 | F11: =Raw!N4 -> 0 | G11: =Raw!O4 -> 0 | H11: =Raw!P4 -> 0 | I11: =Raw!Q4 -> 0 | J11: =Raw!R4 -> 0 | K11: =Raw!S4 -> 0 | L11: =Raw!T4 -> 0 | M11: =Raw!U4 -> 0 | N11: 0 | P11: 0 | Q11: 0 | R11: 0 | S11: 0 | T11: 0 | U11: 0 | V11: 0 | W11: 0 | X11: 0 | Y11: 0 | Z11: 0
A12: Frontal F3 & F4 | B12: F3 | C12: ECL | D12: =Raw!B5 -> 11.21224359 | E12: =Raw!C5 -> 7.865128205 | F12: =Raw!D5 -> 6.369394872 | G12: =Raw!E5 -> 12.93305641 | H12: =Raw!F5 -> 8.84354359 | I12: =Raw!G5 -> 6.682738462 | J12: =Raw!H5 -> 5.182882051 | K12: =Raw!I5 -> 4.538633333 | L12: =Raw!J5 -> 6.323605128 | M12: =Raw!K5 -> 2.856423077 | N12: =SUM(D12:M12) -> 72.80764872 | P12: =D12^2 -> 125.7144063 | Q12: =E12^2 -> 61.86024168 | R12: 40.56919103 | S12: 167.2639481 | T12: 78.20826322 | U12: 44.65899335 | V12: 26.86226636 | W12: 20.59919253 | X12: 39.98798182 | Y12: 8.159152794 | Z12: =SUM(P12:Y12) -> 613.8836372
C13: EOL | D13: =Raw!B6 -> 8.439825 | E13: =Raw!C6 -> 6.531210417 | F13: =Raw!D6 -> 5.452995833 | G13: =Raw!E6 -> 8.95048125 | H13: =Raw!F6 -> 6.8814625 | I13: =Raw!G6 -> 5.4312625 | J13: =Raw!H6 -> 4.743439583 | K13: =Raw!I6 -> 3.784785417 | L13: =Raw!J6 -> 6.082166667 | M13: =Raw!K6 -> 2.685191667 | N13: =SUM(D13:M13) -> 58.98282083 | P13: =D13^2 -> 71.23064603 | Q13: 42.65670951 | R13: 29.73516356 | S13: 80.11111461 | T13: 47.35452614 | U13: 29.49861234 | V13: 22.50021908 | W13: 14.32460065 | X13: 36.99275136 | Y13: 7.210254287 | Z13: 381.6145976
C14: TSKL | D14: =Raw!B7 -> 9.775671698 | E14: =Raw!C7 -> 7.127916981 | F14: =Raw!D7 -> 5.201369811 | G14: =Raw!E7 -> 4.415792453 | H14: =Raw!F7 -> 4.356854717 | I14: =Raw!G7 -> 4.37224717 | J14: =Raw!H7 -> 4.014641509 | K14: =Raw!I7 -> 3.760403774 | L14: =Raw!J7 -> 6.2956 | M14: =Raw!K7 -> 2.962713208 | N14: 52.28321132 | P14: 95.56375715 | Q14: 50.80720049 | R14: 27.05424791 | S14: 19.49922299 | T14: 18.98218302 | U14: 19.11654531 | V14: 16.11734645 | W14: 14.14063654 | X14: 39.63457936 | Y14: 8.77766955 | Z14: 309.6933888
B15: F4 | C15: ECR | D15: =Raw!L5 -> 13.62759231 | E15: =Raw!M5 -> 9.392076923 | F15: =Raw!N5 -> 7.20285641 | G15: =Raw!O5 -> 14.88915385 | H15: =Raw!P5 -> 9.762848718 | I15: =Raw!Q5 -> 7.798805128 | J15: =Raw!R5 -> 5.998648718 | K15: =Raw!S5 -> 4.302905128 | L15: =Raw!T5 -> 6.554533333 | M15: =Raw!U5 -> 2.836179487 | N15: 82.3656 | P15: 185.7112721 | Q15: 88.21110893 | R15: 51.88114047 | S15: 221.6869023 | T15: 95.31321509 | U15: 60.82136143 | V15: 35.98378644 | W15: 18.51499254 | X15: 42.96190722 | Y15: 8.043914083 | Z15: 809.1296006
C16: EOR | D16: =Raw!L6 -> 10.78853333 | E16: =Raw!M6 -> 8.040314583 | F16: =Raw!N6 -> 6.26589375 | G16: =Raw!O6 -> 10.7571125 | H16: =Raw!P6 -> 8.064689583 | I16: =Raw!Q6 -> 6.2198875 | J16: =Raw!R6 -> 5.130645833 | K16: =Raw!S6 -> 4.27249375 | L16: =Raw!T6 -> 5.992879167 | M16: =Raw!U6 -> 2.797316667 | N16: 68.32976667 | P16: 116.3924515 | Q16: 64.6466586 | R16: 39.26142449 | S16: 115.7154693 | T16: 65.03921808 | U16: 38.68700051 | V16: 26.32352667 | W16: 18.25420284 | X16: 35.91460071 | Y16: 7.824980534 | Z16: 528.0595332
C17: TSKR | D17: =Raw!L7 -> 10.57380189 | E17: =Raw!M7 -> 7.844632075 | F17: =Raw!N7 -> 5.756898113 | G17: =Raw!O7 -> 5.766633962 | H17: =Raw!P7 -> 5.02919434 | I17: =Raw!Q7 -> 4.785169811 | J17: =Raw!R7 -> 4.777228302 | K17: =Raw!S7 -> 3.896088679 | L17: =Raw!T7 -> 6.827192453 | M17: =Raw!U7 -> 3.206101887 | N17: 58.46294151 | P17: 111.8052863 | Q17: 61.5382524 | R17: 33.14187589 | S17: 33.25406725 | T17: 25.29279571 | U17: 22.89785012 | V17: 22.82191025 | W17: 15.179507 | X17: 46.61055679 | Y17: 10.27908931 | Z17: 382.8211911
A18: Frontal F7 & F8 | B18: F7 | C18: ECL | D18: =Raw!B8 -> 8.744651282 | E18: =Raw!C8 -> 6.400941026 | F18: =Raw!D8 -> 5.469766667 | G18: =Raw!E8 -> 11.09692051 | H18: =Raw!F8 -> 7.690751282 | I18: =Raw!G8 -> 6.545058974 | J18: =Raw!H8 -> 8.989223077 | K18: =Raw!I8 -> 9.663464103 | L18: =Raw!J8 -> 15.81879231 | M18: =Raw!K8 -> 7.949023077 | N18: 88.36859231 | P18: 76.46892604 | Q18: 40.97204601 | R18: 29.91834739 | S18: 123.1416449 | T18: 59.14765528 | U18: 42.83779698 | V18: 80.80613153 | W18: 93.38253846 | X18: 250.2341901 | Y18: 63.18696788 | Z18: 860.0962445
C19: EOL | D19: =Raw!B9 -> 8.717096 | E19: =Raw!C9 -> 6.186842 | F19: =Raw!D9 -> 5.058898 | G19: =Raw!E9 -> 6.09043 | H19: =Raw!F9 -> 5.39084 | I19: =Raw!G9 -> 6.810396 | J19: =Raw!H9 -> 9.616332 | K19: =Raw!I9 -> 11.742728 | L19: =Raw!J9 -> 21.64122 | M19: =Raw!K9 -> 11.09773 | N19: 92.352512 | P19: 75.98776267 | Q19: 38.27701393 | R19: 25.59244897 | S19: 37.09333758 | T19: 29.06115591 | U19: 46.38149368 | V19: 92.47384113 | W19: 137.8916609 | X19: 468.3424031 | Y19: 123.1596112 | Z19: 1074.260729
C20: TSKL | D20: =Raw!B10 -> 9.75495 | E20: =Raw!C10 -> 6.144231579 | F20: =Raw!D10 -> 5.1901 | G20: =Raw!E10 -> 10.04395263 | H20: =Raw!F10 -> 8.151886842 | I20: =Raw!G10 -> 7.561007895 | J20: =Raw!H10 -> 12.53527105 | K20: =Raw!I10 -> 15.35172895 | L20: =Raw!J10 -> 22.56034211 | M20: =Raw!K10 -> 11.44642368 | N20: 108.7398947 | P20: 95.1590495 | Q20: 37.7515817 | R20: 26.93713801 | S20: 100.8809845 | T20: 66.45325909 | U20: 57.16884038 | V20: 157.1330204 | W20: 235.6755817 | X20: 508.9690359 | Y20: 131.0206152 | Z20: 1417.149106
B21: F8 | C21: ECR | D21: =Raw!L8 -> 15.71457949 | E21: =Raw!M8 -> 10.47635641 | F21: =Raw!N8 -> 8.15484359 | G21: =Raw!O8 -> 15.56021026 | H21: =Raw!P8 -> 9.218915385 | I21: =Raw!Q8 -> 6.434202564 | J21: =Raw!R8 -> 5.672484615 | K21: =Raw!S8 -> 4.230848718 | L21: =Raw!T8 -> 6.126982051 | M21: =Raw!U8 -> 3.015364103 | N21: 84.60478718 | P21: 246.9480085 | Q21: 109.7540436 | R21: 66.50147397 | S21: 242.1201432 | T21: 84.98840087 | U21: 41.39896264 | V21: 32.17708171 | W21: 17.90008087 | X21: 37.53990906 | Y21: 9.092420671 | Z21: 888.4205251
C22: EOR | D22: =Raw!L9 -> 13.47908 | E22: =Raw!M9 -> 10.446232 | F22: =Raw!N9 -> 7.31179 | G22: =Raw!O9 -> 9.622512 | H22: =Raw!P9 -> 6.524336 | I22: =Raw!Q9 -> 5.843178 | J22: =Raw!R9 -> 4.568854 | K22: =Raw!S9 -> 3.962452 | L22: =Raw!T9 -> 5.947272 | M22: =Raw!U9 -> 2.781266 | N22: 70.486972 | P22: 181.6855976 | Q22: 109.123763 | R22: 53.462273 | S22: 92.59273719 | T22: 42.56696024 | U22: 34.14272914 | V22: 20.87442687 | W22: 15.70102585 | X22: 35.37004424 | Y22: 7.735440563 | Z22: 593.2549977
C23: TSKR | D23: =Raw!L10 -> 14.29146842 | E23: =Raw!M10 -> 10.10971053 | F23: =Raw!N10 -> 7.721476316 | G23: =Raw!O10 -> 15.78397368 | H23: =Raw!P10 -> 9.067339474 | I23: =Raw!Q10 -> 6.759555263 | J23: =Raw!R10 -> 5.687981579 | K23: =Raw!S10 -> 4.191723684 | L23: =Raw!T10 -> 6.142939474 | M23: =Raw!U10 -> 2.762965789 | N23: 82.51913421 | P23: 204.2460696 | Q23: 102.2062469 | R23: 59.6211965 | S23: 249.1338253 | T23: 82.21664513 | U23: 45.69158736 | V23: 32.35313444 | W23: 17.57054744 | X23: 37.73570538 | Y23: 7.633979954 | Z23: 838.408938
A24: Central C3 & C4 | B24: C3 | C24: ECF | D24: =Raw!B11 -> 9.918617544 | E24: =Raw!C11 -> 6.91925614 | F24: =Raw!D11 -> 5.977196491 | G24: =Raw!E11 -> 12.71467193 | H24: =Raw!F11 -> 8.924080702 | I24: =Raw!G11 -> 6.692568421 | J24: =Raw!H11 -> 5.164494737 | K24: =Raw!I11 -> 4.022710526 | L24: =Raw!J11 -> 5.16165614 | M24: =Raw!K11 -> 2.475640351 | N24: 67.97089298 | P24: 98.37897398 | Q24: 47.87610554 | R24: 35.72687789 | S24: 161.6628823 | T24: 79.63921637 | U24: 44.79047207 | V24: 26.67200589 | W24: 16.18219998 | X24: 26.64269411 | Y24: =M24^2 -> 6.128795147 | Z24: 543.7002233
C25: EOF | D25: =Raw!B12 -> 8.46479661 | E25: =Raw!C12 -> 6.230471186 | F25: =Raw!D12 -> 5.683118644 | G25: =Raw!E12 -> 10.4625678 | H25: =Raw!F12 -> 8.221023729 | I25: =Raw!G12 -> 6.146991525 | J25: =Raw!H12 -> 5.082715254 | K25: =Raw!I12 -> 3.985583051 | L25: =Raw!J12 -> 5.404398305 | M25: =Raw!K12 -> 2.492220339 | N25: 62.17388644 | P25: 71.65278165 | Q25: 38.81877121 | R25: 32.29783752 | S25: 109.4653249 | T25: 67.58523115 | U25: 37.78550481 | V25: 25.83399436 | W25: 15.88487226 | X25: 29.20752104 | Y25: =M25^2 -> 6.211162218 | Z25: 434.7430011
C26: TSKF | D26: =Raw!B13 -> 7.759798333 | E26: =Raw!C13 -> 5.796196667 | F26: =Raw!D13 -> 5.072401667 | G26: =Raw!E13 -> 5.797888333 | H26: =Raw!F13 -> 5.942161667 | I26: =Raw!G13 -> 5.465743333 | J26: =Raw!H13 -> 4.665278333 | K26: =Raw!I13 -> 3.16155 | L26: =Raw!J13 -> 5.62036 | M26: =Raw!K13 -> 2.645305 | N26: 51.92668333 | P26: 60.21447017 | Q26: 33.5958958 | R26: 25.72925867 | S26: 33.61550913 | T26: 35.30928527 | U26: 29.87435019 | V26: 21.76482193 | W26: 9.995398402 | X26: 31.58844653 | Y26: 6.997638543 | Z26: 288.6850746
B27: C4 | C27: ECB | D27: =Raw!L11 -> 10.22125965 | E27: =Raw!M11 -> 7.174563158 | F27: =Raw!N11 -> 6.478163158 | G27: =Raw!O11 -> 13.77698947 | H27: =Raw!P11 -> 9.413814035 | I27: =Raw!Q11 -> 7.504212281 | J27: =Raw!R11 -> 5.85964386 | K27: =Raw!S11 -> 4.144703509 | L27: =Raw!T11 -> 4.967321053 | M27: =Raw!U11 -> 2.324735088 | N27: 71.86540526 | P27: 104.4741488 | Q27: 51.47435651 | R27: 41.9665979 | S27: 189.805439 | T27: 88.61989469 | U27: 56.31320195 | V27: 34.33542616 | W27: 17.17856718 | X27: 24.67427844 | Y27: 5.404393228 | Z27: 614.2463038
C28: EOB | D28: =Raw!L12 -> 8.577640678 | E28: =Raw!M12 -> 7.105915254 | F28: =Raw!N12 -> 6.109305085 | G28: =Raw!O12 -> 11.69196441 | H28: =Raw!P12 -> 9.342955932 | I28: =Raw!Q12 -> 7.184977966 | J28: =Raw!R12 -> 5.76999322 | K28: =Raw!S12 -> 4.131981356 | L28: =Raw!T12 -> 5.33510339 | M28: =Raw!U12 -> 2.417008475 | N28: 67.66684576 | P28: 73.5759196 | Q28: 50.4940316 | R28: 37.32360862 | S28: 136.7020317 | T28: 87.29082555 | U28: 51.62390837 | V28: 33.29282176 | W28: 17.07326993 | X28: 28.46332818 | Y28: 5.841929966 | Z28: 521.6816753
C29: TSKB | D29: =Raw!L13 -> 7.76198 | E29: =Raw!M13 -> 6.27163 | F29: =Raw!N13 -> 5.477461667 | G29: =Raw!O13 -> 6.733821667 | H29: =Raw!P13 -> 6.814441667 | I29: =Raw!Q13 -> 6.545685 | J29: =Raw!R13 -> 5.439085 | K29: =Raw!S13 -> 3.350335 | L29: =Raw!T13 -> 5.248966667 | M29: =Raw!U13 -> 2.323936667 | N29: 55.96734333 | P29: 60.24833352 | Q29: 39.33334286 | R29: 30.00258631 | S29: 45.34435424 | T29: 46.43661523 | U29: 42.84599212 | V29: 29.58364564 | W29: 11.22474461 | X29: 27.55165107 | Y29: 5.400681631 | Z29: 337.9719472
A30: Midline Fz & Pz | B30: Fz | C30: ECL | D30: =Raw!B14 -> 10.07982545 | E30: =Raw!C14 -> 7.621385455 | F30: =Raw!D14 -> 6.787963636 | G30: =Raw!E14 -> 14.49190727 | H30: =Raw!F14 -> 11.32347636 | I30: =Raw!G14 -> 6.385450909 | J30: =Raw!H14 -> 5.77238 | K30: =Raw!I14 -> 4.482058182 | L30: =Raw!J14 -> 5.428832727 | M30: =Raw!K14 -> 2.363883636 | N30: 74.73716364 | P30: 101.6028812 | Q30: 58.08551625 | R30: 46.07645033 | S30: 210.0153764 | T30: 128.221117 | U30: 40.77398331 | V30: 33.32037086 | W30: 20.08884555 | X30: 29.47222478 | Y30: =M30^2 -> 5.587945846 | Z30: 673.2447115
C31: EOL | D31: =Raw!B15 -> 9.372996429 | E31: =Raw!C15 -> 7.019982143 | F31: =Raw!D15 -> 6.783683929 | G31: =Raw!E15 -> 9.369246429 | H31: =Raw!F15 -> 5.920628571 | I31: =Raw!G15 -> 6.028339286 | J31: =Raw!H15 -> 5.097275 | K31: =Raw!I15 -> 3.8554375 | L31: =Raw!J15 -> 5.176603571 | M31: =Raw!K15 -> 2.212171429 | N31: 60.83636429 | P31: 87.85306205 | Q31: 49.28014929 | R31: 46.01836764 | S31: 87.78277864 | T31: 35.05384268 | U31: 36.34087454 | V31: 25.98221243 | W31: 14.86439832 | X31: 26.79722454 | Y31: =M31^2 -> 4.893702429 | Z31: 414.8666125
C32: TSKL | D32: =Raw!B16 -> 9.235491667 | E32: =Raw!C16 -> 6.727335 | F32: =Raw!D16 -> 5.481786667 | G32: =Raw!E16 -> 7.842631667 | H32: =Raw!F16 -> 5.42257 | I32: =Raw!G16 -> 5.916538333 | J32: =Raw!H16 -> 4.574363333 | K32: =Raw!I16 -> 3.788355 | L32: =Raw!J16 -> 5.421025 | M32: =Raw!K16 -> 2.215741667 | N32: 56.62583833 | P32: 85.29430633 | Q32: 45.2570362 | R32: 30.04998506 | S32: 61.50687146 | T32: 29.4042654 | U32: 35.00542585 | V32: 20.92479991 | W32: 14.35163361 | X32: 29.38751205 | Y32: 4.909511133 | Z32: 356.091347
B33: Pz | C33: ECR | D33: =Raw!L14 -> 9.265756364 | E33: =Raw!M14 -> 7.179307273 | F33: =Raw!N14 -> 7.087265455 | G33: =Raw!O14 -> 18.69443818 | H33: =Raw!P14 -> 11.91541455 | I33: =Raw!Q14 -> 9.194249091 | J33: =Raw!R14 -> 8.063050909 | K33: =Raw!S14 -> 4.812487273 | L33: =Raw!T14 -> 5.991976364 | M33: =Raw!U14 -> 2.614609091 | N33: 84.81855455 | P33: 85.85424099 | Q33: 51.54245292 | R33: 50.22933162 | S33: 349.4820189 | T33: 141.9771038 | U33: 84.53421635 | V33: 65.01278996 | W33: 23.16003375 | X33: 35.90378074 | Y33: 6.836180698 | Z33: 894.5321498
C34: EOR | D34: =Raw!L15 -> 7.777642857 | E34: =Raw!M15 -> 5.7303 | F34: =Raw!N15 -> 5.65165 | G34: =Raw!O15 -> 10.69037679 | H34: =Raw!P15 -> 6.801830357 | I34: =Raw!Q15 -> 7.31875 | J34: =Raw!R15 -> 6.127066071 | K34: =Raw!S15 -> 4.000355357 | L34: =Raw!T15 -> 5.684314286 | M34: =Raw!U15 -> 2.448801786 | N34: 62.2310875 | P34: 60.49172841 | Q34: 32.83633809 | R34: 31.94114772 | S34: 114.2841558 | T34: 46.26489621 | U34: 53.56410156 | V34: 37.54093864 | W34: 16.00284298 | X34: 32.3114289 | Y34: 5.996630186 | Z34: 431.2342085
C35: TSKR | D35: =Raw!L16 -> 7.094498333 | E35: =Raw!M16 -> 5.453901667 | F35: =Raw!N16 -> 5.120841667 | G35: =Raw!O16 -> 8.541208333 | H35: =Raw!P16 -> 5.85201 | I35: =Raw!Q16 -> 6.625315 | J35: =Raw!R16 -> 5.39446 | K35: =Raw!S16 -> 4.05371 | L35: =Raw!T16 -> 5.803506667 | M35: =Raw!U16 -> 2.423958333 | N35: 56.36341 | P35: 50.3319066 | Q35: 29.74504339 | R35: 26.22301938 | S35: 72.95223979 | T35: 34.24602104 | U35: 43.89479885 | V35: 29.10019869 | W35: 16.43256476 | X35: 33.68068963 | Y35: 5.875574002 | Z35: 342.4820561
A36: Midline Cz & Oz | B36: Cz | C36: ECL | D36: =Raw!B17 -> 9.457848148 | E36: =Raw!C17 -> 7.153157407 | F36: =Raw!D17 -> 6.916868519 | G36: =Raw!E17 -> 15.4358537 | H36: =Raw!F17 -> 11.22296296 | I36: =Raw!G17 -> 7.61292037 | J36: =Raw!H17 -> 6.726877778 | K36: =Raw!I17 -> 4.628127778 | L36: =Raw!J17 -> 5.736688889 | M36: =Raw!K17 -> 2.455933333 | N36: 77.34723889 | P36: 89.45089159 | Q36: 51.1676609 | R36: 47.8430701 | S36: 238.2655796 | T36: 125.9548977 | U36: 57.95655657 | V36: 45.25088464 | W36: 21.41956673 | X36: 32.90959941 | Y36: =M36^2 -> 6.031608538 | Z36: 716.2503157
C37: EOL | D37: =Raw!B18 -> 7.999628571 | E37: =Raw!C18 -> 6.045751786 | F37: =Raw!D18 -> 6.045533929 | G37: =Raw!E18 -> 10.1716625 | H37: =Raw!F18 -> 6.747003571 | I37: =Raw!G18 -> 6.542342857 | J37: =Raw!H18 -> 5.704439286 | K37: =Raw!I18 -> 4.012130357 | L37: =Raw!J18 -> 5.422525 | M37: =Raw!K18 -> 2.248964286 | N37: 60.93998214 | P37: 63.99405728 | Q37: 36.55111465 | R37: 36.54848048 | S37: 103.462718 | T37: 45.52205719 | U37: 42.80225006 | V37: 32.54062756 | W37: 16.09719 | X37: 29.40377738 | Y37: =M37^2 -> 5.057840358 | Z37: 411.980113
C38: TSKL | D38: =Raw!B19 -> 7.66407 | E38: =Raw!C19 -> 5.697375 | F38: =Raw!D19 -> 5.247985 | G38: =Raw!E19 -> 8.445358333 | H38: =Raw!F19 -> 5.567096667 | I38: =Raw!G19 -> 6.283621667 | J38: =Raw!H19 -> 5.066658333 | K38: =Raw!I19 -> 3.838831667 | L38: =Raw!J19 -> 5.478748333 | M38: =Raw!K19 -> 2.198301667 | N38: 55.48804667 | P38: 58.73796896 | Q38: 32.46008189 | R38: 27.54134656 | S38: 71.32407738 | T38: 30.9925653 | U38: 39.48390125 | V38: 25.67102667 | W38: 14.73662857 | X38: 30.0166833 | Y38: 4.832530218 | Z38: 335.7968101
B39: Oz | C39: ECR | D39: =Raw!L17 -> 9.288148148 | E39: =Raw!M17 -> 6.836055556 | F39: =Raw!N17 -> 6.329890741 | G39: =Raw!O17 -> 26.48980926 | H39: =Raw!P17 -> 18.52192778 | I39: =Raw!Q17 -> 8.0318 | J39: =Raw!R17 -> 7.351390741 | K39: =Raw!S17 -> 6.203696296 | L39: =Raw!T17 -> 7.9871 | M39: =Raw!U17 -> 3.909038889 | N39: 100.9488574 | P39: 86.26969602 | Q39: 46.73165556 | R39: 40.06751679 | S39: 701.7099946 | T39: 343.0618086 | U39: 64.50981124 | V39: 54.04294582 | W39: 38.48584774 | X39: 63.79376641 | Y39: 15.28058503 | Z39: 1453.953628
C40: EOR | D40: =Raw!L18 -> 7.209539286 | E40: =Raw!M18 -> 5.933175 | F40: =Raw!N18 -> 5.583419643 | G40: =Raw!O18 -> 10.94306071 | H40: =Raw!P18 -> 7.720317857 | I40: =Raw!Q18 -> 7.455180357 | J40: =Raw!R18 -> 5.678805357 | K40: =Raw!S18 -> 4.724567857 | L40: =Raw!T18 -> 8.218203571 | M40: =Raw!U18 -> 3.747239286 | N40: 67.21350893 | P40: 51.97745671 | Q40: 35.20256558 | R40: 31.17457491 | S40: 119.7505778 | T40: 59.60330782 | U40: 55.57971416 | V40: 32.24883028 | W40: 22.32154144 | X40: 67.53886994 | Y40: 14.04180226 | Z40: 489.4392409
C41: TSKR | D41: =Raw!L19 -> 6.729031667 | E41: =Raw!M19 -> 5.594696667 | F41: =Raw!N19 -> 4.760988333 | G41: =Raw!O19 -> 8.317158333 | H41: =Raw!P19 -> 6.121325 | I41: =Raw!Q19 -> 7.165355 | J41: =Raw!R19 -> 5.204541667 | K41: =Raw!S19 -> 4.916835 | L41: =Raw!T19 -> 8.573643333 | M41: =Raw!U19 -> 3.980965 | N41: 61.36454 | P41: 45.27986717 | Q41: 31.30063079 | R41: 22.66700991 | S41: 69.17512274 | T41: 37.47061976 | U41: 51.34231228 | V41: 27.08725396 | W41: 24.17526642 | X41: 73.50736001 | Y41: 15.84808233 | Z41: 397.8535254
A42: Temporal T3 & T4 | B42: T3 | C42: ECL | D42: =Raw!B20 -> 6.748823729 | E42: =Raw!C20 -> 4.714242373 | F42: =Raw!D20 -> 4.174362712 | G42: =Raw!E20 -> 7.565540678 | H42: =Raw!F20 -> 7.005577966 | I42: =Raw!G20 -> 5.273098305 | J42: =Raw!H20 -> 5.087989831 | K42: =Raw!I20 -> 5.971340678 | L42: =Raw!J20 -> 8.870716949 | M42: =Raw!K20 -> 4.886910169 | N42: =SUM(D42:M42) -> 60.29860339 | P42: 45.54662172 | Q42: 22.22408115 | R42: 17.42530405 | S42: 57.23740575 | T42: 49.07812264 | U42: 27.80556574 | V42: 25.88764052 | W42: 35.65690949 | X42: 78.68961919 | Y42: =M42^2 -> 23.881891 | Z42: 383.4331613
C43: EOL | D43: =Raw!B21 -> 5.771535 | E43: =Raw!C21 -> 4.496968333 | F43: =Raw!D21 -> 4.01077 | G43: =Raw!E21 -> 6.262863333 | H43: =Raw!F21 -> 6.4625 | I43: =Raw!G21 -> 4.562065 | J43: =Raw!H21 -> 5.150091667 | K43: =Raw!I21 -> 5.68584 | L43: =Raw!J21 -> 9.810896667 | M43: =Raw!K21 -> 4.468263333 | N43: 56.68179333 | P43: 33.31061626 | Q43: 20.22272419 | R43: 16.08627599 | S43: 39.22345713 | T43: 41.76390625 | U43: 20.81243706 | V43: 26.52344418 | W43: 32.32877651 | X43: 96.2536934 | Y43: =M43^2 -> 19.96537722 | Z43: 346.4907082
C44: TSKL | D44: =Raw!B22 -> 5.82559 | E44: =Raw!C22 -> 4.29329 | F44: =Raw!D22 -> 3.50563 | G44: =Raw!E22 -> 3.563293333 | H44: =Raw!F22 -> 3.865186667 | I44: =Raw!G22 -> 4.358915 | J44: =Raw!H22 -> 5.475085 | K44: =Raw!I22 -> 5.031836667 | L44: =Raw!J22 -> 10.30236667 | M44: =Raw!K22 -> 4.585196667 | N44: 50.80639 | P44: 33.93749885 | Q44: 18.43233902 | R44: 12.2894417 | S44: 12.69705938 | T44: 14.93966797 | U44: 19.00013998 | V44: 29.97655576 | W44: 25.31938024 | X44: 106.1387589 | Y44: 21.02402847 | Z44: 293.7548703
B45: T4 | C45: ECR | D45: =Raw!L20 -> 10.2825339 | E45: =Raw!M20 -> 7.325333898 | F45: =Raw!N20 -> 6.569988136 | G45: =Raw!O20 -> 13.01520847 | H45: =Raw!P20 -> 8.319333898 | I45: =Raw!Q20 -> 7.84449661 | J45: =Raw!R20 -> 6.512691525 | K45: =Raw!S20 -> 5.030888136 | L45: =Raw!T20 -> 9.289983051 | M45: =Raw!U20 -> 4.440855932 | N45: 78.63131356 | P45: 105.7305034 | Q45: 53.66051672 | R45: 43.1647441 | S45: 169.3956516 | T45: 69.21131651 | U45: 61.53612707 | V45: 42.41515091 | W45: 25.30983543 | X45: 86.30378509 | Y45: 19.72120141 | Z45: 676.4488322
C46: EOR | D46: =Raw!L21 -> 8.257163333 | E46: =Raw!M21 -> 6.876021667 | F46: =Raw!N21 -> 5.89306 | G46: =Raw!O21 -> 11.811735 | H46: =Raw!P21 -> 9.182798333 | I46: =Raw!Q21 -> 6.914398333 | J46: =Raw!R21 -> 6.456118333 | K46: =Raw!S21 -> 5.046291667 | L46: =Raw!T21 -> 8.676456667 | M46: =Raw!U21 -> 4.07767 | N46: 73.19171333 | P46: 68.18074631 | Q46: 47.27967396 | R46: 34.72815616 | S46: 139.5170837 | T46: 84.32378523 | U46: 47.80890431 | V46: 41.68146393 | W46: 25.46505959 | X46: 75.28090029 | Y46: 16.62739263 | Z46: 580.8931661
C47: TSKR | D47: =Raw!L22 -> 7.99257 | E47: =Raw!M22 -> 6.327988333 | F47: =Raw!N22 -> 5.841221667 | G47: =Raw!O22 -> 8.931738333 | H47: =Raw!P22 -> 7.57887 | I47: =Raw!Q22 -> 7.040121667 | J47: =Raw!R22 -> 7.040473333 | K47: =Raw!S22 -> 5.466835 | L47: =Raw!T22 -> 10.86170167 | M47: =Raw!U22 -> 5.254488333 | N47: 72.33600833 | P47: 63.8811752 | Q47: 40.04343635 | R47: 34.11987056 | S47: 79.77594966 | T47: 57.43927048 | U47: 49.56331308 | V47: 49.56826476 | W47: 29.88628492 | X47: 117.9765631 | Y47: 27.60964765 | Z47: 549.8637757
A48: Temporal T5 & T6 | B48: T5 | C48: ECL | D48: =Raw!B23 -> 6.767154237 | E48: =Raw!C23 -> 5.47700339 | F48: =Raw!D23 -> 5.342405085 | G48: =Raw!E23 -> 16.7898339 | H48: =Raw!F23 -> 8.528428814 | I48: =Raw!G23 -> 5.290622034 | J48: =Raw!H23 -> 4.941722034 | K48: =Raw!I23 -> 3.990111864 | L48: =Raw!J23 -> 4.074942373 | M48: =Raw!K23 -> 1.982462712 | N48: 63.18468644 | P48: 45.79437647 | Q48: 29.99756613 | R48: 28.54129209 | S48: 281.8985223 | T48: 72.73409803 | U48: 27.99068151 | V48: 24.42061666 | W48: 15.92099269 | X48: 16.60515534 | Y48: =M48^2 -> 3.930158404 | Z48: 547.8334597
C49: EOL | D49: =Raw!B24 -> 5.555538333 | E49: =Raw!C24 -> 4.6179 | F49: =Raw!D24 -> 4.458323333 | G49: =Raw!E24 -> 7.260288333 | H49: =Raw!F24 -> 5.568196667 | I49: =Raw!G24 -> 4.894563333 | J49: =Raw!H24 -> 4.210936667 | K49: =Raw!I24 -> 3.232526667 | L49: =Raw!J24 -> 4.290865 | M49: =Raw!K24 -> 1.968003333 | N49: 46.05714167 | P49: 30.86400617 | Q49: 21.32500041 | R49: 19.87664694 | S49: 52.71178668 | T49: 31.00481412 | U49: 23.95675022 | V49: 17.73198761 | W49: 10.44922865 | X49: 18.41152245 | Y49: =M49^2 -> 3.87303712 | Z49: 230.2047804
C50: TSKL | D50: =Raw!B25 -> 6.175977586 | E50: =Raw!C25 -> 6.192463793 | F50: =Raw!D25 -> 4.790927586 | G50: =Raw!E25 -> 12.18306724 | H50: =Raw!F25 -> 7.297222414 | I50: =Raw!G25 -> 5.340301724 | J50: =Raw!H25 -> 4.714236207 | K50: =Raw!I25 -> 3.755674138 | L50: =Raw!J25 -> 4.210503448 | M50: =Raw!K25 -> 1.871704138 | N50: 56.53207828 | P50: 38.14269915 | Q50: 38.34660783 | R50: 22.95298714 | S50: 148.4271274 | T50: 53.24945496 | U50: 28.5188225 | V50: 22.22402301 | W50: 14.10508823 | X50: 17.72833929 | Y50: 3.50327638 | Z50: 387.1984259
B51: T6 | C51: ECR | D51: =Raw!L23 -> 9.5569 | E51: =Raw!M23 -> 7.365520339 | F51: =Raw!N23 -> 6.959067797 | G51: =Raw!O23 -> 17.73649661 | H51: =Raw!P23 -> 10.04650847 | I51: =Raw!Q23 -> 7.292869492 | J51: =Raw!R23 -> 6.249728814 | K51: =Raw!S23 -> 5.331166102 | L51: =Raw!T23 -> 9.783740678 | M51: =Raw!U23 -> 5.222133898 | N51: 85.5441322 | P51: 91.33433761 | Q51: 54.25088986 | R51: 48.4286246 | S51: 314.583312 | T51: 100.9323325 | U51: 53.18594542 | V51: 39.05911024 | W51: 28.421332 | X51: 95.72158165 | Y51: 27.27068245 | Z51: 853.1881484
C52: EOR | D52: =Raw!L24 -> 8.256038333 | E52: =Raw!M24 -> 5.64036 | F52: =Raw!N24 -> 5.709645 | G52: =Raw!O24 -> 10.05532 | H52: =Raw!P24 -> 7.185866667 | I52: =Raw!Q24 -> 6.744378333 | J52: =Raw!R24 -> 5.588226667 | K52: =Raw!S24 -> 5.340235 | L52: =Raw!T24 -> 10.15339 | M52: =Raw!U24 -> 5.679421667 | N52: 70.35288167 | P52: 68.16216896 | Q52: 31.81366093 | R52: 32.60004603 | S52: 101.1094603 | T52: 51.63667975 | U52: 45.4866391 | V52: 31.22827728 | W52: 28.51810986 | X52: =L52^2 -> 103.0913285 | Y52: 32.25583047 | Z52: 525.9022012
C53: TSKR | D53: =Raw!L25 -> 9.127532759 | E53: =Raw!M25 -> 8.549436207 | F53: =Raw!N25 -> 6.091227586 | G53: =Raw!O25 -> 15.17502586 | H53: =Raw!P25 -> 9.071163793 | I53: =Raw!Q25 -> 6.974798276 | J53: =Raw!R25 -> 6.053805172 | K53: =Raw!S25 -> 5.210087931 | L53: =Raw!T25 -> 9.615687931 | M53: =Raw!U25 -> 5.179887931 | N53: 81.04865345 | P53: =D53^2 -> 83.31185426 | Q53: 73.09285946 | R53: 37.10305351 | S53: 230.2814099 | T53: 82.28601256 | U53: 48.64781099 | V53: 36.64855707 | W53: 27.14501625 | X53: 92.46145439 | Y53: 26.83123898 | Z53: 737.8092674
A54: Parietal P3 & P4 | B54: P3 | C54: ECF | D54: =Raw!B26 -> 9.212386207 | E54: =Raw!C26 -> 8.106982759 | F54: =Raw!D26 -> 5.99495 | G54: =Raw!E26 -> 18.59213621 | H54: =Raw!F26 -> 9.664901724 | I54: =Raw!G26 -> 7.93147931 | J54: =Raw!H26 -> 6.597543103 | K54: =Raw!I26 -> 4.311001724 | L54: =Raw!J26 -> 4.948098276 | M54: =Raw!K26 -> 2.11551569 | N54: 77.474995 | P54: 84.86805963 | Q54: 65.72316945 | R54: 35.9394255 | S54: 345.6675287 | T54: 93.41032534 | U54: 62.90836405 | V54: 43.527575 | W54: 18.58473587 | X54: 24.48367655 | Y54: =M54^2 -> 4.475406633 | Z54: 779.5882667
C55: EOF | D55: =Raw!B27 -> 7.947947368 | E55: =Raw!C27 -> 6.099177193 | F55: =Raw!D27 -> 5.425219298 | G55: =Raw!E27 -> 10.24844211 | H55: =Raw!F27 -> 6.637166667 | I55: =Raw!G27 -> 6.754150877 | J55: =Raw!H27 -> 5.603631579 | K55: =Raw!I27 -> 3.345591228 | L55: =Raw!J27 -> 4.475838596 | M55: =Raw!K27 -> 2.075114386 | N55: 58.6122793 | P55: 63.16986737 | Q55: 37.19996243 | R55: 29.43300443 | S55: 105.0305656 | T55: 44.05198136 | U55: 45.61855407 | V55: 31.40068687 | W55: 11.19298067 | X55: 20.03313114 | Y55: =M55^2 -> 4.306099715 | Z55: 391.4368336
C56: TSKF | D56: =Raw!B28 -> 6.899375 | E56: =Raw!C28 -> 5.177811667 | F56: =Raw!D28 -> 4.038905 | G56: =Raw!E28 -> 5.996140167 | H56: =Raw!F28 -> 4.584116667 | I56: =Raw!G28 -> 4.465125 | J56: =Raw!H28 -> 3.85391 | K56: =Raw!I28 -> 3.117428333 | L56: =Raw!J28 -> 5.132243333 | M56: =Raw!K28 -> 2.329493667 | N56: 45.59454883 | P56: 47.60137539 | Q56: 26.80973366 | R56: 16.3127536 | S56: 35.9536969 | T56: 21.01412561 | U56: 19.93734127 | V56: 14.85262229 | W56: 9.718359413 | X56: 26.33992163 | Y56: 5.426540743 | Z56: 223.9664705
B57: P4 | C57: ECB | D57: =Raw!L26 -> 9.506456897 | E57: =Raw!M26 -> 8.821677586 | F57: =Raw!N26 -> 6.35357931 | G57: =Raw!O26 -> 19.24139655 | H57: =Raw!P26 -> 9.899306897 | I57: =Raw!Q26 -> 8.772732759 | J57: =Raw!R26 -> 6.937106897 | K57: =Raw!S26 -> 4.552905172 | L57: =Raw!T26 -> 6.077043103 | M57: =Raw!U26 -> 2.716139655 | N57: 82.87834483 | P57: 90.37272273 | Q57: 77.82199543 | R57: 40.36797005 | S57: 370.2313413 | T57: 97.99627703 | U57: 76.96084005 | V57: 48.12345209 | W57: 20.72894551 | X57: 36.93045288 | Y57: 7.377414626 | Z57: 866.9114117
C58: EOB | D58: =Raw!L27 -> 8.927452632 | E58: =Raw!M27 -> 6.701010526 | F58: =Raw!N27 -> 5.521854386 | G58: =Raw!O27 -> 10.83768772 | H58: =Raw!P27 -> 7.285478947 | I58: =Raw!Q27 -> 7.117403509 | J58: =Raw!R27 -> 5.748847368 | K58: =Raw!S27 -> 3.779103509 | L58: =Raw!T27 -> 5.709326316 | M58: =Raw!U27 -> 2.704285965 | N58: 64.33245088 | P58: 79.69941049 | Q58: 44.90354207 | R58: 30.49087586 | S58: 117.4554751 | T58: 53.07820349 | U58: 50.65743271 | V58: 33.04924607 | W58: 14.28162333 | X58: 32.59640698 | Y58: 7.31316258 | Z58: 463.5253787
C59: TSKB | D59: =Raw!L28 -> 7.010493333 | E59: =Raw!M28 -> 5.334466667 | F59: =Raw!N28 -> 4.288813333 | G59: =Raw!O28 -> 6.72903 | H59: =Raw!P28 -> 5.427505 | I59: =Raw!Q28 -> 5.138643333 | J59: =Raw!R28 -> 4.255195 | K59: =Raw!S28 -> 3.633325 | L59: =Raw!T28 -> 6.376363333 | M59: =Raw!U28 -> 3.036728333 | N59: 51.23056333 | P59: 49.14701678 | Q59: 28.45653462 | R59: 18.39391981 | S59: 45.27984474 | T59: 29.45781053 | U59: 26.40565531 | V59: 18.10668449 | W59: 13.20105056 | X59: 40.65800936 | Y59: 9.22171897 | Z59: 278.3282451
A60: Occipital O1 & O2 | B60: O1 | C60: ECL | D60: =Raw!B29 -> 8.238186207 | E60: =Raw!C29 -> 7.147494828 | F60: =Raw!D29 -> 7.401377586 | G60: =Raw!E29 -> 34.66217241 | H60: =Raw!F29 -> 17.17105862 | I60: =Raw!G29 -> 7.579281034 | J60: =Raw!H29 -> 6.992456897 | K60: =Raw!I29 -> 5.982353448 | L60: =Raw!J29 -> 4.726932759 | M60: =Raw!K29 -> 2.00412069 | N60: 101.9054345 | P60: 67.86771198 | Q60: 51.08668231 | R60: 54.78039017 | S60: 1201.466196 | T60: 294.8452542 | U60: 57.445501 | V60: 48.89445345 | W60: 35.78855278 | X60: 22.3438933 | Y60: =M60^2 -> 4.016499739 | Z60: 1838.535135
C61: EOL | D61: =Raw!B30 -> 7.789752632 | E61: =Raw!C30 -> 6.757017544 | F61: =Raw!D30 -> 5.755940351 | G61: =Raw!E30 -> 9.994589474 | H61: =Raw!F30 -> 7.02454386 | I61: =Raw!G30 -> 7.112205263 | J61: =Raw!H30 -> 4.99924386 | K61: =Raw!I30 -> 3.467998246 | L61: =Raw!J30 -> 5.317340351 | M61: =Raw!K30 -> 2.280450702 | N61: 60.49908228 | P61: 60.68024606 | Q61: 45.65728609 | R61: 33.13084932 | S61: 99.89181875 | T61: 49.34421644 | U61: 50.58346371 | V61: 24.99243917 | W61: 12.02701183 | X61: 28.27410841 | Y61: =M61^2 -> 5.200455403 | Z61: 409.7818952
C62: TSKL | D62: =Raw!B31 -> 6.591475926 | E62: =Raw!C31 -> 6.164011111 | F62: =Raw!D31 -> 6.20732963 | G62: =Raw!E31 -> 7.166448148 | H62: =Raw!F31 -> 5.578388889 | I62: =Raw!G31 -> 6.119235185 | J62: =Raw!H31 -> 4.73432037 | K62: =Raw!I31 -> 4.129238889 | L62: =Raw!J31 -> 6.491175926 | M62: =Raw!K31 -> 3.224055556 | N62: 56.40567963 | P62: 43.44755488 | Q62: 37.99503298 | R62: 38.53094113 | S62: 51.35797906 | T62: 31.1184226 | U62: 37.44503925 | V62: 22.41378937 | W62: 17.0506138 | X62: 42.1353649 | Y62: 10.39453423 | Z62: 331.8892722
B63: O2 | C63: ECR | D63: =Raw!L29 -> 8.658922414 | E63: =Raw!M29 -> 7.366403448 | F63: =Raw!N29 -> 7.3641 | G63: =Raw!O29 -> 31.19052759 | H63: =Raw!P29 -> 18.98214828 | I63: =Raw!Q29 -> 8.234398276 | J63: =Raw!R29 -> 7.069544828 | K63: =Raw!S29 -> 6.033289655 | L63: =Raw!T29 -> 5.385232759 | M63: =Raw!U29 -> 2.44962069 | N63: 102.7341879 | P63: 74.97693737 | Q63: 54.26389976 | R63: 54.22996881 | S63: 972.8490111 | T63: 360.3219532 | U63: 67.80531497 | V63: 49.97846407 | W63: 36.40058406 | X63: 29.00073186 | Y63: 6.000641523 | Z63: 1705.827507
C64: EOR | D64: =Raw!L30 -> 7.983094737 | E64: =Raw!M30 -> 6.987880702 | F64: =Raw!N30 -> 6.073494737 | G64: =Raw!O30 -> 10.57170526 | H64: =Raw!P30 -> 7.574447368 | I64: =Raw!Q30 -> 7.334963158 | J64: =Raw!R30 -> 5.161714035 | K64: =Raw!S30 -> 3.701387719 | L64: =Raw!T30 -> 6.136459649 | M64: =Raw!U30 -> 2.885880702 | N64: 64.41102807 | P64: 63.72980158 | Q64: 48.8304767 | R64: 36.88733832 | S64: 111.7609522 | T64: 57.37225294 | U64: 53.80168453 | V64: 26.64329178 | W64: 13.70027105 | X64: 37.65613703 | Y64: 8.328307425 | Z64: 458.7105135
C65: TSKR | D65: =Raw!L31 -> 6.542455556 | E65: =Raw!M31 -> 6.608711111 | F65: =Raw!N31 -> 6.752687037 | G65: =Raw!O31 -> 7.386544444 | H65: =Raw!P31 -> 5.887181481 | I65: =Raw!Q31 -> 6.29855 | J65: =Raw!R31 -> 4.931588889 | K65: =Raw!S31 -> 4.25335 | L65: =Raw!T31 -> 7.231155556 | M65: =Raw!U31 -> 3.487722222 | N65: 59.3799463 | P65: 42.8037247 | Q65: 43.67506255 | R65: 45.59878222 | S65: 54.56103883 | T65: 34.6589058 | U65: 39.6717321 | V65: 24.32056897 | W65: 18.09098622 | X65: 52.28961067 | Y65: 12.1642063 | Z65: 367.8346184
AD68: 2-4 Hz | AE68: 4-6 Hz | AF68: 6-8 Hz | AG68: 8-10 Hz | AH68: 10-12Hz | AI68: 12-15 Hz | AJ68: 15-19 Hz | AK68: 19-23 Hz | AL68: 23-38 Hz | AM68: 38-42 Hz | AN68: Score
A69: Frontal F3 & F4 | B69: Fp1 | C69: EC | D69: =D6/$N6 -> 0.1279217018 | E69: 0.09946026264 | F69: 0.07956082789 | G69: 0.1631638703 | H69: 0.1123278647 | I69: 0.07554378498 | J69: 0.08876004378 | K69: 0.07594112836 | L69: 0.1184356237 | M69: 0.05888489185 | P69: =P6/$Z6 -> 0.1505799402 | Q69: 0.09102860074 | R69: 0.05824749474 | S69: 0.2449777605 | T69: 0.1161057344 | U69: 0.05251412634 | V69: 0.07249593895 | W69: 0.05306800423 | X69: 0.1290753665 | Y69: 0.03190703341 | AB69: F3-F4 | AC69: EC | AD69: =(D12-D15)/((D12+D15)/2) -> -0.1944738063 | AE69: -0.1769636168 | AF69: -0.1228184656 | AG69: -0.1406140934 | AH69: -0.09881605343 | AI69: -0.1541364233 | AJ69: -0.1459132356 | AK69: 0.0533228931 | AL69: -0.03586360029 | AM69: 0.007112244186 | AN69: -6
C70: EO | D70: =D7/$N7 ->  | P70: =P7/$Z7 ->  | Q70: =Q7/$Z7 ->  | AB70: F3-F4 | AC70: EO | AD70: -0.2442962933 | AE70: -0.2071305737 | AF70: -0.1387329253 | AG70: -0.1833436667 | AH70: -0.158332001 | AI70: -0.1353729031 | AJ70: -0.07842878275 | AK70: -0.1210603042 | AL70: 0.01478876374 | AM70: -0.04090281061 | AN70: -7
C71: TSK | D71: =D8/$N8 ->  | P71: =P8/$Z8 ->  | AB71: F7-F8 | AC71: EC | AD71: =(D18-D21)/((D18+D21)/2) -> -0.5699221101 | AE71: -0.4829464433 | AF71: -0.3941510065 | AG71: -0.3348664777 | AH71: -0.1807444384 | AI71: 0.01708208282 | AJ71: 0.4524354913 | AK71: 0.7819912298 | AL71: 0.8832506976 | AM71: 0.8999424945 | AN71: -1
B72: Fp2 | C72: EC | D72: =D9/$N9 -> 0.152912756 | E72: 0.1182437352 | F72: 0.07859094704 | G72: 0.1711607859 | H72: 0.1104284864 | I72: 0.06895595866 | J72: 0.07851582733 | K72: 0.06342853008 | L72: 0.1034363298 | M72: 0.05432664359 | P72: =P9/$Z9 -> 0.2057863812 | Q72: 0.1230510939 | R72: 0.05435934844 | S72: 0.2578325489 | T72: 0.1073226622 | U72: 0.0418478162 | V72: 0.05425548134 | W72: 0.03540776321 | X72: 0.09416194105 | Y72: 0.02597496355 | AB72: F7-F8 | AC72: EO | AD72: -0.4290814778 | AE72: -0.5121590874 | AF72: -0.3642306717 | AG72: -0.4495761519 | AH72: -0.1902608908 | AI72: 0.1528766497 | AJ72: 0.7116548207 | AK72: 0.9907910638 | AL72: 1.137716987 | AM72: 1.198424439 | AN72: 0
C73: EO | D73: =D10/$N10 ->  | P73: =P10/$Z10 ->  | AB73: C3-C4 | AC73: EC | AD73: =(D24-D27)/((D24+D27)/2) -> -0.03005401695 | AE73: -0.03622964253 | AF73: -0.08044194319 | AG73: -0.08020014507 | AH73: -0.05341216539 | AI73: -0.1143419592 | AJ73: -0.1261140028 | AK73: -0.02987309862 | AL73: 0.03837210491 | AM73: 0.06287227534 | AN73: -1
C74: TSK | D74: =D11/$N11 ->  | P74: =P11/$Z11 ->  | Q74: =Q11/$Z11 ->  | Y74: =Y11/$Z11 ->  | AB74: C3-C4 | AC74: EO | AD74: -0.01324271475 | AE74: -0.1312865478 | AF74: -0.07228139871 | AG74: -0.1109837571 | AH74: -0.127753758 | AI74: -0.1557138938 | AJ74: -0.1266555658 | AK74: -0.03606951488 | AL74: 0.01290467979 | AM74: 0.03064100993 | AN74: -4
A75: Frontal F3 & F4 | B75: F3 | C75: EC | D75: =D12/$N12 -> 0.1539981552 | E75: 0.1080261256 | F75: 0.08748249647 | G75: 0.1776332108 | H75: 0.1214644855 | I75: 0.09178621449 | J75: 0.07118595563 | K75: 0.06233731501 | L75: 0.08685358255 | M75: 0.03923245878 | P75: =P12/$Z12 -> 0.2047854002 | Q75: =Q12/$Z12 -> 0.1007686766 | R75: 0.0660861254 | S75: 0.2724684907 | T75: 0.1273991657 | U75: 0.07274830381 | V75: 0.0437579123 | W75: 0.03355553282 | X75: 0.06513935116 | Y75: =Y12/$Z12 -> 0.01329104133 | AB75: T3-T4 | AC75: EC | AD75: =(D42-D45)/((D42+D45)/2) -> -0.4149651774 | AE75: -0.433751399 | AF75: -0.4459320917 | AG75: -0.5295888654 | AH75: -0.1714536363 | AI75: -0.392053318 | AJ75: -0.2456237959 | AK75: 0.1709567322 | AL75: -0.04617290101 | AM75: 0.09564009912 | AN75: -6
C76: EO | D76: =D13/$N13 -> 0.1430895451 | E76: 0.1107307234 | F76: 0.09245057724 | G76: 0.1517472566 | H76: 0.1166689284 | I76: 0.09208210837 | J76: 0.08042069735 | K76: 0.06416758919 | L76: 0.1031175956 | M76: 0.04552497878 | P76: =P13/$Z13 -> 0.1866559783 | Q76: =Q13/$Z13 -> 0.111779554 | R76: 0.07791935567 | S76: 0.2099267563 | T76: 0.1240899233 | U76: 0.07729948627 | V76: 0.05896058281 | W76: 0.03753682574 | X76: 0.09693746413 | Y76: 0.01889407358 | AB76: T3-T4 | AC76: EO | AD76: -0.3543633592 | AE76: -0.4183690188 | AF76: -0.380113552 | AG76: -0.613996678 | AH76: -0.3477464316 | AI76: -0.4099404608 | AJ76: -0.2250565286 | AK76: 0.1191838403 | AL76: 0.1227260581 | AM76: 0.09141033942 | AN76: -6
C77: TSK | D77: 0.1869753493 | E77: 0.1363328074 | F77: 0.0994845129 | G77: 0.08445909005 | H77: 0.08333181163 | I77: 0.08362621689 | J77: 0.07678643695 | K77: 0.07192373381 | L77: 0.1204134146 | M77: 0.05666662649 | P77: =P14/$Z14 -> 0.3085753865 | Q77: 0.1640564582 | R77: 0.08735817068 | S77: 0.06296299402 | T77: 0.06129347191 | U77: 0.06172732776 | V77: 0.05204291416 | W77: 0.04566011756 | X77: 0.1279800628 | Y77: 0.02834309633 | AB77: T5-T6 | AC77: EC | AD77: =(D48-D51)/((D48+D51)/2) -> -0.3417956988 | AE77: =(E48-E51)/((E48+E51)/2) -> -0.2941037119 | AF77: -0.2628405115 | AG77: -0.05483714591 | AH77: -0.1634546203 | AI77: -0.3182340058 | AJ77: -0.2337510654 | AK77: -0.287740424 | AL77: -0.8238587006 | AM77: -0.8993345115 | AN77: -9
B78: F4 | C78: EC | D78: 0.1654524742 | E78: 0.1140291204 | F78: 0.08744981412 | G78: 0.1807690813 | H78: 0.1185306574 | I78: 0.09468522209 | J78: 0.07282953949 | K78: 0.052241532 | L78: 0.07957852955 | M78: 0.03443402934 | P78: 0.2295198099 | Q78: 0.1090197527 | R78: 0.06411969162 | S78: 0.2739819457 | T78: 0.1177972169 | U78: 0.07516887454 | V78: 0.04447221609 | W78: 0.02288260438 | X78: 0.05309644733 | Y78: 0.009941440874 | AB78: T5-T6 | AC78: EO | AD78: =(D49-D52)/((D49+D52)/2) -> -0.3910487651 | AE78: -0.1993437484 | AF78: -0.2461301266 | AG78: -0.3228337824 | AH78: -0.2536713136 | AI78: -0.31786653 | AJ78: -0.2811035908 | AK78: -0.4917221347 | AL78: -0.8117448771 | AM78: -0.9706321627 | AN78: -10
C79: EO | D79: 0.1578892167 | E79: 0.117669282 | F79: 0.09170079243 | G79: 0.1574293756 | H79: 0.1180260079 | I79: 0.09102749509 | J79: 0.0750865411 | K79: 0.06252756241 | L79: 0.08770524852 | M79: 0.04093847825 | P79: 0.2204153967 | Q79: 0.1224230499 | R79: 0.07435037532 | S79: 0.2191333781 | T79: 0.12316645 | U79: 0.07326257378 | V79: 0.04984954349 | W79: 0.0345684562 | X79: 0.06801240854 | Y79: 0.01481836808 | AB79: P3-P4 | AC79: EC | AD79: =(D54-D57)/((D54+D57)/2) -> -0.03141975047 | AE79: =(E54-E57)/((E54+E57)/2) -> -0.08443607622 | AF79: -0.05808453806 | AG79: -0.03432195185 | AH79: -0.02396265312 | AI79: -0.1007235115 | AJ79: -0.0501769596 | AK79: -0.05458167625 | AL79: -0.2047946214 | AM79: -0.2486203682 | AN79: -2
C80: TSK | D80: 0.1808633232 | E80: 0.1341812757 | F80: 0.09847089395 | G80: 0.09863742421 | H80: 0.08602362813 | I80: 0.08184962453 | J80: 0.08171378618 | K80: 0.06664202277 | L80: 0.1167781209 | M80: 0.05483990035 | P80: =P17/$Z17 -> 0.2920561582 | Q80: 0.1607493363 | R80: 0.08657273072 | S80: 0.08686579539 | T80: 0.06606947655 | U80: 0.0598134342 | V80: 0.05961506516 | W80: 0.03965168949 | X80: 0.1217554249 | Y80: =Y17/$Z17 -> 0.026850889 | AB80: P3-P4 | AC80: EO | AD80: =(D55-D58)/((D55+D58)/2) -> -0.116086761 | AE80: -0.09403507926 | AF80: -0.01765496251 | AG80: -0.05588940398 | AH80: -0.09313061593 | AI80: -0.05237374579 | AJ80: -0.02558309778 | AK80: -0.1216928715 | AL80: -0.2422126161 | AM80: -0.2632847356 | AN80: -3
A81: Frontal F7 & F8 | B81: F7 | C81: EC | D81: 0.09895655293 | E81: 0.07243457046 | F81: 0.06189718003 | G81: 0.1255753908 | H81: 0.08703036997 | I81: 0.07406544343 | J81: 0.1017241855 | K81: 0.1093540573 | L81: 0.1790092146 | M81: 0.089953035 | P81: =P18/$Z18 -> 0.08890740604 | Q81: 0.04763658285 | R81: 0.03478488318 | S81: 0.1431719365 | T81: 0.0687686473 | U81: 0.04980581795 | V81: 0.09395010389 | W81: 0.1085721965 | X81: 0.290937429 | Y81: =Y18/$Z18 -> 0.07346499683 | AB81: O1-O2 | AC81: EC | AD81: =(D60-D63)/((D60+D63)/2) -> -0.04979978721 | AE81: =(E60-E63)/((E60+E63)/2) -> -0.03016537894 | AF81: 0.0050492896 | AG81: 0.1054366739 | AH81: -0.1001897099 | AI81: -0.08285449939 | AJ81: -0.01096400535 | AK81: -0.008478315552 | AL81: -0.1301996093 | AM81: -0.2000565197 | AN81: -2
C82: EO | D82: 0.09438937622 | E82: 0.06699159412 | F82: 0.05477813099 | G82: 0.06594763768 | H82: 0.05837242413 | I82: 0.0737434841 | J82: 0.1041263718 | K82: 0.1271511489 | L82: 0.2343327705 | M82: 0.1201670616 | P82: =P19/$Z19 -> 0.07073493485 | Q82: 0.03563102783 | R82: 0.02382331243 | S82: 0.03452917582 | T82: 0.02705223706 | U82: 0.04317526688 | V82: 0.08608137544 | W82: 0.1283595846 | X82: 0.4359671637 | Y82: 0.1146459214 | AB82: O1-O2 | AC82: EO | AD82: =(D61-D64)/((D61+D64)/2) -> -0.02451581515 | AE82: -0.03359255977 | AF82: -0.0536888505 | AG82: -0.05612248554 | AH82: -0.07533445293 | AI82: -0.03083758537 | AJ82: -0.03197930296 | AK82: -0.06510724205 | AL82: -0.1430301382 | AM82: -0.2343752085 | AN82: -2
C83: TSK | D83: 0.08970902559 | E83: 0.05650393164 | F83: 0.04772949259 | G83: 0.09236676802 | H83: 0.07496684507 | I83: 0.06953297052 | J83: 0.1152775721 | K83: 0.1411784422 | L83: 0.2074707002 | M83: 0.105264252 | P83: =P20/$Z20 -> 0.06714822673 | Q83: 0.02663910349 | R83: 0.01900797728 | S83: 0.07118586465 | T83: 0.04689221395 | U83: 0.04034073771 | V83: 0.1108796666 | W83: 0.1663026005 | X83: 0.3591499537 | Y83: 0.09245365543 | AC83: Result: | AD83: T5-T6
B84: F8 | C84: EC | D84: 0.1857410202 | E84: 0.1238269932 | F84: 0.09638749605 | G84: 0.1839164281 | H84: 0.1089644652 | I84: 0.07605010046 | J84: 0.06704685166 | K84: 0.05000720242 | L84: 0.07241885779 | M84: 0.03564058493 | P84: 0.2779629708 | Q84: 0.1235383926 | R84: 0.07485359927 | S84: 0.2725287591 | T84: 0.09566235636 | U84: 0.04659838609 | V84: 0.03621830068 | W84: 0.02014820726 | X84: 0.04225466206 | Y84: 0.01023436584
C85: EO | D85: 0.191227962 | E85: 0.1482008902 | F85: 0.1037325025 | G85: 0.1365147591 | H85: 0.09256087777 | I85: 0.08289727639 | J85: 0.06481841779 | K85: 0.05621538119 | L85: 0.08437405993 | M85: 0.03945787315 | P85: 0.3062521147 | Q85: 0.1839407395 | R85: 0.09011685229 | S85: 0.1560757811 | T85: 0.07175154091 | U85: 0.05755152383 | V85: 0.03518626384 | W85: 0.02646589732 | X85: 0.05962030556 | Y85: 0.01303898086 | AB85: F7-F8 | AC85: EC | AD85: 12.28063846 | AG85: F3-F4 | AH85: EC
C86: TSK | D86: 0.1731897524 | E86: 0.1225135312 | F86: 0.09357195019 | G86: 0.1912765304 | H86: 0.1098816603 | I86: 0.08191500466 | J86: 0.06892924451 | K86: 0.05079699059 | L86: 0.07444260695 | M86: 0.03348272877 | P86: =P23/$Z23 -> 0.2436115127 | Q86: 0.1219050064 | R86: 0.07111231022 | S86: 0.2971507268 | T86: 0.09806270115 | U86: 0.05449797263 | V86: 0.03858872798 | W86: 0.02095701351 | X86: 0.04500871074 | Y86: =Y23/$Z23 -> 0.009105317951 | AB86: F7-F8 | AC86: EO | AD86: 11.74688 | AG86: F3-F4 | AH86: EO
A87: Central C3 & C4 | B87: C3 | C87: EC | D87: 0.1459244849 | E87: 0.1017973405 | F87: 0.08793758959 | G87: 0.1870605398 | H87: 0.13129268 | I87: 0.09846227006 | J87: 0.07598097524 | K87: 0.05918284062 | L87: 0.0759392133 | M87: 0.03642206601 | P87: =P24/$Z24 -> 0.1809434129 | Q87: 0.08805607114 | R87: 0.0657106184 | S87: 0.2973382672 | T87: 0.1464763356 | U87: 0.08238082339 | V87: 0.04905645565 | W87: 0.02976309239 | X87: 0.049002544 | Y87: =Y24/$Z24 -> 0.01127237931 | AB87: F7-F8 | AC87: TSK | AD87: 8.787313158 | AG87: C3-C4 | AH87: EC
C88: EO | D88: 0.1361471366 | E88: 0.1002104186 | F88: 0.09140684248 | G88: 0.1682791345 | H88: 0.1322263124 | I88: 0.09886773817 | J88: 0.08175000061 | K88: 0.06410381076 | L88: 0.08692392602 | M88: 0.04008467995 | P88: =P25/$Z25 -> 0.1648164122 | Q88: 0.08929130798 | R88: 0.07429179409 | S88: 0.251793185 | T88: 0.1554601937 | U88: 0.08691457877 | V88: 0.05942360036 | W88: 0.03653853475 | X88: 0.06718341863 | Y88: 0.01428697461 | AB88: T3-T4 | AC88: EC | AD88: 12.65975085 | AG88: C3-C4 | AH88: EO
C89: TSK | D89: 0.1494375884 | E89: 0.1116227014 | F89: 0.09768391395 | G89: 0.1116552794 | H89: 0.1144336839 | I89: 0.105258857 | J89: 0.08984356469 | K89: 0.06088488224 | L89: 0.1082364526 | M89: 0.05094307647 | P89: =P26/$Z26 -> 0.2085818612 | Q89: 0.1163755897 | R89: 0.08912569762 | S89: 0.1164435299 | T89: 0.1223107406 | U89: 0.1034842214 | V89: 0.07539295876 | W89: 0.03462388354 | X89: 0.1094218209 | Y89: 0.02423969633 | AB89: T3-T4 | AC89: EO | AD89: 12.783865 | AG89: Fz-Pz | AH89: EC
B90: C4 | C90: EC | D90: 0.1422278162 | E90: 0.0998333361 | F90: 0.09014299904 | G90: 0.1917054447 | H90: 0.1309922904 | I90: 0.104420371 | J90: 0.08153636424 | K90: 0.05767313902 | L90: 0.06911978071 | M90: 0.03234845861 | P90: 0.1700851078 | Q90: 0.08380084045 | R90: 0.06832210082 | S90: 0.309005423 | T90: 0.144274201 | U90: 0.09167853612 | V90: 0.05589846605 | W90: 0.02796690362 | X90: 0.04017000719 | Y90: 0.008798413917 | AB90: T3-T4 | AC90: TSK | AD90: 13.55532 | AG90: Fz-Pz | AH90: EO
C91: EO | D91: =D28/$N28 -> 0.1267628272 | E91: 0.105013248 | F91: 0.09028505786 | G91: 0.172787194 | H91: 0.1380728749 | I91: 0.1061816594 | J91: 0.08527061008 | K91: 0.06106360226 | L91: 0.07884368378 | M91: 0.03571924252 | P91: 0.1410360438 | Q91: 0.09679088608 | R91: 0.0715447952 | S91: 0.262041084 | T91: 0.167325842 | U91: 0.09895672173 | V91: 0.06381826953 | W91: 0.03272737137 | X91: 0.0545607207 | Y91: 0.01119826562 | AB91: T5-T6 | AC91: EC | AD91: 18.94807627 | AG91: Cz-Oz | AH91: EC
C92: TSK | D92: 0.1386876621 | E92: 0.1120587404 | F92: 0.09786888818 | G92: 0.1203169789 | H92: 0.1217574618 | I92: 0.1169554353 | J92: 0.0971831907 | K92: 0.05986231971 | L92: 0.09378623951 | M92: 0.04152308343 | P92: =P29/$Z29 -> 0.1782643027 | Q92: 0.116380496 | R92: 0.08877241604 | S92: 0.1341660295 | T92: 0.1373978391 | U92: 0.1267738121 | V92: 0.08753284372 | W92: 0.03321206007 | X92: 0.08152052646 | Y92: =Y29/$Z29 -> 0.01597967427 | AB92: T5-T6 | AC92: EO | AD92: 19.66597833 | AG92: Cz-Oz | AH92: EO
A93: Midline Fz & Pz | B93: Fz | C93: EC | D93: 0.1348703237 | E93: 0.1019758455 | F93: 0.09082447481 | G93: 0.1939049673 | H93: 0.1515106516 | I93: 0.08543876431 | J93: 0.07723573814 | K93: 0.05997094302 | L93: 0.07263899863 | M93: 0.03162929286 | P93: =P30/$Z30 -> 0.1509152311 | Q93: 0.08627697367 | R93: 0.06843937953 | S93: 0.3119450815 | T93: 0.1904524681 | U93: 0.06056339191 | V93: 0.0494922133 | W93: 0.02983884641 | X93: 0.04377639256 | Y93: =Y30/$Z30 -> 0.008300021895 | AB93: T5-T6 | AC93: TSK | AD93: 17.15720069 | AG93: T3-T4 | AH93: EC
C94: EO | D94: 0.1540689773 | E94: 0.1153912175 | F94: 0.1115070568 | G94: 0.1540073365 | H94: 0.09732055229 | I94: 0.09909105116 | J94: 0.08378664734 | K94: 0.06337389726 | L94: 0.08509061368 | M94: 0.03636265011 | P94: =P31/$Z31 -> 0.2117621891 | Q94: 0.1187855272 | R94: 0.1109232853 | S94: 0.211592777 | T94: 0.08449424856 | U94: 0.08759652728 | V94: 0.06262787036 | W94: 0.03582934338 | X94: 0.06459238638 | Y94: 0.01179584541 | AC94: Result: | AG94: T3-T4 | AH94: EO
C95: TSK | D95: 0.1630967759 | E95: 0.1188032742 | F95: 0.09680716132 | G95: 0.138499171 | H95: 0.09576140786 | I95: 0.1044847813 | J95: 0.08078226244 | K95: 0.06690152608 | L95: 0.09573412349 | M95: 0.03912951635 | P95: =P32/$Z32 -> 0.2395292866 | Q95: 0.1270938948 | R95: 0.08438841694 | S95: 0.1727277902 | T95: 0.08257506298 | U95: 0.09830462365 | V95: 0.05876244981 | W95: 0.04030323603 | X95: 0.08252801507 | Y95: 0.01378722391 | AG95: P3-P4 | AH95: EC
B96: Pz | C96: EC | D96: 0.1092420923 | E96: 0.08464312215 | F96: 0.08355796078 | G96: 0.220405055 | H96: 0.1404812262 | I96: 0.1083990306 | J96: 0.09506234753 | K96: 0.05673861455 | L96: 0.07064464133 | M96: 0.03082590955 | P96: 0.09597669688 | Q96: 0.05761945273 | R96: 0.05615151075 | S96: 0.3906869295 | T96: 0.1587166027 | U96: 0.09450103763 | V96: 0.07267798031 | W96: 0.02589066671 | X96: 0.04013693723 | Y96: 0.007642185583 | AG96: P3-P4 | AH96: EO
C97: EO | D97: 0.1249800248 | E97: 0.09208098766 | F97: 0.09081714987 | G97: 0.1717851514 | H97: 0.109299558 | I97: 0.1176060116 | J97: 0.09845667684 | K97: 0.06428226659 | L97: 0.09134203682 | M97: 0.03935013647 | P97: 0.1402758112 | Q97: 0.07614502152 | R97: 0.07406914176 | S97: 0.2650164425 | T97: 0.1072848473 | U97: 0.1242111607 | V97: 0.08705463969 | W97: 0.03710940057 | X97: 0.07492779622 | Y97: 0.01390573862 | AH97: Result:
C98: TSK | D98: 0.1258706372 | E98: 0.09676316012 | F98: 0.09085400735 | G98: 0.1515381758 | H98: 0.1038264009 | I98: 0.1175463834 | J98: 0.09570854567 | K98: 0.07192095013 | L98: 0.1029658544 | M98: 0.04300588508 | P98: =P35/$Z35 -> 0.1469621713 | Q98: 0.08685139223 | R98: 0.07656757166 | S98: 0.2130104001 | T98: 0.09999362135 | U98: 0.1281667114 | V98: 0.08496853534 | W98: 0.04798080504 | X98: 0.09834293221 | Y98: =Y35/$Z35 -> 0.0171558594
A99: Midline Cz & Oz | B99: Cz | C99: EC | D99: 0.1222777734 | E99: 0.09248109577 | F99: 0.08942618532 | G99: 0.199565672 | H99: 0.1450984305 | I99: 0.09842523766 | J99: 0.08696985018 | K99: 0.05983572063 | L99: 0.07416798545 | M99: 0.03175204918 | P99: =P36/$Z36 -> 0.1248877517 | Q99: 0.07143823852 | R99: 0.06679657803 | S99: 0.332656858 | T99: 0.1758531828 | U99: 0.08091662272 | V99: 0.06317747252 | W99: 0.02990514106 | X99: 0.04594706444 | Y99: =Y36/$Z36 -> 0.008421090233
C100: EO | D100: 0.1312706091 | E100: 0.09920829598 | F100: 0.09920472104 | G100: 0.166912791 | H100: 0.1107155489 | I100: 0.1073571509 | J100: 0.09360749848 | K100: 0.06583740618 | L100: 0.0889814012 | M100: 0.03690457737 | P100: =P37/$Z37 -> 0.1553328796 | Q100: 0.0887205802 | R100: 0.08871418627 | S100: 0.2511352241 | T100: 0.1104957636 | U100: 0.1038939714 | V100: 0.07898591835 | W100: 0.03907273554 | X100: 0.07137183677 | Y100: 0.01227690415
C101: TSK | D101: 0.1381210992 | E101: 0.1026775196 | F101: 0.0945786582 | G101: 0.1522013991 | H101: 0.1003296566 | I101: 0.1132427981 | J101: 0.09131080724 | K101: 0.06918303846 | L101: 0.0987374518 | M101: 0.03961757169 | P101: =P38/$Z38 -> 0.1749211642 | Q101: 0.0966658435 | R101: 0.08201789217 | S101: 0.2124024864 | T101: 0.09229559175 | U101: 0.1175827169 | V101: 0.07644809568 | W101: 0.04388555258 | X101: 0.0893894236 | Y101: 0.01439123325
B102: Oz | C102: EC | D102: 0.09200845246 | E102: 0.06771800822 | F102: 0.06270393646 | G102: 0.2624082128 | H102: 0.1834783301 | I102: 0.07956306001 | J102: 0.07282292172 | K102: 0.06145385352 | L102: 0.07912026154 | M102: 0.03872296318 | P102: 0.05933455811 | Q102: 0.03214109079 | R102: 0.02755763047 | S102: 0.4826219909 | T102: 0.2359509974 | U102: 0.04436854794 | V102: 0.03716964887 | W102: 0.02646979037 | X102: 0.04387606674 | Y102: 0.0105096784
C103: EO | D103: 0.1072632481 | E103: 0.08827354939 | F103: 0.08306990264 | G103: 0.1628104363 | H103: 0.1148625921 | I103: 0.1109178865 | J103: 0.08448904763 | K103: 0.07029193881 | L103: 0.1222701166 | M103: 0.05575128193 | P103: 0.1061979759 | Q103: 0.07192428118 | R103: 0.0636944738 | S103: 0.244668935 | T103: 0.1217787681 | U103: 0.1135579445 | V103: 0.06588934354 | W103: 0.0456063584 | X103: 0.1379923478 | Y103: 0.02868957184
C104: TSK | D104: 0.109656679 | E104: 0.09117149198 | F104: 0.07758533403 | G104: 0.1355368806 | H104: 0.09975345696 | I104: 0.1167670286 | J104: 0.08481350413 | K104: 0.08012502008 | L104: 0.1397165746 | M104: 0.06487402986 | P104: =P41/$Z41 -> 0.1138103957 | Q104: 0.07867375503 | R104: 0.05697325389 | S104: 0.1738708302 | T104: 0.09418194729 | U104: 0.1290482778 | V104: 0.06808348358 | W104: 0.06076423828 | X104: 0.1847598559 | Y104: =Y41/$Z41 -> 0.0398339623
A105: Temporal T3 & T4 | B105: T3 | C105: EC | D105: 0.1119233838 | E105: 0.07818161795 | F105: 0.06922818237 | G105: 0.1254679255 | H105: 0.11618143 | I105: 0.08744975851 | J105: 0.08437989513 | K105: 0.09902950222 | L105: 0.1471131411 | M105: 0.08104516348 | P105: =P42/$Z42 -> 0.1187863396 | Q105: 0.05796076969 | R105: 0.04544547997 | S105: 0.1492760969 | T105: 0.1279965522 | U105: 0.07251737342 | V105: 0.06751539285 | W105: 0.09299380725 | X105: 0.2052238229 | Y105: =Y42/$Z42 -> 0.06228436509
C106: EO | D106: 0.1018234368 | E106: 0.07933708637 | F106: 0.07075940552 | G106: 0.1104916229 | H106: 0.1140136827 | I106: 0.08048554451 | J106: 0.09085971639 | K106: 0.1003115757 | L106: 0.1730872665 | M106: 0.07883066273 | P106: =P43/$Z43 -> 0.09613711268 | Q106: 0.05836440549 | R106: 0.04642628392 | S106: 0.1132020461 | T106: 0.1205339862 | U106: 0.06006636418 | V106: 0.07654878918 | W106: 0.09330344434 | X106: 0.2777958864 | Y106: 0.05762168146
C107: TSK | D107: =D44/$N44 -> 0.1146625454 | E107: 0.08450295327 | F107: 0.06899978526 | G107: 0.07013474749 | H107: 0.07607678221 | I107: 0.0857946215 | J107: 0.1077637085 | K107: 0.09903944497 | L107: 0.2027769866 | M107: 0.09024842479 | P107: =P44/$Z44 -> 0.1155299955 | Q107: 0.06274734783 | R107: 0.04183570364 | S107: 0.0432233153 | T107: 0.05085760094 | U107: 0.0646802552 | V107: 0.1020461575 | W107: 0.08619220582 | X107: 0.3613174441 | Y107: 0.07156997414
B108: T4 | C108: EC | D108: 0.1307689447 | E108: 0.09316051795 | F108: 0.08355434798 | G108: 0.1655219516 | H108: 0.1058017922 | I108: 0.09976301113 | J108: 0.08282567378 | K108: 0.06398072101 | L108: 0.1181461002 | M108: 0.05647693942 | P108: 0.1563022927 | Q108: 0.07932679334 | R108: 0.06381080437 | S108: 0.250419017 | T108: 0.1023156715 | U108: 0.09096937438 | V108: 0.06270267444 | W108: 0.03741574266 | X108: 0.1275836116 | Y108: 0.02915401797
C109: EO | D109: 0.1128155492 | E109: 0.09394535738 | F109: 0.08051539897 | G109: 0.1613807692 | H109: 0.1254622677 | I109: 0.09446968814 | J109: 0.08820832358 | K109: 0.06894621586 | L109: 0.1185442487 | M109: 0.05571218126 | P109: 0.1173722645 | Q109: 0.08139134133 | R109: 0.05978406734 | S109: 0.2401768377 | T109: 0.1451622951 | U109: 0.08230240447 | V109: 0.07175409587 | W109: 0.04383776754 | X109: 0.1295950868 | Y109: 0.02862383928
C110: TSK | D110: 0.1104922733 | E110: 0.08748047451 | F110: 0.08075123028 | G110: 0.1234756871 | H110: 0.1047731299 | I110: 0.09732527173 | J110: 0.0973301333 | K110: 0.07557556915 | L110: 0.1501562212 | M110: 0.07264000951 | P110: =P47/$Z47 -> 0.1161763659 | Q110: 0.07282428506 | R110: 0.06205149723 | S110: 0.1450831154 | T110: 0.1044609102 | U110: 0.09013743998 | V110: 0.09014644525 | W110: 0.05435216182 | X110: 0.2145559833 | Y110: =Y47/$Z47 -> 0.05021179584
A111: Temporal T5 & T6 | B111: T5 | C111: EC | D111: 0.1071011762 | E111: 0.08668244947 | F111: 0.08455221329 | G111: 0.2657263151 | H111: 0.134976199 | I111: 0.08373266264 | J111: 0.07821075505 | K111: 0.06314998284 | L111: 0.06449256303 | M111: 0.03137568331 | P111: =P48/$Z48 -> 0.08359178444 | Q111: 0.05475672507 | R111: 0.05209848283 | S111: 0.5145697426 | T111: 0.1327668048 | U111: 0.05109341354 | V111: 0.04457671621 | W111: 0.0290617384 | X111: 0.03031058992 | Y111: =Y48/$Z48 -> 0.007174002125
C112: EO | D112: 0.1206227337 | E112: 0.1002645808 | F112: 0.09679982674 | G112: 0.1576365374 | H112: 0.1208975734 | I112: 0.1062715391 | J112: 0.091428528 | K112: 0.07018513415 | L112: 0.09316394472 | M112: 0.04272960201 | P112: =P49/$Z49 -> 0.1340719603 | Q112: 0.09263491564 | R112: 0.08634332837 | S112: 0.228977811 | T112: 0.1346836242 | U112: 0.1040671275 | V112: 0.07702701734 | W112: 0.04539101505 | X112: 0.07997888844 | Y112: 0.01682431231
C113: TSK | D113: 0.1092473119 | E113: 0.1095389376 | F113: 0.08474706277 | G113: 0.215507153 | H113: 0.1290810923 | I113: 0.09446498142 | J113: 0.08339046344 | K113: 0.06643439004 | L113: 0.07447989843 | M113: 0.03310870916 | P113: =P50/$Z50 -> 0.09850943753 | Q113: 0.09903606333 | R113: 0.05927964992 | S113: 0.3833360817 | T113: 0.1375249779 | U113: 0.07365428317 | V113: 0.05739698699 | W113: 0.03642857844 | X113: 0.04578618636 | Y113: 0.009047754706
B114: T6 | C114: EC | D114: 0.1117189427 | E114: 0.08610199378 | F114: 0.08135061538 | G114: 0.2073373843 | H114: 0.1174424033 | I114: 0.08525271464 | J114: 0.07305853309 | K114: 0.06232065209 | L114: 0.1143706813 | M114: 0.06104607954 | P114: 0.1070506403 | Q114: 0.06358608001 | R114: 0.05676195185 | S114: 0.3687150514 | T114: 0.1183002046 | U114: 0.06233788587 | V114: 0.04578018379 | W114: 0.03331191609 | X114: 0.1121928168 | Y114: 0.03196326918
C115: EO | D115: 0.1173518147 | E115: 0.08017240895 | F115: 0.08115723002 | G115: 0.1429269102 | H115: 0.1021403317 | I115: 0.09586499051 | J115: 0.07943138269 | K115: 0.07590641454 | L115: 0.1443208829 | M115: 0.08072763378 | P115: 0.1296099708 | Q115: 0.06049349263 | R115: 0.06198879935 | S115: 0.1922590552 | T115: 0.0981868485 | U115: 0.0864925817 | V115: 0.05938038899 | W115: 0.05422702128 | X115: 0.1960275661 | Y115: 0.06133427545
C116: TSK | D116: 0.1126179445 | E116: 0.1054852344 | F116: 0.07515519786 | G116: 0.1872335346 | H116: 0.1119224491 | I116: 0.08605692975 | J116: 0.07469347009 | K116: 0.06428346073 | L116: 0.1186409338 | M116: 0.06391084504 | P116: =P53/$Z53 -> 0.1129178745 | Q116: 0.09906741849 | R116: 0.05028813699 | S116: 0.3121150955 | T116: 0.1115274858 | U116: 0.06593548379 | V116: 0.04967212895 | W116: 0.03679137339 | X116: 0.1253189116 | Y116: =Y53/$Z53 -> 0.03636609103
A117: Parietal P3 & P4 | B117: P3 | C117: EC | D117: 0.1189078645 | E117: 0.1046399907 | F117: 0.07737915956 | G117: 0.2399759588 | H117: 0.1247486589 | I117: 0.1023746992 | J117: 0.08515706395 | K117: 0.0556437819 | L117: 0.06386703576 | M117: 0.02730578672 | P117: =P54/$Z54 -> 0.1088626692 | Q117: 0.08430497514 | R117: 0.04610052131 | S117: 0.4433975516 | T117: 0.119820076 | U117: 0.08069434435 | V117: 0.05583405608 | W117: 0.02383916826 | X117: 0.03140590693 | Y117: =Y54/$Z54 -> 0.005740731132
C118: EO | D118: 0.1356020865 | E118: 0.1040597169 | F118: 0.09256113844 | G118: 0.1748514514 | H118: 0.1132385013 | I118: 0.1152344007 | J118: 0.09560507877 | K118: 0.05708003968 | L118: 0.0763634967 | M118: 0.03540408957 | P118: =P55/$Z55 -> 0.1613794665 | Q118: 0.0950343944 | R118: 0.0751922198 | S118: 0.2683205988 | T118: 0.1125391828 | U118: 0.1165412913 | V118: 0.08021903963 | W118: 0.02859460251 | X118: 0.05117845185 | Y118: 0.01100075247
C119: TSK | D119: 0.1513201726 | E119: 0.113562077 | F119: 0.08858306757 | G119: 0.131510023 | H119: 0.1005408932 | I119: 0.09793111489 | J119: 0.08452567464 | K119: 0.06837282993 | L119: 0.112562652 | M119: 0.05109149506 | P119: =P56/$Z56 -> 0.2125379539 | Q119: 0.1197042289 | R119: 0.07283569528 | S119: 0.1605316047 | T119: 0.09382710531 | U119: 0.08901931267 | V119: 0.06631627607 | W119: 0.04339202824 | X119: 0.1176065398 | Y119: 0.02422925508
B120: P4 | C120: EC | D120: 0.1147037494 | E120: 0.1064412858 | F120: 0.07666151301 | G120: 0.2321643439 | H120: 0.1194438296 | I120: 0.1058507235 | J120: 0.08370228569 | K120: 0.05493479849 | L120: 0.07332486087 | M120: 0.03277260979 | P120: 0.1042467794 | Q120: 0.08976925945 | R120: 0.04656527704 | S120: 0.4270694056 | T120: 0.1130407049 | U120: 0.08877589915 | V120: 0.0555113838 | W120: 0.02391126155 | X120: 0.04260003085 | Y120: 0.008509998285
C121: EO | D121: 0.1387705973 | E121: 0.1041622142 | F121: 0.08583311083 | G121: 0.1684637779 | H121: 0.1132473402 | I121: 0.1106347327 | J121: 0.08936154756 | K121: 0.05874334737 | L121: 0.08874722225 | M121: 0.04203610974 | P121: 0.1719418486 | Q121: 0.09687396665 | R121: 0.06578038067 | S121: 0.2533959962 | T121: 0.114509811 | U121: 0.1092872905 | V121: 0.07129975528 | W121: 0.03081087679 | X121: 0.07032280967 | Y121: 0.01577726467
C122: TSK | D122: 0.1368420114 | E122: 0.1041266447 | F122: 0.08371591203 | G122: 0.1313479603 | H122: 0.1059427156 | I122: 0.100304252 | J122: 0.08305969568 | K122: 0.07092104329 | L122: 0.1244640488 | M122: 0.05927571621 | P122: =P59/$Z59 -> 0.1765793362 | Q122: 0.1022409156 | R122: 0.06608714756 | S122: 0.1626850509 | T122: 0.1058383798 | U122: 0.09487235222 | V122: 0.06505514551 | W122: 0.04742979121 | X122: 0.1460793508 | Y122: =Y59/$Z59 -> 0.03313253014
A123: Occipital O1 & O2 | B123: O1 | C123: EC | D123: =D60/$N60 -> 0.08084148062 | E123: 0.07013850502 | F123: 0.07262986144 | G123: 0.3401405685 | H123: 0.1684999304 | I123: 0.07437563142 | J123: 0.0686171148 | K123: 0.05870495012 | L123: 0.04638548261 | M123: 0.0196664751 | P123: =P60/$Z60 -> 0.03691401414 | Q123: 0.0277866228 | R123: 0.02979567217 | S123: 0.6534910176 | T123: 0.1603696598 | U123: 0.03124525602 | V123: 0.02659424479 | W123: 0.01946579758 | X123: 0.01215309562 | Y123: =Y60/$Z60 -> 0.002184619517
C124: EO | D124: 0.128758195 | E124: 0.1116879346 | F124: 0.09514095312 | G124: 0.165202332 | H124: 0.1161099242 | I124: 0.117558895 | J124: 0.08263338337 | K124: 0.05732315458 | L124: 0.08789125637 | M124: 0.03769397181 | P124: =P61/$Z61 -> 0.1480793729 | Q124: 0.1114185049 | R124: 0.08084995875 | S124: 0.243768258 | T124: 0.1204158042 | U124: 0.1234399672 | V124: 0.06098961292 | W124: 0.0293497882 | X124: 0.06899794437 | Y124: 0.0126907886
C125: TSK | D125: 0.1168583726 | E125: 0.1092799724 | F125: 0.1100479539 | G125: 0.127051889 | H125: 0.09889764516 | I125: 0.1084861529 | J125: 0.08393339822 | K125: 0.07320608343 | L125: 0.1150801829 | M125: 0.0571583496 | P125: =P62/$Z62 -> 0.1309097899 | Q125: 0.1144810518 | R125: 0.1160957716 | S125: 0.1547443179 | T125: 0.09376145963 | U125: 0.1128238915 | V125: 0.06753393751 | W125: 0.05137440475 | X125: 0.1269560918 | Y125: 0.03131928356
B126: O2 | C126: EC | D126: 0.08428472146 | E126: 0.07170352535 | F126: 0.07168110391 | G126: 0.3036041674 | H126: 0.1847695364 | I126: 0.08015246377 | J126: 0.06881394568 | K126: 0.05872718495 | L126: 0.05241909112 | M126: 0.02384426002 | P126: 0.04395341092 | Q126: 0.03181089503 | R126: 0.03179100384 | S126: 0.5703091358 | T126: 0.2112300052 | U126: 0.03974922124 | V126: 0.0292986623 | W126: 0.02133895949 | X126: 0.01700097563 | Y126: 0.003517730544
C127: EO | D127: 0.1239398745 | E127: 0.1084888863 | F127: 0.09429277748 | G127: 0.1641288081 | H127: 0.1175955049 | I127: 0.1138774427 | J127: 0.08013711611 | K127: 0.05746512407 | L127: 0.09527032611 | M127: 0.04480413973 | P127: 0.1389325069 | Q127: 0.1064516188 | R127: 0.08041528858 | S127: 0.2436415754 | T127: 0.1250728973 | U127: 0.1172889719 | V127: 0.05808301967 | W127: 0.02986692183 | X127: 0.08209128833 | Y127: 0.01815591136
C128: TSK | D128: 0.1101795465 | E128: 0.1112953366 | F128: 0.1137199923 | G128: 0.1243945962 | H128: 0.0991442709 | I128: 0.1060720057 | J128: 0.0830514205 | K128: 0.07162940126 | L128: 0.1217777382 | M128: 0.05873569176 | P128: =P65/$Z65 -> 0.1163667653 | Q128: 0.1187355958 | R128: 0.1239654452 | S128: 0.1483303531 | T128: 0.09422415419 | U128: 0.1078520893 | V128: 0.0661182166 | W128: 0.04918239154 | X128: 0.1421552188 | Y128: =Y65/$Z65 -> 0.0330697702
A130: Frontal Fp1 & Fp2 | B130: Fp1 | C130: EC | D130: =(D6-D9) -> -2.244508824 | E130: =(E6-E9) -> -1.691397059 | F130: -0.02530882353 | G130: -0.8807852941 | H130: 0.008264705882 | I130: 0.44635 | J130: 0.7322705882 | K130: 0.9376058824 | L130: 1.087497059 | M130: 0.3000411765
C131: EO | D131: =(D7-D10) -> 0 | E131: 0 | F131: 0 | G131: 0 | H131: 0 | I131: 0 | J131: 0 | K131: 0 | L131: 0 | M131: 0
C132: TSK | D132: =(D8-D11) -> 0 | E132: 0 | F132: 0 | G132: 0 | H132: 0 | I132: 0 | J132: 0 | K132: 0 | L132: 0 | M132: 0
A133: Frontal F3 & F4 | B133: F3 | C133: EC | D133: =(D12-D15) -> -2.415348718 | E133: -1.526948718 | F133: -0.8334615385 | G133: -1.956097436 | H133: -0.9193051282 | I133: -1.116066667 | J133: -0.8157666667 | K133: 0.2357282051 | L133: -0.2309282051 | M133: 0.02024358974
C134: EO | D134: =(D13-D16) -> -2.348708333 | E134: -1.509104167 | F134: -0.8128979167 | G134: -1.80663125 | H134: -1.183227083 | I134: -0.788625 | J134: -0.38720625 | K134: -0.4877083333 | L134: 0.0892875 | M134: -0.112125
C135: TSK | D135: =(D14-D17) -> -0.7981301887 | E135: -0.7167150943 | F135: -0.5555283019 | G135: -1.350841509 | H135: -0.6723396226 | I135: -0.4129226415 | J135: -0.7625867925 | K135: -0.1356849057 | L135: -0.5315924528 | M135: -0.2433886792
A136: Frontal F7 & F8 | B136: F8 | C136: EC | D136: =(D18-D21) -> -6.969928205 | E136: =(E18-E21) -> -4.075415385 | F136: -2.685076923 | G136: -4.463289744 | H136: -1.528164103 | I136: 0.1108564103 | J136: 3.316738462 | K136: 5.432615385 | L136: 9.691810256 | M136: 4.933658974
C137: EO | D137: =(D19-D22) -> -4.761984 | E137: -4.25939 | F137: -2.252892 | G137: -3.532082 | H137: -1.133496 | I137: 0.967218 | J137: 5.047478 | K137: 7.780276 | L137: 15.693948 | M137: 8.316464
C138: TSK | D138: =(D20-D23) -> -4.536518421 | E138: -3.965478947 | F138: -2.531376316 | G138: -5.740021053 | H138: -0.9154526316 | I138: 0.8014526316 | J138: 6.847289474 | K138: 11.16000526 | L138: 16.41740263 | M138: 8.683457895
A139: Central C3 & C4 | B139: C3 | C139: EC | D139: =(D24-D27) -> -0.3026421053 | E139: =(E24-E27) -> -0.2553070175 | F139: -0.5009666667 | G139: -1.062317544 | H139: -0.4897333333 | I139: -0.8116438596 | J139: -0.6951491228 | K139: -0.1219929825 | L139: 0.1943350877 | M139: 0.1509052632
C140: EO | D140: =(D25-D28) -> -0.1128440678 | E140: -0.8754440678 | F140: -0.4261864407 | G140: -1.22939661 | H140: -1.121932203 | I140: -1.037986441 | J140: -0.6872779661 | K140: -0.1463983051 | L140: 0.06929491525 | M140: 0.07521186441
C141: TSK | D141: =(D26-D29) -> -0.002181666667 | E141: -0.4754333333 | F141: -0.40506 | G141: -0.9359333333 | H141: -0.87228 | I141: -1.079941667 | J141: -0.7738066667 | K141: -0.188785 | L141: 0.3713933333 | M141: 0.3213683333
A142: Midline Fz & Pz | B142: Fz | C142: EC | D142: =(D30-D33) -> 0.8140690909 | E142: =(E30-E33) -> 0.4420781818 | F142: -0.2993018182 | G142: -4.202530909 | H142: -0.5919381818 | I142: -2.808798182 | J142: -2.290670909 | K142: -0.3304290909 | L142: -0.5631436364 | M142: -0.2507254545
C143: EO | D143: =(D31-D34) -> 1.595353571 | E143: 1.289682143 | F143: 1.132033929 | G143: -1.321130357 | H143: -0.8812017857 | I143: -1.290410714 | J143: -1.029791071 | K143: -0.1449178571 | L143: -0.5077107143 | M143: -0.2366303571
C144: TSK | D144: =(D32-D35) -> 2.140993333 | E144: 1.273433333 | F144: 0.360945 | G144: -0.6985766667 | H144: -0.42944 | I144: -0.7087766667 | J144: -0.8200966667 | K144: -0.265355 | L144: -0.3824816667 | M144: -0.2082166667
A145: Midline Cz & Oz | B145: Cz | C145: EC | D145: =(D36-D39) -> 0.1697 | E145: =(E36-E39) -> 0.3171018519 | F145: 0.5869777778 | G145: -11.05395556 | H145: -7.298964815 | I145: -0.4188796296 | J145: -0.624512963 | K145: -1.575568519 | L145: -2.250411111 | M145: -1.453105556
C146: EO | D146: =(D37-D40) -> 0.7900892857 | E146: 0.1125767857 | F146: 0.4621142857 | G146: -0.7713982143 | H146: -0.9733142857 | I146: -0.9128375 | J146: 0.02563392857 | K146: -0.7124375 | L146: -2.795678571 | M146: -1.498275
C147: TSK | D147: =(D38-D41) -> 0.9350383333 | E147: 0.1026783333 | F147: 0.4869966667 | G147: 0.1282 | H147: -0.5542283333 | I147: -0.8817333333 | J147: -0.1378833333 | K147: -1.078003333 | L147: -3.094895 | M147: -1.782663333
A148: Temporal T3 & T4 | B148: T3 | C148: EC | D148: =(D42-D45) -> -3.533710169 | E148: =(E42-E45) -> -2.611091525 | F148: -2.395625424 | G148: -5.449667797 | H148: -1.313755932 | I148: -2.571398305 | J148: -1.424701695 | K148: 0.9404525424 | L148: -0.4192661017 | M148: 0.4460542373
C149: EO | D149: =(D43-D46) -> -2.485628333 | E149: -2.379053333 | F149: -1.88229 | G149: -5.548871667 | H149: -2.720298333 | I149: -2.352333333 | J149: -1.306026667 | K149: 0.6395483333 | L149: 1.13444 | M149: 0.3905933333
C150: TSK | D150: =(D44-D47) -> -2.16698 | E150: -2.034698333 | F150: -2.335591667 | G150: -5.368445 | H150: -3.713683333 | I150: -2.681206667 | J150: -1.565388333 | K150: -0.4349983333 | L150: -0.559335 | M150: -0.6692916667
A151: Temporal T5 & T6 | B151: T5 | C151: EC | D151: =(D48-D51) -> -2.789745763 | E151: =(E48-E51) -> -1.888516949 | F151: -1.616662712 | G151: -0.9466627119 | H151: -1.518079661 | I151: -2.002247458 | J151: -1.30800678 | K151: -1.341054237 | L151: -5.708798305 | M151: -3.239671186
C152: EO | D152: =(D49-D52) -> -2.7005 | E152: -1.02246 | F152: -1.251321667 | G152: -2.795031667 | H152: -1.61767 | I152: -1.849815 | J152: -1.37729 | K152: -2.107708333 | L152: -5.862525 | M152: -3.711418333
C153: TSK | D153: =(D50-D53) -> -2.951555172 | E153: -2.356972414 | F153: -1.3003 | G153: -2.991958621 | H153: -1.773941379 | I153: -1.634496552 | J153: -1.339568966 | K153: -1.454413793 | L153: -5.405184483 | M153: -3.308183793
A154: Parietal P3 & P4 | B154: P3 | C154: EC | D154: =(D54-D57) -> -0.2940706897 | E154: =(E54-E57) -> -0.7146948276 | F154: -0.3586293103 | G154: -0.6492603448 | H154: -0.2344051724 | I154: -0.8412534483 | J154: -0.3395637931 | K154: -0.2419034483 | L154: -1.128944828 | M154: -0.6006239655
C155: EO | D155: =(D55-D58) -> -0.9795052632 | E155: -0.6018333333 | F155: -0.09663508772 | G155: -0.589245614 | H155: -0.6483122807 | I155: -0.3632526316 | J155: -0.1452157895 | K155: -0.4335122807 | L155: -1.233487719 | M155: -0.6291715789
C156: TSK | D156: =(D56-D59) -> -0.1111183333 | E156: -0.156655 | F156: -0.2499083333 | G156: -0.7328898333 | H156: -0.8433883333 | I156: -0.6735183333 | J156: -0.401285 | K156: -0.5158966667 | L156: -1.24412 | M156: -0.7072346667
A157: Occipital O1 & O2 | B157: O1 | C157: EC | D157: =(D60-D63) -> -0.4207362069 | E157: =(E60-E63) -> -0.2189086207 | F157: 0.03727758621 | G157: 3.471644828 | H157: -1.811089655 | I157: -0.6551172414 | J157: -0.07708793103 | K157: -0.0509362069 | L157: -0.6583 | M157: -0.4455
C158: EO | D158: =(D61-D64) -> -0.1933421053 | E158: -0.2308631579 | F158: -0.317554386 | G158: -0.5771157895 | H158: -0.5499035088 | I158: -0.2227578947 | J158: -0.1624701754 | K158: -0.2333894737 | L158: -0.8191192982 | M158: -0.60543
C159: TSK | D159: =(D62-D65) -> 0.04902037037 | E159: -0.4447 | F159: -0.5453574074 | G159: -0.2200962963 | H159: -0.3087925926 | I159: -0.1793148148 | J159: -0.1972685185 | K159: -0.1241111111 | L159: -0.7399796296 | M159: -0.2636666667

Sheet HeadData (hidden)
B1: Eyes Closed Percent Data | M1: Eyes Open Percent Data | X1: Task Percent Data
B2: 2-4 Hz | C2: 3/3 | D2: 5/7 | E2: 3/3 | F2: 1/1 | G2: Z/0 | H2: 2/2 | I2: 4/4 | J2: 6/8 | K2: 4/4 | M2: 2-4 Hz | N2: 3/3 | O2: 5/7 | P2: 3/3 | Q2: 1/1 | R2: Z/0 | S2: 2/2 | T2: 4/4 | U2: 6/8 | V2: 4/4 | X2: 2-4 Hz | Y2: 3/3 | Z2: 5/7 | AA2: 3/3 | AB2: 1/1 | AC2: Z/0 | AD2: 2/2 | AE2: 4/4 | AF2: 6/8 | AG2: 4/4
B3: O | C3: 10.73698139 | D3: 10.52855682 | E3: 8.104967499 | F3: 8.642503738 | G3: =100 * Amplitude!$D$102 -> 9.200845246 | H3: 8.814664841 | I3: 8.445066833 | J3: 10.86475881 | K3: 11.17868519 | M3: O | N3: 12.09635639 | O3: 12.35264333 | P3: 12.86960907 | Q3: 11.80107498 | R3: =100 * Amplitude!$D$103 -> 10.72632481 | S3: 11.56016286 | T3: 12.39284592 | U3: 12.08700562 | V3: 11.78391647 | X3: O | Y3: 11.02046108 | Z3: 11.54886373 | AA3: 11.69591446 | AB3: 11.32575862 | AC3: =100 * Amplitude!$D$104 -> 10.9656679 | AD3: 10.99181875 | AE3: 11.02826157 | AF3: 11.53546778 | AG3: 11.3169117
B4: PO | C4: 10.71088982 | D4: 10.71467209 | E4: 9.988874817 | F4: =100 * Amplitude!$D$123 -> 8.084148062 | G4: 9.159423192 | H4: =100 * Amplitude!$D$126 -> 8.428472146 | I4: 9.951805878 | J4: 11.17301432 | K4: 11.17208862 | M4: PO | N4: 12.0632534 | O4: 12.06811396 | P4: 13.2157547 | Q4: =100 * Amplitude!$D$124 -> 12.8758195 | R4: 12.12353643 | S4: =100 * Amplitude!$D$127 -> 12.39398745 | T4: 13.13278961 | U4: 11.74352646 | V4: 11.73658371 | X4: PO | Y4: 10.92748642 | Z4: 10.94111379 | AA4: 13.4040802 | AB4: =100 * Amplitude!$D$125 -> 11.68583726 | AC4: 11.56413523 | AD4: =100 * Amplitude!$D$128 -> 11.01795465 | AE4: 12.34895248 | AF4: 11.27121607 | AG4: 11.26338005
B5: P/T | C5: 10.71014309 | D5: =100 * Amplitude!$D$111 -> 10.71011762 | E5: =100 * Amplitude!$D$117 -> 11.89078645 | F5: 10.29971981 | G5: =100 * Amplitude!$D$96 -> 10.92420923 | H5: 10.2743597 | I5: =100 * Amplitude!$D$120 -> 11.47037494 | J5: =100 * Amplitude!$D$114 -> 11.17189427 | K5: 11.17192841 | M5: P/T | N5: 12.06226826 | O5: =100 * Amplitude!$D$112 -> 12.06227337 | P5: =100 * Amplitude!$D$118 -> 13.56020865 | Q5: 12.9780035 | R5: =100 * Amplitude!$D$97 -> 12.49800248 | S5: 12.92300892 | T5: =100 * Amplitude!$D$121 -> 13.87705973 | U5: =100 * Amplitude!$D$115 -> 11.73518147 | V5: 11.73520756 | X5: P/T | Y5: 10.92480469 | Z5: =100 * Amplitude!$D$113 -> 10.92473119 | AA5: =100 * Amplitude!$D$119 -> 15.13201726 | AB5: 13.13495922 | AC5: =100 * Amplitude!$D$98 -> 12.58706372 | AD5: 12.42973423 | AE5: =100 * Amplitude!$D$122 -> 13.68420114 | AF5: =100 * Amplitude!$D$116 -> 11.26179445 | AG5: 11.26182842
B6: CP | C6: 11.19047356 | D6: 10.73152847 | E6: 13.23666818 | F6: 12.40429361 | G6: 11.57599068 | H6: 12.20741054 | I6: 12.84330423 | J6: 11.1921814 | K6: 13.0694809 | M6: CP | N6: 10.18967628 | O6: 12.06679306 | P6: 13.58448029 | Q6: 13.19949123 | R6: 12.81253433 | S6: 13.0437524 | T6: 13.27366093 | U6: 11.74533463 | V6: 11.28332996 | X6: CP | Y6: 11.46416569 | Z6: 10.95858536 | AA6: 15.02985709 | AB6: 14.11583165 | AC6: 13.19958782 | AD6: 13.48525565 | AE6: 13.77157375 | AF6: 11.28039246 | AG6: 11.05006886
B7: C/T | C7: =100 * Amplitude!$D$105 -> 11.19233838 | D7: 12.89235687 | E7: =100 * Amplitude!$D$87 -> 14.59244849 | F7: 13.41011047 | G7: =100 * Amplitude!$D$99 -> 12.22777734 | H7: 13.22527981 | I7: =100 * Amplitude!$D$90 -> 14.22278162 | J7: 13.64985784 | K7: =100 * Amplitude!$D$108 -> 13.07689447 | M7: C/T | N7: =100 * Amplitude!$D$106 -> 10.18234368 | O7: 11.89851634 | P7: =100 * Amplitude!$D$88 -> 13.61471366 | Q7: 13.37089157 | R7: =100 * Amplitude!$D$100 -> 13.12706091 | S7: 12.90167999 | T7: =100 * Amplitude!$D$91 -> 12.67628272 | U7: 11.97897975 | V7: =100 * Amplitude!$D$109 -> 11.28155492 | X7: C/T | Y7: =100 * Amplitude!$D$107 -> 11.46625454 | Z7: 13.2049675 | AA7: =100 * Amplitude!$D$89 -> 14.94375884 | AB7: 14.37794209 | AC7: =100 * Amplitude!$D$101 -> 13.81210992 | AD7: 13.84044552 | AE7: =100 * Amplitude!$D$92 -> 13.86876621 | AF7: 12.45903397 | AG7: =100 * Amplitude!$D$110 -> 11.04922733
B8: FC | C8: 11.18731308 | D8: 9.940047264 | E8: 14.98617935 | F8: 13.92610779 | G8: 12.85741425 | H8: 14.12144012 | I8: 15.39022191 | J8: 18.52824402 | K8: 13.09829617 | M8: FC | N8: 10.17947006 | O8: 9.476734161 | P8: 13.9530131 | Q8: 14.11364136 | R8: 14.26697667 | S8: 14.25058899 | T8: 14.24212901 | U8: 19.05475998 | V8: 11.31208038 | X8: FC | Y8: 11.45657349 | Z8: 9.041152954 | AA8: 16.80533473 | AB8: 15.9396286 | AC8: 15.06089783 | AD8: 15.51951599 | AE8: 15.9801534 | AF8: 17.28441048 | AG8: 11.07364845
B9: F | C9: 9.895759583 | D9: =100 * Amplitude!$D$81 -> 9.895655293 | E9: =100 * Amplitude!$D$75 -> 15.39981552 | F9: 14.44337463 | G9: =100 * Amplitude!$D$93 -> 13.48703237 | H9: 15.01616342 | I9: =100 * Amplitude!$D$78 -> 16.54524742 | J9: =100 * Amplitude!$D$84 -> 18.57410202 | K9: 18.57398987 | M9: F | N9: 9.439023972 | O9: =100 * Amplitude!$D$82 -> 9.438937622 | P9: =100 * Amplitude!$D$76 -> 14.30895451 | Q9: 14.85788116 | R9: =100 * Amplitude!$D$94 -> 15.40689773 | S9: 15.59793091 | T9: =100 * Amplitude!$D$79 -> 15.78892167 | U9: =100 * Amplitude!$D$85 -> 19.1227962 | V9: 19.12262726 | X9: F | Y9: 8.971089363 | Z9: =100 * Amplitude!$D$83 -> 8.970902559 | AA9: =100 * Amplitude!$D$77 -> 18.69753493 | AB9: 17.50353394 | AC9: =100 * Amplitude!$D$95 -> 16.30967759 | AD9: 17.19799805 | AE9: =100 * Amplitude!$D$80 -> 18.08633232 | AF9: =100 * Amplitude!$D$86 -> 17.31897524 | AG9: 17.31889153
B10: AF | C10: 9.899260521 | D10: 9.917080561 | E10: 15.36837006 | F10: 12.80496979 | G10: 13.49134674 | H10: 15.28914642 | I10: 16.54824448 | J10: 18.56620026 | K10: 18.57277298 | M10: AF | N10: 9.442126274 | O10: 9.457886696 | P10: 14.29000854 | Q10: 14.85615031 | R10: 15.40689723 | S10: 15.59906387 | T10: 15.80189387 | U10: 19.10982513 | V10: 19.1206131 | X10: AF | Y10: 8.977272034 | Z10: 9.008749008 | AA10: 18.65968323 | AB10: 17.50080999 | AC10: 16.30968857 | AD10: 17.19804382 | AE10: 18.08334351 | AF10: 17.32196045 | AG10: 17.31947708
B11: Fp | C11: 10.0208931 | D11: 11.65781403 | E11: 12.79220295 | F11: =100 * Amplitude!$D$69 -> 12.79217018 | G11: 14.04171906 | H11: =100 * Amplitude!$D$72 -> 15.2912756 | I11: 15.29130554 | J11: 16.90270233 | K11: 18.52793884 | M11: Fp | N11: 9.549746513 | O11: 10.13860512 | P11: 13.61527888 | Q11: 14.79556656 | R11: 15.40412267 | S11: 15.63847224 | T11: 16.26502355 | U11: 18.64382362 | V11: 19.04693985 | X11: Fp | Y11: 9.192214966 | Z11: 10.36831379 | AA11: 17.29682032 | AB11: 17.40541458 | AC11: 16.32581965 | AD11: 17.19939677 | AE11: 17.97053146 | AF11: 17.4292202 | AG11: 17.33643532
B13: Eyes Closed Percent Data | M13: Eyes Open Percent Data | X13: Task Percent Data
B14: 4-6 Hz | C14: 3/3 | D14: 5/7 | E14: 3/3 | F14: 1/1 | G14: Z/0 | H14: 2/2 | I14: 4/4 | J14: 6/8 | K14: 4/4 | M14: 4-6 Hz | N14: 3/3 | O14: 5/7 | P14: 3/3 | Q14: 1/1 | R14: Z/0 | S14: 2/2 | T14: 4/4 | U14: 6/8 | V14: 4/4 | X14: 4-6 Hz | Y14: 3/3 | Z14: 5/7 | AA14: 3/3 | AB14: 1/1 | AC14: Z/0 | AD14: 2/2 | AE14: 4/4 | AF14: 6/8 | AG14: 4/4
B15: O | C15: 8.709104538 | D15: 8.686002731 | E15: 7.027373505 | F15: 6.892832438 | G15: =100 * Amplitude!$E$102 -> 6.771800822 | H15: 6.971083323 | I15: 7.183219147 | J15: 8.684827805 | K15: 8.656477928 | M15: O | N15: 10.03509331 | O15: 10.21763357 | P15: 11.15599747 | Q15: 9.998074849 | R15: =100 * Amplitude!$E$103 -> 8.827354939 | S15: 9.838123957 | T15: 10.83751678 | U15: 8.674316406 | V15: 8.071825027 | X15: O | Y15: 10.96304798 | Z15: 11.00118001 | AA15: 10.92263947 | AB15: 10.02257538 | AC15: =100 * Amplitude!$E$104 -> 9.117149198 | AD15: 10.12334251 | AE15: 11.11856232 | AF15: 10.60444387 | AG15: 10.54543304
B16: PO | C16: 8.669421196 | D16: 8.675207774 | E16: 8.738783264 | F16: =100 * Amplitude!$E$123 -> 7.013850502 | G16: 7.355084101 | H16: =100 * Amplitude!$E$126 -> 7.170352535 | I16: 8.906658173 | J16: 8.618090947 | K16: 8.611530304 | M16: PO | N16: 10.02670574 | O16: 10.02795219 | P16: 10.78589401 | Q16: =100 * Amplitude!$E$124 -> 11.16879346 | R16: 10.01328468 | S16: =100 * Amplitude!$E$127 -> 10.84888863 | T16: 10.62745209 | U16: 8.026617686 | V16: 8.018811226 | X16: PO | Y16: 10.95415688 | Z16: 10.95545959 | AA16: 11.1417305 | AB16: =100 * Amplitude!$E$125 -> 10.92799724 | AC16: 10.21275075 | AD16: =100 * Amplitude!$E$128 -> 11.12953366 | AE16: 10.77066116 | AF16: 10.54800415 | AG16: 10.54843426
B17: P/T | C17: 8.668260574 | D17: =100 * Amplitude!$E$111 -> 8.668244947 | E17: =100 * Amplitude!$E$117 -> 10.46399907 | F17: 8.647385597 | G17: =100 * Amplitude!$E$96 -> 8.464312215 | H17: 8.759595871 | I17: =100 * Amplitude!$E$120 -> 10.64412858 | J17: =100 * Amplitude!$E$114 -> 8.610199378 | K17: 8.610240936 | M17: P/T | N17: 10.02643204 | O17: =100 * Amplitude!$E$112 -> 10.02645808 | P17: =100 * Amplitude!$E$118 -> 10.40597169 | Q17: 10.26095295 | R17: =100 * Amplitude!$E$97 -> 9.208098766 | S17: 10.15772533 | T17: =100 * Amplitude!$E$121 -> 10.41622142 | U17: =100 * Amplitude!$E$115 -> 8.017240895 | V17: 8.017298698 | X17: P/T | Y17: 10.95386314 | Z17: =100 * Amplitude!$E$113 -> 10.95389376 | AA17: =100 * Amplitude!$E$119 -> 11.3562077 | AB17: 10.65350723 | AC17: =100 * Amplitude!$E$98 -> 9.676316012 | AD17: 10.4061718 | AE17: =100 * Amplitude!$E$122 -> 10.41266447 | AF17: =100 * Amplitude!$E$116 -> 10.54852344 | AG17: 10.54849529
B18: CP | C18: 7.821483135 | D18: 8.677733612 | E18: 10.31863185 | F18: 9.586368016 | G18: 8.856212616 | H18: 9.582447597 | I18: 10.31040083 | J18: 8.626079559 | K18: 9.313309669 | M18: CP | N18: 7.941864491 | O18: 10.01982193 | P18: 10.21313913 | Q18: 9.890260969 | R18: 9.564471245 | S18: 10.0121133 | T18: 10.4540111 | U18: 8.041412354 | V18: 9.389182091 | X18: CP | Y18: 8.460051537 | Z18: 10.94658585 | AA18: 11.25863647 | AB18: 10.61599949 | AC18: 9.97204113 | AD18: 10.39140102 | AE18: 10.80875615 | AF18: 10.54358597 | AG18: 8.755064011
B19: C/T | C19: =100 * Amplitude!$E$105 -> 7.818161795 | D19: 8.998936971 | E19: =100 * Amplitude!$E$87 -> 10.17973405 | F19: 9.713924408 | G19: =100 * Amplitude!$E$99 -> 9.248109577 | H19: 9.615724564 | I19: =100 * Amplitude!$E$90 -> 9.98333361 | J19: 9.649709702 | K19: =100 * Amplitude!$E$108 -> 9.316051795 | M19: C/T | N19: =100 * Amplitude!$E$106 -> 7.933708637 | O19: 8.977371216 | P19: =100 * Amplitude!$E$88 -> 10.02104186 | Q19: 9.970938683 | R19: =100 * Amplitude!$E$100 -> 9.920829598 | S19: 10.2110796 | T19: =100 * Amplitude!$E$91 -> 10.5013248 | U19: 9.947956085 | V19: =100 * Amplitude!$E$109 -> 9.394535738 | X19: C/T | Y19: =100 * Amplitude!$E$107 -> 8.450295327 | Z19: 9.80626742 | AA19: =100 * Amplitude!$E$89 -> 11.16227014 | AB19: 10.71501637 | AC19: =100 * Amplitude!$E$101 -> 10.26775196 | AD19: 10.73681641 | AE19: =100 * Amplitude!$E$92 -> 11.20587404 | AF19: 9.97698911 | AG19: =100 * Amplitude!$E$110 -> 8.748047451
B20: FC | C20: 7.815939903 | D20: 7.270754337 | E20: 10.48483721 | F20: 10.10654144 | G20: 9.722850164 | H20: 10.20834198 | I20: 10.69641113 | J20: 12.35781193 | K20: 9.327990532 | M20: FC | N20: 7.928919315 | O20: 6.733639717 | P20: 10.53955396 | Q20: 10.63787155 | R20: 10.72997538 | S20: 10.9326889 | T20: 11.14130656 | U20: 14.77067757 | V20: 9.41565609 | X20: FC | Y20: 8.439421654 | Z20: 5.713306427 | AA20: 12.38461431 | AB20: 11.73491135 | AC20: 11.07404455 | AD20: 11.69311295 | AE20: 12.31187439 | AF20: 12.23829556 | AG20: 8.761697769
B21: F | C21: 7.243520737 | D21: =100 * Amplitude!$E$81 -> 7.243457046 | E21: =100 * Amplitude!$E$75 -> 10.80261256 | F21: 10.50006757 | G21: =100 * Amplitude!$E$93 -> 10.19758455 | H21: 10.80026463 | I21: =100 * Amplitude!$E$78 -> 11.40291204 | J21: =100 * Amplitude!$E$84 -> 12.38269932 | K21: 12.38263798 | M21: F | N21: 6.699245453 | O21: =100 * Amplitude!$E$82 -> 6.699159412 | P21: =100 * Amplitude!$E$76 -> 11.07307234 | Q21: 11.30605927 | R21: =100 * Amplitude!$E$94 -> 11.53912175 | S21: 11.65304642 | T21: =100 * Amplitude!$E$79 -> 11.7669282 | U21: =100 * Amplitude!$E$85 -> 14.82008902 | V21: 14.81996059 | X21: F | Y21: 5.650557995 | Z21: =100 * Amplitude!$E$83 -> 5.650393164 | AA21: =100 * Amplitude!$E$77 -> 13.63328074 | AB21: 12.75674515 | AC21: =100 * Amplitude!$E$95 -> 11.88032742 | AD21: 12.64922104 | AE21: =100 * Amplitude!$E$80 -> 13.41812757 | AF21: =100 * Amplitude!$E$86 -> 12.25135312 | AG21: 12.25131798
B22: AF | C22: 7.245787144 | D22: 7.25731341 | E22: 10.78549576 | F22: 9.950319672 | G22: 10.20291977 | H22: 11.81643219 | I22: 11.40834045 | J22: 12.3788859 | K22: 12.38205624 | M22: AF | N22: 6.702023983 | O22: 6.716178894 | P22: 11.05605443 | Q22: 11.30458705 | R22: 11.53912226 | S22: 11.65406291 | T22: 11.77880859 | U22: 14.80820942 | V22: 14.81808853 | X22: AF | Y22: 5.655621052 | Z22: 5.681454659 | AA22: 13.60221608 | AB22: 12.75447591 | AC22: 11.88033676 | AD22: 12.64909744 | AE22: 13.41358566 | AF22: 12.25589371 | AG22: 12.25211716
B23: Fp | C23: 7.324439526 | D23: 8.765616099 | E23: 9.946032524 | F23: =100 * Amplitude!$E$69 -> 9.946026264 | G23: 10.8851944 | H23: =100 * Amplitude!$E$72 -> 11.82437352 | I23: 11.82436848 | J23: 12.04931132 | K23: 12.36040592 | M23: Fp | N23: 6.798680305 | O23: 7.327553272 | P23: 10.44832675 | Q23: 11.25308228 | R23: 11.53819911 | S23: 11.68947093 | T23: 12.20335007 | U23: 14.38144588 | V23: 14.75061989 | X23: Fp | Y23: 5.832029819 | Z23: 6.797283173 | AA23: 12.48436991 | AB23: 12.67502594 | AC23: 11.89308167 | AD23: 12.64464951 | AE23: 13.24593099 | AF23: 12.41898155 | AG23: 12.27790165
B25: Eyes Closed Percent Data | M25: Eyes Open Percent Data | X25: Task Percent Data
B26: 6-8 Hz | C26: 3/3 | D26: 5/7 | E26: 3/3 | F26: 1/1 | G26: Z/0 | H26: 2/2 | I26: 4/4 | J26: 6/8 | K26: 4/4 | M26: 6-8 Hz | N26: 3/3 | O26: 5/7 | P26: 3/3 | Q26: 1/1 | R26: Z/0 | S26: 2/2 | T26: 4/4 | U26: 6/8 | V26: 4/4 | X26: 6-8 Hz | Y26: 3/3 | Z26: 5/7 | AA26: 3/3 | AB26: 1/1 | AC26: Z/0 | AD26: 2/2 | AE26: 4/4 | AF26: 6/8 | AG26: 4/4
B27: O | C27: 8.438900948 | D27: 8.21534284 | E27: 7.261772156 | F27: 6.766693115 | G27: =100 * Amplitude!$F$102 -> 6.270393646 | H27: 6.719256083 | I27: 7.167208099 | J27: 7.954687119 | K27: 8.124391556 | M27: O | N27: 9.670339584 | O27: 9.605896632 | P27: 9.508521271 | Q27: 8.910543442 | R27: =100 * Amplitude!$F$103 -> 8.306990264 | S27: 8.868134816 | T27: 9.420794678 | U27: 8.339471181 | V27: 8.126361847 | X27: O | Y27: 8.483434677 | Z27: 8.840726217 | AA27: 10.98223343 | AB27: 9.381664912 | AC27: =100 * Amplitude!$F$104 -> 7.758533403 | AD27: 9.565266291 | AE27: 11.34383926 | AF27: 8.107514064 | AG27: 7.53499794
B28: PO | C28: 8.454751015 | D28: 8.452412287 | E28: 7.502310944 | F28: =100 * Amplitude!$F$123 -> 7.262986144 | G28: 7.264322917 | H28: =100 * Amplitude!$F$126 -> 7.168110391 | I28: 7.41852951 | J28: 8.133221944 | K28: 8.134754181 | M28: PO | N28: 9.67970562 | O28: 9.678330739 | P28: 9.385676575 | Q28: =100 * Amplitude!$F$124 -> 9.514095312 | R28: 9.083019892 | S28: =100 * Amplitude!$F$127 -> 9.429277748 | T28: 9.004557037 | U28: 8.117561976 | V28: 8.116028786 | X28: PO | Y28: 8.474957466 | Z28: 8.476237615 | AA28: 9.92870636 | AB28: =100 * Amplitude!$F$125 -> 11.00479539 | AC28: 9.805181503 | AD28: =100 * Amplitude!$F$128 -> 11.37199923 | AE28: 9.867197418 | AF28: 7.518909454 | AG28: 7.516079903
B29: P/T | C29: 8.455187798 | D29: =100 * Amplitude!$F$111 -> 8.455221329 | E29: =100 * Amplitude!$F$117 -> 7.737915956 | F29: 7.785569191 | G29: =100 * Amplitude!$F$96 -> 8.355796078 | H29: 7.730021954 | I29: =100 * Amplitude!$F$120 -> 7.666151301 | J29: =100 * Amplitude!$F$114 -> 8.135061538 | K29: 8.135058403 | M29: P/T | N29: 9.679937363 | O29: =100 * Amplitude!$F$112 -> 9.679982674 | P29: =100 * Amplitude!$F$118 -> 9.256113844 | Q29: 9.283976555 | R29: =100 * Amplitude!$F$97 -> 9.081714987 | S29: 9.031430244 | T29: =100 * Amplitude!$F$121 -> 8.583311083 | U29: =100 * Amplitude!$F$115 -> 8.115723002 | V29: 8.115729332 | X29: P/T | Y29: 8.474689484 | Z29: =100 * Amplitude!$F$113 -> 8.474706277 | AA29: =100 * Amplitude!$F$119 -> 8.858306757 | AB29: 9.649494171 | AC29: =100 * Amplitude!$F$98 -> 9.085400735 | AD29: 9.609652519 | AE29: =100 * Amplitude!$F$122 -> 8.371591203 | AF29: =100 * Amplitude!$F$116 -> 7.515519786 | AG29: 7.515541553
B30: CP | C30: 6.928788185 | D30: 8.44784317 | E30: 8.266204834 | F30: 8.456352779 | G30: 8.649201393 | H30: 8.493359157 | I30: 8.339825221 | J30: 8.137496948 | K30: 8.354577065 | M30: CP | N30: 7.086084366 | O30: 9.666210175 | P30: 9.199336461 | Q30: 9.349961417 | R30: 9.501091003 | S30: 9.1536026 | T30: 8.80456434 | U30: 8.120804596 | V30: 8.051793098 | X30: CP | Y30: 6.906118393 | Z30: 8.475102997 | AA30: 9.311714172 | AB30: 9.294035775 | AC30: 9.271636963 | AD30: 9.177313668 | AE30: 9.076194218 | AF30: 7.529756165 | AG30: 8.072950363
B31: C/T | C31: =100 * Amplitude!$F$105 -> 6.922818237 | D31: 7.858282089 | E31: =100 * Amplitude!$F$87 -> 8.793758959 | F31: 8.868185997 | G31: =100 * Amplitude!$F$99 -> 8.942618532 | H31: 8.978456497 | I31: =100 * Amplitude!$F$90 -> 9.014299904 | J31: 8.684869766 | K31: =100 * Amplitude!$F$108 -> 8.355434798 | M31: C/T | N31: =100 * Amplitude!$F$106 -> 7.075940552 | O31: 8.108307521 | P31: =100 * Amplitude!$F$88 -> 9.140684248 | Q31: 9.530579567 | R31: =100 * Amplitude!$F$100 -> 9.920472104 | S31: 9.474488258 | T31: =100 * Amplitude!$F$91 -> 9.028505786 | U31: 8.540034612 | V31: =100 * Amplitude!$F$109 -> 8.051539897 | X31: C/T | Y31: =100 * Amplitude!$F$107 -> 6.899978526 | Z31: 8.334162394 | AA31: =100 * Amplitude!$F$89 -> 9.768391395 | AB31: 9.613127708 | AC31: =100 * Amplitude!$F$101 -> 9.45786582 | AD31: 9.622375488 | AE31: =100 * Amplitude!$F$92 -> 9.786888818 | AF31: 8.930999756 | AG31: =100 * Amplitude!$F$110 -> 8.075123028
B32: FC | C32: 6.919976234 | D32: 6.212481022 | E32: 8.765970866 | F32: 8.891326904 | G32: 9.012530645 | H32: 8.946200562 | I32: 8.88111941 | J32: 9.627932549 | K32: 8.360430717 | M32: FC | N32: 7.06973362 | O32: 5.512670994 | P32: 9.185630163 | Q32: 9.863511658 | R32: 10.53558032 | S32: 9.817531586 | T32: 9.101776759 | U32: 10.35444832 | V32: 8.060578346 | X32: FC | Y32: 6.891717911 | Z32: 4.820432186 | AA32: 9.848503749 | AB32: 9.713047791 | AC32: 9.569291433 | AD32: 9.69308548 | AE32: 9.816088994 | AF32: 9.35579586 | AG32: 8.080120087
B33: F | C33: 6.189768314 | D33: =100 * Amplitude!$F$81 -> 6.189718003 | E33: =100 * Amplitude!$F$75 -> 8.748249647 | F33: 8.915320805 | G33: =100 * Amplitude!$F$93 -> 9.082447481 | H33: 8.913711548 | I33: =100 * Amplitude!$F$78 -> 8.744981412 | J33: =100 * Amplitude!$F$84 -> 9.638749605 | K33: 9.638717651 | M33: F | N33: 5.477895737 | O33: =100 * Amplitude!$F$82 -> 5.477813099 | P33: =100 * Amplitude!$F$76 -> 9.245057724 | Q33: 10.1978447 | R33: =100 * Amplitude!$F$94 -> 11.15070568 | S33: 10.16039276 | T33: =100 * Amplitude!$F$79 -> 9.170079243 | U33: =100 * Amplitude!$F$85 -> 10.37325025 | V33: 10.3731966 | X33: F | Y33: 4.773060799 | Z33: =100 * Amplitude!$F$83 -> 4.772949259 | AA33: =100 * Amplitude!$F$77 -> 9.94845129 | AB33: 9.814545441 | AC33: =100 * Amplitude!$F$95 -> 9.680716132 | AD33: 9.763900757 | AE33: =100 * Amplitude!$F$80 -> 9.847089395 | AF33: =100 * Amplitude!$F$86 -> 9.357195019 | AG33: 9.357183456
B34: AF | C34: 6.191393375 | D34: 6.199677785 | E34: 8.735263824 | F34: 7.963514709 | G34: 9.073338318 | H34: 7.867275238 | I34: 8.745013237 | J34: 9.635268529 | K34: 9.63816452 | M34: AF | N34: 5.480280399 | O34: 5.492471695 | P34: 9.230405172 | Q34: 10.19633547 | R34: 11.1506958 | S34: 10.16046206 | T34: 9.174766541 | U34: 10.36856842 | V34: 10.37246132 | X34: AF | Y34: 4.776338577 | Z34: 4.793087482 | AA34: 9.928312937 | AB34: 9.812932332 | AC34: 9.68071874 | AD34: 9.763769786 | AE34: 9.84518369 | AF34: 9.359101295 | AG34: 9.357515335
B35: Fp | C35: 6.247932434 | D35: 7.202561696 | E35: 7.95609045 | F35: =100 * Amplitude!$F$69 -> 7.956082789 | G35: 7.907598114 | H35: =100 * Amplitude!$F$72 -> 7.859094704 | I35: 7.859113693 | J35: 8.748616536 | K35: 9.618413925 | M35: Fp | N35: 5.563530922 | O35: 6.019047737 | P35: 8.711981455 | Q35: 10.1435655 | R35: 11.13564173 | S35: 10.1628418 | T35: 9.348964055 | U35: 10.20039177 | V35: 10.34587383 | X35: Fp | Y35: 4.890708923 | Z35: 5.516506195 | AA35: 9.206480026 | AB35: 9.756567001 | AC35: 9.682399114 | AD35: 9.759223302 | AE35: 9.776386897 | AF35: 9.427577019 | AG35: 9.368341446
B37: Eyes Closed Percent Data | M37: Eyes Open Percent Data | X37: Task Percent Data
B38: 8-10 Hz | C38: 3/3 | D38: 5/7 | E38: 3/3 | F38: 1/1 | G38: Z/0 | H38: 2/2 | I38: 4/4 | J38: 6/8 | K38: 4/4 | M38: 8-10 Hz | N38: 3/3 | O38: 5/7 | P38: 3/3 | Q38: 1/1 | R38: Z/0 | S38: 2/2 | T38: 4/4 | U38: 6/8 | V38: 4/4 | X38: 8-10 Hz | Y38: 3/3 | Z38: 5/7 | AA38: 3/3 | AB38: 1/1 | AC38: Z/0 | AD38: 2/2 | AE38: 4/4 | AF38: 6/8 | AG38: 4/4
B39: O | C39: 26.5140419 | D39: 27.18394979 | E39: 33.94013062 | F39: 30.12741852 | G39: =100 * Amplitude!$G$102 -> 26.24082128 | H39: 28.3006134 | I39: 30.31040344 | J39: 22.25492605 | K39: 20.79022789 | M39: O | N39: 15.80282307 | O39: 16.07495117 | P39: 16.52256165 | Q39: 16.40063985 | R39: =100 * Amplitude!$G$103 -> 16.28104363 | S39: 16.34696452 | T39: 16.41268158 | U39: 14.87982686 | V39: 14.35079575 | X39: O | Y39: 21.35959244 | Z39: 19.38435364 | AA39: 12.71598663 | AB39: 13.12944031 | AC39: =100 * Amplitude!$G$104 -> 13.55368806 | AD39: 12.99657694 | AE39: 12.4505928 | AF39: 17.23192724 | AG39: 18.59619713
B40: PO | C40: 26.57094383 | D40: 26.5627238 | E40: 29.00106812 | F40: =100 * Amplitude!$G$123 -> 34.01405685 | G40: 28.16394806 | H40: =100 * Amplitude!$G$126 -> 30.36041674 | I40: 26.77661438 | J40: 20.74354426 | K40: 20.73536301 | M40: PO | N40: 15.764781 | O40: 15.77036413 | P40: 17.00027313 | Q40: =100 * Amplitude!$G$124 -> 16.5202332 | R40: 16.59816996 | S40: =100 * Amplitude!$G$127 -> 16.41288081 | T40: 16.62507324 | U40: 14.30265935 | V40: 14.29436302 | X40: PO | Y40: 21.54521179 | Z40: 21.51789602 | AA40: 12.94490662 | AB40: =100 * Amplitude!$G$125 -> 12.7051889 | AC40: 13.4630394 | AD40: =100 * Amplitude!$G$128 -> 12.43945962 | AE40: 12.79870224 | AF40: 18.70151393 | AG40: 18.71969414
B41: P/T | C41: 26.57238007 | D41: =100 * Amplitude!$G$111 -> 26.57263151 | E41: =100 * Amplitude!$G$117 -> 23.99759588 | F41: 26.68404388 | G41: =100 * Amplitude!$G$96 -> 22.0405055 | H41: 25.20576096 | I41: =100 * Amplitude!$G$120 -> 23.21643439 | J41: =100 * Amplitude!$G$114 -> 20.73373843 | K41: 20.73371315 | M41: P/T | N41: 15.76360893 | O41: =100 * Amplitude!$G$112 -> 15.76365374 | P41: =100 * Amplitude!$G$118 -> 17.48514514 | Q41: 17.06128693 | R41: =100 * Amplitude!$G$97 -> 17.17851514 | S41: 16.8125782 | T41: =100 * Amplitude!$G$121 -> 16.84637779 | U41: =100 * Amplitude!$G$115 -> 14.29269102 | V41: 14.29275894 | X41: P/T | Y41: 21.55036354 | Z41: =100 * Amplitude!$G$113 -> 21.5507153 | AA41: =100 * Amplitude!$G$119 -> 13.1510023 | AB41: 13.67004108 | AC41: =100 * Amplitude!$G$98 -> 15.15381758 | AD41: 13.5760498 | AE41: =100 * Amplitude!$G$122 -> 13.13479603 | AF41: =100 * Amplitude!$G$116 -> 18.72335346 | AG41: 18.72317314
B42: CP | C42: 12.60141373 | D42: 26.47816467 | E42: 21.36200823 | F42: 21.18862479 | G42: 20.99856567 | H42: 21.10504368 | I42: 21.19259862 | J42: 20.72114563 | K42: 16.56848907 | M42: CP | N42: 11.06753826 | O42: 15.75620728 | P42: 17.15380532 | Q42: 17.04498836 | R42: 16.93489456 | S42: 16.99770682 | T42: 17.05714634 | U42: 14.32120667 | V42: 16.13090134 | X42: CP | Y42: 7.070066929 | Z42: 21.42205811 | AA42: 12.1765758 | AB42: 13.67296273 | AC42: 15.18695641 | AD42: 13.88449097 | AE42: 12.59522247 | AF42: 18.65132446 | AG42: 12.37237835
B43: C/T | C43: =100 * Amplitude!$G$105 -> 12.54679255 | D43: 15.6264979 | E43: =100 * Amplitude!$G$87 -> 18.70605398 | F43: 19.33131981 | G43: =100 * Amplitude!$G$99 -> 19.9565672 | H43: 19.56356049 | I43: =100 * Amplitude!$G$90 -> 19.17054447 | J43: 17.86140315 | K43: =100 * Amplitude!$G$108 -> 16.55219516 | M43: C/T | N43: =100 * Amplitude!$G$106 -> 11.04916229 | O43: 13.93850199 | P43: =100 * Amplitude!$G$88 -> 16.82791345 | Q43: 16.75959396 | R43: =100 * Amplitude!$G$100 -> 16.6912791 | S43: 16.9849968 | T43: =100 * Amplitude!$G$91 -> 17.2787194 | U43: 16.70835622 | V43: =100 * Amplitude!$G$109 -> 16.13807692 | X43: C/T | Y43: =100 * Amplitude!$G$107 -> 7.013474749 | Z43: 9.089602788 | AA43: =100 * Amplitude!$G$89 -> 11.16552794 | AB43: 13.19283295 | AC43: =100 * Amplitude!$G$101 -> 15.22013991 | AD43: 13.62591743 | AE43: =100 * Amplitude!$G$92 -> 12.03169789 | AF43: 12.18973541 | AG43: =100 * Amplitude!$G$110 -> 12.34756871
B44: FC | C44: 12.54686451 | D44: 12.60133743 | E44: 18.22361755 | F44: 18.95306396 | G44: 19.67352295 | H44: 19.14850616 | I44: 18.62327194 | J44: 18.38633347 | K44: 16.55936241 | M44: FC | N44: 11.03185654 | O44: 6.6845994 | P44: 15.98297755 | Q44: 16.02211914 | R44: 16.04600525 | S44: 16.27798767 | T44: 16.5052503 | U44: 13.68315697 | V44: 16.12840271 | X44: FC | Y44: 7.022140503 | Z44: 9.232487679 | AA44: 9.8046182 | AB44: 12.16989365 | AC44: 14.53500493 | AD44: 12.74242096 | AE44: 10.96367518 | AF44: 19.0383091 | AG44: 12.37394238
B45: F | C45: 12.55761909 | D45: =100 * Amplitude!$G$81 -> 12.55753908 | E45: =100 * Amplitude!$G$75 -> 17.76332108 | F45: 18.57684762 | G45: =100 * Amplitude!$G$93 -> 19.39049673 | H45: 18.73368835 | I45: =100 * Amplitude!$G$78 -> 18.07690813 | J45: =100 * Amplitude!$G$84 -> 18.39164281 | K45: 18.3916111 | M45: F | N45: 6.594964027 | O45: =100 * Amplitude!$G$82 -> 6.594763768 | P45: =100 * Amplitude!$G$76 -> 15.17472566 | Q45: 15.28766785 | R45: =100 * Amplitude!$G$94 -> 15.40073365 | S45: 15.57182465 | T45: =100 * Amplitude!$G$79 -> 15.74293756 | U45: =100 * Amplitude!$G$85 -> 13.65147591 | V45: 13.65154648 | X45: F | Y45: 9.236632347 | Z45: =100 * Amplitude!$G$83 -> 9.236676802 | AA45: =100 * Amplitude!$G$77 -> 8.445909005 | AB45: 11.14790421 | AC45: =100 * Amplitude!$G$95 -> 13.8499171 | AD45: 11.85689011 | AE45: =100 * Amplitude!$G$80 -> 9.863742421 | AF45: =100 * Amplitude!$G$86 -> 19.12765304 | AG45: 19.12740898
B46: AF | C46: 12.56094742 | D46: 12.57780457 | E46: 17.7375412 | F46: 16.33390503 | G46: 19.36976013 | H46: 17.12862244 | I46: 18.07440758 | J46: 18.39041646 | K46: 18.39143562 | M46: AF | N46: 6.600382328 | O46: 6.628149033 | P46: 15.14134216 | Q46: 15.28488159 | R46: 15.40073649 | S46: 15.57120641 | T46: 15.7347997 | U46: 13.65961361 | V46: 13.65284538 | X46: AF | Y46: 9.236158371 | Z46: 9.233600616 | AA46: 8.449000041 | AB46: 11.14728673 | AC46: 13.84989548 | AD46: 11.85921224 | AE46: 9.899799983 | AF46: 19.09160614 | AG46: 19.12158585
B47: Fp | C47: 12.67598724 | D47: 14.69440206 | E47: 16.31640053 | F47: =100 * Amplitude!$G$69 -> 16.31638703 | G47: 16.71625519 | H47: =100 * Amplitude!$G$72 -> 17.11607859 | I47: 17.11610031 | J47: 17.778862 | K47: 18.38448143 | M47: Fp | N47: 6.789986134 | O47: 7.82743454 | P47: 13.94691722 | Q47: 15.18769455 | R47: 15.40118408 | S47: 15.54973729 | T47: 15.44232051 | U47: 13.95195293 | V47: 13.6990633 | X47: Fp | Y47: 9.218684196 | Z47: 9.12306881 | AA47: 8.577154795 | AB47: 11.12591934 | AC47: 13.81352234 | AD47: 11.94049962 | AE47: 11.20352809 | AF47: 17.7967205 | AG47: 18.91686821
B49: Eyes Closed Percent Data | M49: Eyes Open Percent Data | X49: Task Percent Data
B50: 10-12 Hz | C50: 3/3 | D50: 5/7 | E50: 3/3 | F50: 1/1 | G50: Z/0 | H50: 2/2 | I50: 4/4 | J50: 6/8 | K50: 4/4 | M50: 10-12 Hz | N50: 3/3 | O50: 5/7 | P50: 3/3 | Q50: 1/1 | R50: Z/0 | S50: 2/2 | T50: 4/4 | U50: 6/8 | V50: 4/4 | X50: 10-12 Hz | Y50: 3/3 | Z50: 5/7 | AA50: 3/3 | AB50: 1/1 | AC50: Z/0 | AD50: 2/2 | AE50: 4/4 | AF50: 6/8 | AG50: 4/4
B51: O | C51: 13.47434807 | D51: 13.79026794 | E51: 16.83662567 | F51: 17.59890238 | G51: =100 * Amplitude!$H$102 -> 18.34783301 | H51: 18.41237768 | I51: 18.44670715 | J51: 12.61515045 | K51: 11.74879456 | M51: O | N51: 12.07233047 | O51: 11.93340047 | P51: 11.60969772 | Q51: 11.54862467 | R51: =100 * Amplitude!$H$103 -> 11.48625921 | S51: 11.62290319 | T51: 11.75578995 | U51: 10.54770915 | V51: 10.2393055 | X51: O | Y51: 12.84317112 | Z51: 12.17041779 | AA51: 9.892700958 | AB51: 9.932555517 | AC51: =100 * Amplitude!$H$104 -> 9.975345696 | AD51: 9.944888433 | AE51: 9.918132782 | AF51: 10.95660655 | AG51: 11.17863846
B52: PO | C52: 13.4969492 | D52: 13.49369049 | E52: 14.66016083 | F52: =100 * Amplitude!$H$123 -> 16.84999304 | G52: 16.93072128 | H52: =100 * Amplitude!$H$126 -> 18.47695364 | I52: 15.20391235 | J52: 11.74512227 | K52: 11.74437141 | M52: PO | N52: 12.08925533 | O52: 12.08677038 | P52: 11.46863251 | Q52: =100 * Amplitude!$H$124 -> 11.61099242 | R52: 11.44669088 | S52: =100 * Amplitude!$H$127 -> 11.75955049 | T52: 11.53955154 | U52: 10.21837807 | V52: 10.21475983 | X52: PO | Y52: 12.90624046 | Z52: 12.89695867 | AA52: 9.977650452 | AB52: =100 * Amplitude!$H$125 -> 9.889764516 | AC52: 10.04054578 | AD52: =100 * Amplitude!$H$128 -> 9.91442709 | AE52: 10.25617676 | AF52: 11.18989817 | AG52: 11.19185257
B53: P/T | C53: 13.49757671 | D53: =100 * Amplitude!$H$111 -> 13.4976199 | E53: =100 * Amplitude!$H$117 -> 12.47486589 | F53: 14.45766068 | G53: =100 * Amplitude!$H$96 -> 14.04812262 | H53: 14.8231411 | I53: =100 * Amplitude!$H$120 -> 11.94438296 | J53: =100 * Amplitude!$H$114 -> 11.74424033 | K53: 11.74422646 | M53: P/T | N53: 12.08973598 | O53: =100 * Amplitude!$H$112 -> 12.08975734 | P53: =100 * Amplitude!$H$118 -> 11.32385013 | Q53: 11.28827286 | R53: =100 * Amplitude!$H$97 -> 10.9299558 | S53: 11.33807564 | T53: =100 * Amplitude!$H$121 -> 11.32473402 | U53: =100 * Amplitude!$H$115 -> 10.21403317 | V53: 10.21408653 | X53: P/T | Y53: 12.90798664 | Z53: =100 * Amplitude!$H$113 -> 12.90810923 | AA53: =100 * Amplitude!$H$119 -> 10.05408932 | AB53: 10.10884666 | AC53: =100 * Amplitude!$H$98 -> 10.38264009 | AD53: 10.29711819 | AE53: =100 * Amplitude!$H$122 -> 10.59427156 | AF53: =100 * Amplitude!$H$116 -> 11.19224491 | AG53: 11.19222546
B54: CP | C54: 11.62546349 | D54: 13.48499451 | E54: 12.80342974 | F54: 13.54376548 | G54: 14.27898312 | H54: 13.40508924 | I54: 12.52029964 | J54: 11.74575195 | K54: 10.5847187 | M54: CP | N54: 11.40405178 | O54: 12.088517 | P54: 12.27287837 | Q54: 11.6370479 | R54: 11.00076389 | S54: 11.78310285 | T54: 12.56142099 | U54: 10.24120102 | V54: 12.53715229 | X54: CP | Y54: 7.628319263 | Z54: 12.87097015 | AA54: 10.75293187 | AB54: 10.47808729 | AC54: 10.20780468 | AD54: 10.79560743 | AE54: 11.38462612 | AF54: 11.1909729 | AG54: 10.48009968
B55: C/T | C55: =100 * Amplitude!$H$105 -> 11.618143 | D55: 12.3736852 | E55: =100 * Amplitude!$H$87 -> 13.129268 | F55: 13.81955433 | G55: =100 * Amplitude!$H$99 -> 14.50984305 | H55: 13.804533 | I55: =100 * Amplitude!$H$90 -> 13.09922904 | J55: 11.83969752 | K55: =100 * Amplitude!$H$108 -> 10.58017922 | M55: C/T | N55: =100 * Amplitude!$H$106 -> 11.40136827 | O55: 12.31194687 | P55: =100 * Amplitude!$H$88 -> 13.22263124 | Q55: 12.1470871 | R55: =100 * Amplitude!$H$100 -> 11.07155489 | S55: 12.43941307 | T55: =100 * Amplitude!$H$91 -> 13.80728749 | U55: 13.17670059 | V55: =100 * Amplitude!$H$109 -> 12.54622677 | X55: C/T | Y55: =100 * Amplitude!$H$107 -> 7.607678221 | Z55: 9.52553304 | AA55: =100 * Amplitude!$H$89 -> 11.44336839 | AB55: 10.73816204 | AC55: =100 * Amplitude!$H$101 -> 10.03296566 | AD55: 11.10434914 | AE55: =100 * Amplitude!$H$92 -> 12.17574618 | AF55: 11.32652156 | AG55: =100 * Amplitude!$H$110 -> 10.47731299
B56: FC | C56: 11.60680676 | D56: 8.744678497 | E56: 12.63019307 | F56: 13.73333282 | G56: 14.83044052 | H56: 13.65284882 | I56: 12.47307078 | J56: 10.90742302 | K56: 10.58141899 | M56: FC | N56: 11.37972355 | O56: 5.909749031 | P56: 12.43187586 | Q56: 11.42236938 | R56: 10.40181605 | S56: 11.60298996 | T56: 12.79801941 | U56: 9.29619503 | V56: 12.53342533 | X56: FC | Y56: 7.607259274 | Z56: 7.515581131 | AA56: 9.883609772 | AB56: 9.846029663 | AC56: 9.80455335 | AD56: 10.09695053 | AE56: 10.39022001 | AF56: 10.98156738 | AG56: 10.4793005
B57: F | C57: 8.703134537 | D57: =100 * Amplitude!$H$81 -> 8.703036997 | E57: =100 * Amplitude!$H$75 -> 12.14644855 | F57: 13.64870126 | G57: =100 * Amplitude!$H$93 -> 15.15106516 | H57: 13.50202724 | I57: =100 * Amplitude!$H$78 -> 11.85306574 | J57: =100 * Amplitude!$H$84 -> 10.89644652 | K57: 10.89645672 | M57: F | N57: 5.837417126 | O57: =100 * Amplitude!$H$82 -> 5.837242413 | P57: =100 * Amplitude!$H$76 -> 11.66689284 | Q57: 10.69944153 | R57: =100 * Amplitude!$H$94 -> 9.732055229 | S57: 10.76732178 | T57: =100 * Amplitude!$H$79 -> 11.80260079 | U57: =100 * Amplitude!$H$85 -> 9.256087777 | V57: 9.256177902 | X57: F | Y57: 7.49669981 | Z57: =100 * Amplitude!$H$83 -> 7.496684507 | AA57: =100 * Amplitude!$H$77 -> 8.333181163 | AB57: 8.954654694 | AC57: =100 * Amplitude!$H$95 -> 9.576140786 | AD57: 9.089271545 | AE57: =100 * Amplitude!$H$80 -> 8.602362813 | AF57: =100 * Amplitude!$H$86 -> 10.98816603 | AG57: 10.98812294
B58: AF | C58: 8.705292702 | D58: 8.716442744 | E58: 12.1295681 | F58: 11.25150909 | G58: 15.11994019 | H58: 11.0619133 | I58: 11.84622669 | J58: 10.90016937 | K58: 10.89707184 | M58: AF | N58: 5.841060162 | O58: 5.859925747 | P58: 11.64420573 | Q58: 10.69788106 | R58: 9.732067108 | S58: 10.76683172 | T58: 11.79268773 | U58: 9.265995979 | V58: 9.257754326 | X58: AF | Y58: 7.497232437 | Z58: 7.499939442 | AA58: 8.329929988 | AB58: 8.954182943 | AC58: 9.576136271 | AD58: 9.089872996 | AE58: 8.61164856 | AF58: 10.97888279 | AG58: 10.98660278
B59: Fp | C59: 8.781386375 | D59: 10.13651657 | E59: 11.23279381 | F59: =100 * Amplitude!$H$69 -> 11.23278647 | G59: 11.13784866 | H59: =100 * Amplitude!$H$72 -> 11.04284864 | I59: 11.04286194 | J59: 11.03801727 | K59: 10.91821289 | M59: Fp | N59: 5.96988678 | O59: 6.674780369 | P59: 10.82569631 | Q59: 10.64352226 | R59: 9.74758021 | S59: 10.74993769 | T59: 11.43106333 | U59: 9.621941566 | V59: 9.31402874 | X59: Fp | Y59: 7.515717506 | Z59: 7.616862774 | AA59: 8.217547735 | AB59: 8.937882741 | AC59: 9.567548116 | AD59: 9.111103694 | AE59: 8.947231293 | AF59: 10.645401 | AG59: 10.93388081
B61: Eyes Closed Percent Data | M61: Eyes Open Percent Data | X61: Task Percent Data
B62: 12-15 Hz | C62: 3/3 | D62: 5/7 | E62: 3/3 | F62: 1/1 | G62: Z/0 | H62: 2/2 | I62: 4/4 | J62: 6/8 | K62: 4/4 | M62: 12-15 Hz | N62: 3/3 | O62: 5/7 | P62: 3/3 | Q62: 1/1 | R62: Z/0 | S62: 2/2 | T62: 4/4 | U62: 6/8 | V62: 4/4 | X62: 12-15 Hz | Y62: 3/3 | Z62: 5/7 | AA62: 3/3 | AB62: 1/1 | AC62: Z/0 | AD62: 2/2 | AE62: 4/4 | AF62: 6/8 | AG62: 4/4
B63: O | C63: 8.415682793 | D63: 8.489905039 | E63: 7.451076508 | F63: 7.696942012 | G63: =100 * Amplitude!$I$102 -> 7.956306001 | H63: 7.985782623 | I63: 8.025346375 | J63: 8.719955444 | K63: 8.572138786 | M63: O | N63: 10.64754772 | O63: 10.88153839 | P63: 11.75168304 | Q63: 11.4238383 | R63: =100 * Amplitude!$I$103 -> 11.09178865 | S63: 11.23976771 | T63: 11.38417511 | U63: 9.998311361 | V63: 9.62010479 | X63: O | Y63: 9.454384804 | Z63: 9.666175207 | AA63: 10.84683685 | AB63: 11.26265717 | AC63: =100 * Amplitude!$I$104 -> 11.67670286 | AD63: 11.14195124 | AE63: 10.60782547 | AF63: 9.036099752 | AG63: 8.638110161
B64: PO | C64: 8.374486923 | D64: 8.380505244 | E64: 8.836611938 | F64: =100 * Amplitude!$I$123 -> 7.437563142 | G64: 8.562257767 | H64: =100 * Amplitude!$I$126 -> 8.015246377 | I64: 9.298648834 | J64: 8.533278147 | K64: 8.526619911 | M64: PO | N64: 10.62774086 | O64: 10.63065847 | P64: 11.63769073 | Q64: =100 * Amplitude!$I$124 -> 11.7558895 | R64: 11.49900691 | S64: =100 * Amplitude!$I$127 -> 11.38774427 | T64: 11.22241364 | U64: 9.592273712 | V64: 9.58746624 | X64: PO | Y64: 9.446723938 | Z64: 9.447867711 | AA64: 10.31916275 | AB64: =100 * Amplitude!$I$125 -> 10.84861529 | AC64: 11.22178904 | AD64: =100 * Amplitude!$I$128 -> 10.60720057 | AE64: 10.31547699 | AF64: 8.61126709 | AG64: 8.606625557
B65: P/T | C65: 8.373301506 | D65: =100 * Amplitude!$I$111 -> 8.373266264 | E65: =100 * Amplitude!$I$117 -> 10.23746992 | F65: 9.504970551 | G65: =100 * Amplitude!$I$96 -> 10.83990306 | H65: 9.813397408 | I65: =100 * Amplitude!$I$120 -> 10.58507235 | J65: =100 * Amplitude!$I$114 -> 8.525271464 | K65: 8.525325775 | M65: P/T | N65: 10.62712955 | O65: =100 * Amplitude!$I$112 -> 10.62715391 | P65: =100 * Amplitude!$I$118 -> 11.52344007 | Q65: 11.67996883 | R65: =100 * Amplitude!$I$97 -> 11.76060116 | S65: 11.40392876 | T65: =100 * Amplitude!$I$121 -> 11.06347327 | U65: =100 * Amplitude!$I$115 -> 9.586499051 | V65: 9.586520195 | X65: P/T | Y65: 9.446491241 | Z65: =100 * Amplitude!$I$113 -> 9.446498142 | AA65: =100 * Amplitude!$I$119 -> 9.793111489 | AB65: 10.79878235 | AC65: =100 * Amplitude!$I$98 -> 11.75463834 | AD65: 10.79741192 | AE65: =100 * Amplitude!$I$122 -> 10.0304252 | AF65: =100 * Amplitude!$I$116 -> 8.605692975 | AG65: 8.605732918
B66: CP | C66: 8.743535995 | D66: 8.387587738 | E66: 10.03859275 | F66: 10.18853978 | G66: 10.3412056 | H66: 10.42470878 | I66: 10.50967407 | J66: 8.546228027 | K66: 9.970658302 | M66: CP | N66: 8.058601379 | O66: 10.61780167 | P66: 10.70495496 | Q66: 10.97733743 | R66: 11.24815464 | S66: 11.04458836 | T66: 10.83837455 | U66: 9.595646667 | V66: 9.447519302 | X66: CP | Y66: 8.582844734 | Z66: 9.448656464 | AA66: 10.15811157 | AB66: 10.84924752 | AC66: 11.53945065 | AD66: 11.20021711 | AE66: 10.85858372 | AF66: 8.627474976 | AG66: 9.728147507
B67: C/T | C67: =100 * Amplitude!$I$105 -> 8.744975851 | D67: 9.295581182 | E67: =100 * Amplitude!$I$87 -> 9.846227006 | F67: 9.844374657 | G67: =100 * Amplitude!$I$99 -> 9.842523766 | H67: 10.14227867 | I67: =100 * Amplitude!$I$90 -> 10.4420371 | J67: 10.20913633 | K67: =100 * Amplitude!$I$108 -> 9.976301113 | M67: C/T | N67: =100 * Amplitude!$I$106 -> 8.048554451 | O67: 8.967669169 | P67: =100 * Amplitude!$I$88 -> 9.886773817 | Q67: 10.31124687 | R67: =100 * Amplitude!$I$100 -> 10.73571509 | S67: 10.67693901 | T67: =100 * Amplitude!$I$91 -> 10.61816594 | U67: 10.03255145 | V67: =100 * Amplitude!$I$109 -> 9.446968814 | X67: C/T | Y67: =100 * Amplitude!$I$107 -> 8.57946215 | Z67: 9.552652359 | AA67: =100 * Amplitude!$I$89 -> 10.5258857 | AB67: 10.92507935 | AC67: =100 * Amplitude!$I$101 -> 11.32427981 | AD67: 11.50990486 | AE67: =100 * Amplitude!$I$92 -> 11.69554353 | AF67: 10.71399562 | AG67: =100 * Amplitude!$I$110 -> 9.732527173
B68: FC | C68: 8.739772797 | D68: 7.42797327 | E68: 9.508317312 | F68: 9.352493286 | G68: 9.193201701 | H68: 9.573917389 | I68: 9.950695038 | J68: 7.632314205 | K68: 9.967074394 | M68: FC | N68: 8.045939445 | O68: 7.393732548 | P68: 9.54325676 | Q68: 9.934532166 | R68: 10.3224055 | S68: 10.09113998 | T68: 9.857395808 | U68: 8.306324959 | V68: 9.442468643 | X68: FC | Y68: 8.573140144 | Z68: 6.978810787 | AA68: 9.439400991 | AB68: 10.16478958 | AC68: 10.88637161 | AD68: 10.41295242 | AE68: 9.936845144 | AF68: 8.210954666 | AG68: 9.726531982
B69: F | C69: 7.406592369 | D69: =100 * Amplitude!$I$81 -> 7.406544343 | E69: =100 * Amplitude!$I$75 -> 9.178621449 | F69: 8.861231123 | G69: =100 * Amplitude!$I$93 -> 8.543876431 | H69: 9.006174905 | I69: =100 * Amplitude!$I$78 -> 9.468522209 | J69: =100 * Amplitude!$I$84 -> 7.605010046 | K69: 7.605075359 | M69: F | N69: 7.374387741 | O69: =100 * Amplitude!$I$82 -> 7.37434841 | P69: =100 * Amplitude!$I$76 -> 9.208210837 | Q69: 9.558644104 | R69: =100 * Amplitude!$I$94 -> 9.909105116 | S69: 9.505921936 | T69: =100 * Amplitude!$I$79 -> 9.102749509 | U69: =100 * Amplitude!$I$85 -> 8.289727639 | V69: 8.289757729 | X69: F | Y69: 6.953344345 | Z69: =100 * Amplitude!$I$83 -> 6.953297052 | AA69: =100 * Amplitude!$I$77 -> 8.362621689 | AB69: 9.405535126 | AC69: =100 * Amplitude!$I$95 -> 10.44847813 | AD69: 9.316717529 | AE69: =100 * Amplitude!$I$80 -> 8.184962453 | AF69: =100 * Amplitude!$I$86 -> 8.191500466 | AG69: 8.191525459
B70: AF | C70: 7.407704353 | D70: 7.413440069 | E70: 9.165456772 | F70: 7.564508057 | G70: 8.5336586 | H70: 6.911961365 | I70: 9.451325417 | J70: 7.612259547 | K70: 7.606230259 | M70: AF | N70: 7.375549316 | O70: 7.381484032 | P70: 9.201077779 | Q70: 9.557942708 | R70: 9.909102758 | S70: 9.505528768 | T70: 9.09958903 | U70: 8.292890549 | V70: 8.290259361 | X70: AF | Y70: 6.954219818 | Z70: 6.958780766 | AA70: 8.357143402 | AB70: 9.404745738 | AC70: 10.44846789 | AD70: 9.316350937 | AE70: 8.18499438 | AF70: 8.191474915 | AG70: 8.191495895
B71: Fp | C71: 7.446864605 | D71: 7.61188825 | E71: 7.554402828 | F71: =100 * Amplitude!$I$69 -> 7.554378498 | G71: 7.224997711 | H71: =100 * Amplitude!$I$72 -> 6.895595866 | I71: 6.895637989 | J71: 7.421979268 | K71: 7.64741087 | M71: Fp | N71: 7.416074753 | O71: 7.637816906 | P71: 8.947957357 | Q71: 9.533521652 | R71: 9.903263092 | S71: 9.491932551 | T71: 8.989021937 | U71: 8.406533241 | V71: 8.308226585 | X71: Fp | Y71: 6.98536396 | Z71: 7.155772686 | AA71: 8.1677742 | AB71: 9.377330144 | AC71: 10.43162028 | AD71: 9.303771973 | AE71: 8.19344457 | AF71: 8.190561295 | AG71: 8.191351891
B73: Eyes Closed Percent Data | M73: Eyes Open Percent Data | X73: Task Percent Data
B74: 15-19 Hz | C74: 3/3 | D74: 5/7 | E74: 3/3 | F74: 1/1 | G74: Z/0 | H74: 2/2 | I74: 4/4 | J74: 6/8 | K74: 4/4 | M74: 15-19 Hz | N74: 3/3 | O74: 5/7 | P74: 3/3 | Q74: 1/1 | R74: Z/0 | S74: 2/2 | T74: 4/4 | U74: 6/8 | V74: 4/4 | X74: 15-19 Hz | Y74: 3/3 | Z74: 5/7 | AA74: 3/3 | AB74: 1/1 | AC74: Z/0 | AD74: 2/2 | AE74: 4/4 | AF74: 6/8 | AG74: 4/4
B75: O | C75: 7.836880684 | D75: 7.787818909 | E75: 6.870410919 | F75: 7.072006226 | G75: =100 * Amplitude!$J$102 -> 7.282292172 | H75: 7.081848145 | I75: 6.889028931 | J75: 7.386240005 | K75: 7.330071449 | M75: O | N75: 9.152356148 | O75: 9.084833781 | P75: 8.269676208 | Q75: 8.356124242 | R75: =100 * Amplitude!$J$103 -> 8.448904763 | S75: 8.231311798 | T75: 8.018952179 | U75: 8.076747259 | V75: 7.965732574 | X75: O | Y75: 8.341629028 | Z75: 8.360127131 | AA75: 8.39389267 | AB75: 8.437345505 | AC75: =100 * Amplitude!$J$104 -> 8.481350413 | AD75: 8.39324824 | AE75: 8.305303955 | AF75: 7.679437002 | AG75: 7.488382816
B76: PO | C76: 7.821529865 | D76: 7.823763529 | E76: 7.688967896 | F76: =100 * Amplitude!$J$123 -> 6.86171148 | G76: 7.632909775 | H76: =100 * Amplitude!$J$126 -> 6.881394568 | I76: 7.625189209 | J76: 7.309988658 | K76: 7.306550026 | M76: PO | N76: 9.143126488 | O76: 9.144464493 | P76: 8.912372589 | Q76: =100 * Amplitude!$J$124 -> 8.263338337 | R76: 8.642907461 | S76: =100 * Amplitude!$J$127 -> 8.013711611 | T76: 8.473897552 | U76: 7.947003047 | V76: 7.943788052 | X76: PO | Y76: 8.339120865 | Z76: 8.339489619 | AA76: 8.422790527 | AB76: =100 * Amplitude!$J$125 -> 8.393339822 | AC76: 8.687672297 | AD76: =100 * Amplitude!$J$128 -> 8.30514205 | AE76: 8.303926849 | AF76: 7.472614924 | AG76: 7.469894409
B77: P/T | C77: 7.821095467 | D77: =100 * Amplitude!$J$111 -> 7.821075505 | E77: =100 * Amplitude!$J$117 -> 8.515706395 | F77: 8.294546127 | G77: =100 * Amplitude!$J$96 -> 9.506234753 | H77: 8.252613068 | I77: =100 * Amplitude!$J$120 -> 8.370228569 | J77: =100 * Amplitude!$J$114 -> 7.305853309 | K77: 7.305884838 | M77: P/T | N77: 9.142859459 | O77: =100 * Amplitude!$J$112 -> 9.1428528 | P77: =100 * Amplitude!$J$118 -> 9.560507877 | Q77: 9.223167419 | R77: =100 * Amplitude!$J$97 -> 9.845667684 | S77: 8.931838989 | T77: =100 * Amplitude!$J$121 -> 8.936154756 | U77: =100 * Amplitude!$J$115 -> 7.943138269 | V77: 7.94316721 | X77: P/T | Y77: 8.339086533 | Z77: =100 * Amplitude!$J$113 -> 8.339046344 | AA77: =100 * Amplitude!$J$119 -> 8.452567464 | AB77: 8.805583954 | AC77: =100 * Amplitude!$J$98 -> 9.570854567 | AD77: 8.727316856 | AE77: =100 * Amplitude!$J$122 -> 8.305969568 | AF77: =100 * Amplitude!$J$116 -> 7.469347009 | AG77: 7.469394684
B78: CP | C78: 8.435587883 | D78: 7.825279236 | E78: 8.056443351 | F78: 8.577450344 | G78: 9.10159874 | H78: 8.679783412 | I78: 8.260069166 | J78: 7.317008209 | K78: 8.278766632 | M78: CP | N78: 9.086193085 | O78: 9.140509796 | P78: 8.868291582 | Q78: 9.234513419 | R78: 9.603199959 | S78: 9.16607993 | T78: 8.730072566 | U78: 7.952616119 | V78: 8.817416191 | X78: CP | Y78: 10.76687908 | Z78: 8.351387787 | AA78: 8.717726026 | AB78: 9.033972604 | AC78: 9.350961685 | AD78: 9.180418832 | AE78: 9.009137835 | AF78: 7.490000916 | AG78: 9.724201202
B79: C/T | C79: =100 * Amplitude!$J$105 -> 8.437989513 | D79: 8.018058141 | E79: =100 * Amplitude!$J$87 -> 7.598097524 | F79: 8.147542 | G79: =100 * Amplitude!$J$99 -> 8.696985018 | H79: 8.425310135 | I79: =100 * Amplitude!$J$90 -> 8.153636424 | J79: 8.218082428 | K79: =100 * Amplitude!$J$108 -> 8.282567378 | M79: C/T | N79: =100 * Amplitude!$J$106 -> 9.085971639 | O79: 8.630503972 | P79: =100 * Amplitude!$J$88 -> 8.175000061 | Q79: 8.767876625 | R79: =100 * Amplitude!$J$100 -> 9.360749848 | S79: 8.943903923 | T79: =100 * Amplitude!$J$91 -> 8.527061008 | U79: 8.673924128 | V79: =100 * Amplitude!$J$109 -> 8.820832358 | X79: C/T | Y79: =100 * Amplitude!$J$107 -> 10.77637085 | Z79: 9.88035965 | AA79: =100 * Amplitude!$J$89 -> 8.984356469 | AB79: 9.05771637 | AC79: =100 * Amplitude!$J$101 -> 9.131080724 | AD79: 9.424695015 | AE79: =100 * Amplitude!$J$92 -> 9.71831907 | AF79: 9.725624084 | AG79: =100 * Amplitude!$J$110 -> 9.73301333
B80: FC | C80: 8.44473362 | D80: 10.14399147 | E80: 7.363835653 | F80: 7.78470459 | G80: 8.210275014 | H80: 7.964081573 | I80: 7.716320674 | J80: 6.718604565 | K80: 8.276424408 | M80: FC | N80: 9.091130257 | O80: 10.38972282 | P80: 8.113030116 | Q80: 8.489437103 | R80: 8.869702021 | S80: 8.443461609 | T80: 8.014865875 | U80: 6.502733231 | V80: 8.81172657 | X80: FC | Y80: 10.77928448 | Z80: 11.50017452 | AA80: 8.337734222 | AB80: 8.468578339 | AC80: 8.604652405 | AD80: 8.774443054 | AE80: 8.940849304 | AF80: 6.919734955 | AG80: 9.72195816
B81: F | C81: 10.17234516 | D81: =100 * Amplitude!$J$81 -> 10.17241855 | E81: =100 * Amplitude!$J$75 -> 7.118595563 | F81: 7.421119145 | G81: =100 * Amplitude!$J$93 -> 7.723573814 | H81: 7.503262656 | I81: =100 * Amplitude!$J$78 -> 7.282953949 | J81: =100 * Amplitude!$J$84 -> 6.704685166 | K81: 6.70471859 | M81: F | N81: 10.41258144 | O81: =100 * Amplitude!$J$82 -> 10.41263718 | P81: =100 * Amplitude!$J$76 -> 8.042069735 | Q81: 8.210385895 | R81: =100 * Amplitude!$J$94 -> 8.378664734 | S81: 7.943651581 | T81: =100 * Amplitude!$J$79 -> 7.50865411 | U81: =100 * Amplitude!$J$85 -> 6.481841779 | V81: 6.481893539 | X81: F | Y81: 11.52768898 | Z81: =100 * Amplitude!$J$83 -> 11.52775721 | AA81: =100 * Amplitude!$J$77 -> 7.678643695 | AB81: 7.878466797 | AC81: =100 * Amplitude!$J$95 -> 8.078226244 | AD81: 8.124797058 | AE81: =100 * Amplitude!$J$80 -> 8.171378618 | AF81: =100 * Amplitude!$J$86 -> 6.892924451 | AG81: 6.892987728
B82: AF | C82: 10.17041874 | D82: 10.16053327 | E82: 7.137245655 | F82: 8.864727783 | G82: 7.728534698 | H82: 7.848882294 | I82: 7.282917976 | J82: 6.706938426 | K82: 6.70506382 | M82: AF | N82: 10.41108418 | O82: 10.40341282 | P82: 8.051294963 | Q82: 8.211088181 | R82: 8.378662745 | S82: 7.94318072 | T82: 7.504660924 | U82: 6.485836983 | V82: 6.482513905 | X82: AF | Y82: 11.52523613 | Z82: 11.51278019 | AA82: 7.693621953 | AB82: 7.879630407 | AC82: 8.078226089 | AD82: 8.124398549 | AE82: 8.166404724 | AF82: 6.897898674 | AG82: 6.893761158
B83: Fp | C83: 10.10293388 | D83: 9.338031133 | E83: 8.875980377 | F83: =100 * Amplitude!$J$69 -> 8.876004378 | G83: 8.363788605 | H83: =100 * Amplitude!$J$72 -> 7.851582733 | I83: 7.85157156 | J83: 7.278506597 | K83: 6.717842579 | M83: Fp | N83: 10.35869789 | O83: 10.07206059 | P83: 8.382632573 | Q83: 8.235710144 | R83: 8.373988469 | S83: 7.926837285 | T83: 7.364525477 | U83: 6.629362106 | V83: 6.505205154 | X83: Fp | Y83: 11.44017696 | Z83: 10.97476101 | AA83: 8.231128693 | AB83: 7.920429866 | AC83: 8.077038447 | AD83: 8.110626856 | AE83: 7.988007228 | AF83: 7.076598167 | AG83: 6.922013283
B85: Eyes Closed Percent Data | M85: Eyes Open Percent Data | X85: Task Percent Data
B86: 19-23 Hz | C86: 3/3 | D86: 5/7 | E86: 3/3 | F86: 1/1 | G86: Z/0 | H86: 2/2 | I86: 4/4 | J86: 6/8 | K86: 4/4 | M86: 19-23 Hz | N86: 3/3 | O86: 5/7 | P86: 3/3 | Q86: 1/1 | R86: Z/0 | S86: 2/2 | T86: 4/4 | U86: 6/8 | V86: 4/4 | X86: 19-23 Hz | Y86: 3/3 | Z86: 5/7 | AA86: 3/3 | AB86: 1/1 | AC86: Z/0 | AD86: 2/2 | AE86: 4/4 | AF86: 6/8 | AG86: 4/4
B87: O | C87: 6.297918797 | D87: 6.164865494 | E87: 5.870659256 | F87: 6.007938385 | G87: =100 * Amplitude!$K$102 -> 6.145385352 | H87: 6.009051005 | I87: 5.872536087 | J87: 6.094141642 | K87: 6.215260029 | M87: O | N87: 6.988695145 | O87: 6.692312241 | P87: 5.738090515 | Q87: 6.380753199 | R87: =100 * Amplitude!$K$103 -> 7.029193881 | S87: 6.387852351 | T87: 5.753184128 | U87: 7.143376668 | V87: 7.551589966 | X87: O | Y87: 6.647849083 | Z87: 6.752855937 | AA87: 7.320973969 | AB87: 7.66655159 | AC87: =100 * Amplitude!$K$104 -> 8.012502008 | AD87: 7.587719599 | AE87: 7.165478516 | AF87: 6.604008357 | AG87: 6.44344902
B88: PO | C88: 6.314506531 | D88: 6.312070211 | E88: 5.718601608 | F88: =100 * Amplitude!$K$123 -> 5.870495012 | G88: 5.890615463 | H88: =100 * Amplitude!$K$126 -> 5.872718495 | I88: 5.684169388 | J88: 6.22918574 | K88: 6.231581211 | M88: PO | N88: 7.017654419 | O88: 7.013394674 | P88: 5.722693253 | Q88: =100 * Amplitude!$K$124 -> 5.732315458 | R88: 6.234062195 | S88: =100 * Amplitude!$K$127 -> 5.746512407 | T88: 5.813895798 | U88: 7.58393542 | V88: 7.589517117 | X88: PO | Y88: 6.643565655 | Z88: 6.644203186 | AA88: 7.078097534 | AB88: =100 * Amplitude!$K$125 -> 7.320608343 | AC88: 7.422035853 | AD88: =100 * Amplitude!$K$128 -> 7.162940126 | AE88: 7.126159668 | AF88: 6.430939992 | AG88: 6.428780556
B89: P/T | C89: 6.315042019 | D89: =100 * Amplitude!$K$111 -> 6.314998284 | E89: =100 * Amplitude!$K$117 -> 5.56437819 | F89: 5.702915668 | G89: =100 * Amplitude!$K$96 -> 5.673861455 | H89: 5.680023193 | I89: =100 * Amplitude!$K$120 -> 5.493479849 | J89: =100 * Amplitude!$K$114 -> 6.232065209 | K89: 6.232057095 | M89: P/T | N89: 7.018539906 | O89: =100 * Amplitude!$K$112 -> 7.018513415 | P89: =100 * Amplitude!$K$118 -> 5.708003968 | Q89: 5.956189156 | R89: =100 * Amplitude!$K$97 -> 6.428226659 | S89: 6.016367435 | T89: =100 * Amplitude!$K$121 -> 5.874334737 | U89: =100 * Amplitude!$K$115 -> 7.590641454 | V89: 7.590605259 | X89: P/T | Y89: 6.643492222 | Z89: =100 * Amplitude!$K$113 -> 6.643439004 | AA89: =100 * Amplitude!$K$119 -> 6.837282993 | AB89: 7.116659164 | AC89: =100 * Amplitude!$K$98 -> 7.192095013 | AD89: 7.149042606 | AE89: =100 * Amplitude!$K$122 -> 7.092104329 | AF89: =100 * Amplitude!$K$116 -> 6.428346073 | AG89: 6.428373814
B90: CP | C90: 9.888969421 | D90: 6.324421692 | E90: 5.742455074 | F90: 5.785194397 | G90: 5.828715801 | H90: 5.729779925 | I90: 5.631571633 | J90: 6.22806015 | K90: 6.397422314 | M90: CP | N90: 10.01941586 | O90: 7.022737122 | P90: 6.061067854 | Q90: 6.282169342 | R90: 6.505978584 | S90: 6.247894832 | T90: 5.993469238 | U90: 7.575597382 | V90: 6.897325039 | X90: CP | Y90: 9.891242027 | Z90: 6.654634094 | AA90: 6.463244302 | AB90: 6.759573255 | AC90: 7.055196285 | AD90: 6.797482082 | AE90: 6.538955688 | AF90: 6.433561707 | AG90: 7.553158283
B91: C/T | C91: =100 * Amplitude!$K$105 -> 9.902950222 | D91: 7.91062355 | E91: =100 * Amplitude!$K$87 -> 5.918284062 | F91: 5.950927734 | G91: =100 * Amplitude!$K$99 -> 5.983572063 | H91: 5.875441551 | I91: =100 * Amplitude!$K$90 -> 5.767313902 | J91: 6.082684199 | K91: =100 * Amplitude!$K$108 -> 6.398072101 | M91: C/T | N91: =100 * Amplitude!$K$106 -> 10.03115757 | O91: 8.220788956 | P91: =100 * Amplitude!$K$88 -> 6.410381076 | Q91: 6.497059822 | R91: =100 * Amplitude!$K$100 -> 6.583740618 | S91: 6.345050335 | T91: =100 * Amplitude!$K$91 -> 6.106360226 | U91: 6.500492096 | V91: =100 * Amplitude!$K$109 -> 6.894621586 | X91: C/T | Y91: =100 * Amplitude!$K$107 -> 9.903944497 | Z91: 7.996250788 | AA91: =100 * Amplitude!$K$89 -> 6.088488224 | AB91: 6.503399372 | AC91: =100 * Amplitude!$K$101 -> 6.918303846 | AD91: 6.452270031 | AE91: =100 * Amplitude!$K$92 -> 5.986231971 | AF91: 6.771879832 | AG91: =100 * Amplitude!$K$110 -> 7.557556915
B92: FC | C92: 9.906949997 | D92: 10.8938961 | E92: 6.085484823 | F92: 6.033973694 | G92: 5.990332286 | H92: 5.74291153 | I92: 5.49477005 | J92: 5.009937763 | K92: 6.392630577 | M92: FC | N92: 10.04158306 | O92: 12.65609169 | P92: 6.425858816 | Q92: 6.438096619 | R92: 6.46056366 | S92: 6.319947433 | T92: 6.178471883 | U92: 5.630762577 | V92: 6.889664173 | X92: FC | Y92: 9.920325279 | Z92: 14.04383469 | AA92: 6.655010859 | AB92: 6.72354126 | AC92: 6.804225922 | AD92: 6.564479828 | AE92: 6.322790782 | AF92: 5.098883629 | AG92: 7.54790926
B93: F | C93: 10.93531895 | D93: =100 * Amplitude!$K$81 -> 10.93540573 | E93: =100 * Amplitude!$K$75 -> 6.233731501 | F93: 6.115461077 | G93: =100 * Amplitude!$K$93 -> 5.997094302 | H93: 5.610625131 | I93: =100 * Amplitude!$K$78 -> 5.2241532 | J93: =100 * Amplitude!$K$84 -> 5.000720242 | K93: 5.000745296 | M93: F | N93: 12.71497822 | O93: =100 * Amplitude!$K$82 -> 12.71511489 | P93: =100 * Amplitude!$K$76 -> 6.416758919 | Q93: 6.377123642 | R93: =100 * Amplitude!$K$94 -> 6.337389726 | S93: 6.295067978 | T93: =100 * Amplitude!$K$79 -> 6.252756241 | U93: =100 * Amplitude!$K$85 -> 5.621538119 | V93: 5.621567726 | X93: F | Y93: 14.11767483 | Z93: =100 * Amplitude!$K$83 -> 14.11784422 | AA93: =100 * Amplitude!$K$77 -> 7.192373381 | AB93: 6.941316986 | AC93: =100 * Amplitude!$K$95 -> 6.690152608 | AD93: 6.677165222 | AE93: =100 * Amplitude!$K$80 -> 6.664202277 | AF93: =100 * Amplitude!$K$86 -> 5.079699059 | AG93: 5.079761505
B94: AF | C94: 10.93232632 | D94: 10.91710281 | E94: 6.257227421 | F94: 7.582656097 | G94: 6.004623795 | H94: 6.337177277 | I94: 5.22762537 | J94: 5.001593272 | K94: 5.000865936 | M94: AF | N94: 12.710989 | O94: 12.69060802 | P94: 6.441266378 | Q94: 6.379150391 | R94: 6.337390264 | S94: 6.294851939 | T94: 6.250300725 | U94: 5.62399435 | V94: 5.621951103 | X94: AF | Y94: 14.11330795 | Z94: 14.09089661 | AA94: 7.219319661 | AB94: 6.943613688 | AC94: 6.690155029 | AD94: 6.676653544 | AE94: 6.658037186 | AF94: 5.085864544 | AG94: 5.080736637
B95: Fp | C95: 10.82842731 | D95: 9.030176163 | E95: 7.594100475 | F95: =100 * Amplitude!$K$69 -> 7.594112836 | G95: 6.968475342 | H95: =100 * Amplitude!$K$72 -> 6.342853008 | I95: 6.342833042 | J95: 5.637142181 | K95: 5.005804062 | M95: Fp | N95: 12.57180691 | O95: 11.81023884 | P95: 7.318353653 | Q95: 6.450009664 | R95: 6.337369283 | S95: 6.287322362 | T95: 6.162654241 | U95: 5.712224483 | V95: 5.635900497 | X95: Fp | Y95: 13.96026802 | Z95: 13.1228714 | AA95: 8.182354609 | AB95: 7.023848216 | AC95: 6.691998164 | AD95: 6.658794403 | AE95: 6.437403997 | AF95: 5.307342052 | AG95: 5.115751743
B97: Eyes Closed Percent Data | M97: Eyes Open Percent Data | X97: Task Percent Data
B98: 23-38 Hz | C98: 3/3 | D98: 5/7 | E98: 3/3 | F98: 1/1 | G98: Z/0 | H98: 2/2 | I98: 4/4 | J98: 6/8 | K98: 4/4 | M98: 23-38 Hz | N98: 3/3 | O98: 5/7 | P98: 3/3 | Q98: 1/1 | R98: Z/0 | S98: 2/2 | T98: 4/4 | U98: 6/8 | V98: 4/4 | X98: 23-38 Hz | Y98: 3/3 | Z98: 5/7 | AA98: 3/3 | AB98: 1/1 | AC98: Z/0 | AD98: 2/2 | AE98: 4/4 | AF98: 6/8 | AG98: 4/4
B99: O | C99: 6.447833061 | D99: 6.213935852 | E99: 4.659212494 | F99: 6.275286992 | G99: =100 * Amplitude!$L$102 -> 7.912026154 | H99: 6.576967239 | I99: 5.264402008 | J99: 10.14320628 | K99: 11.34367561 | M99: O | N99: 9.278167725 | O99: 9.039109548 | P99: 8.798323822 | Q99: 10.50806046 | R99: =100 * Amplitude!$L$103 -> 12.22701166 | S99: 10.87701416 | T99: 9.538145447 | U99: 13.11779022 | V99: 14.30563927 | X99: O | Y99: 7.534640789 | Z99: 8.436412175 | AA99: 11.51392822 | AB99: 12.73983002 | AC99: =100 * Amplitude!$L$104 -> 13.97165746 | AD99: 13.07471085 | AE99: 12.18552933 | AF99: 11.97664897 | AG99: 11.87734318
B100: PO | C100: 6.449214935 | D100: 6.448986053 | E100: 5.514456558 | F100: =100 * Amplitude!$L$123 -> 4.638548261 | G100: 6.214237849 | H100: =100 * Amplitude!$L$126 -> 5.241909112 | I100: 6.297238922 | J100: 11.42100271 | K100: 11.43437958 | M100: PO | N100: 9.315294266 | O100: 9.309849421 | P100: 8.214894104 | Q100: =100 * Amplitude!$L$124 -> 8.789125637 | R100: 9.919342041 | S100: =100 * Amplitude!$L$127 -> 9.527032611 | T100: 9.211077881 | U100: 14.41039022 | V100: 14.42844772 | X100: PO | Y100: 7.450483322 | Z100: 7.462869008 | AA100: 11.37447357 | AB100: =100 * Amplitude!$L$125 -> 11.50801829 | AC100: 11.98850886 | AD100: =100 * Amplitude!$L$128 -> 12.17777382 | AE100: 12.31121445 | AF100: 11.8663648 | AG100: 11.8644743
B101: P/T | C101: 6.449381828 | D101: =100 * Amplitude!$L$111 -> 6.449256303 | E101: =100 * Amplitude!$L$117 -> 6.386703576 | F101: 6.029910564 | G101: =100 * Amplitude!$L$96 -> 7.064464133 | H101: 6.546311855 | I101: =100 * Amplitude!$L$120 -> 7.332486087 | J101: =100 * Amplitude!$L$114 -> 11.43706813 | K101: 11.43701172 | M101: P/T | N101: 9.316492081 | O101: =100 * Amplitude!$L$112 -> 9.316394472 | P101: =100 * Amplitude!$L$118 -> 7.63634967 | Q101: 8.519902229 | R101: =100 * Amplitude!$L$97 -> 9.134203682 | S101: 9.17868042 | T101: =100 * Amplitude!$L$121 -> 8.874722225 | U101: =100 * Amplitude!$L$115 -> 14.43208829 | V101: 14.43196487 | X101: P/T | Y101: 7.448244095 | Z101: =100 * Amplitude!$L$113 -> 7.447989843 | AA101: =100 * Amplitude!$L$119 -> 11.2562652 | AB101: 11.02027416 | AC101: =100 * Amplitude!$L$98 -> 10.29658544 | AD101: 11.64025307 | AE101: =100 * Amplitude!$L$122 -> 12.44640488 | AF101: =100 * Amplitude!$L$116 -> 11.86409338 | AG101: 11.864151
B102: CP | C102: 14.67912769 | D102: 6.485334778 | E102: 6.989265442 | F102: 7.112940652 | G102: 7.240624428 | H102: 7.180227552 | I102: 7.130646842 | J102: 11.40520706 | K102: 11.81311703 | M102: CP | N102: 17.27758598 | O102: 9.338358307 | P102: 8.166631426 | Q102: 8.590588161 | R102: 9.016168594 | S102: 8.699606759 | T102: 8.391351427 | U102: 14.37539825 | V102: 11.86443615 | X102: CP | Y102: 20.2277317 | Z102: 7.525263977 | AA102: 11.03296334 | AB102: 10.56298065 | AC102: 10.08517361 | AD102: 10.50070517 | AE102: 10.91437422 | AF102: 11.86891403 | AG102: 15.00333881
B103: C/T | C103: =100 * Amplitude!$L$105 -> 14.71131411 | D103: 11.15262477 | E103: =100 * Amplitude!$L$87 -> 7.59392133 | F103: 7.50535965 | G103: =100 * Amplitude!$L$99 -> 7.416798545 | H103: 7.16438961 | I103: =100 * Amplitude!$L$90 -> 6.911978071 | J103: 9.363290151 | K103: =100 * Amplitude!$L$108 -> 11.81461002 | M103: C/T | N103: =100 * Amplitude!$L$106 -> 17.30872665 | O103: 13.00060145 | P103: =100 * Amplitude!$L$88 -> 8.692392602 | Q103: 8.795268059 | R103: =100 * Amplitude!$L$100 -> 8.89814012 | S103: 8.391257286 | T103: =100 * Amplitude!$L$91 -> 7.884368378 | U103: 9.869417826 | V103: =100 * Amplitude!$L$109 -> 11.85442487 | X103: C/T | Y103: =100 * Amplitude!$L$107 -> 20.27769866 | Z103: 15.55064138 | AA103: =100 * Amplitude!$L$89 -> 10.82364526 | AB103: 10.34869862 | AC103: =100 * Amplitude!$L$101 -> 9.87374518 | AD103: 9.626192093 | AE103: =100 * Amplitude!$L$92 -> 9.378623951 | AF103: 12.19708506 | AG103: =100 * Amplitude!$L$110 -> 15.01562212
B104: FC | C104: 14.72369289 | D104: 17.81322861 | E104: 8.15867424 | F104: 7.741659546 | G104: 7.340350469 | H104: 7.3876091 | I104: 7.434544245 | J104: 7.261031628 | K104: 11.79679585 | M104: FC | N104: 17.33252144 | O104: 23.30205345 | P104: 9.52924029 | Q104: 9.105186462 | R104: 8.703601201 | S104: 8.515511322 | T104: 8.327665965 | U104: 8.449748993 | V104: 11.84111023 | X104: FC | Y104: 20.27947998 | Z104: 20.67333031 | AA104: 11.45065816 | AB104: 10.579702 | AC104: 9.723584493 | AD104: 10.12545929 | AE104: 10.52220853 | AF104: 7.497307777 | AG104: 14.98613834
B105: F | C105: 17.90073013 | D105: =100 * Amplitude!$L$81 -> 17.90092146 | E105: =100 * Amplitude!$L$75 -> 8.685358255 | F105: 7.97473417 | G105: =100 * Amplitude!$L$93 -> 7.263899863 | H105: 7.610892705 | I105: =100 * Amplitude!$L$78 -> 7.957852955 | J105: =100 * Amplitude!$L$84 -> 7.241885779 | K105: 7.241966724 | M105: F | N105: 23.4329834 | O105: =100 * Amplitude!$L$82 -> 23.43327705 | P105: =100 * Amplitude!$L$76 -> 10.31175956 | Q105: 9.41051712 | R105: =100 * Amplitude!$L$94 -> 8.509061368 | S105: 8.639791107 | T105: =100 * Amplitude!$L$79 -> 8.770524852 | U105: =100 * Amplitude!$L$85 -> 8.437405993 | V105: 8.43746376 | X105: F | Y105: 20.74692917 | Z105: =100 * Amplitude!$L$83 -> 20.74707002 | AA105: =100 * Amplitude!$L$77 -> 12.04134146 | AB105: 10.80745239 | AC105: =100 * Amplitude!$L$95 -> 9.573412349 | AD105: 10.62558517 | AE105: =100 * Amplitude!$L$80 -> 11.67781209 | AF105: =100 * Amplitude!$L$86 -> 7.444260695 | AG105: 7.444440842
B106: AF | C106: 17.89488411 | D106: 17.86504873 | E106: 8.733314514 | F106: 11.81358337 | G106: 7.293593597 | H106: 10.32244568 | I106: 7.964323521 | J106: 7.244679769 | K106: 7.242354393 | M106: AF | N106: 23.42468262 | O106: 23.38221931 | P106: 10.36281204 | Q106: 9.415004094 | R106: 8.509068171 | S106: 8.639726639 | T106: 8.769228617 | U106: 8.43870163 | V106: 8.437623024 | X106: AF | Y106: 20.74136734 | Z106: 20.7131958 | AA106: 12.07521057 | AB106: 10.81063334 | AC106: 9.573424657 | AD106: 10.62456894 | AE106: 11.66133372 | AF106: 7.460733414 | AG106: 7.447032928
B107: Fp | C107: 17.6912365 | D107: 14.39341354 | E107: 11.84352875 | F107: =100 * Amplitude!$L$69 -> 11.84356237 | G107: 11.09356842 | H107: =100 * Amplitude!$L$72 -> 10.34363298 | I107: 10.34358883 | J107: 8.728141785 | K107: 7.258176327 | M107: Fp | N107: 23.13471985 | O107: 21.54812813 | P107: 12.18461482 | Q107: 9.571779887 | R107: 8.517062505 | S107: 8.637464523 | T107: 8.721954346 | U107: 8.485263824 | V107: 8.44498539 | X107: Fp | Y107: 20.54898643 | Z107: 19.49633217 | AA107: 13.27968343 | AB107: 10.92175802 | AC107: 9.591133753 | AD107: 10.58900261 | AE107: 11.06459554 | AF107: 8.052488327 | AG107: 7.540587902
B109: Eyes Closed Percent Data | M109: Eyes Open Percent Data | X109: Task Percent Data
B110: 38-42 Hz | C110: 3/3 | D110: 5/7 | E110: 3/3 | F110: 1/1 | G110: Z/0 | H110: 2/2 | I110: 4/4 | J110: 6/8 | K110: 4/4 | M110: 38-42 Hz | N110: 3/3 | O110: 5/7 | P110: 3/3 | Q110: 1/1 | R110: Z/0 | S110: 2/2 | T110: 4/4 | U110: 6/8 | V110: 4/4 | X110: 38-42 Hz | Y110: 3/3 | Z110: 5/7 | AA110: 3/3 | AB110: 1/1 | AC110: Z/0 | AD110: 2/2 | AE110: 4/4 | AF110: 6/8 | AG110: 4/4
B111: O | C111: 3.128308058 | D111: 2.93934981 | E111: 1.977765656 | F111: 2.919471105 | G111: =100 * Amplitude!$M$102 -> 3.872296318 | H111: 3.128360113 | I111: 2.39607563 | J111: 5.282101949 | K111: 6.040276527 | M111: O | N111: 4.256292343 | O111: 4.117678324 | P111: 3.775834274 | Q111: 4.672259649 | R111: =100 * Amplitude!$M$103 -> 5.575128193 | S111: 5.027767499 | T111: 4.485908127 | U111: 7.13544337 | V111: 7.984727383 | X111: O | Y111: 3.351787806 | Z111: 3.838885307 | AA111: 5.714889145 | AB111: 6.10161527 | AC111: =100 * Amplitude!$M$104 -> 6.487402986 | AD111: 6.180482864 | AE111: 5.876467896 | AF111: 6.267847061 | AG111: 6.380538464
B112: PO | C112: 3.137301445 | D112: 3.135966619 | E112: 2.350153732 | F112: =100 * Amplitude!$M$123 -> 1.96664751 | G112: 2.82649072 | H112: =100 * Amplitude!$M$126 -> 2.384426002 | I112: 2.837226677 | J112: 6.093550364 | K112: 6.102756023 | M112: PO | N112: 4.272480488 | O112: 4.270102183 | P112: 3.656110382 | Q112: =100 * Amplitude!$M$124 -> 3.769397181 | R112: 4.439987818 | S112: =100 * Amplitude!$M$127 -> 4.480413973 | T112: 4.349285507 | U112: 8.057654063 | V112: 8.070228577 | X112: PO | Y112: 3.312048435 | Z112: 3.317904472 | AA112: 5.408395004 | AB112: =100 * Amplitude!$M$125 -> 5.71583496 | AC112: 5.594349543 | AD112: =100 * Amplitude!$M$128 -> 5.873569176 | AE112: 5.901524734 | AF112: 6.389273326 | AG112: 6.390780926
B113: P/T | C113: 3.137638092 | D113: =100 * Amplitude!$M$111 -> 3.137568331 | E113: =100 * Amplitude!$M$117 -> 2.730578672 | F113: 2.593277693 | G113: =100 * Amplitude!$M$96 -> 3.082590955 | H113: 2.914776325 | I113: =100 * Amplitude!$M$120 -> 3.277260979 | J113: =100 * Amplitude!$M$114 -> 6.104607954 | K113: 6.104558468 | M113: P/T | N113: 4.273004532 | O113: =100 * Amplitude!$M$112 -> 4.272960201 | P113: =100 * Amplitude!$M$118 -> 3.540408957 | Q113: 3.748278379 | R113: =100 * Amplitude!$M$97 -> 3.935013647 | S113: 4.206365585 | T113: =100 * Amplitude!$M$121 -> 4.203610974 | U113: =100 * Amplitude!$M$115 -> 8.072763378 | V113: 8.072666168 | X113: P/T | Y113: 3.310985804 | Z113: =100 * Amplitude!$M$113 -> 3.310870916 | AA113: =100 * Amplitude!$M$119 -> 5.109149506 | AB113: 5.04185009 | AC113: =100 * Amplitude!$M$98 -> 4.300588508 | AD113: 5.367247105 | AE113: =100 * Amplitude!$M$122 -> 5.927571621 | AF113: =100 * Amplitude!$M$116 -> 6.391084504 | AG113: 6.39109087
B114: CP | C114: 8.085165024 | D114: 3.157122803 | E114: 3.186301913 | F114: 3.156477519 | G114: 3.12889576 | H114: 3.19215938 | I114: 3.261607579 | J114: 6.080847549 | K114: 5.649459839 | M114: CP | N114: 7.868999004 | O114: 4.283049393 | P114: 3.775415421 | Q114: 3.793644769 | R114: 3.812736511 | S114: 3.851557323 | T114: 3.895927974 | U114: 8.030788422 | V114: 5.580943108 | X114: CP | Y114: 9.002590179 | Z114: 3.346761703 | AA114: 5.098240444 | AB114: 4.617314475 | AC114: 4.131181717 | AD114: 4.587112972 | AE114: 5.042575291 | AF114: 6.384021759 | AG114: 7.260592937
B115: C/T | C115: =100 * Amplitude!$M$105 -> 8.104516348 | D115: 5.873357773 | E115: =100 * Amplitude!$M$87 -> 3.642206601 | F115: 3.408705235 | G115: =100 * Amplitude!$M$99 -> 3.175204918 | H115: 3.205025673 | I115: =100 * Amplitude!$M$90 -> 3.234845861 | J115: 4.441273371 | K115: =100 * Amplitude!$M$108 -> 5.647693942 | M115: C/T | N115: =100 * Amplitude!$M$106 -> 7.883066273 | O115: 5.945796331 | P115: =100 * Amplitude!$M$88 -> 4.008467995 | Q115: 3.849463701 | R115: =100 * Amplitude!$M$100 -> 3.690457737 | S115: 3.631192923 | T115: =100 * Amplitude!$M$91 -> 3.571924252 | U115: 4.571592013 | V115: =100 * Amplitude!$M$109 -> 5.571218126 | X115: C/T | Y115: =100 * Amplitude!$M$107 -> 9.024842479 | Z115: 7.059568405 | AA115: =100 * Amplitude!$M$89 -> 5.094307647 | AB115: 4.528033733 | AC115: =100 * Amplitude!$M$101 -> 3.961757169 | AD115: 4.057037354 | AE115: =100 * Amplitude!$M$92 -> 4.152308343 | AF115: 5.708142598 | AG115: =100 * Amplitude!$M$110 -> 7.264000951
B116: FC | C116: 8.107960701 | D116: 8.951612473 | E116: 3.792891502 | F116: 3.476800919 | G116: 3.169068972 | H116: 3.254146957 | I116: 3.339565277 | J116: 3.570366621 | K116: 5.639575005 | M116: FC | N116: 7.899132252 | O116: 11.94100761 | P116: 4.295566559 | Q116: 3.97324028 | R116: 3.663362821 | S116: 3.748155975 | T116: 3.83310763 | U116: 3.951191425 | V116: 5.564884663 | X116: FC | Y116: 9.030667305 | Z116: 10.48089123 | AA116: 5.390517553 | AB116: 4.65988121 | AC116: 3.937360128 | AD116: 4.377583313 | AE116: 4.815284411 | AF116: 3.374741793 | AG116: 7.248752117
B117: F | C117: 8.995212555 | D117: =100 * Amplitude!$M$81 -> 8.9953035 | E117: =100 * Amplitude!$M$75 -> 3.923245878 | F117: 3.543147223 | G117: =100 * Amplitude!$M$93 -> 3.162929286 | H117: 3.303184237 | I117: =100 * Amplitude!$M$78 -> 3.443402934 | J117: =100 * Amplitude!$M$84 -> 3.564058493 | K117: 3.564088583 | M117: F | N117: 12.01653004 | O117: =100 * Amplitude!$M$82 -> 12.01670616 | P117: =100 * Amplitude!$M$76 -> 4.552497878 | Q117: 4.094441605 | R117: =100 * Amplitude!$M$94 -> 3.636265011 | S117: 3.86505661 | T117: =100 * Amplitude!$M$79 -> 4.093847825 | U117: =100 * Amplitude!$M$85 -> 3.945787315 | V117: 3.945814848 | X117: F | Y117: 10.52632904 | Z117: =100 * Amplitude!$M$83 -> 10.5264252 | AA117: =100 * Amplitude!$M$77 -> 5.666662649 | AB117: 4.789850616 | AC117: =100 * Amplitude!$M$95 -> 3.912951635 | AD117: 4.698459244 | AE117: =100 * Amplitude!$M$80 -> 5.483990035 | AF117: =100 * Amplitude!$M$86 -> 3.348272877 | AG117: 3.348365307
B118: AF | C118: 8.991980553 | D118: 8.975560506 | E118: 3.950520515 | F118: 5.87031517 | G118: 3.182293892 | H118: 5.416153717 | I118: 3.451580524 | J118: 3.563594182 | K118: 3.563979387 | M118: AF | N118: 12.01181698 | O118: 11.98766232 | P118: 4.581539154 | Q118: 4.096976598 | R118: 3.636268934 | S118: 3.865082741 | T118: 4.09327062 | U118: 3.946363449 | V118: 3.945884228 | X118: AF | Y118: 10.523242 | Z118: 10.50751591 | AA118: 5.685568492 | AB118: 4.791686376 | AC118: 3.912960688 | AD118: 4.698028564 | AE118: 5.475676219 | AF118: 3.35658288 | AG118: 3.349671364
B119: Fp | C119: 8.879897118 | D119: 7.169574102 | E119: 5.888466835 | F119: =100 * Amplitude!$M$69 -> 5.888489185 | G119: 5.660557938 | H119: =100 * Amplitude!$M$72 -> 5.432664359 | I119: 5.432629585 | J119: 4.416713715 | K119: 3.561313152 | M119: Fp | N119: 11.84687138 | O119: 10.94433403 | P119: 5.618240356 | Q119: 4.185548147 | R119: 3.641589801 | S119: 3.865985235 | T119: 4.071121534 | U119: 3.967058897 | V119: 3.949156284 | X119: Fp | Y119: 10.41584969 | Z119: 9.828229904 | AA119: 6.356683731 | AB119: 4.855821609 | AC119: 3.92583847 | AD119: 4.682933172 | AE119: 5.172939936 | AF119: 3.655108213 | AG119: 3.396867514
B121: Eyes Closed Percent Data | M121: Eyes Open Percent Data | X121: Task Percent Data
B122: Total | C122: 3/3 | D122: 5/7 | E122: 3/3 | F122: 1/1 | G122: Z/0 | H122: 2/2 | I122: 4/4 | J122: 6/8 | K122: 4/4 | M122: Total | N122: 3/3 | O122: 5/7 | P122: 3/3 | Q122: 1/1 | R122: Z/0 | S122: 2/2 | T122: 4/4 | U122: 6/8 | V122: 4/4 | X122: Total | Y122: 3/3 | Z122: 5/7 | AA122: 3/3 | AB122: 1/1 | AC122: Z/0 | AD122: 2/2 | AE122: 4/4 | AF122: 6/8 | AG122: 4/4
B123: O | C123: 0 | D123: 0 | E123: 0 | F123: 0 | G123: =100 * Amplitude!$N$102 -> 0 | H123: 0 | I123: 0 | J123: 0 | K123: 0 | M123: O | N123: 0 | O123: 0 | P123: 0 | Q123: 0 | R123: =100 * Amplitude!$N$103 -> 0 | S123: 0 | T123: 0 | U123: 0 | V123: 0 | X123: O | Y123: 0 | Z123: 0 | AA123: 0 | AB123: 0 | AC123: =100 * Amplitude!$N$104 -> 0 | AD123: 0 | AE123: 0 | AF123: 0 | AG123: 0
B124: PO | C124: 0 | D124: 0 | E124: 0 | F124: =100 * Amplitude!$N$123 -> 0 | G124: 0 | H124: =100 * Amplitude!$N$126 -> 0 | I124: 0 | J124: 0 | K124: 0 | M124: PO | N124: 0 | O124: 0 | P124: 0 | Q124: =100 * Amplitude!$N$124 -> 0 | R124: 0 | S124: =100 * Amplitude!$N$127 -> 0 | T124: 0 | U124: 0 | V124: 0 | X124: PO | Y124: 0 | Z124: 0 | AA124: 0 | AB124: =100 * Amplitude!$N$125 -> 0 | AC124: 0 | AD124: =100 * Amplitude!$N$128 -> 0 | AE124: 0 | AF124: 0 | AG124: 0
B125: P/T | C125: 0 | D125: =100 * Amplitude!$N$111 -> 0 | E125: =100 * Amplitude!$N$117 -> 0 | F125: 0 | G125: =100 * Amplitude!$N$96 -> 0 | H125: 0 | I125: =100 * Amplitude!$N$120 -> 0 | J125: =100 * Amplitude!$N$114 -> 0 | K125: 0 | M125: P/T | N125: 0 | O125: =100 * Amplitude!$N$112 -> 0 | P125: =100 * Amplitude!$N$118 -> 0 | Q125: 0 | R125: =100 * Amplitude!$N$97 -> 0 | S125: 0 | T125: =100 * Amplitude!$N$121 -> 0 | U125: =100 * Amplitude!$N$115 -> 0 | V125: 0 | X125: P/T | Y125: 0 | Z125: =100 * Amplitude!$N$113 -> 0 | AA125: =100 * Amplitude!$N$119 -> 0 | AB125: 0 | AC125: =100 * Amplitude!$N$98 -> 0 | AD125: 0 | AE125: =100 * Amplitude!$N$122 -> 0 | AF125: =100 * Amplitude!$N$116 -> 0 | AG125: 0
B126: CP | C126: 0 | D126: 0 | E126: 0 | F126: 0 | G126: 0 | H126: 0 | I126: 0 | J126: 0 | K126: 0 | M126: CP | N126: 0 | O126: 0 | P126: 0 | Q126: 0 | R126: 0 | S126: 0 | T126: 0 | U126: 0 | V126: 0 | X126: CP | Y126: 0 | Z126: 0 | AA126: 0 | AB126: 0 | AC126: 0 | AD126: 0 | AE126: 0 | AF126: 0 | AG126: 0
B127: C/T | C127: =100 * Amplitude!$N$105 -> 0 | D127: 0 | E127: =100 * Amplitude!$N$87 -> 0 | F127: 0 | G127: =100 * Amplitude!$N$99 -> 0 | H127: 0 | I127: =100 * Amplitude!$N$90 -> 0 | J127: 0 | K127: =100 * Amplitude!$N$108 -> 0 | M127: C/T | N127: =100 * Amplitude!$N$106 -> 0 | O127: 0 | P127: =100 * Amplitude!$N$88 -> 0 | Q127: 0 | R127: =100 * Amplitude!$N$100 -> 0 | S127: 0 | T127: =100 * Amplitude!$N$91 -> 0 | U127: 0 | V127: =100 * Amplitude!$N$109 -> 0 | X127: C/T | Y127: =100 * Amplitude!$N$107 -> 0 | Z127: 0 | AA127: =100 * Amplitude!$N$89 -> 0 | AB127: 0 | AC127: =100 * Amplitude!$N$101 -> 0 | AD127: 0 | AE127: =100 * Amplitude!$N$92 -> 0 | AF127: 0 | AG127: =100 * Amplitude!$N$110 -> 0
B128: FC | C128: 0 | D128: 0 | E128: 0 | F128: 0 | G128: 0 | H128: 0 | I128: 0 | J128: 0 | K128: 0 | M128: FC | N128: 0 | O128: 0 | P128: 0 | Q128: 0 | R128: 0 | S128: 0 | T128: 0 | U128: 0 | V128: 0 | X128: FC | Y128: 0 | Z128: 0 | AA128: 0 | AB128: 0 | AC128: 0 | AD128: 0 | AE128: 0 | AF128: 0 | AG128: 0
B129: F | C129: 0 | D129: =100 * Amplitude!$N$81 -> 0 | E129: =100 * Amplitude!$N$75 -> 0 | F129: 0 | G129: =100 * Amplitude!$N$93 -> 0 | H129: 0 | I129: =100 * Amplitude!$N$78 -> 0 | J129: =100 * Amplitude!$N$84 -> 0 | K129: 0 | M129: F | N129: 0 | O129: =100 * Amplitude!$N$82 -> 0 | P129: =100 * Amplitude!$N$76 -> 0 | Q129: 0 | R129: =100 * Amplitude!$N$94 -> 0 | S129: 0 | T129: =100 * Amplitude!$N$79 -> 0 | U129: =100 * Amplitude!$N$85 -> 0 | V129: 0 | X129: F | Y129: 0 | Z129: =100 * Amplitude!$N$83 -> 0 | AA129: =100 * Amplitude!$N$77 -> 0 | AB129: 0 | AC129: =100 * Amplitude!$N$95 -> 0 | AD129: 0 | AE129: =100 * Amplitude!$N$80 -> 0 | AF129: =100 * Amplitude!$N$86 -> 0 | AG129: 0
B130: AF | C130: 0 | D130: 0 | E130: 0 | F130: 0 | G130: 0 | H130: 0 | I130: 0 | J130: 0 | K130: 0 | M130: AF | N130: 0 | O130: 0 | P130: 0 | Q130: 0 | R130: 0 | S130: 0 | T130: 0 | U130: 0 | V130: 0 | X130: AF | Y130: 0 | Z130: 0 | AA130: 0 | AB130: 0 | AC130: 0 | AD130: 0 | AE130: 0 | AF130: 0 | AG130: 0
B131: Fp | C131: 0 | D131: 0 | E131: 0 | F131: =100 * Amplitude!$N$69 -> 0 | G131: 0 | H131: =100 * Amplitude!$N$72 -> 0 | I131: 0 | J131: 0 | K131: 0 | M131: Fp | N131: 0 | O131: 0 | P131: 0 | Q131: 0 | R131: 0 | S131: 0 | T131: 0 | U131: 0 | V131: 0 | X131: Fp | Y131: 0 | Z131: 0 | AA131: 0 | AB131: 0 | AC131: 0 | AD131: 0 | AE131: 0 | AF131: 0 | AG131: 0
